Workbook

Sheet Races, Positions & Points
A1: 2014 | C1: BARTS Points Races | Y1: DATE | Z1: 2014-03-08 | AB1: 1 | AC1: 2014-03-12 | AD1: =1+AB1 -> 2 | AE1: 2014-04-19 | AG1: =1+AD1 -> 3 | AH1: 2014-04-26 | AK1: =1+AG1 -> 4 | AL1: 2014-04-27 | AO1: =1+AK1 -> 5 | AP1: 2014-05-03 | AR1: =1+AO1 -> 6 | AS1: 2014-05-04 | AU1: =1+AR1 -> 7 | AV1: 2014-05-10 | AX1: =1+AU1 -> 8 | AY1: 2014-05-11 | BA1: =1+AX1 -> 9 | BB1: 2014-05-17 | BD1: =1+BA1 -> 10 | BE1: 2014-05-18 | BG1: =1+BD1 -> 11 | BH1: 2014-05-31 | BJ1: =1+BG1 -> 12 | BK1: 2014-06-07 | BM1: =1+BJ1 -> 13 | BN1: 2014-06-07 | BP1: =1+BM1 -> 14 | BQ1: 2013-06-08 | BS1: =1+BP1 -> 15 | BT1: 2014-06-08 | BV1: =1+BS1 -> 16 | BW1: 2014-06-14 | BY1: =1+BV1 -> 17 | BZ1: 2014-06-14 | CB1: =1+BY1 -> 18 | CC1: 2014-06-15 | CE1: =1+CB1 -> 19 | CF1: 2014-06-15 | CI1: =1+CE1 -> 20 | CJ1: 2014-06-21 | CL1: =1+CI1 -> 21 | CM1: 2014-06-22 | CO1: =1+CL1 -> 22 | CP1: 2014-06-22 | CR1: =1+CO1 -> 23 | CS1: 2014-06-28 | CU1: =1+CR1 -> 24 | CV1: 2014-06-29 | CX1: =1+CU1 -> 25 | CY1: 2014-07-05 | DA1: =1+CX1 -> 26 | DB1: 2014-07-06 | DD1: =1+DA1 -> 27 | DE1: 2014-07-12 | DG1: =1+DD1 -> 28 | DH1: 2014-07-13 | DJ1: =1+DG1 -> 29 | DK1: 2014-07-19 | DM1: =1+DJ1 -> 30 | DN1: 2014-07-20 | DP1: =1+DM1 -> 31 | DQ1: 2014-07-20 | DS1: =1+DP1 -> 32 | DT1: 2014-08-16 | DV1: =1+DS1 -> 33 | DW1: 2014-08-17 | DY1: =1+DV1 -> 34 | DZ1: 2014-08-23 | EB1: =1+DY1 -> 35 | EC1: 2014-08-24 | ED1: =1+EB1 -> 36 | EE1: 2014-08-30 | EG1: =1+ED1 -> 37 | EH1: 2014-09-06 | EJ1: =1+EG1 -> 38 | EK1: 2014-09-07 | EM1: =1+EJ1 -> 39 | EN1: 2014-09-13 | EP1: =1+EM1 -> 40 | EQ1: 2014-09-14 | ES1: =1+EP1 -> 41 | ET1: 2013-09-15 | EV1: =1+ES1 -> 42 | EW1: 2014-09-27 | EY1: =1+EV1 -> 43 | EZ1: 2014-10-04 | FB1: =1+EY1 -> 44 | FC1: 2014-10-05 | FE1: =1+FB1 -> 45 | FF1: ? | FG1: =1+FE1 -> 46 | FH1: 2014-11-09 | FI1: =1+FG1 -> 47
A2: Interactive Results | Y2: EVENT | Z2: Excel | AC2: BUISC | AE2: SSW Champery | AH2: Telford CN | AL2: Manchester CN | AP2: Pendle CN | AS2: GBR Outdoor #1 | AV2: GBR Indoor #1 | AY2: GBR Indoor #2 | BB2: GBR Outdoor #2 | BE2: GBR Outdoor #3 | BH2: GBR Outdoor #4 | BK2: Ravens | BN2: Twin Peaks 1 | BQ2: GBR Outdoor #5 | BT2: Twin Peaks 2 | BW2: GBR Indoor #3 | BZ2: Bromley CN | CC2: Scottish Indoor | CF2: Hemel CN | CJ2: Norfolk CN | CM2: GBR Indoor #4 | CP2: Suffolk CN | CS2: Midland CN | CV2: Gloucester CN | CY2: Welwyn CN | DB2: GBR Outdoor #6 | DE2: GBR Indoor #5 | DH2: GBR Indoor #6 | DK2: BIGP #3 | DN2: BIGP #4 | DQ2: Snowsport South CN | DT2: BIGP #5 | DW2: BIGP #6 | DZ2: Scottish Champs | EC2: Scottish GS | EE2: All England | EH2: Anglo Welsh Indoor | EK2: British Indoor | EN2: Welsh | EQ2: British | ET2: Craig McFie Classic | EW2: BARSC Indoor | EZ2: Irish Champs | FC2: Irish Champs | FF2: Bairns/Lassies | FH2: BUDS
A3: Race Registration | Y3: VENUE | Z3: Pontypool | AC3: Castleford | AE3: Gloucester | AH3: Chill Factore | AL3: Chill Factore | AP3: Pendle | AS3: Pendle | AV3: Castleford | AY3: Castleford | BB3: Pontypool | BE3: Pontypool | BH3: Gloucester | BK3: Sunderland | BN3: Firpark | BQ3: Sunderland | BT3: HillEnd | BW3: Braehead | BZ3: Bromley | CC3: Breahead | CF3: Snow Centre | CJ3: Norwich | CM3: Chill Factore | CP3: Ipswich | CS3: Gloucester | CV3: Gloucester | CY3: Welwyn CN | DB3: Gloucester | DE3: Chill Factore | DH3: Chill Factore | DK3: Castleford | DN3: Castleford | DQ3: Southampton | DT3: Castleford | DW3: Castleford | DZ3: HillEnd | EC3: HillEnd | EE3: Norwich | EH3: Chill Factore | EK3: Chill Factore | EN3: Pontypool | EQ3: Pontypool | ET3: HillEnd | EW3: Chill Factore | EZ3: Kilternan | FC3: Kilternan | FF3: HillEnd | FH3: HillEnd
Y4: Min | Z4: 40 | AB4: Out | AC4: 5 | AD4: In | AE4: 5 | AG4: Out | AH4: 10 | AK4: In | AL4: 10 | AO4: In | AP4: 10 | AR4: Out | AS4: 5 | AU4: Out | AV4: 5 | AX4: In | AY4: 5 | BA4: In | BB4: 5 | BD4: Out | BE4: 5 | BG4: Out | BH4: 5 | BJ4: Out | BK4: 10 | BM4: Out | BN4: 10 | BO4: pts | BP4: Out | BQ4: 5 | BS4: Out | BT4: 10 | BU4: pts | BV4: Out | BW4: 5 | BY4: In | BZ4: 10 | CB4: Out | CC4: 0 | CE4: In | CF4: 10 | CI4: In | CJ4: 10 | CL4: Out | CM4: 5 | CO4: In | CP4: 10 | CR4: Out | CS4: 10 | CU4: Out | CV4: 10 | CX4: Out | CY4: 10 | DA4: Out | DB4: 5 | DD4: Out | DE4: 5 | DG4: In | DH4: 5 | DJ4: In | DK4: 5 | DM4: In | DN4: 5 | DP4: In | DQ4: 10 | DS4: Out | DT4: 5 | DV4: In | DW4: 5 | DY4: In | DZ4: 0 | EB4: Out | ED4: Out | EE4: 0 | EG4: Out | EH4: 0 | EJ4: In | EK4: 0 | EM4: In | EN4: 0 | EP4: Out | EQ4: 0 | ES4: Out | ET4: 10 | EV4: Out | EW4: 0 | EY4: In | EZ4: 0 | FB4: Out | FC4: 0 | FE4: Out | FG4: Out | FH4: 0 | FI4: Out | FN4: outdoor | FT4: indoor | FZ4: outdoor | GE4: indoor
A5: Britski | B5: M/F | D5: AGE GROUP | E5: REG | F5: PAST | G5: POINTS | H5: POINTS | I5: POINTS | J5: POINTS | K5: POINTS | L5: POINTS | M5: POINTS | N5: CURRENT | O5: ACTIVE | P5: ACTIVE | Q5: NEXT | R5: NEXT | S5: FUTURE | T5: POINTS | U5: POINTS | V5: CHANGE | W5: 2014 | Y5: Position/ Points | Z5: Overall | AA5: Age | AB5: Event Points | AC5: Overall | AD5: Event Points | AE5: Overall | AF5: Age | AG5: Event Points | AH5: Overall | AI5: Age | AJ5: Run1 Points | AK5: Run 2 Points | AL5: Overall | AM5: Age | AN5: Run1 Points | AO5: Run 2 Points | AP5: Overall | AQ5: Age | AR5: Event Points | AS5: Overall | AT5: Age | AU5: Event Points | AV5: Overall | AW5: Age | AX5: Event Points | AY5: Overall | AZ5: Age | BA5: Event Points | BB5: Overall | BC5: Age | BD5: Event Points | BE5: Overall | BF5: Age | BG5: Event Points | BH5: Overall | BI5: Age | BJ5: Event Points | BK5: Overall | BL5: Age | BM5: Event Points | BN5: Overall | BO5: Age | BP5: Event Points | BQ5: Overall | BR5: Age | BS5: Event Points | BT5: Overall | BU5: Age | BV5: Event Points | BW5: Overall | BX5: Age | BY5: Event Points | BZ5: Overall | CA5: Age | CB5: Event Points | CC5: Overall | CD5: Age | CE5: Event Points | CF5: Overall | CG5: Age | CH5: Run1 Points | CI5: Run 2 Points | CJ5: Overall | CK5: Age | CL5: Event Points | CM5: Overall | CN5: Age | CO5: Event Points | CP5: Overall | CQ5: Age | CR5: Event Points | CS5: Overall | CT5: Age | CU5: Event Points | CV5: Overall | CW5: Age | CX5: Event Points | CY5: Overall | CZ5: Age | DA5: Event Points | DB5: Overall | DC5: Age | DD5: Event Points | DE5: Overall | DF5: Age | DG5: Event Points | DH5: Overall | DI5: Age | DJ5: Event Points | DK5: Overall | DL5: Age | DM5: Event Points | DN5: Overall | DO5: Age | DP5: Event Points | DQ5: Overall | DR5: Age | DS5: Event Points | DT5: Overall | DU5: Age | DV5: Event Points | DW5: Overall | DX5: Age | DY5: Event Points | DZ5: Overall | EA5: Age | EB5: Event Points | EC5: Overall | ED5: Age | EE5: Overall | EF5: Age | EG5: Event Points | EH5: Overall | EI5: Age | EJ5: Event Points | EK5: Overall | EL5: Age | EM5: Event Points | EN5: Overall | EO5: Age | EP5: Event Points | EQ5: Overall | ER5: Age | ES5: Event Points | ET5: Overall | EU5: Age | EV5: Event Points | EW5: Overall | EX5: Age | EY5: Event Points | EZ5: Overall | FA5: Age | FB5: Event Points | FC5: Overall | FD5: Age | FE5: Event Points | FF5: Overall | FG5: Age | FH5: Overall | FI5: Event Points | FK5: Overall Podiums | FL5: Age Group Podiums | FZ5: ='Points Calculation'!BJ1 -> Best Race Points | GA5: ='Points Calculation'!BK1 -> Second Best Race Points | GB5: ='Points Calculation'!BL1 -> Points Calc Based on Best Two Races | GC5: ='Points Calculation'!BO1 -> Points | GE5: ='Points Calculation'!BS1 -> Best Race Points | GF5: ='Points Calculation'!BT1 -> Second Best Race Points | GG5: ='Points Calculation'!BU1 -> Points Calc Based on Best Two Races | GH5: ='Points Calculation'!BX1 -> Points
A6: Seeding | C6: YEAR | E6: NUM | G6: 2014 | H6: o-2014.1 | I6: i-2014.1 | J6: o-2014.2 | K6: i-2014.2 | L6: o-2014.3 | M6: i-2014.3 | O6: o-2014.4 | P6: i-2014.4 | Q6: o-2014.5 | R6: i-2014.5 | T6: o-2014.6 | U6: i-2014.6 | W6: oBARTS | X6: iBARTS | FN6: 5 point | FO6: 2014 | FP6: Diff | FQ6: % Diff | FR6: Start * | FT6: 5 point | FU6: 2014 | FV6: Diff | FW6: % Diff | FX6: Start *
A7: GIRLS
A8: Lauren Treuge | B8: F | C8: 2003 | D8: =INDEX('Age Calculation'!$A$1:'Age Calculation'!$Q$108,MATCH(C8,'Age Calculation'!$A$1:'Age Calculation'!$A$108),MATCH($A$1,'Age Calculation'!$A$1:'Age Calculation'!$Q$1)) -> U12 | E8: 20669 | G8: 999.99 | H8: 999.99 | I8: 999.99 | J8: 999.99 | K8: 999.99 | L8: 999.99 | M8: 999.99 | O8: 999.99 | P8: 999.99 | Q8: 999.99 | R8: 999.99 | T8: 999.99 | U8: 999.99 | W8: =IF(E8<999.99,IF(MIN(H8,R8)<E8,MIN(H8,R8)-E8,""),"") ->  | X8: =IF(G8<999.99,IF(MIN(I8,T8)<G8,MIN(I8,T8)-G8,""),"") ->  | CS8: 7 | CT8: 4 | CU8: 999.99 | CV8: 6 | CW8: 3 | CX8: 999.99 | FL8: =SUM((AA$5:FJ$5="Age")*(AA8:FJ8<=3))-SUM((AA$5:FJ$5="Age")*(AA8:FJ8=0)) -> 1
A9: Tilley O'Brien | B9: F | C9: 2004 | D9: =INDEX('Age Calculation'!$A$1:'Age Calculation'!$Q$108,MATCH(C9,'Age Calculation'!$A$1:'Age Calculation'!$A$108),MATCH($A$1,'Age Calculation'!$A$1:'Age Calculation'!$Q$1)) -> U12 | E9: 20809 | G9: 999.99 | H9: 999.99 | I9: 999.99 | J9: 999.99 | K9: 999.99 | L9: 999.99 | M9: 999.99 | O9: 999.99 | P9: 999.99 | Q9: 999.99 | R9: 999.99 | T9: 999.99 | U9: 999.99 | W9: =IF(E9<999.99,IF(MIN(H9,R9)<E9,MIN(H9,R9)-E9,""),"") ->  | X9: =IF(G9<999.99,IF(MIN(I9,T9)<G9,MIN(I9,T9)-G9,""),"") ->  | AH9: 1 | AI9: 1 | AJ9: 999.99 | AK9: 999.99 | AL9: 1 | AM9: 1 | AN9: 999.99 | AO9: 999.99 | AV9: 2 | AW9: 2 | AX9: 999.99 | AY9: 2 | AZ9: 2 | BA9: 999.99 | CF9: 1 | CG9: 1 | CH9: 999.99 | CI9: 999.99 | DK9: 1 | DL9: 1 | DM9: 999.99 | DN9: 1 | DO9: 1 | DP9: 999.99 | DT9: 1 | DU9: 1 | DV9: 999.99 | DW9: 2 | DX9: 2 | DY9: 999.99 | EH9: 1 | EI9: 1 | EJ9: 999.99 | FL9: =SUM((AA$5:FJ$5="Age")*(AA9:FJ9<=3))-SUM((AA$5:FJ$5="Age")*(AA9:FJ9=0)) -> 10
A10: Ella Giles | B10: F | C10: 2003 | D10: =INDEX('Age Calculation'!$A$1:'Age Calculation'!$Q$108,MATCH(C10,'Age Calculation'!$A$1:'Age Calculation'!$A$108),MATCH($A$1,'Age Calculation'!$A$1:'Age Calculation'!$Q$1)) -> U12 | E10: 22176 | G10: 999.99 | H10: 999.99 | I10: 999.99 | J10: 999.99 | K10: 999.99 | L10: 999.99 | M10: 999.99 | O10: 999.99 | P10: 999.99 | Q10: 999.99 | R10: 999.99 | T10: 999.99 | U10: 999.99 | W10: =IF(E10<999.99,IF(MIN(H10,R10)<E10,MIN(H10,R10)-E10,""),"") ->  | X10: =IF(G10<999.99,IF(MIN(I10,T10)<G10,MIN(I10,T10)-G10,""),"") ->  | CS10: 4 | CT10: 2 | CU10: 999.99 | CV10: DNS | CW10: DNS | CX10: DNS | FL10: =SUM((AA$5:FJ$5="Age")*(AA10:FJ10<=3))-SUM((AA$5:FJ$5="Age")*(AA10:FJ10=0)) -> 1
A11: Anya Hemming | B11: F | C11: 2005 | D11: =INDEX('Age Calculation'!$A$1:'Age Calculation'!$Q$108,MATCH(C11,'Age Calculation'!$A$1:'Age Calculation'!$A$108),MATCH($A$1,'Age Calculation'!$A$1:'Age Calculation'!$Q$1)) -> U10 | E11: 21569 | G11: 999.99 | H11: 999.99 | I11: 999.99 | J11: 999.99 | K11: 999.99 | L11: 999.99 | M11: 999.99 | O11: 999.99 | P11: 999.99 | Q11: 999.99 | R11: 999.99 | T11: 999.99 | U11: 999.99 | W11: =IF(E11<999.99,IF(MIN(H11,R11)<E11,MIN(H11,R11)-E11,""),"") ->  | X11: =IF(G11<999.99,IF(MIN(I11,T11)<G11,MIN(I11,T11)-G11,""),"") ->  | AP11: 4 | AQ11: 2 | AR11: 999.99 | AS11: 6 | AT11: 3 | AU11: 999.99 | BB11: 4 | BC11: 2 | BD11: 999.99 | BE11: 4 | BF11: 2 | BG11: 999.99 | BH11: 4 | BI11: 3 | BJ11: 999.99 | BK11: 5 | BL11: 3 | BM11: 999.99 | BQ11: 4 | BR11: 2 | BS11: 999.99 | BZ11: 2 | CA11: 1 | CB11: 999.99 | CJ11: 3 | CK11: 1 | CL11: 999.99 | CP11: 7 | CQ11: 1 | CR11: 999.99 | CS11: 9 | CT11: 4 | CU11: 999.99 | CV11: 8 | CW11: 4 | CX11: 999.99 | CY11: 2 | CZ11: 1 | DA11: 999.99 | DQ11: 3 | DR11: 2 | DS11: 999.99 | FL11: =SUM((AA$5:FJ$5="Age")*(AA11:FJ11<=3))-SUM((AA$5:FJ$5="Age")*(AA11:FJ11=0)) -> 12
A12: Aaliyah Llewellyn | B12: F | C12: 2006 | D12: =INDEX('Age Calculation'!$A$1:'Age Calculation'!$Q$108,MATCH(C12,'Age Calculation'!$A$1:'Age Calculation'!$A$108),MATCH($A$1,'Age Calculation'!$A$1:'Age Calculation'!$Q$1)) -> U10 | E12: 22015 | G12: 999.99 | H12: 999.99 | I12: 999.99 | J12: 999.99 | K12: 999.99 | L12: 999.99 | M12: 999.99 | O12: 999.99 | P12: 999.99 | Q12: 999.99 | R12: 999.99 | T12: 999.99 | U12: 999.99 | FL12: =SUM((AA$5:FJ$5="Age")*(AA12:FJ12<=3))-SUM((AA$5:FJ$5="Age")*(AA12:FJ12=0)) -> 0
A13: BOYS
A14: James Shakeshaft | B14: M | C14: 2003 | D14: =INDEX('Age Calculation'!$A$1:'Age Calculation'!$Q$108,MATCH(C14,'Age Calculation'!$A$1:'Age Calculation'!$A$108),MATCH($A$1,'Age Calculation'!$A$1:'Age Calculation'!$Q$1)) -> U12 | E14: 20340 | G14: 999.99 | H14: 999.99 | I14: 999.99 | J14: 999.99 | K14: 999.99 | L14: 999.99 | M14: 999.99 | O14: 999.99 | P14: 999.99 | Q14: 999.99 | R14: 999.99 | T14: 999.99 | U14: 999.99 | W14: =IF(E14<999.99,IF(MIN(H14,R14)<E14,MIN(H14,R14)-E14,""),"") ->  | X14: =IF(G14<999.99,IF(MIN(I14,T14)<G14,MIN(I14,T14)-G14,""),"") ->  | FL14: =SUM((AA$5:FJ$5="Age")*(AA14:FJ14<=3))-SUM((AA$5:FJ$5="Age")*(AA14:FJ14=0)) -> 0
A15: Daniel Hadley | B15: M | C15: 2004 | D15: =INDEX('Age Calculation'!$A$1:'Age Calculation'!$Q$108,MATCH(C15,'Age Calculation'!$A$1:'Age Calculation'!$A$108),MATCH($A$1,'Age Calculation'!$A$1:'Age Calculation'!$Q$1)) -> U12 | E15: 20719 | G15: 999.99 | H15: 999.99 | I15: 999.99 | J15: 999.99 | K15: 999.99 | L15: 999.99 | M15: 999.99 | O15: 999.99 | P15: 999.99 | Q15: 999.99 | R15: 999.99 | T15: 999.99 | U15: 999.99 | W15: =IF(E15<999.99,IF(MIN(H15,R15)<E15,MIN(H15,R15)-E15,""),"") ->  | X15: =IF(G15<999.99,IF(MIN(I15,T15)<G15,MIN(I15,T15)-G15,""),"") ->  | FL15: =SUM((AA$5:FJ$5="Age")*(AA15:FJ15<=3))-SUM((AA$5:FJ$5="Age")*(AA15:FJ15=0)) -> 0
A16: Jack Teague | B16: M | C16: 2004 | D16: =INDEX('Age Calculation'!$A$1:'Age Calculation'!$Q$108,MATCH(C16,'Age Calculation'!$A$1:'Age Calculation'!$A$108),MATCH($A$1,'Age Calculation'!$A$1:'Age Calculation'!$Q$1)) -> U12 | E16: 20630 | G16: 999.99 | H16: 999.99 | I16: 999.99 | J16: 999.99 | K16: 999.99 | L16: 999.99 | M16: 999.99 | O16: 999.99 | P16: 999.99 | Q16: 999.99 | R16: 999.99 | T16: 999.99 | U16: 999.99 | W16: =IF(E16<999.99,IF(MIN(H16,R16)<E16,MIN(H16,R16)-E16,""),"") ->  | X16: =IF(G16<999.99,IF(MIN(I16,T16)<G16,MIN(I16,T16)-G16,""),"") ->  | FL16: =SUM((AA$5:FJ$5="Age")*(AA16:FJ16<=3))-SUM((AA$5:FJ$5="Age")*(AA16:FJ16=0)) -> 0
A17: Jack Upton | B17: M | C17: 2004 | D17: =INDEX('Age Calculation'!$A$1:'Age Calculation'!$Q$108,MATCH(C17,'Age Calculation'!$A$1:'Age Calculation'!$A$108),MATCH($A$1,'Age Calculation'!$A$1:'Age Calculation'!$Q$1)) -> U12 | E17: 21052 | G17: 999.99 | H17: 999.99 | I17: 999.99 | J17: 999.99 | K17: 999.99 | L17: 999.99 | M17: 999.99 | O17: 999.99 | P17: 999.99 | Q17: 999.99 | R17: 999.99 | T17: 999.99 | U17: 999.99 | W17: =IF(E17<999.99,IF(MIN(H17,R17)<E17,MIN(H17,R17)-E17,""),"") ->  | X17: =IF(G17<999.99,IF(MIN(I17,T17)<G17,MIN(I17,T17)-G17,""),"") ->  | Z17: 1 | AA17: 1 | AB17: 999.99 | AP17: 1 | AQ17: 1 | AR17: 999.99 | AS17: 1 | AT17: 1 | AU17: 999.99 | AV17: 4 | AW17: 4 | AX17: 999.99 | AY17: 3 | AZ17: 3 | BA17: 999.99 | BB17: 1 | BC17: 1 | BD17: 999.99 | BE17: 1 | BF17: 1 | BG17: 999.99 | BH17: 2 | BI17: 2 | BJ17: 999.99 | CF17: 5 | CG17: 4 | CH17: 999.99 | CI17: 999.99 | CJ17: 3 | CK17: 3 | CL17: 999.99 | CP17: 3 | CQ17: 3 | CR17: 999.99 | CV17: 2 | CW17: 2 | CX17: 999.99 | CY17: 3 | CZ17: 3 | DA17: 999.99 | DB17: 1 | DC17: 1 | DD17: 999.99 | DE17: 2 | DF17: 2 | DG17: 999.99 | DH17: 2 | DI17: 2 | DJ17: 999.99 | DK17: DSQ | DL17: DSQ | DM17: DSQ | DN17: 2 | DO17: 2 | DP17: 999.99 | EE17: 2 | EF17: 2 | EG17: 999.99 | EH17: 2 | EI17: 2 | EJ17: 999.99 | EK17: 1 | EL17: 1 | EM17: 999.99 | EN17: DSQ | EO17: DSQ | EP17: 999.99 | EQ17: 1 | ER17: 1 | ES17: 999.99 | EW17: 1 | EX17: 1 | EY17: 999.99 | FL17: =SUM((AA$5:FJ$5="Age")*(AA17:FJ17<=3))-SUM((AA$5:FJ$5="Age")*(AA17:FJ17=0)) -> 20
A18: Keiron Wooley | B18: M | C18: 2005 | D18: U10 | E18: 21837 | G18: 999.99 | H18: 999.99 | I18: 999.99 | J18: 999.99 | K18: 999.99 | L18: 999.99 | M18: 999.99 | O18: 999.99 | P18: 999.99 | Q18: 999.99 | R18: 999.99 | T18: 999.99 | U18: 999.99 | AH18: 11 | AI18: 4 | AJ18: 999.99 | AK18: 999.99 | AL18: 9 | AM18: 1 | AN18: 999.99 | AO18: 999.99 | AP18: 5 | AQ18: 1 | AR18: 999.99 | AS18: 2 | AT18: 1 | AU18: 999.99 | AV18: 14 | AW18: 2 | AX18: 999.99 | AY18: 13 | AZ18: 2 | BA18: 999.99 | BB18: 4 | BC18: 2 | BD18: 999.99 | BE18: 3 | BF18: 1 | BG18: 999.99 | BH18: 6 | BI18: 2 | BJ18: 999.99 | BW18: 5 | BX18: 1 | BY18: 999.99 | CC18: 6 | CD18: 2 | CE18: 999.99 | CM18: 9 | CN18: 2 | CO18: 999.99 | CS18: 8 | CT18: 2 | CU18: 999.99 | CV18: 6 | CW18: 2 | CX18: 999.99 | DB18: 4 | DC18: 1 | DD18: 999.99 | DE18: 8 | DF18: 2 | DG18: 999.99 | DH18: 6 | DI18: 2 | DJ18: 999.99 | DK18: 7 | DL18: 2 | DM18: 999.99 | DN18: 6 | DO18: 2 | DP18: 999.99 | DT18: 2 | DU18: 7 | DV18: 999.99 | DW18: 2 | DX18: 7 | DY18: 999.99 | EH18: 5 | EI18: 1 | EJ18: 999.99 | EK18: 8 | EL18: 2 | EM18: 999.99 | EN18: 3 | EO18: 1 | EP18: 999.99 | EQ18: 9 | ER18: 4 | ES18: 999.99 | EW18: 8 | EX18: 2 | EY18: 999.99 | FL18: =SUM((AA$5:FJ$5="Age")*(AA18:FJ18<=3))-SUM((AA$5:FJ$5="Age")*(AA18:FJ18=0)) -> 22
A19: Noah Bailey | B19: M | C19: 2006 | D19: U10 | E19: 22198 | G19: 999.99 | H19: 999.99 | I19: 999.99 | J19: 999.99 | K19: 999.99 | L19: 999.99 | M19: 999.99 | O19: 999.99 | P19: 999.99 | Q19: 999.99 | R19: 999.99 | T19: 999.99 | U19: 999.99 | W19: =IF(E19<999.99,IF(MIN(H19,R19)<E19,MIN(H19,R19)-E19,""),"") ->  | X19: =IF(G19<999.99,IF(MIN(I19,T19)<G19,MIN(I19,T19)-G19,""),"") ->  | CS19: 18 | CT19: 8 | CU19: 999.99 | DT19: 7 | DU19: 18 | DV19: 999.99 | FL19: =SUM((AA$5:FJ$5="Age")*(AA19:FJ19<=3))-SUM((AA$5:FJ$5="Age")*(AA19:FJ19=0)) -> 0
A20: Daniel Giles | B20: M | C20: 2003 | D20: U12 | E20: 22203 | G20: 999.99 | H20: 999.99 | I20: 999.99 | J20: 999.99 | K20: 999.99 | L20: 999.99 | M20: 999.99 | O20: 999.99 | P20: 999.99 | Q20: 999.99 | R20: 999.99 | T20: 999.99 | U20: 999.99 | CS20: 15 | CT20: 10 | CU20: 999.99 | CV20: DNS | CW20: DNS | CX20: DNS | FL20: =SUM((AA$5:FJ$5="Age")*(AA20:FJ20<=3))-SUM((AA$5:FJ$5="Age")*(AA20:FJ20=0)) -> 0
A21: FEMALES | W21: =IF(E21<999.99,IF(MIN(H21,R21)<E21,MIN(H21,R21)-E21,""),"") ->  | X21: =IF(G21<999.99,IF(MIN(I21,T21)<G21,MIN(I21,T21)-G21,""),"") -> 
A22: Rachel Bill | B22: F | C22: 1990 | D22: =INDEX('Age Calculation'!$A$1:'Age Calculation'!$Q$108,MATCH(C22,'Age Calculation'!$A$1:'Age Calculation'!$A$108),MATCH($A$1,'Age Calculation'!$A$1:'Age Calculation'!$Q$1)) -> SEN | E22: 20168 | G22: =VLOOKUP(E22,'Start of Year Points'!A$2:I$62,9,FALSE) -> 23.81 | H22: =VLOOKUP(E22,'Start of Year Points'!A$2:L$62,12,FALSE) -> 23.81 | I22: =VLOOKUP(E22,'Start of Year Points'!A$2:L$62,11,FALSE) -> 23.81 | J22: 23.81 | K22: 23.81 | L22: 23.81 | M22: 23.81 | O22: 23.81 | P22: 23.81 | Q22: ='Points Calculation'!$BO22 -> 23.81 | R22: ='Points Calculation'!$BX22 -> 23.81 | T22: ='Points Calculation'!BQ22 -> 33.81 | U22: ='Points Calculation'!BZ22 -> 33.81 | W22: =IF(G22<999.99,IF(MIN(O22,Q22)<G22,MIN(O22,Q22)-G22,""),"") ->  | X22: =IF(G22<999.99,IF(MIN(P22,R22)<G22,MIN(P22,R22)-G22,""),"") ->  | BZ22: 4 | CA22: 1 | CB22: 23.97 | FK22: =SUM((Z$5:FG$5="Overall")*(Z22:FG22<=3))-SUM((Z$5:FG$5="Overall")*(Z22:FG22=0)) -> 0 | FL22: =SUM((AA$5:FJ$5="Age")*(AA22:FJ22<=3))-SUM((AA$5:FJ$5="Age")*(AA22:FJ22=0)) -> 1 | FN22: =IF(MIN('Points Calculation'!CU22,'Points Calculation'!CV22)>0,MIN('Points Calculation'!CU22,'Points Calculation'!CV22),"") ->  | FO22: =IF(MIN('Points Calculation'!BL22,'Points Calculation'!BN22)>0,MIN('Points Calculation'!BL22,'Points Calculation'!BN22),"") -> 33.97 | FP22: =IF(FN22<>"",FN22-FO22,"") ->  | FQ22: =IF(FN22<>"",FP22/FO22,"") ->  | FR22: ='Points Calculation'!$BP22 -> 33.81 | FT22: =IF(MIN('Points Calculation'!CZ22,'Points Calculation'!DA22)>0,MIN('Points Calculation'!CZ22,'Points Calculation'!DA22),"") ->  | FU22: =IF(MIN('Points Calculation'!BU22,'Points Calculation'!BW22)>0,MIN('Points Calculation'!BU22,'Points Calculation'!BW22),"") ->  | FV22: =IF(FT22<>"",FT22-FU22,"") ->  | FW22: =IF(FT22<>"",FV22/FU22,"") ->  | FX22: ='Points Calculation'!$BP22 -> 33.81 | FZ22: ='Points Calculation'!BJ22 -> 23.97 | GA22: ='Points Calculation'!BK22 ->  | GB22: ='Points Calculation'!BL22 ->  | GC22: ='Points Calculation'!BO22 -> 23.81 | GE22: ='Points Calculation'!BS22 ->  | GF22: ='Points Calculation'!BT22 ->  | GG22: ='Points Calculation'!BU22 ->  | GH22: ='Points Calculation'!BX22 -> 23.81
A23: Lucy Deller | B23: F | C23: 1996 | D23: =INDEX('Age Calculation'!$A$1:'Age Calculation'!$Q$108,MATCH(C23,'Age Calculation'!$A$1:'Age Calculation'!$A$108),MATCH($A$1,'Age Calculation'!$A$1:'Age Calculation'!$Q$1)) -> U21 | E23: 17888 | G23: =VLOOKUP(E23,'Start of Year Points'!A$2:I$62,9,FALSE) -> 25.68 | H23: =VLOOKUP(E23,'Start of Year Points'!A$2:L$62,12,FALSE) -> 25.68 | I23: =VLOOKUP(E23,'Start of Year Points'!A$2:L$62,11,FALSE) -> 25.68 | J23: 25.68 | K23: 25.68 | L23: 25.68 | M23: 25.68 | O23: 25.68 | P23: 25.68 | Q23: ='Points Calculation'!$BO23 -> 25.68 | R23: ='Points Calculation'!$BX23 -> 25.68 | T23: ='Points Calculation'!BQ23 -> 35.68 | U23: ='Points Calculation'!BZ23 -> 35.68 | W23: =IF(G23<999.99,IF(MIN(O23,L23)<G23,MIN(O23,L23)-G23,""),"") ->  | X23: =IF(G23<999.99,IF(MIN(P23,M23)<G23,MIN(P23,M23)-G23,""),"") ->  | FK23: =SUM((Z$5:FG$5="Overall")*(Z23:FG23<=3))-SUM((Z$5:FG$5="Overall")*(Z23:FG23=0)) -> 0 | FL23: =SUM((AA$5:FJ$5="Age")*(AA23:FJ23<=3))-SUM((AA$5:FJ$5="Age")*(AA23:FJ23=0)) -> 0 | FN23: =IF(MIN('Points Calculation'!CU23,'Points Calculation'!CV23)>0,MIN('Points Calculation'!CU23,'Points Calculation'!CV23),"") ->  | FO23: =IF(MIN('Points Calculation'!BL23,'Points Calculation'!BN23)>0,MIN('Points Calculation'!BL23,'Points Calculation'!BN23),"") ->  | FP23: =IF(FN23<>"",FN23-FO23,"") ->  | FQ23: =IF(FN23<>"",FP23/FO23,"") ->  | FR23: ='Points Calculation'!$BP23 -> 35.68 | FT23: =IF(MIN('Points Calculation'!CZ23,'Points Calculation'!DA23)>0,MIN('Points Calculation'!CZ23,'Points Calculation'!DA23),"") ->  | FU23: =IF(MIN('Points Calculation'!BU23,'Points Calculation'!BW23)>0,MIN('Points Calculation'!BU23,'Points Calculation'!BW23),"") ->  | FV23: =IF(FT23<>"",FT23-FU23,"") ->  | FW23: =IF(FT23<>"",FV23/FU23,"") ->  | FX23: ='Points Calculation'!$BP23 -> 35.68 | FZ23: ='Points Calculation'!BJ23 ->  | GA23: ='Points Calculation'!BK23 ->  | GB23: ='Points Calculation'!BL23 ->  | GC23: ='Points Calculation'!BO23 -> 25.68 | GE23: ='Points Calculation'!BS23 ->  | GF23: ='Points Calculation'!BT23 ->  | GG23: ='Points Calculation'!BU23 ->  | GH23: ='Points Calculation'!BX23 -> 25.68
A24: Helena Newboult | B24: F | C24: 1998 | D24: =INDEX('Age Calculation'!$A$1:'Age Calculation'!$Q$108,MATCH(C24,'Age Calculation'!$A$1:'Age Calculation'!$A$108),MATCH($A$1,'Age Calculation'!$A$1:'Age Calculation'!$Q$1)) -> U18 | E24: 20696 | G24: =VLOOKUP(E24,'Start of Year Points'!A$2:I$62,9,FALSE) -> 27.39 | H24: =VLOOKUP(E24,'Start of Year Points'!A$2:L$62,12,FALSE) -> 27.39 | I24: =VLOOKUP(E24,'Start of Year Points'!A$2:L$62,11,FALSE) -> 27.39 | J24: 27.39 | K24: 27.39 | L24: 27.39 | M24: 27.39 | O24: 27.39 | P24: 27.39 | Q24: ='Points Calculation'!$BO24 -> 27.39 | R24: ='Points Calculation'!$BX24 -> 27.39 | T24: ='Points Calculation'!BQ24 -> 37.39 | U24: ='Points Calculation'!BZ24 -> 37.39 | W24: =IF(G24<999.99,IF(MIN(O24,L24)<G24,MIN(O24,L24)-G24,""),"") ->  | X24: =IF(G24<999.99,IF(MIN(P24,M24)<G24,MIN(P24,M24)-G24,""),"") ->  | FK24: =SUM((Z$5:FG$5="Overall")*(Z24:FG24<=3))-SUM((Z$5:FG$5="Overall")*(Z24:FG24=0)) -> 0 | FL24: =SUM((AA$5:FJ$5="Age")*(AA24:FJ24<=3))-SUM((AA$5:FJ$5="Age")*(AA24:FJ24=0)) -> 0 | FN24: =IF(MIN('Points Calculation'!CU24,'Points Calculation'!CV24)>0,MIN('Points Calculation'!CU24,'Points Calculation'!CV24),"") ->  | FO24: =IF(MIN('Points Calculation'!BL24,'Points Calculation'!BN24)>0,MIN('Points Calculation'!BL24,'Points Calculation'!BN24),"") ->  | FR24: ='Points Calculation'!$BP24 -> 37.39 | FT24: =IF(MIN('Points Calculation'!CZ24,'Points Calculation'!DA24)>0,MIN('Points Calculation'!CZ24,'Points Calculation'!DA24),"") ->  | FU24: =IF(MIN('Points Calculation'!BU24,'Points Calculation'!BW24)>0,MIN('Points Calculation'!BU24,'Points Calculation'!BW24),"") ->  | FX24: ='Points Calculation'!$BP24 -> 37.39 | FZ24: ='Points Calculation'!BJ24 ->  | GA24: ='Points Calculation'!BK24 ->  | GB24: ='Points Calculation'!BL24 ->  | GC24: ='Points Calculation'!BO24 -> 27.39 | GE24: ='Points Calculation'!BS24 ->  | GF24: ='Points Calculation'!BT24 ->  | GG24: ='Points Calculation'!BU24 ->  | GH24: ='Points Calculation'!BX24 -> 27.39
A25: Rowan Vernon | B25: F | C25: 1988 | D25: =INDEX('Age Calculation'!$A$1:'Age Calculation'!$Q$108,MATCH(C25,'Age Calculation'!$A$1:'Age Calculation'!$A$108),MATCH($A$1,'Age Calculation'!$A$1:'Age Calculation'!$Q$1)) -> SEN | E25: 13381 | G25: =VLOOKUP(E25,'Start of Year Points'!A$2:I$62,9,FALSE) -> 32.84 | H25: =VLOOKUP(E25,'Start of Year Points'!A$2:L$62,12,FALSE) -> 32.84 | I25: =VLOOKUP(E25,'Start of Year Points'!A$2:L$62,11,FALSE) -> 32.84 | J25: 32.84 | K25: 32.84 | L25: 32.84 | M25: 32.84 | O25: 32.84 | P25: 32.84 | Q25: ='Points Calculation'!$BO25 -> 32.84 | R25: ='Points Calculation'!$BX25 -> 32.84 | T25: ='Points Calculation'!BQ25 -> 42.84 | U25: ='Points Calculation'!BZ25 -> 42.84 | W25: =IF(G25<999.99,IF(MIN(O25,L25)<G25,MIN(O25,L25)-G25,""),"") ->  | X25: =IF(G25<999.99,IF(MIN(P25,M25)<G25,MIN(P25,M25)-G25,""),"") ->  | FK25: =SUM((Z$5:FG$5="Overall")*(Z25:FG25<=3))-SUM((Z$5:FG$5="Overall")*(Z25:FG25=0)) -> 0 | FL25: =SUM((AA$5:FJ$5="Age")*(AA25:FJ25<=3))-SUM((AA$5:FJ$5="Age")*(AA25:FJ25=0)) -> 0 | FN25: =IF(MIN('Points Calculation'!CU25,'Points Calculation'!CV25)>0,MIN('Points Calculation'!CU25,'Points Calculation'!CV25),"") ->  | FO25: =IF(MIN('Points Calculation'!BL25,'Points Calculation'!BN25)>0,MIN('Points Calculation'!BL25,'Points Calculation'!BN25),"") ->  | FR25: ='Points Calculation'!$BP25 -> 42.84 | FT25: =IF(MIN('Points Calculation'!CZ25,'Points Calculation'!DA25)>0,MIN('Points Calculation'!CZ25,'Points Calculation'!DA25),"") ->  | FU25: =IF(MIN('Points Calculation'!BU25,'Points Calculation'!BW25)>0,MIN('Points Calculation'!BU25,'Points Calculation'!BW25),"") ->  | FX25: ='Points Calculation'!$BP25 -> 42.84 | FZ25: ='Points Calculation'!BJ25 ->  | GA25: ='Points Calculation'!BK25 ->  | GB25: ='Points Calculation'!BL25 ->  | GC25: ='Points Calculation'!BO25 -> 32.84 | GE25: ='Points Calculation'!BS25 ->  | GF25: ='Points Calculation'!BT25 ->  | GG25: ='Points Calculation'!BU25 ->  | GH25: ='Points Calculation'!BX25 -> 32.84
A26: Amy Middleton | B26: F | C26: 1995 | D26: =INDEX('Age Calculation'!$A$1:'Age Calculation'!$Q$108,MATCH(C26,'Age Calculation'!$A$1:'Age Calculation'!$A$108),MATCH($A$1,'Age Calculation'!$A$1:'Age Calculation'!$Q$1)) -> U21 | E26: 20307 | G26: =VLOOKUP(E26,'Start of Year Points'!A$2:I$62,9,FALSE) -> 51.15 | H26: =VLOOKUP(E26,'Start of Year Points'!A$2:L$62,12,FALSE) -> 51.15 | I26: =VLOOKUP(E26,'Start of Year Points'!A$2:L$62,11,FALSE) -> 51.15 | J26: 51.15 | K26: 51.15 | L26: 49.89 | M26: 51.15 | O26: 44.97 | P26: 51.15 | Q26: ='Points Calculation'!$BO26 -> 44.97 | R26: ='Points Calculation'!$BX26 -> 51.15 | T26: ='Points Calculation'!BQ26 -> 44.97 | U26: ='Points Calculation'!BZ26 -> 61.38 | W26: =IF(G26<999.99,IF(MIN(O26,Q26)<G26,MIN(O26,Q26)-G26,""),"") -> -6.18 | X26: =IF(G26<999.99,IF(MIN(P26,R26)<G26,MIN(P26,R26)-G26,""),"") ->  | AE26: 8 | AF26: 4 | AG26: 54.06 | BZ26: 10 | CA26: 3 | CB26: 55.35 | CJ26: 15 | CK26: 4 | CL26: 59.4 | CP26: 8 | CQ26: 4 | CR26: 48.62 | CS26: 7 | CT26: 5 | CU26: 60.11 | CV26: 6 | CW26: 3 | CX26: 41.31 | DQ26: 8 | DR26: 4 | DS26: 58.55 | EE26: DNF | EF26: DNF | EG26: 999.99 | FK26: =SUM((Z$5:FG$5="Overall")*(Z26:FG26<=3))-SUM((Z$5:FG$5="Overall")*(Z26:FG26=0)) -> 0 | FL26: =SUM((AA$5:FJ$5="Age")*(AA26:FJ26<=3))-SUM((AA$5:FJ$5="Age")*(AA26:FJ26=0)) -> 2 | FN26: =IF(MIN('Points Calculation'!CU26,'Points Calculation'!CV26)>0,MIN('Points Calculation'!CU26,'Points Calculation'!CV26),"") ->  | FO26: =IF(MIN('Points Calculation'!BL26,'Points Calculation'!BN26)>0,MIN('Points Calculation'!BL26,'Points Calculation'!BN26),"") -> 44.97 | FR26: ='Points Calculation'!$BP26 -> 61.38 | FT26: =IF(MIN('Points Calculation'!CZ26,'Points Calculation'!DA26)>0,MIN('Points Calculation'!CZ26,'Points Calculation'!DA26),"") ->  | FU26: =IF(MIN('Points Calculation'!BU26,'Points Calculation'!BW26)>0,MIN('Points Calculation'!BU26,'Points Calculation'!BW26),"") ->  | FX26: ='Points Calculation'!$BP26 -> 61.38 | FZ26: ='Points Calculation'!BJ26 -> 41.31 | GA26: ='Points Calculation'!BK26 -> 48.62 | GB26: ='Points Calculation'!BL26 -> 44.97 | GC26: ='Points Calculation'!BO26 -> 44.97 | GE26: ='Points Calculation'!BS26 ->  | GF26: ='Points Calculation'!BT26 ->  | GG26: ='Points Calculation'!BU26 ->  | GH26: ='Points Calculation'!BX26 -> 51.15
A27: Elisabeth Thomas | B27: F | C27: 1996 | D27: =INDEX('Age Calculation'!$A$1:'Age Calculation'!$Q$108,MATCH(C27,'Age Calculation'!$A$1:'Age Calculation'!$A$108),MATCH($A$1,'Age Calculation'!$A$1:'Age Calculation'!$Q$1)) -> U21 | E27: 18033 | G27: =VLOOKUP(E27,'Start of Year Points'!A$2:I$62,9,FALSE) -> 72.7 | H27: =VLOOKUP(E27,'Start of Year Points'!A$2:L$62,12,FALSE) -> 72.7 | I27: =VLOOKUP(E27,'Start of Year Points'!A$2:L$62,11,FALSE) -> 72.7 | J27: 72.7 | K27: 72.7 | L27: 67.69 | M27: 72.7 | O27: 41.04 | P27: 72.7 | Q27: ='Points Calculation'!$BO27 -> 41.04 | R27: ='Points Calculation'!$BX27 -> 72.7 | T27: ='Points Calculation'!BQ27 -> 41.04 | U27: ='Points Calculation'!BZ27 -> 87.24 | W27: -31.66 | BB27: 5 | BC27: 2 | BD27: 74.12 | BH27: 7 | BI27: 7 | BJ27: 62.67 | CS27: 5 | CT27: 4 | CU27: 43.35 | CV27: 3 | CW27: 2 | CX27: 31.04 | CY27: DNF | CZ27: DNF | DA27: DNF | DB27: 5 | DC27: 5 | DD27: 33.86 | DQ27: 6 | DR27: 3 | DS27: 56.04 | FK27: =SUM((Z$5:FG$5="Overall")*(Z27:FG27<=3))-SUM((Z$5:FG$5="Overall")*(Z27:FG27=0)) -> 1 | FL27: =SUM((AA$5:FJ$5="Age")*(AA27:FJ27<=3))-SUM((AA$5:FJ$5="Age")*(AA27:FJ27=0)) -> 3 | FN27: =IF(MIN('Points Calculation'!CU27,'Points Calculation'!CV27)>0,MIN('Points Calculation'!CU27,'Points Calculation'!CV27),"") -> 43.86 | FO27: =IF(MIN('Points Calculation'!BL27,'Points Calculation'!BN27)>0,MIN('Points Calculation'!BL27,'Points Calculation'!BN27),"") -> 41.04 | FP27: 2.82 | FQ27: 0.06871345029 | FR27: ='Points Calculation'!$BP27 -> 87.24 | FT27: =IF(MIN('Points Calculation'!CZ27,'Points Calculation'!DA27)>0,MIN('Points Calculation'!CZ27,'Points Calculation'!DA27),"") ->  | FU27: =IF(MIN('Points Calculation'!BU27,'Points Calculation'!BW27)>0,MIN('Points Calculation'!BU27,'Points Calculation'!BW27),"") ->  | FX27: ='Points Calculation'!$BP27 -> 87.24 | FZ27: ='Points Calculation'!BJ27 -> 31.04 | GA27: ='Points Calculation'!BK27 -> 56.04 | GB27: ='Points Calculation'!BL27 -> 43.54 | GC27: ='Points Calculation'!BO27 -> 41.04 | GE27: ='Points Calculation'!BS27 ->  | GF27: ='Points Calculation'!BT27 ->  | GG27: ='Points Calculation'!BU27 ->  | GH27: ='Points Calculation'!BX27 -> 72.7
A28: Maxine Hancock | B28: F | C28: 1997 | D28: =INDEX('Age Calculation'!$A$1:'Age Calculation'!$Q$108,MATCH(C28,'Age Calculation'!$A$1:'Age Calculation'!$A$108),MATCH($A$1,'Age Calculation'!$A$1:'Age Calculation'!$Q$1)) -> U18 | E28: 18617 | G28: =VLOOKUP(E28,'Start of Year Points'!A$2:I$62,9,FALSE) -> 74.28 | H28: =VLOOKUP(E28,'Start of Year Points'!A$2:L$62,12,FALSE) -> 74.28 | I28: =VLOOKUP(E28,'Start of Year Points'!A$2:L$62,11,FALSE) -> 74.28 | J28: 74.28 | K28: 74.28 | L28: 74.28 | M28: 74.28 | O28: 74.28 | P28: 74.28 | Q28: ='Points Calculation'!$BO28 -> 74.28 | R28: ='Points Calculation'!$BX28 -> 74.28 | T28: ='Points Calculation'!BQ28 -> 89.14 | U28: ='Points Calculation'!BZ28 -> 84.44 | AV28: 18 | AW28: 4 | AX28: 143.58 | AY28: 15 | AZ28: 2 | BA28: 132.8 | BW28: 11 | BX28: 4 | BY28: 108.11 | CC28: 10 | CD28: 4 | CE28: 92.89 | CM28: DNF | CN28: DNF | CO28: DNF | DT28: 15 | DU28: 7 | DV28: 124.79 | DW28: 17 | DX28: 6 | DY28: 132.25 | EH28: 15 | EI28: 3 | EJ28: 102.32 | EK28: 16 | EL28: 3 | EM28: 90.53 | EW28: 4 | EX28: 1 | EY28: 75.99 | FK28: =SUM((Z$5:FG$5="Overall")*(Z28:FG28<=3))-SUM((Z$5:FG$5="Overall")*(Z28:FG28=0)) -> 0 | FL28: =SUM((AA$5:FJ$5="Age")*(AA28:FJ28<=3))-SUM((AA$5:FJ$5="Age")*(AA28:FJ28=0)) -> 4 | FN28: =IF(MIN('Points Calculation'!CU28,'Points Calculation'!CV28)>0,MIN('Points Calculation'!CU28,'Points Calculation'!CV28),"") ->  | FO28: =IF(MIN('Points Calculation'!BL28,'Points Calculation'!BN28)>0,MIN('Points Calculation'!BL28,'Points Calculation'!BN28),"") ->  | FR28: ='Points Calculation'!$BP28 -> 89.14 | FT28: =IF(MIN('Points Calculation'!CZ28,'Points Calculation'!DA28)>0,MIN('Points Calculation'!CZ28,'Points Calculation'!DA28),"") -> 84.44 | FU28: =IF(MIN('Points Calculation'!BU28,'Points Calculation'!BW28)>0,MIN('Points Calculation'!BU28,'Points Calculation'!BW28),"") -> 84.44 | FV28: 0 | FW28: 0 | FX28: ='Points Calculation'!$BP28 -> 89.14 | FZ28: ='Points Calculation'!BJ28 ->  | GA28: ='Points Calculation'!BK28 ->  | GB28: ='Points Calculation'!BL28 ->  | GC28: ='Points Calculation'!BO28 -> 74.28 | GE28: ='Points Calculation'!BS28 -> 75.99 | GF28: ='Points Calculation'!BT28 -> 92.89 | GG28: ='Points Calculation'!BU28 -> 84.44 | GH28: ='Points Calculation'!BX28 -> 74.28
A29: Jessica Mayhew | B29: F | C29: 2000 | D29: =INDEX('Age Calculation'!$A$1:'Age Calculation'!$Q$108,MATCH(C29,'Age Calculation'!$A$1:'Age Calculation'!$A$108),MATCH($A$1,'Age Calculation'!$A$1:'Age Calculation'!$Q$1)) -> U16 | E29: 21014 | G29: =VLOOKUP(E29,'Start of Year Points'!A$2:I$62,9,FALSE) -> 84.18 | H29: =VLOOKUP(E29,'Start of Year Points'!A$2:L$62,12,FALSE) -> 53.98 | I29: =VLOOKUP(E29,'Start of Year Points'!A$2:L$62,11,FALSE) -> 84.18 | J29: 48.06 | K29: 84.18 | L29: 47.77 | M29: 84.18 | O29: 47.77 | P29: 84.18 | Q29: ='Points Calculation'!$BO29 -> 47.77 | R29: ='Points Calculation'!$BX29 -> 84.18 | T29: ='Points Calculation'!BQ29 -> 47.77 | U29: ='Points Calculation'!BZ29 -> 101.02 | W29: -36.41 | AE29: 6 | AF29: 1 | AG29: 43.98 | AP29: 5 | AQ29: 1 | AR29: 52.14 | AS29: DNF | AT29: DNF | AU29: DNF | BB29: 6 | BC29: 1 | BD29: 81.75 | BE29: 2 | BF29: 1 | BH29: DSQ | BI29: DSQ | BJ29: DSQ | BQ29: 8 | BR29: 3 | BS29: 902.26 | CJ29: 12 | CK29: 3 | CL29: 51.56 | CP29: 15 | CQ29: 3 | CR29: 62.03 | CS29: 11 | CT29: 2 | CU29: 66.87 | CV29: 10 | CW29: 2 | CX29: 65.43 | DB29: 11 | DC29: 4 | DD29: 68.9 | EE29: 20 | EF29: 4 | EG29: 87.31 | EN29: 9 | EO29: 5 | EP29: 61.94 | EQ29: 7 | ER29: 4 | ES29: 83.13 | FK29: =SUM((Z$5:FG$5="Overall")*(Z29:FG29<=3))-SUM((Z$5:FG$5="Overall")*(Z29:FG29=0)) -> 1 | FL29: =SUM((AA$5:FJ$5="Age")*(AA29:FJ29<=3))-SUM((AA$5:FJ$5="Age")*(AA29:FJ29=0)) -> 9 | FN29: =IF(MIN('Points Calculation'!CU29,'Points Calculation'!CV29)>0,MIN('Points Calculation'!CU29,'Points Calculation'!CV29),"") -> 65.42 | FO29: =IF(MIN('Points Calculation'!BL29,'Points Calculation'!BN29)>0,MIN('Points Calculation'!BL29,'Points Calculation'!BN29),"") -> 47.77 | FP29: 17.65 | FQ29: 0.3694787524 | FR29: ='Points Calculation'!$BP29 -> 101.02 | FT29: =IF(MIN('Points Calculation'!CZ29,'Points Calculation'!DA29)>0,MIN('Points Calculation'!CZ29,'Points Calculation'!DA29),"") ->  | FU29: =IF(MIN('Points Calculation'!BU29,'Points Calculation'!BW29)>0,MIN('Points Calculation'!BU29,'Points Calculation'!BW29),"") ->  | FX29: ='Points Calculation'!$BP29 -> 101.02 | FZ29: ='Points Calculation'!BJ29 -> 43.98 | GA29: ='Points Calculation'!BK29 -> 51.56 | GB29: ='Points Calculation'!BL29 -> 47.77 | GC29: ='Points Calculation'!BO29 -> 47.77 | GE29: ='Points Calculation'!BS29 ->  | GF29: ='Points Calculation'!BT29 ->  | GG29: ='Points Calculation'!BU29 ->  | GH29: ='Points Calculation'!BX29 -> 84.18
A30: Hannah Shakeshaft | B30: F | C30: 1996 | D30: =INDEX('Age Calculation'!$A$1:'Age Calculation'!$Q$108,MATCH(C30,'Age Calculation'!$A$1:'Age Calculation'!$A$108),MATCH($A$1,'Age Calculation'!$A$1:'Age Calculation'!$Q$1)) -> U21 | E30: 19833 | G30: =VLOOKUP(E30,'Start of Year Points'!A$2:I$62,9,FALSE) -> 140.29 | H30: =VLOOKUP(E30,'Start of Year Points'!A$2:L$62,12,FALSE) -> 140.29 | I30: =VLOOKUP(E30,'Start of Year Points'!A$2:L$62,11,FALSE) -> 140.29 | O30: 140.29 | P30: 140.29 | Q30: ='Points Calculation'!$BO30 -> 140.29 | R30: ='Points Calculation'!$BX30 -> 140.29 | T30: ='Points Calculation'!BQ30 -> 168.35 | U30: ='Points Calculation'!BZ30 -> 168.35 | FK30: =SUM((Z$5:FG$5="Overall")*(Z30:FG30<=3))-SUM((Z$5:FG$5="Overall")*(Z30:FG30=0)) -> 0 | FL30: =SUM((AA$5:FJ$5="Age")*(AA30:FJ30<=3))-SUM((AA$5:FJ$5="Age")*(AA30:FJ30=0)) -> 0 | FN30: =IF(MIN('Points Calculation'!CU30,'Points Calculation'!CV30)>0,MIN('Points Calculation'!CU30,'Points Calculation'!CV30),"") ->  | FO30: =IF(MIN('Points Calculation'!BL30,'Points Calculation'!BN30)>0,MIN('Points Calculation'!BL30,'Points Calculation'!BN30),"") ->  | FR30: ='Points Calculation'!$BP30 -> 168.35 | FT30: =IF(MIN('Points Calculation'!CZ30,'Points Calculation'!DA30)>0,MIN('Points Calculation'!CZ30,'Points Calculation'!DA30),"") ->  | FU30: =IF(MIN('Points Calculation'!BU30,'Points Calculation'!BW30)>0,MIN('Points Calculation'!BU30,'Points Calculation'!BW30),"") ->  | FX30: ='Points Calculation'!$BP30 -> 168.35 | FZ30: ='Points Calculation'!BJ30 ->  | GA30: ='Points Calculation'!BK30 ->  | GB30: ='Points Calculation'!BL30 ->  | GC30: ='Points Calculation'!BO30 -> 140.29 | GE30: ='Points Calculation'!BS30 ->  | GF30: ='Points Calculation'!BT30 ->  | GG30: ='Points Calculation'!BU30 ->  | GH30: ='Points Calculation'!BX30 -> 140.29
A31: Chloe Care | B31: F | C31: 1998 | D31: =INDEX('Age Calculation'!$A$1:'Age Calculation'!$Q$108,MATCH(C31,'Age Calculation'!$A$1:'Age Calculation'!$A$108),MATCH($A$1,'Age Calculation'!$A$1:'Age Calculation'!$Q$1)) -> U18 | E31: 19983 | G31: =VLOOKUP(E31,'Start of Year Points'!A$2:I$62,9,FALSE) -> 203.01 | H31: =VLOOKUP(E31,'Start of Year Points'!A$2:L$62,12,FALSE) -> 203.01 | I31: =VLOOKUP(E31,'Start of Year Points'!A$2:L$62,11,FALSE) -> 203.01 | J31: 203.01 | K31: 203.01 | L31: 203.01 | M31: 203.01 | O31: 203.01 | P31: 203.01 | Q31: ='Points Calculation'!$BO31 -> 203.01 | R31: ='Points Calculation'!$BX31 -> 203.01 | T31: ='Points Calculation'!BQ31 -> 215.55 | U31: ='Points Calculation'!BZ31 -> 243.61 | Z31: 6 | AA31: 1 | AB31: =88.86+135.22 -> 224.08 | CY31: 16 | CZ31: 4 | DA31: 207.02 | FK31: =SUM((Z$5:FG$5="Overall")*(Z31:FG31<=3))-SUM((Z$5:FG$5="Overall")*(Z31:FG31=0)) -> 0 | FL31: =SUM((AA$5:FJ$5="Age")*(AA31:FJ31<=3))-SUM((AA$5:FJ$5="Age")*(AA31:FJ31=0)) -> 1 | FN31: =IF(MIN('Points Calculation'!CU31,'Points Calculation'!CV31)>0,MIN('Points Calculation'!CU31,'Points Calculation'!CV31),"") ->  | FO31: =IF(MIN('Points Calculation'!BL31,'Points Calculation'!BN31)>0,MIN('Points Calculation'!BL31,'Points Calculation'!BN31),"") -> 215.55 | FR31: ='Points Calculation'!$BP31 -> 243.61 | FT31: =IF(MIN('Points Calculation'!CZ31,'Points Calculation'!DA31)>0,MIN('Points Calculation'!CZ31,'Points Calculation'!DA31),"") ->  | FU31: =IF(MIN('Points Calculation'!BU31,'Points Calculation'!BW31)>0,MIN('Points Calculation'!BU31,'Points Calculation'!BW31),"") ->  | FX31: ='Points Calculation'!$BP31 -> 243.61 | FZ31: ='Points Calculation'!BJ31 -> 207.02 | GA31: ='Points Calculation'!BK31 -> 224.08 | GB31: ='Points Calculation'!BL31 -> 215.55 | GC31: ='Points Calculation'!BO31 -> 203.01 | GE31: ='Points Calculation'!BS31 ->  | GF31: ='Points Calculation'!BT31 ->  | GG31: ='Points Calculation'!BU31 ->  | GH31: ='Points Calculation'!BX31 -> 203.01
A32: Geraldine Elgy | B32: F | C32: 1954 | D32: =INDEX('Age Calculation'!$A$1:'Age Calculation'!$Q$108,MATCH(C32,'Age Calculation'!$A$1:'Age Calculation'!$A$108),MATCH($A$1,'Age Calculation'!$A$1:'Age Calculation'!$Q$1)) -> MAS | E32: 19165 | G32: =VLOOKUP(E32,'Start of Year Points'!A$2:I$62,9,FALSE) -> 330.25 | H32: =VLOOKUP(E32,'Start of Year Points'!A$2:L$62,12,FALSE) -> 330.25 | I32: =VLOOKUP(E32,'Start of Year Points'!A$2:L$62,11,FALSE) -> 330.25 | J32: 330.25 | K32: 330.25 | L32: 330.25 | M32: 330.25 | O32: 330.25 | P32: 330.25 | Q32: ='Points Calculation'!$BO32 -> 330.25 | R32: ='Points Calculation'!$BX32 -> 330.25 | T32: ='Points Calculation'!BQ32 -> 396.3 | U32: ='Points Calculation'!BZ32 -> 396.3 | FK32: =SUM((Z$5:FG$5="Overall")*(Z32:FG32<=3))-SUM((Z$5:FG$5="Overall")*(Z32:FG32=0)) -> 0 | FL32: =SUM((AA$5:FJ$5="Age")*(AA32:FJ32<=3))-SUM((AA$5:FJ$5="Age")*(AA32:FJ32=0)) -> 0 | FN32: =IF(MIN('Points Calculation'!CU32,'Points Calculation'!CV32)>0,MIN('Points Calculation'!CU32,'Points Calculation'!CV32),"") ->  | FO32: =IF(MIN('Points Calculation'!BL32,'Points Calculation'!BN32)>0,MIN('Points Calculation'!BL32,'Points Calculation'!BN32),"") ->  | FR32: ='Points Calculation'!$BP32 -> 396.3 | FT32: =IF(MIN('Points Calculation'!CZ32,'Points Calculation'!DA32)>0,MIN('Points Calculation'!CZ32,'Points Calculation'!DA32),"") ->  | FU32: =IF(MIN('Points Calculation'!BU32,'Points Calculation'!BW32)>0,MIN('Points Calculation'!BU32,'Points Calculation'!BW32),"") ->  | FX32: ='Points Calculation'!$BP32 -> 396.3 | FZ32: ='Points Calculation'!BJ32 ->  | GA32: ='Points Calculation'!BK32 ->  | GB32: ='Points Calculation'!BL32 ->  | GC32: ='Points Calculation'!BO32 -> 330.25 | GE32: ='Points Calculation'!BS32 ->  | GF32: ='Points Calculation'!BT32 ->  | GG32: ='Points Calculation'!BU32 ->  | GH32: ='Points Calculation'!BX32 -> 330.25
A33: Laura Newboult | B33: F | C33: 1995 | D33: =INDEX('Age Calculation'!$A$1:'Age Calculation'!$Q$108,MATCH(C33,'Age Calculation'!$A$1:'Age Calculation'!$A$108),MATCH($A$1,'Age Calculation'!$A$1:'Age Calculation'!$Q$1)) -> U21 | E33: 20781 | G33: =VLOOKUP(E33,'Start of Year Points'!A$2:I$62,9,FALSE) -> 428.94 | H33: =VLOOKUP(E33,'Start of Year Points'!A$2:L$62,12,FALSE) -> 428.94 | I33: =VLOOKUP(E33,'Start of Year Points'!A$2:L$62,11,FALSE) -> 428.94 | O33: 428.94 | P33: 428.94 | Q33: ='Points Calculation'!$BO33 -> 428.94 | R33: ='Points Calculation'!$BX33 -> 428.94 | T33: ='Points Calculation'!BQ33 -> 514.73 | U33: ='Points Calculation'!BZ33 -> 514.73 | FK33: =SUM((Z$5:FG$5="Overall")*(Z33:FG33<=3))-SUM((Z$5:FG$5="Overall")*(Z33:FG33=0)) -> 0 | FL33: =SUM((AA$5:FJ$5="Age")*(AA33:FJ33<=3))-SUM((AA$5:FJ$5="Age")*(AA33:FJ33=0)) -> 0 | FN33: =IF(MIN('Points Calculation'!CU33,'Points Calculation'!CV33)>0,MIN('Points Calculation'!CU33,'Points Calculation'!CV33),"") ->  | FO33: =IF(MIN('Points Calculation'!BL33,'Points Calculation'!BN33)>0,MIN('Points Calculation'!BL33,'Points Calculation'!BN33),"") ->  | FR33: ='Points Calculation'!$BP33 -> 514.73 | FT33: =IF(MIN('Points Calculation'!CZ33,'Points Calculation'!DA33)>0,MIN('Points Calculation'!CZ33,'Points Calculation'!DA33),"") ->  | FU33: =IF(MIN('Points Calculation'!BU33,'Points Calculation'!BW33)>0,MIN('Points Calculation'!BU33,'Points Calculation'!BW33),"") ->  | FX33: ='Points Calculation'!$BP33 -> 514.73 | FZ33: ='Points Calculation'!BJ33 ->  | GA33: ='Points Calculation'!BK33 ->  | GB33: ='Points Calculation'!BL33 ->  | GC33: ='Points Calculation'!BO33 -> 428.94 | GE33: ='Points Calculation'!BS33 ->  | GF33: ='Points Calculation'!BT33 ->  | GG33: ='Points Calculation'!BU33 ->  | GH33: ='Points Calculation'!BX33 -> 428.94
A34: Robyn Doherty | B34: F | C34: 1996 | D34: =INDEX('Age Calculation'!$A$1:'Age Calculation'!$Q$108,MATCH(C34,'Age Calculation'!$A$1:'Age Calculation'!$A$108),MATCH($A$1,'Age Calculation'!$A$1:'Age Calculation'!$Q$1)) -> U21 | E34: 19573 | G34: =VLOOKUP(E34,'Start of Year Points'!A$2:I$62,9,FALSE) -> 636.34 | H34: =VLOOKUP(E34,'Start of Year Points'!A$2:L$62,12,FALSE) -> 636.34 | I34: =VLOOKUP(E34,'Start of Year Points'!A$2:L$62,11,FALSE) -> 636.34 | J34: 636.34 | K34: 636.34 | L34: 636.34 | M34: 636.34 | O34: 636.34 | P34: 636.34 | Q34: ='Points Calculation'!$BO34 -> 636.34 | R34: ='Points Calculation'!$BX34 -> 636.34 | T34: ='Points Calculation'!BQ34 -> 763.61 | U34: ='Points Calculation'!BZ34 -> 763.61 | FK34: =SUM((Z$5:FG$5="Overall")*(Z34:FG34<=3))-SUM((Z$5:FG$5="Overall")*(Z34:FG34=0)) -> 0 | FL34: =SUM((AA$5:FJ$5="Age")*(AA34:FJ34<=3))-SUM((AA$5:FJ$5="Age")*(AA34:FJ34=0)) -> 0 | FN34: =IF(MIN('Points Calculation'!CU34,'Points Calculation'!CV34)>0,MIN('Points Calculation'!CU34,'Points Calculation'!CV34),"") ->  | FO34: =IF(MIN('Points Calculation'!BL34,'Points Calculation'!BN34)>0,MIN('Points Calculation'!BL34,'Points Calculation'!BN34),"") ->  | FR34: ='Points Calculation'!$BP34 -> 763.61 | FT34: =IF(MIN('Points Calculation'!CZ34,'Points Calculation'!DA34)>0,MIN('Points Calculation'!CZ34,'Points Calculation'!DA34),"") ->  | FU34: =IF(MIN('Points Calculation'!BU34,'Points Calculation'!BW34)>0,MIN('Points Calculation'!BU34,'Points Calculation'!BW34),"") ->  | FX34: ='Points Calculation'!$BP34 -> 763.61 | FZ34: ='Points Calculation'!BJ34 ->  | GA34: ='Points Calculation'!BK34 ->  | GB34: ='Points Calculation'!BL34 ->  | GC34: ='Points Calculation'!BO34 -> 636.34 | GE34: ='Points Calculation'!BS34 ->  | GF34: ='Points Calculation'!BT34 ->  | GG34: ='Points Calculation'!BU34 ->  | GH34: ='Points Calculation'!BX34 -> 636.34
A35: Jane Lee | B35: F | C35: 1954 | D35: =INDEX('Age Calculation'!$A$1:'Age Calculation'!$Q$108,MATCH(C35,'Age Calculation'!$A$1:'Age Calculation'!$A$108),MATCH($A$1,'Age Calculation'!$A$1:'Age Calculation'!$Q$1)) -> MAS | E35: 41577 | G35: =VLOOKUP(E35,'Start of Year Points'!A$2:I$62,9,FALSE) -> 640.45 | H35: =VLOOKUP(E35,'Start of Year Points'!A$2:L$62,12,FALSE) -> 640.45 | I35: =VLOOKUP(E35,'Start of Year Points'!A$2:L$62,11,FALSE) -> 640.45 | O35: 640.45 | P35: 640.45 | Q35: ='Points Calculation'!$BO35 -> 640.45 | R35: ='Points Calculation'!$BX35 -> 640.45 | T35: ='Points Calculation'!BQ35 -> 768.54 | U35: ='Points Calculation'!BZ35 -> 768.54 | FK35: =SUM((Z$5:FG$5="Overall")*(Z35:FG35<=3))-SUM((Z$5:FG$5="Overall")*(Z35:FG35=0)) -> 0 | FL35: =SUM((AA$5:FJ$5="Age")*(AA35:FJ35<=3))-SUM((AA$5:FJ$5="Age")*(AA35:FJ35=0)) -> 0 | FN35: =IF(MIN('Points Calculation'!CU35,'Points Calculation'!CV35)>0,MIN('Points Calculation'!CU35,'Points Calculation'!CV35),"") ->  | FO35: =IF(MIN('Points Calculation'!BL35,'Points Calculation'!BN35)>0,MIN('Points Calculation'!BL35,'Points Calculation'!BN35),"") ->  | FR35: ='Points Calculation'!$BP35 -> 768.54 | FT35: =IF(MIN('Points Calculation'!CZ35,'Points Calculation'!DA35)>0,MIN('Points Calculation'!CZ35,'Points Calculation'!DA35),"") ->  | FU35: =IF(MIN('Points Calculation'!BU35,'Points Calculation'!BW35)>0,MIN('Points Calculation'!BU35,'Points Calculation'!BW35),"") ->  | FX35: ='Points Calculation'!$BP35 -> 768.54 | FZ35: ='Points Calculation'!BJ35 ->  | GA35: ='Points Calculation'!BK35 ->  | GB35: ='Points Calculation'!BL35 ->  | GC35: ='Points Calculation'!BO35 -> 640.45 | GE35: ='Points Calculation'!BS35 ->  | GF35: ='Points Calculation'!BT35 ->  | GG35: ='Points Calculation'!BU35 ->  | GH35: ='Points Calculation'!BX35 -> 640.45
A36: Emily Dawes | B36: F | C36: 1991 | D36: =INDEX('Age Calculation'!$A$1:'Age Calculation'!$Q$108,MATCH(C36,'Age Calculation'!$A$1:'Age Calculation'!$A$108),MATCH($A$1,'Age Calculation'!$A$1:'Age Calculation'!$Q$1)) -> SEN | E36: 14263 | G36: NR | H36: NR | I36: NR | O36: NR | P36: NR | Q36: NR | R36: NR | T36: NR | U36: NR | FK36: =SUM((Z$5:FG$5="Overall")*(Z36:FG36<=3))-SUM((Z$5:FG$5="Overall")*(Z36:FG36=0)) -> 0 | FL36: =SUM((AA$5:FJ$5="Age")*(AA36:FJ36<=3))-SUM((AA$5:FJ$5="Age")*(AA36:FJ36=0)) -> 0 | FN36: =IF(MIN('Points Calculation'!CU36,'Points Calculation'!CV36)>0,MIN('Points Calculation'!CU36,'Points Calculation'!CV36),"") ->  | FO36: =IF(MIN('Points Calculation'!BL36,'Points Calculation'!BN36)>0,MIN('Points Calculation'!BL36,'Points Calculation'!BN36),"") ->  | FT36: =IF(MIN('Points Calculation'!CZ36,'Points Calculation'!DA36)>0,MIN('Points Calculation'!CZ36,'Points Calculation'!DA36),"") ->  | FU36: =IF(MIN('Points Calculation'!BU36,'Points Calculation'!BW36)>0,MIN('Points Calculation'!BU36,'Points Calculation'!BW36),"") ->  | FZ36: ='Points Calculation'!BJ36 ->  | GA36: ='Points Calculation'!BK36 ->  | GB36: ='Points Calculation'!BL36 ->  | GE36: ='Points Calculation'!BS36 ->  | GF36: ='Points Calculation'!BT36 ->  | GG36: ='Points Calculation'!BU36 -> 
A37: Sophia Phelps | B37: F | C37: 1994 | D37: =INDEX('Age Calculation'!$A$1:'Age Calculation'!$Q$108,MATCH(C37,'Age Calculation'!$A$1:'Age Calculation'!$A$108),MATCH($A$1,'Age Calculation'!$A$1:'Age Calculation'!$Q$1)) -> U21 | E37: 17839 | G37: NR | H37: NR | I37: NR | O37: NR | P37: NR | Q37: NR | R37: NR | T37: NR | U37: NR | FK37: =SUM((Z$5:FG$5="Overall")*(Z37:FG37<=3))-SUM((Z$5:FG$5="Overall")*(Z37:FG37=0)) -> 0 | FL37: =SUM((AA$5:FJ$5="Age")*(AA37:FJ37<=3))-SUM((AA$5:FJ$5="Age")*(AA37:FJ37=0)) -> 0 | FN37: =IF(MIN('Points Calculation'!CU37,'Points Calculation'!CV37)>0,MIN('Points Calculation'!CU37,'Points Calculation'!CV37),"") ->  | FO37: =IF(MIN('Points Calculation'!BL37,'Points Calculation'!BN37)>0,MIN('Points Calculation'!BL37,'Points Calculation'!BN37),"") ->  | FT37: =IF(MIN('Points Calculation'!CZ37,'Points Calculation'!DA37)>0,MIN('Points Calculation'!CZ37,'Points Calculation'!DA37),"") ->  | FU37: =IF(MIN('Points Calculation'!BU37,'Points Calculation'!BW37)>0,MIN('Points Calculation'!BU37,'Points Calculation'!BW37),"") ->  | FZ37: ='Points Calculation'!BJ37 ->  | GA37: ='Points Calculation'!BK37 ->  | GB37: ='Points Calculation'!BL37 ->  | GE37: ='Points Calculation'!BS37 ->  | GF37: ='Points Calculation'!BT37 ->  | GG37: ='Points Calculation'!BU37 -> 
A38: Olivia Waller | B38: F | C38: 1994 | D38: =INDEX('Age Calculation'!$A$1:'Age Calculation'!$Q$108,MATCH(C38,'Age Calculation'!$A$1:'Age Calculation'!$A$108),MATCH($A$1,'Age Calculation'!$A$1:'Age Calculation'!$Q$1)) -> U21 | E38: 17516 | G38: NR | H38: NR | I38: NR | O38: NR | P38: NR | Q38: NR | R38: NR | T38: NR | U38: NR | FK38: =SUM((Z$5:FG$5="Overall")*(Z38:FG38<=3))-SUM((Z$5:FG$5="Overall")*(Z38:FG38=0)) -> 0 | FL38: =SUM((AA$5:FJ$5="Age")*(AA38:FJ38<=3))-SUM((AA$5:FJ$5="Age")*(AA38:FJ38=0)) -> 0 | FN38: =IF(MIN('Points Calculation'!CU38,'Points Calculation'!CV38)>0,MIN('Points Calculation'!CU38,'Points Calculation'!CV38),"") ->  | FO38: =IF(MIN('Points Calculation'!BL38,'Points Calculation'!BN38)>0,MIN('Points Calculation'!BL38,'Points Calculation'!BN38),"") ->  | FT38: =IF(MIN('Points Calculation'!CZ38,'Points Calculation'!DA38)>0,MIN('Points Calculation'!CZ38,'Points Calculation'!DA38),"") ->  | FU38: =IF(MIN('Points Calculation'!BU38,'Points Calculation'!BW38)>0,MIN('Points Calculation'!BU38,'Points Calculation'!BW38),"") ->  | FZ38: ='Points Calculation'!BJ38 ->  | GA38: ='Points Calculation'!BK38 ->  | GB38: ='Points Calculation'!BL38 ->  | GE38: ='Points Calculation'!BS38 ->  | GF38: ='Points Calculation'!BT38 ->  | GG38: ='Points Calculation'!BU38 -> 
A39: Agathe Vallat | B39: F | C39: 1999 | D39: U16 | E39: 21606 | G39: 465.82 | H39: 465.82 | I39: 465.82 | J39: 465.82 | K39: 465.82 | L39: 465.82 | M39: 465.82 | O39: 220.08 | P39: 465.82 | Q39: NR | R39: NR | T39: NR | U39: NR | W39: -245.74 | AE39: 18 | AF39: 4 | AG39: 183.4 | CV39: 27 | CW39: 10 | CX39: 224.71 | FK39: =SUM((Z$5:FG$5="Overall")*(Z39:FG39<=3))-SUM((Z$5:FG$5="Overall")*(Z39:FG39=0)) -> 0 | FL39: =SUM((AA$5:FJ$5="Age")*(AA39:FJ39<=3))-SUM((AA$5:FJ$5="Age")*(AA39:FJ39=0)) -> 0 | FN39: =IF(MIN('Points Calculation'!CU39,'Points Calculation'!CV39)>0,MIN('Points Calculation'!CU39,'Points Calculation'!CV39),"") ->  | FO39: =IF(MIN('Points Calculation'!BL39,'Points Calculation'!BN39)>0,MIN('Points Calculation'!BL39,'Points Calculation'!BN39),"") -> 220.08 | FR39: ='Points Calculation'!$BP39 -> 558.98 | FT39: =IF(MIN('Points Calculation'!CZ39,'Points Calculation'!DA39)>0,MIN('Points Calculation'!CZ39,'Points Calculation'!DA39),"") ->  | FU39: =IF(MIN('Points Calculation'!BU39,'Points Calculation'!BW39)>0,MIN('Points Calculation'!BU39,'Points Calculation'!BW39),"") ->  | FX39: ='Points Calculation'!$BP39 -> 558.98 | FZ39: ='Points Calculation'!BJ39 -> 183.4 | GA39: ='Points Calculation'!BK39 ->  | GB39: ='Points Calculation'!BL39 ->  | GC39: ='Points Calculation'!BO39 -> 220.08 | GE39: ='Points Calculation'!BS39 ->  | GF39: ='Points Calculation'!BT39 ->  | GG39: ='Points Calculation'!BU39 ->  | GH39: ='Points Calculation'!BX39 -> 465.82
A40: Rose Tinley | B40: F | C40: 1998 | D40: U18 | E40: Day | G40: NR | H40: NR | I40: NR | J40: NR | K40: NR | L40: NR | M40: NR | O40: NR | P40: NR | Q40: NR | R40: NR | T40: NR | U40: NR
A41: Rebecca Tinley | B41: F | C41: 2000 | D41: U16 | E41: Day | G41: NR | H41: NR | I41: NR | J41: NR | K41: NR | L41: NR | M41: NR | O41: NR | P41: NR | Q41: NR | R41: NR | T41: NR | U41: NR
A42: Carys Phillips | B42: F | C42: 1999 | D42: U16 | E42: Day | G42: NR | H42: NR | I42: NR | J42: NR | K42: NR | L42: NR | M42: NR | O42: NR | P42: NR | Q42: NR | R42: NR | T42: NR | U42: NR | W42: =IF(G42<999.99,IF(MIN(O42,L42)<G42,MIN(O42,L42)-G42,""),"") ->  | X42: =IF(G42<999.99,IF(MIN(P42,M42)<G42,MIN(P42,M42)-G42,""),"") ->  | FK42: =SUM((Z$5:FG$5="Overall")*(Z42:FG42<=3))-SUM((Z$5:FG$5="Overall")*(Z42:FG42=0)) -> 0 | FL42: =SUM((AA$5:FJ$5="Age")*(AA42:FJ42<=3))-SUM((AA$5:FJ$5="Age")*(AA42:FJ42=0)) -> 0 | FN42: =IF(MIN('Points Calculation'!CU40,'Points Calculation'!CV40)>0,MIN('Points Calculation'!CU40,'Points Calculation'!CV40),"") ->  | FO42: =IF(MIN('Points Calculation'!BL40,'Points Calculation'!BN40)>0,MIN('Points Calculation'!BL40,'Points Calculation'!BN40),"") ->  | FT42: =IF(MIN('Points Calculation'!CZ40,'Points Calculation'!DA40)>0,MIN('Points Calculation'!CZ40,'Points Calculation'!DA40),"") ->  | FU42: =IF(MIN('Points Calculation'!BU40,'Points Calculation'!BW40)>0,MIN('Points Calculation'!BU40,'Points Calculation'!BW40),"") ->  | FZ42: ='Points Calculation'!BJ40 ->  | GA42: ='Points Calculation'!BK40 ->  | GB42: ='Points Calculation'!BL40 ->  | GE42: ='Points Calculation'!BS40 ->  | GF42: ='Points Calculation'!BT40 ->  | GG42: ='Points Calculation'!BU40 -> 
A43: MALES | T43: =IF('Points Calculation'!BO44<P43,'Points Calculation'!BO44,"") ->  | U43: =IF('Points Calculation'!CG44<O43,'Points Calculation'!CG44,"") -> 
A44: Harry Hornsby | B44: M | C44: 1991 | D44: =INDEX('Age Calculation'!$A$1:'Age Calculation'!$Q$108,MATCH(C44,'Age Calculation'!$A$1:'Age Calculation'!$A$108),MATCH($A$1,'Age Calculation'!$A$1:'Age Calculation'!$Q$1)) -> SEN | E44: 17356 | G44: =VLOOKUP(E44,'Start of Year Points'!A$2:I$62,9,FALSE) -> 5.41 | H44: =VLOOKUP(E44,'Start of Year Points'!A$2:L$62,12,FALSE) -> 5.28 | I44: =VLOOKUP(E44,'Start of Year Points'!A$2:L$62,11,FALSE) -> 5.41 | J44: 5.28 | K44: 5.41 | L44: 5.28 | M44: 5.41 | O44: 5.28 | P44: 5.41 | Q44: ='Points Calculation'!$BO42 -> 5.28 | R44: ='Points Calculation'!$BX42 -> 5.41 | T44: ='Points Calculation'!BQ42 -> 7.8 | U44: ='Points Calculation'!BZ42 -> 15.41 | W44: =IF(G44<999.99,IF(MIN(O44,Q44)<G44,MIN(O44,Q44)-G44,""),"") -> -0.13 | X44: =IF(G44<999.99,IF(MIN(P44,R44)<G44,MIN(P44,R44)-G44,""),"") ->  | AC44: 5 | AD44: 34.99 | AE44: 1 | AF44: 1 | AG44: 5.14 | BH44: DNF | BI44: DNF | BJ44: DNF | BK44: DNF | BL44: DNF | BM44: DNF | BQ44: DNS | BR44: DNS | BS44: DNS | BZ44: 2 | CA44: 2 | CB44: 17.86 | CJ44: 1 | CK44: 1 | CL44: 10.45 | CP44: 1 | CQ44: 1 | CR44: 20.12 | CS44: 4 | CT44: 3 | CU44: 27.47 | CV44: 3 | CW44: 2 | CX44: 11.9 | DB44: 3 | DC44: 3 | DD44: 16.34 | EE44: 6 | EF44: 5 | EG44: 21.88 | FK44: =SUM((Z$5:FG$5="Overall")*(Z44:FG44<=3))-SUM((Z$5:FG$5="Overall")*(Z44:FG44=0)) -> 6 | FL44: =SUM((AA$5:FJ$5="Age")*(AA44:FJ44<=3))-SUM((AA$5:FJ$5="Age")*(AA44:FJ44=0)) -> 7 | FN44: =IF(MIN('Points Calculation'!CU42,'Points Calculation'!CV42)>0,MIN('Points Calculation'!CU42,'Points Calculation'!CV42),"") -> 19.11 | FO44: =IF(MIN('Points Calculation'!BL42,'Points Calculation'!BN42)>0,MIN('Points Calculation'!BL42,'Points Calculation'!BN42),"") -> 7.8 | FP44: =IF(FN44<>"",FN44-FO44,"") -> 11.31 | FQ44: =IF(FN44<>"",FP44/FO44,"") -> 1.45 | FR44: ='Points Calculation'!$BP42 -> 15.41 | FT44: =IF(MIN('Points Calculation'!CZ42,'Points Calculation'!DA42)>0,MIN('Points Calculation'!CZ42,'Points Calculation'!DA42),"") -> 44.99 | FU44: =IF(MIN('Points Calculation'!BU42,'Points Calculation'!BW42)>0,MIN('Points Calculation'!BU42,'Points Calculation'!BW42),"") -> 44.99 | FV44: =IF(FT44<>"",FT44-FU44,"") -> 0 | FW44: =IF(FT44<>"",FV44/FU44,"") -> 0 | FX44: ='Points Calculation'!$BP42 -> 15.41 | FZ44: ='Points Calculation'!BJ42 -> 5.14 | GA44: ='Points Calculation'!BK42 -> 10.45 | GB44: ='Points Calculation'!BL42 -> 7.8 | GC44: ='Points Calculation'!BO42 -> 5.28 | GE44: ='Points Calculation'!BS42 -> 34.99 | GF44: ='Points Calculation'!BT42 ->  | GG44: ='Points Calculation'!BU42 ->  | GH44: ='Points Calculation'!BX42 -> 5.41
A45: Jonny Powell | B45: M | C45: 1986 | D45: =INDEX('Age Calculation'!$A$1:'Age Calculation'!$Q$108,MATCH(C45,'Age Calculation'!$A$1:'Age Calculation'!$A$108),MATCH($A$1,'Age Calculation'!$A$1:'Age Calculation'!$Q$1)) -> SEN | E45: 17479 | G45: =VLOOKUP(E45,'Start of Year Points'!A$2:I$62,9,FALSE) -> 18.72 | H45: =VLOOKUP(E45,'Start of Year Points'!A$2:L$62,12,FALSE) -> 18.72 | I45: =VLOOKUP(E45,'Start of Year Points'!A$2:L$62,11,FALSE) -> 18.72 | J45: 18.72 | K45: 18.72 | L45: 18.72 | M45: 18.72 | O45: 18.72 | P45: 18.72 | Q45: ='Points Calculation'!$BO43 -> 18.72 | R45: ='Points Calculation'!$BX43 -> 18.72 | T45: ='Points Calculation'!BQ43 -> 28.72 | U45: ='Points Calculation'!BZ43 -> 28.72 | AC45: 9 | AD45: 51.35 | AE45: 4 | AF45: 3 | AG45: 46.86 | AS45: 9 | AT45: 3 | AU45: 64 | BB45: 4 | BC45: 4 | BD45: 54.16 | BE45: DNS | BF45: DNS | BG45: DNS | BK45: DNF | BL45: DNF | BM45: DNF | BQ45: DNS | BR45: DNS | BS45: DNS | FK45: =SUM((Z$5:FG$5="Overall")*(Z45:FG45<=3))-SUM((Z$5:FG$5="Overall")*(Z45:FG45=0)) -> 0 | FL45: =SUM((AA$5:FJ$5="Age")*(AA45:FJ45<=3))-SUM((AA$5:FJ$5="Age")*(AA45:FJ45=0)) -> 2 | FN45: =IF(MIN('Points Calculation'!CU43,'Points Calculation'!CV43)>0,MIN('Points Calculation'!CU43,'Points Calculation'!CV43),"") -> 59.08 | FO45: =IF(MIN('Points Calculation'!BL43,'Points Calculation'!BN43)>0,MIN('Points Calculation'!BL43,'Points Calculation'!BN43),"") -> 50.51 | FP45: 8.57 | FQ45: 0.1696693724 | FR45: ='Points Calculation'!$BP43 -> 28.72 | FT45: =IF(MIN('Points Calculation'!CZ43,'Points Calculation'!DA43)>0,MIN('Points Calculation'!CZ43,'Points Calculation'!DA43),"") -> 61.62 | FU45: =IF(MIN('Points Calculation'!BU43,'Points Calculation'!BW43)>0,MIN('Points Calculation'!BU43,'Points Calculation'!BW43),"") -> 61.62 | FV45: 0 | FW45: 0 | FX45: ='Points Calculation'!$BP43 -> 28.72 | FZ45: ='Points Calculation'!BJ43 -> 46.86 | GA45: ='Points Calculation'!BK43 -> 54.16 | GB45: ='Points Calculation'!BL43 -> 50.51 | GC45: ='Points Calculation'!BO43 -> 18.72 | GE45: ='Points Calculation'!BS43 -> 51.35 | GF45: ='Points Calculation'!BT43 ->  | GG45: ='Points Calculation'!BU43 ->  | GH45: ='Points Calculation'!BX43 -> 18.72
A46: Andrew Du Plessis | B46: M | C46: 1985 | D46: =INDEX('Age Calculation'!$A$1:'Age Calculation'!$Q$108,MATCH(C46,'Age Calculation'!$A$1:'Age Calculation'!$A$108),MATCH($A$1,'Age Calculation'!$A$1:'Age Calculation'!$Q$1)) -> SEN | E46: 12318 | G46: =VLOOKUP(E46,'Start of Year Points'!A$2:I$62,9,FALSE) -> 23.04 | H46: =VLOOKUP(E46,'Start of Year Points'!A$2:L$62,12,FALSE) -> 23.04 | I46: =VLOOKUP(E46,'Start of Year Points'!A$2:L$62,11,FALSE) -> 23.04 | J46: 23.04 | K46: 23.04 | L46: 23.04 | M46: 23.04 | O46: 23.04 | P46: 23.04 | Q46: ='Points Calculation'!$BO44 -> 23.04 | R46: ='Points Calculation'!$BX44 -> 23.04 | T46: ='Points Calculation'!BQ44 -> 33.04 | U46: ='Points Calculation'!BZ44 -> 33.04 | BZ46: 6 | CA46: 5 | CB46: 26.88 | FK46: =SUM((Z$5:FG$5="Overall")*(Z46:FG46<=3))-SUM((Z$5:FG$5="Overall")*(Z46:FG46=0)) -> 0 | FL46: =SUM((AA$5:FJ$5="Age")*(AA46:FJ46<=3))-SUM((AA$5:FJ$5="Age")*(AA46:FJ46=0)) -> 0 | FN46: =IF(MIN('Points Calculation'!CU44,'Points Calculation'!CV44)>0,MIN('Points Calculation'!CU44,'Points Calculation'!CV44),"") ->  | FO46: =IF(MIN('Points Calculation'!BL44,'Points Calculation'!BN44)>0,MIN('Points Calculation'!BL44,'Points Calculation'!BN44),"") -> 36.88 | FR46: ='Points Calculation'!$BP44 -> 33.04 | FT46: =IF(MIN('Points Calculation'!CZ44,'Points Calculation'!DA44)>0,MIN('Points Calculation'!CZ44,'Points Calculation'!DA44),"") ->  | FU46: =IF(MIN('Points Calculation'!BU44,'Points Calculation'!BW44)>0,MIN('Points Calculation'!BU44,'Points Calculation'!BW44),"") ->  | FX46: ='Points Calculation'!$BP44 -> 33.04 | FZ46: ='Points Calculation'!BJ44 -> 26.88 | GA46: ='Points Calculation'!BK44 ->  | GB46: ='Points Calculation'!BL44 ->  | GC46: ='Points Calculation'!BO44 -> 23.04 | GE46: ='Points Calculation'!BS44 ->  | GF46: ='Points Calculation'!BT44 ->  | GG46: ='Points Calculation'!BU44 ->  | GH46: ='Points Calculation'!BX44 -> 23.04
A47: Adam Beardmore | B47: M | C47: 1986 | D47: =INDEX('Age Calculation'!$A$1:'Age Calculation'!$Q$108,MATCH(C47,'Age Calculation'!$A$1:'Age Calculation'!$A$108),MATCH($A$1,'Age Calculation'!$A$1:'Age Calculation'!$Q$1)) -> SEN | E47: 19704 | G47: =VLOOKUP(E47,'Start of Year Points'!A$2:I$62,9,FALSE) -> 35.26 | H47: =VLOOKUP(E47,'Start of Year Points'!A$2:L$62,12,FALSE) -> 35.26 | I47: =VLOOKUP(E47,'Start of Year Points'!A$2:L$62,11,FALSE) -> 35.26 | J47: 35.26 | K47: 35.26 | L47: 35.26 | M47: 35.26 | O47: 35.26 | P47: 35.26 | Q47: ='Points Calculation'!$BO45 -> 35.26 | R47: ='Points Calculation'!$BX45 -> 35.26 | T47: ='Points Calculation'!BQ45 -> 45.26 | U47: ='Points Calculation'!BZ45 -> 45.26 | FK47: =SUM((Z$5:FG$5="Overall")*(Z47:FG47<=3))-SUM((Z$5:FG$5="Overall")*(Z47:FG47=0)) -> 0 | FL47: =SUM((AA$5:FJ$5="Age")*(AA47:FJ47<=3))-SUM((AA$5:FJ$5="Age")*(AA47:FJ47=0)) -> 0 | FN47: =IF(MIN('Points Calculation'!CU45,'Points Calculation'!CV45)>0,MIN('Points Calculation'!CU45,'Points Calculation'!CV45),"") ->  | FO47: =IF(MIN('Points Calculation'!BL45,'Points Calculation'!BN45)>0,MIN('Points Calculation'!BL45,'Points Calculation'!BN45),"") ->  | FR47: ='Points Calculation'!$BP45 -> 45.26 | FT47: =IF(MIN('Points Calculation'!CZ45,'Points Calculation'!DA45)>0,MIN('Points Calculation'!CZ45,'Points Calculation'!DA45),"") ->  | FU47: =IF(MIN('Points Calculation'!BU45,'Points Calculation'!BW45)>0,MIN('Points Calculation'!BU45,'Points Calculation'!BW45),"") ->  | FX47: ='Points Calculation'!$BP45 -> 45.26 | FZ47: ='Points Calculation'!BJ45 ->  | GA47: ='Points Calculation'!BK45 ->  | GB47: ='Points Calculation'!BL45 ->  | GC47: ='Points Calculation'!BO45 -> 35.26 | GE47: ='Points Calculation'!BS45 ->  | GF47: ='Points Calculation'!BT45 ->  | GG47: ='Points Calculation'!BU45 ->  | GH47: ='Points Calculation'!BX45 -> 35.26
A48: Adam. Lee | B48: M | C48: 1994 | D48: =INDEX('Age Calculation'!$A$1:'Age Calculation'!$Q$108,MATCH(C48,'Age Calculation'!$A$1:'Age Calculation'!$A$108),MATCH($A$1,'Age Calculation'!$A$1:'Age Calculation'!$Q$1)) -> U21 | E48: 41578 | G48: =VLOOKUP(E48,'Start of Year Points'!A$2:I$62,9,FALSE) -> 38.93 | H48: =VLOOKUP(E48,'Start of Year Points'!A$2:L$62,12,FALSE) -> 38.93 | I48: =VLOOKUP(E48,'Start of Year Points'!A$2:L$62,11,FALSE) -> 38.93 | J48: 36.39 | K48: 38.93 | L48: 36.39 | M48: 38.93 | O48: 36.39 | P48: 38.93 | Q48: ='Points Calculation'!$BO46 -> 36.39 | R48: ='Points Calculation'!$BX46 -> 38.93 | T48: ='Points Calculation'!BQ46 -> 37.86 | U48: ='Points Calculation'!BZ46 -> 48.93 | W48: -2.54 | AC48: 14 | AD48: 63.61 | AE48: 3 | AF48: 1 | AG48: 41.88 | AP48: 1 | AQ48: 1 | AR48: 33.84 | AS48: 5 | AT48: 2 | AU48: 34.11 | BB48: DNF | BC48: DNF | BD48: DNF | BE48: DNF | BF48: DNF | BG48: DNF | BH48: DNF | BI48: DNF | BJ48: DNF | BK48: DNF | BL48: DNF | BM48: DNF | BQ48: 5 | BR48: 1 | BS48: 60.14 | CS48: 12 | CT48: 5 | CU48: 44.18 | CV48: DNF | CW48: DNF | CX48: DNF | CY48: 39 | CZ48: 5 | DA48: 588.67 | DB48: 15 | DC48: 4 | DD48: 63.91 | DQ48: 7 | DR48: 2 | DS48: 56.48 | DZ48: 5 | EA48: 2 | EB48: 67.13 | EC48: 9 | ED48: 4 | EE48: 19 | EF48: 8 | EG48: 55.89 | EN48: 16 | EO48: 5 | EP48: 84.74 | EQ48: 18 | ER48: 8 | ES48: 92.84 | FK48: =SUM((Z$5:FG$5="Overall")*(Z48:FG48<=3))-SUM((Z$5:FG$5="Overall")*(Z48:FG48=0)) -> 2 | FL48: =SUM((AA$5:FJ$5="Age")*(AA48:FJ48<=3))-SUM((AA$5:FJ$5="Age")*(AA48:FJ48=0)) -> 6 | FN48: =IF(MIN('Points Calculation'!CU46,'Points Calculation'!CV46)>0,MIN('Points Calculation'!CU46,'Points Calculation'!CV46),"") -> 44.11 | FO48: =IF(MIN('Points Calculation'!BL46,'Points Calculation'!BN46)>0,MIN('Points Calculation'!BL46,'Points Calculation'!BN46),"") -> 37.86 | FP48: 6.25 | FQ48: 0.1650818806 | FR48: ='Points Calculation'!$BP46 -> 48.93 | FT48: =IF(MIN('Points Calculation'!CZ46,'Points Calculation'!DA46)>0,MIN('Points Calculation'!CZ46,'Points Calculation'!DA46),"") -> 76.332 | FU48: =IF(MIN('Points Calculation'!BU46,'Points Calculation'!BW46)>0,MIN('Points Calculation'!BU46,'Points Calculation'!BW46),"") -> 76.33 | FV48: 0.002 | FW48: 2.620201756e-05 | FX48: ='Points Calculation'!$BP46 -> 48.93 | FZ48: ='Points Calculation'!BJ46 -> 33.84 | GA48: ='Points Calculation'!BK46 -> 41.88 | GB48: ='Points Calculation'!BL46 -> 37.86 | GC48: ='Points Calculation'!BO46 -> 36.39 | GE48: ='Points Calculation'!BS46 -> 63.61 | GF48: ='Points Calculation'!BT46 ->  | GG48: ='Points Calculation'!BU46 ->  | GH48: ='Points Calculation'!BX46 -> 38.93
A49: Jack Rigby | B49: M | C49: 1995 | D49: =INDEX('Age Calculation'!$A$1:'Age Calculation'!$Q$108,MATCH(C49,'Age Calculation'!$A$1:'Age Calculation'!$A$108),MATCH($A$1,'Age Calculation'!$A$1:'Age Calculation'!$Q$1)) -> U21 | E49: 41722 | G49: =VLOOKUP(E49,'Start of Year Points'!A$2:I$62,9,FALSE) -> 50.4 | H49: =VLOOKUP(E49,'Start of Year Points'!A$2:L$62,12,FALSE) -> 50.4 | I49: =VLOOKUP(E49,'Start of Year Points'!A$2:L$62,11,FALSE) -> 42.49 | J49: 50.4 | K49: 42.49 | L49: 50.4 | M49: 42.49 | O49: 50.4 | P49: 42.49 | Q49: ='Points Calculation'!$BO47 -> 50.4 | R49: ='Points Calculation'!$BX47 -> 42.49 | T49: ='Points Calculation'!BQ47 -> 60.48 | U49: ='Points Calculation'!BZ47 -> 44.57 | X49: -7.91 | AH49: 16 | AI49: 4 | AJ49: 66.67 | AK49: 115.29 | AL49: 4 | AM49: 3 | AN49: 42.49 | AO49: 34.57 | AV49: 9 | AW49: 4 | AX49: 61.89 | AY49: DNF | AZ49: DNF | BA49: DNF | CS49: 24 | CT49: 12 | CU49: 85.01 | DH49: DNF | DI49: DNF | DJ49: DNF | EH49: DNF | EI49: DNF | EJ49: 999.99 | EK49: DNF | EL49: DNF | EM49: 999.99 | FK49: =SUM((Z$5:FG$5="Overall")*(Z49:FG49<=3))-SUM((Z$5:FG$5="Overall")*(Z49:FG49=0)) -> 0 | FL49: =SUM((AA$5:FJ$5="Age")*(AA49:FJ49<=3))-SUM((AA$5:FJ$5="Age")*(AA49:FJ49=0)) -> 1 | FN49: =IF(MIN('Points Calculation'!CU47,'Points Calculation'!CV47)>0,MIN('Points Calculation'!CU47,'Points Calculation'!CV47),"") ->  | FO49: =IF(MIN('Points Calculation'!BL47,'Points Calculation'!BN47)>0,MIN('Points Calculation'!BL47,'Points Calculation'!BN47),"") -> 102.01 | FR49: ='Points Calculation'!$BP47 -> 60.48 | FT49: =IF(MIN('Points Calculation'!CZ47,'Points Calculation'!DA47)>0,MIN('Points Calculation'!CZ47,'Points Calculation'!DA47),"") -> 74.268 | FU49: =IF(MIN('Points Calculation'!BU47,'Points Calculation'!BW47)>0,MIN('Points Calculation'!BU47,'Points Calculation'!BW47),"") -> 44.57 | FV49: 29.698 | FW49: 0.6663226385 | FX49: ='Points Calculation'!$BP47 -> 60.48 | FZ49: ='Points Calculation'!BJ47 -> 85.01 | GA49: ='Points Calculation'!BK47 ->  | GB49: ='Points Calculation'!BL47 ->  | GC49: ='Points Calculation'!BO47 -> 50.4 | GE49: ='Points Calculation'!BS47 -> 34.57 | GF49: ='Points Calculation'!BT47 -> 61.89 | GG49: ='Points Calculation'!BU47 -> 48.23 | GH49: ='Points Calculation'!BX47 -> 42.49
A50: Phil Emmerson | B50: M | C50: 1990 | D50: =INDEX('Age Calculation'!$A$1:'Age Calculation'!$Q$108,MATCH(C50,'Age Calculation'!$A$1:'Age Calculation'!$A$108),MATCH($A$1,'Age Calculation'!$A$1:'Age Calculation'!$Q$1)) -> SEN | E50: 21084 | G50: =VLOOKUP(E50,'Start of Year Points'!A$2:I$62,9,FALSE) -> 57.73 | H50: =VLOOKUP(E50,'Start of Year Points'!A$2:L$62,12,FALSE) -> 57.73 | I50: =VLOOKUP(E50,'Start of Year Points'!A$2:L$62,11,FALSE) -> 57.73 | J50: 57.73 | K50: 57.73 | L50: 42.32 | M50: 57.73 | O50: 42.02 | P50: 57.73 | Q50: ='Points Calculation'!$BO48 -> 42.02 | R50: ='Points Calculation'!$BX48 -> 57.73 | T50: ='Points Calculation'!BQ48 -> 42.02 | U50: ='Points Calculation'!BZ48 -> 69.28 | W50: -15.71 | AC50: 32 | AD50: 118.82 | BB50: DNF | BC50: DNF | BD50: DNF | BE50: DNF | BF50: DNF | BG50: DNF | BH50: DNF | BI50: DNF | BJ50: DNF | BK50: 6 | BL50: 3 | BM50: 43.54 | BQ50: DNF | BR50: DNF | BS50: DNF | BZ50: 10 | CA50: 6 | CB50: 42.67 | CJ50: 8 | CK50: 5 | CL50: 41.96 | CP50: 4 | CQ50: 3 | CR50: 44.68 | CS50: DSQ | CT50: DSQ | CU50: DSQ | CV50: 8 | CW50: 5 | CX50: 42.07 | CY50: 8 | CZ50: 5 | DA50: 59.73 | DB50: 10 | DC50: 7 | DD50: 50.35 | EE50: DNF | EF50: DNF | EG50: 999.99 | EN50: DNF | EO50: DNF | EP50: 999.99 | EQ50: DNF | ER50: DNF | ES50: 999.99 | FK50: =SUM((Z$5:FG$5="Overall")*(Z50:FG50<=3))-SUM((Z$5:FG$5="Overall")*(Z50:FG50=0)) -> 0 | FL50: =SUM((AA$5:FJ$5="Age")*(AA50:FJ50<=3))-SUM((AA$5:FJ$5="Age")*(AA50:FJ50=0)) -> 2 | FN50: =IF(MIN('Points Calculation'!CU48,'Points Calculation'!CV48)>0,MIN('Points Calculation'!CU48,'Points Calculation'!CV48),"") -> 60.42 | FO50: =IF(MIN('Points Calculation'!BL48,'Points Calculation'!BN48)>0,MIN('Points Calculation'!BL48,'Points Calculation'!BN48),"") -> 42.02 | FP50: 18.4 | FQ50: 0.4378867206 | FR50: ='Points Calculation'!$BP48 -> 69.28 | FT50: =IF(MIN('Points Calculation'!CZ48,'Points Calculation'!DA48)>0,MIN('Points Calculation'!CZ48,'Points Calculation'!DA48),"") -> 142.584 | FU50: =IF(MIN('Points Calculation'!BU48,'Points Calculation'!BW48)>0,MIN('Points Calculation'!BU48,'Points Calculation'!BW48),"") -> 142.58 | FV50: 0.004 | FW50: 2.805442559e-05 | FX50: ='Points Calculation'!$BP48 -> 69.28 | FZ50: ='Points Calculation'!BJ48 -> 41.96 | GA50: ='Points Calculation'!BK48 -> 42.07 | GB50: ='Points Calculation'!BL48 -> 42.02 | GC50: ='Points Calculation'!BO48 -> 42.02 | GE50: ='Points Calculation'!BS48 -> 118.82 | GF50: ='Points Calculation'!BT48 ->  | GG50: ='Points Calculation'!BU48 ->  | GH50: ='Points Calculation'!BX48 -> 57.73
A51: Mark Hawkins | B51: M | C51: 1979 | D51: =INDEX('Age Calculation'!$A$1:'Age Calculation'!$Q$108,MATCH(C51,'Age Calculation'!$A$1:'Age Calculation'!$A$108),MATCH($A$1,'Age Calculation'!$A$1:'Age Calculation'!$Q$1)) -> MAS | E51: 19163 | G51: =VLOOKUP(E51,'Start of Year Points'!A$2:I$62,9,FALSE) -> 61.45 | H51: =VLOOKUP(E51,'Start of Year Points'!A$2:L$62,12,FALSE) -> 58.84 | I51: =VLOOKUP(E51,'Start of Year Points'!A$2:L$62,11,FALSE) -> 61.45 | J51: 57.1 | K51: 61.45 | L51: 57.1 | M51: 61.45 | O51: 55.53 | P51: 61.45 | Q51: ='Points Calculation'!$BO49 -> 55.53 | R51: ='Points Calculation'!$BX49 -> 61.45 | T51: ='Points Calculation'!BQ49 -> 55.53 | U51: ='Points Calculation'!BZ49 -> 73.74 | W51: -5.92 | AE51: 7 | AF51: 1 | AG51: 56.23 | AP51: 9 | AQ51: 1 | AR51: 69.5 | AS51: DSQ | AT51: DSQ | AU51: DSQ | BB51: 6 | BC51: 1 | BD51: 67.37 | BE51: 9 | BF51: 2 | BG51: 57.97 | BH51: 14 | BI51: 1 | BJ51: 70.58 | CS51: DNF | CT51: DNF | CU51: DNF | CV51: 12 | CW51: 1 | CX51: 53.08 | DB51: 14 | DC51: 1 | DD51: 57.6 | EE51: 23 | EF51: 1 | EG51: 64.69 | EN51: DNF | EO51: DNF | EP51: 999.99 | EQ51: 14 | ER51: 1 | ES51: 85.24 | FK51: =SUM((Z$5:FG$5="Overall")*(Z51:FG51<=3))-SUM((Z$5:FG$5="Overall")*(Z51:FG51=0)) -> 0 | FL51: =SUM((AA$5:FJ$5="Age")*(AA51:FJ51<=3))-SUM((AA$5:FJ$5="Age")*(AA51:FJ51=0)) -> 9 | FN51: =IF(MIN('Points Calculation'!CU49,'Points Calculation'!CV49)>0,MIN('Points Calculation'!CU49,'Points Calculation'!CV49),"") -> 57.785 | FO51: =IF(MIN('Points Calculation'!BL49,'Points Calculation'!BN49)>0,MIN('Points Calculation'!BL49,'Points Calculation'!BN49),"") -> 55.53 | FP51: 2.255 | FQ51: 0.04060867999 | FR51: ='Points Calculation'!$BP49 -> 73.74 | FT51: =IF(MIN('Points Calculation'!CZ49,'Points Calculation'!DA49)>0,MIN('Points Calculation'!CZ49,'Points Calculation'!DA49),"") ->  | FU51: =IF(MIN('Points Calculation'!BU49,'Points Calculation'!BW49)>0,MIN('Points Calculation'!BU49,'Points Calculation'!BW49),"") ->  | FX51: ='Points Calculation'!$BP49 -> 73.74 | FZ51: ='Points Calculation'!BJ49 -> 53.08 | GA51: ='Points Calculation'!BK49 -> 57.97 | GB51: ='Points Calculation'!BL49 -> 55.53 | GC51: ='Points Calculation'!BO49 -> 55.53 | GE51: ='Points Calculation'!BS49 ->  | GF51: ='Points Calculation'!BT49 ->  | GG51: ='Points Calculation'!BU49 ->  | GH51: ='Points Calculation'!BX49 -> 61.45
A52: Nick Miller | B52: M | C52: 1993 | D52: =INDEX('Age Calculation'!$A$1:'Age Calculation'!$Q$108,MATCH(C52,'Age Calculation'!$A$1:'Age Calculation'!$A$108),MATCH($A$1,'Age Calculation'!$A$1:'Age Calculation'!$Q$1)) -> SEN | E52: 18607 | G52: =VLOOKUP(E52,'Start of Year Points'!A$2:I$62,9,FALSE) -> 63.19 | H52: =VLOOKUP(E52,'Start of Year Points'!A$2:L$62,12,FALSE) -> 63.19 | I52: =VLOOKUP(E52,'Start of Year Points'!A$2:L$62,11,FALSE) -> 63.19 | J52: 63.19 | K52: 63.19 | L52: 63.19 | M52: 63.19 | O52: 63.19 | P52: 63.19 | Q52: ='Points Calculation'!$BO50 -> 63.19 | R52: ='Points Calculation'!$BX50 -> 63.19 | T52: ='Points Calculation'!BQ50 -> 75.83 | U52: ='Points Calculation'!BZ50 -> 75.83 | FK52: =SUM((Z$5:FG$5="Overall")*(Z52:FG52<=3))-SUM((Z$5:FG$5="Overall")*(Z52:FG52=0)) -> 0 | FL52: =SUM((AA$5:FJ$5="Age")*(AA52:FJ52<=3))-SUM((AA$5:FJ$5="Age")*(AA52:FJ52=0)) -> 0 | FN52: =IF(MIN('Points Calculation'!CU50,'Points Calculation'!CV50)>0,MIN('Points Calculation'!CU50,'Points Calculation'!CV50),"") ->  | FO52: =IF(MIN('Points Calculation'!BL50,'Points Calculation'!BN50)>0,MIN('Points Calculation'!BL50,'Points Calculation'!BN50),"") ->  | FR52: ='Points Calculation'!$BP50 -> 75.83 | FT52: =IF(MIN('Points Calculation'!CZ50,'Points Calculation'!DA50)>0,MIN('Points Calculation'!CZ50,'Points Calculation'!DA50),"") ->  | FU52: =IF(MIN('Points Calculation'!BU50,'Points Calculation'!BW50)>0,MIN('Points Calculation'!BU50,'Points Calculation'!BW50),"") ->  | FX52: ='Points Calculation'!$BP50 -> 75.83 | FZ52: ='Points Calculation'!BJ50 ->  | GA52: ='Points Calculation'!BK50 ->  | GB52: ='Points Calculation'!BL50 ->  | GC52: ='Points Calculation'!BO50 -> 63.19 | GE52: ='Points Calculation'!BS50 ->  | GF52: ='Points Calculation'!BT50 ->  | GG52: ='Points Calculation'!BU50 ->  | GH52: ='Points Calculation'!BX50 -> 63.19
A53: Alasdair Thorley | B53: M | C53: 1994 | D53: =INDEX('Age Calculation'!$A$1:'Age Calculation'!$Q$108,MATCH(C53,'Age Calculation'!$A$1:'Age Calculation'!$A$108),MATCH($A$1,'Age Calculation'!$A$1:'Age Calculation'!$Q$1)) -> U21 | E53: 18586 | G53: =VLOOKUP(E53,'Start of Year Points'!A$2:I$62,9,FALSE) -> 69.65 | H53: =VLOOKUP(E53,'Start of Year Points'!A$2:L$62,12,FALSE) -> 69.65 | I53: =VLOOKUP(E53,'Start of Year Points'!A$2:L$62,11,FALSE) -> 69.65 | J53: 69.65 | K53: 69.65 | L53: 69.65 | M53: 69.65 | O53: 69.65 | P53: 69.65 | Q53: ='Points Calculation'!$BO51 -> 69.65 | R53: ='Points Calculation'!$BX51 -> 69.65 | T53: ='Points Calculation'!BQ51 -> 83.58 | U53: ='Points Calculation'!BZ51 -> 83.58 | FK53: =SUM((Z$5:FG$5="Overall")*(Z53:FG53<=3))-SUM((Z$5:FG$5="Overall")*(Z53:FG53=0)) -> 0 | FL53: =SUM((AA$5:FJ$5="Age")*(AA53:FJ53<=3))-SUM((AA$5:FJ$5="Age")*(AA53:FJ53=0)) -> 0 | FN53: =IF(MIN('Points Calculation'!CU51,'Points Calculation'!CV51)>0,MIN('Points Calculation'!CU51,'Points Calculation'!CV51),"") ->  | FO53: =IF(MIN('Points Calculation'!BL51,'Points Calculation'!BN51)>0,MIN('Points Calculation'!BL51,'Points Calculation'!BN51),"") ->  | FR53: ='Points Calculation'!$BP51 -> 83.58 | FT53: =IF(MIN('Points Calculation'!CZ51,'Points Calculation'!DA51)>0,MIN('Points Calculation'!CZ51,'Points Calculation'!DA51),"") ->  | FU53: =IF(MIN('Points Calculation'!BU51,'Points Calculation'!BW51)>0,MIN('Points Calculation'!BU51,'Points Calculation'!BW51),"") ->  | FX53: ='Points Calculation'!$BP51 -> 83.58 | FZ53: ='Points Calculation'!BJ51 ->  | GA53: ='Points Calculation'!BK51 ->  | GB53: ='Points Calculation'!BL51 ->  | GC53: ='Points Calculation'!BO51 -> 69.65 | GE53: ='Points Calculation'!BS51 ->  | GF53: ='Points Calculation'!BT51 ->  | GG53: ='Points Calculation'!BU51 ->  | GH53: ='Points Calculation'!BX51 -> 69.65
A54: Nick Phelps | B54: M | C54: 1997 | D54: =INDEX('Age Calculation'!$A$1:'Age Calculation'!$Q$108,MATCH(C54,'Age Calculation'!$A$1:'Age Calculation'!$A$108),MATCH($A$1,'Age Calculation'!$A$1:'Age Calculation'!$Q$1)) -> U18 | E54: 17840 | G54: =VLOOKUP(E54,'Start of Year Points'!A$2:I$62,9,FALSE) -> 70.34 | H54: =VLOOKUP(E54,'Start of Year Points'!A$2:L$62,12,FALSE) -> 70.34 | I54: =VLOOKUP(E54,'Start of Year Points'!A$2:L$62,11,FALSE) -> 70.34 | J54: 70.34 | K54: 70.34 | L54: 70.34 | M54: 70.34 | O54: 70.34 | P54: 70.34 | Q54: ='Points Calculation'!$BO52 -> 70.34 | R54: ='Points Calculation'!$BX52 -> 70.34 | T54: ='Points Calculation'!BQ52 -> 82.81 | U54: ='Points Calculation'!BZ52 -> 84.41 | BZ54: 21 | CA54: 5 | CB54: 85.53 | CS54: 25 | CT54: 3 | CU54: 88.05 | DB54: 23 | DC54: 3 | DD54: 80.08 | FK54: =SUM((Z$5:FG$5="Overall")*(Z54:FG54<=3))-SUM((Z$5:FG$5="Overall")*(Z54:FG54=0)) -> 0 | FL54: =SUM((AA$5:FJ$5="Age")*(AA54:FJ54<=3))-SUM((AA$5:FJ$5="Age")*(AA54:FJ54=0)) -> 2 | FN54: =IF(MIN('Points Calculation'!CU52,'Points Calculation'!CV52)>0,MIN('Points Calculation'!CU52,'Points Calculation'!CV52),"") -> 96.096 | FO54: =IF(MIN('Points Calculation'!BL52,'Points Calculation'!BN52)>0,MIN('Points Calculation'!BL52,'Points Calculation'!BN52),"") -> 82.81 | FP54: 13.286 | FQ54: 0.1604395604 | FR54: ='Points Calculation'!$BP52 -> 84.41 | FT54: =IF(MIN('Points Calculation'!CZ52,'Points Calculation'!DA52)>0,MIN('Points Calculation'!CZ52,'Points Calculation'!DA52),"") ->  | FU54: =IF(MIN('Points Calculation'!BU52,'Points Calculation'!BW52)>0,MIN('Points Calculation'!BU52,'Points Calculation'!BW52),"") ->  | FX54: ='Points Calculation'!$BP52 -> 84.41 | FZ54: ='Points Calculation'!BJ52 -> 80.08 | GA54: ='Points Calculation'!BK52 -> 85.53 | GB54: ='Points Calculation'!BL52 -> 82.81 | GC54: ='Points Calculation'!BO52 -> 70.34 | GE54: ='Points Calculation'!BS52 ->  | GF54: ='Points Calculation'!BT52 ->  | GG54: ='Points Calculation'!BU52 ->  | GH54: ='Points Calculation'!BX52 -> 70.34
A55: Oliver Weeks | B55: M | C55: 2001 | D55: =INDEX('Age Calculation'!$A$1:'Age Calculation'!$Q$108,MATCH(C55,'Age Calculation'!$A$1:'Age Calculation'!$A$108),MATCH($A$1,'Age Calculation'!$A$1:'Age Calculation'!$Q$1)) -> U14 | E55: 19051 | G55: =VLOOKUP(E55,'Start of Year Points'!A$2:I$62,9,FALSE) -> 70.99 | H55: =VLOOKUP(E55,'Start of Year Points'!A$2:L$62,12,FALSE) -> 70.99 | I55: =VLOOKUP(E55,'Start of Year Points'!A$2:L$62,11,FALSE) -> 70.99 | J55: 70.99 | K55: 70.99 | L55: 59.18 | M55: 70.99 | O55: 53.47 | P55: 67.47 | Q55: ='Points Calculation'!$BO53 -> 53.47 | R55: ='Points Calculation'!$BX53 -> 66.99 | T55: ='Points Calculation'!BQ53 -> 53.47 | U55: ='Points Calculation'!BZ53 -> 68.08 | W55: -17.52 | X55: -4 | Z55: 2 | AA55: 1 | AB55: =26.49+102.43 -> 128.92 | AE55: 12 | AF55: 1 | AG55: 85.7 | AH55: 14 | AI55: 1 | AJ55: 80.12 | AK55: 84.93 | AL55: 18 | AM55: 1 | AN55: 85.62 | AO55: 84.33 | AP55: 11 | AQ55: 1 | AR55: 74.99 | AS55: 11 | AT55: 1 | AU55: 80.85 | AV55: 20 | AW55: 1 | AX55: 83.16 | AY55: DNF | AZ55: DNF | BA55: DNF | BE55: 11 | BF55: 1 | BG55: 79.12 | BH55: 11 | BI55: 1 | BJ55: 58.48 | BK55: 10 | BL55: 1 | BM55: 59.87 | BQ55: 25 | BR55: 8 | BS55: 428.64 | BW55: 17 | BX55: 1 | BY55: 99.58 | CC55: DNF | CD55: DNF | CE55: DNF | CJ55: 13 | CK55: 1 | CL55: 70.7 | CM55: 14 | CN55: 1 | CO55: 86.4 | CS55: 14 | CT55: 1 | CU55: 55.57 | CV55: 21 | CW55: 1 | CX55: 77.37 | CY55: 11 | CZ55: 1 | DA55: 79.75 | DB55: 16 | DC55: 1 | DD55: 64.29 | DE55: 18 | DF55: 1 | DG55: 62.99 | DH55: 20 | DI55: 2 | DJ55: 98.99 | DQ55: 6 | DR55: 1 | DS55: 51.37 | DT55: 17 | DU55: 1 | DV55: 73.16 | DW55: 10 | DX55: 1 | DY55: 75 | EE55: 29 | EF55: 2 | EG55: 75.15 | EH55: 21 | EI55: 2 | EJ55: 72.12 | EK55: DNF | EL55: DNF | EM55: 999.99 | EN55: 13 | EO55: 1 | EP55: 73.43 | EQ55: 11 | ER55: 1 | ES55: 69.38 | EW55: 16 | EX55: 1 | EY55: 75.58 | FK55: =SUM((Z$5:FG$5="Overall")*(Z55:FG55<=3))-SUM((Z$5:FG$5="Overall")*(Z55:FG55=0)) -> 1 | FL55: =SUM((AA$5:FJ$5="Age")*(AA55:FJ55<=3))-SUM((AA$5:FJ$5="Age")*(AA55:FJ55=0)) -> 27 | FN55: =IF(MIN('Points Calculation'!CU53,'Points Calculation'!CV53)>0,MIN('Points Calculation'!CU53,'Points Calculation'!CV53),"") -> 63.93 | FO55: =IF(MIN('Points Calculation'!BL53,'Points Calculation'!BN53)>0,MIN('Points Calculation'!BL53,'Points Calculation'!BN53),"") -> 53.47 | FP55: 10.46 | FQ55: 0.1956237142 | FR55: ='Points Calculation'!$BP53 -> 85.19 | FT55: =IF(MIN('Points Calculation'!CZ53,'Points Calculation'!DA53)>0,MIN('Points Calculation'!CZ53,'Points Calculation'!DA53),"") -> 68.075 | FU55: =IF(MIN('Points Calculation'!BU53,'Points Calculation'!BW53)>0,MIN('Points Calculation'!BU53,'Points Calculation'!BW53),"") -> 68.08 | FV55: -0.005 | FW55: -7.344300823e-05 | FX55: ='Points Calculation'!$BP53 -> 85.19 | FZ55: ='Points Calculation'!BJ53 -> 51.37 | GA55: ='Points Calculation'!BK53 -> 55.57 | GB55: ='Points Calculation'!BL53 -> 53.47 | GC55: ='Points Calculation'!BO53 -> 53.47 | GE55: ='Points Calculation'!BS53 -> 62.99 | GF55: ='Points Calculation'!BT53 -> 73.16 | GG55: ='Points Calculation'!BU53 -> 68.08 | GH55: ='Points Calculation'!BX53 -> 66.99
A56: James Smith | B56: M | C56: 1992 | D56: =INDEX('Age Calculation'!$A$1:'Age Calculation'!$Q$108,MATCH(C56,'Age Calculation'!$A$1:'Age Calculation'!$A$108),MATCH($A$1,'Age Calculation'!$A$1:'Age Calculation'!$Q$1)) -> SEN | E56: 21595 | G56: =VLOOKUP(E56,'Start of Year Points'!A$2:I$62,9,FALSE) -> 72.23 | H56: =VLOOKUP(E56,'Start of Year Points'!A$2:L$62,12,FALSE) -> 72.23 | I56: =VLOOKUP(E56,'Start of Year Points'!A$2:L$62,11,FALSE) -> 72.23 | J56: 72.23 | K56: 72.23 | L56: 63.71 | M56: 72.23 | O56: 63.71 | P56: 72.23 | Q56: ='Points Calculation'!$BO54 -> 63.71 | R56: ='Points Calculation'!$BX54 -> 72.23 | T56: ='Points Calculation'!BQ54 -> 63.71 | U56: ='Points Calculation'!BZ54 -> 86.68 | W56: -8.52 | CJ56: 12 | CK56: 7 | CL56: 69.09 | CP56: 9 | CQ56: 6 | CR56: 58.33 | CS56: DSQ | CT56: DSQ | CU56: DSQ | CV56: DNF | CW56: DNF | CX56: DNF | EE56: DSQ | EF56: DSQ | EG56: 999.99 | FK56: =SUM((Z$5:FG$5="Overall")*(Z56:FG56<=3))-SUM((Z$5:FG$5="Overall")*(Z56:FG56=0)) -> 0 | FL56: =SUM((AA$5:FJ$5="Age")*(AA56:FJ56<=3))-SUM((AA$5:FJ$5="Age")*(AA56:FJ56=0)) -> 0 | FN56: =IF(MIN('Points Calculation'!CU54,'Points Calculation'!CV54)>0,MIN('Points Calculation'!CU54,'Points Calculation'!CV54),"") ->  | FO56: =IF(MIN('Points Calculation'!BL54,'Points Calculation'!BN54)>0,MIN('Points Calculation'!BL54,'Points Calculation'!BN54),"") -> 63.71 | FR56: ='Points Calculation'!$BP54 -> 86.68 | FT56: =IF(MIN('Points Calculation'!CZ54,'Points Calculation'!DA54)>0,MIN('Points Calculation'!CZ54,'Points Calculation'!DA54),"") ->  | FU56: =IF(MIN('Points Calculation'!BU54,'Points Calculation'!BW54)>0,MIN('Points Calculation'!BU54,'Points Calculation'!BW54),"") ->  | FX56: ='Points Calculation'!$BP54 -> 86.68 | FZ56: ='Points Calculation'!BJ54 -> 58.33 | GA56: ='Points Calculation'!BK54 -> 69.09 | GB56: ='Points Calculation'!BL54 -> 63.71 | GC56: ='Points Calculation'!BO54 -> 63.71 | GE56: ='Points Calculation'!BS54 ->  | GF56: ='Points Calculation'!BT54 ->  | GG56: ='Points Calculation'!BU54 ->  | GH56: ='Points Calculation'!BX54 -> 72.23
A57: Gareth Miller | B57: M | C57: 1994 | D57: =INDEX('Age Calculation'!$A$1:'Age Calculation'!$Q$108,MATCH(C57,'Age Calculation'!$A$1:'Age Calculation'!$A$108),MATCH($A$1,'Age Calculation'!$A$1:'Age Calculation'!$Q$1)) -> U21 | E57: 18509 | G57: =VLOOKUP(E57,'Start of Year Points'!A$2:I$62,9,FALSE) -> 73.98 | H57: =VLOOKUP(E57,'Start of Year Points'!A$2:L$62,12,FALSE) -> 73.98 | I57: =VLOOKUP(E57,'Start of Year Points'!A$2:L$62,11,FALSE) -> 71.07 | J57: 73.98 | K57: 71.07 | L57: 73.98 | M57: 71.07 | O57: 50.88 | P57: 71.07 | Q57: ='Points Calculation'!$BO55 -> 50.88 | R57: ='Points Calculation'!$BX55 -> 71.07 | T57: ='Points Calculation'!BQ55 -> 50.88 | U57: ='Points Calculation'!BZ55 -> 81.79 | W57: -23.1 | X57: -2.91 | AC57: 17 | AD57: 68.16 | CS57: DNF | CT57: DNF | CU57: DNF | CV57: 9 | CW57: 2 | CX57: 42.26 | DB57: 16 | DC57: 5 | DD57: 64.29 | DQ57: 8 | DR57: 3 | DS57: 59.49 | EE57: 32 | EF57: 13 | EG57: 79.43 | FK57: =SUM((Z$5:FG$5="Overall")*(Z57:FG57<=3))-SUM((Z$5:FG$5="Overall")*(Z57:FG57=0)) -> 0 | FL57: =SUM((AA$5:FJ$5="Age")*(AA57:FJ57<=3))-SUM((AA$5:FJ$5="Age")*(AA57:FJ57=0)) -> 2 | FN57: =IF(MIN('Points Calculation'!CU55,'Points Calculation'!CV55)>0,MIN('Points Calculation'!CU55,'Points Calculation'!CV55),"") -> 71.86 | FO57: =IF(MIN('Points Calculation'!BL55,'Points Calculation'!BN55)>0,MIN('Points Calculation'!BL55,'Points Calculation'!BN55),"") -> 50.88 | FP57: 20.98 | FQ57: 0.4123427673 | FR57: ='Points Calculation'!$BP55 -> 88.78 | FT57: =IF(MIN('Points Calculation'!CZ55,'Points Calculation'!DA55)>0,MIN('Points Calculation'!CZ55,'Points Calculation'!DA55),"") -> 81.792 | FU57: =IF(MIN('Points Calculation'!BU55,'Points Calculation'!BW55)>0,MIN('Points Calculation'!BU55,'Points Calculation'!BW55),"") -> 81.79 | FV57: 0.002 | FW57: 2.44528671e-05 | FX57: ='Points Calculation'!$BP55 -> 88.78 | FZ57: ='Points Calculation'!BJ55 -> 42.26 | GA57: ='Points Calculation'!BK55 -> 59.49 | GB57: ='Points Calculation'!BL55 -> 50.88 | GC57: ='Points Calculation'!BO55 -> 50.88 | GE57: ='Points Calculation'!BS55 -> 68.16 | GF57: ='Points Calculation'!BT55 ->  | GG57: ='Points Calculation'!BU55 ->  | GH57: ='Points Calculation'!BX55 -> 71.07
A58: Edmund Walker | B58: M | C58: 1992 | D58: =INDEX('Age Calculation'!$A$1:'Age Calculation'!$Q$108,MATCH(C58,'Age Calculation'!$A$1:'Age Calculation'!$A$108),MATCH($A$1,'Age Calculation'!$A$1:'Age Calculation'!$Q$1)) -> SEN | E58: 14213 | G58: =VLOOKUP(E58,'Start of Year Points'!A$2:I$62,9,FALSE) -> 77.16 | H58: =VLOOKUP(E58,'Start of Year Points'!A$2:L$62,12,FALSE) -> 77.16 | I58: =VLOOKUP(E58,'Start of Year Points'!A$2:L$62,11,FALSE) -> 77.16 | J58: 77.16 | K58: 77.16 | L58: 54.38 | M58: 77.16 | O58: 50.77 | P58: 77.16 | Q58: ='Points Calculation'!$BO56 -> 50.77 | R58: ='Points Calculation'!$BX56 -> 77.16 | T58: ='Points Calculation'!BQ56 -> 50.77 | U58: ='Points Calculation'!BZ56 -> 92.59 | W58: -26.39 | AC58: 23 | AD58: 91.33 | BZ58: 12 | CA58: 8 | CB58: 55.88 | CP58: 7 | CQ58: 5 | CR58: 52.87 | CS58: DSQ | CT58: DSQ | CU58: DSQ | CV58: 15 | CW58: 7 | CX58: 65.79 | DQ58: 5 | DR58: 3 | DS58: 48.66 | EE58: DNF | EF58: DNF | EG58: 999.99 | FK58: =SUM((Z$5:FG$5="Overall")*(Z58:FG58<=3))-SUM((Z$5:FG$5="Overall")*(Z58:FG58=0)) -> 0 | FL58: =SUM((AA$5:FJ$5="Age")*(AA58:FJ58<=3))-SUM((AA$5:FJ$5="Age")*(AA58:FJ58=0)) -> 1 | FN58: =IF(MIN('Points Calculation'!CU56,'Points Calculation'!CV56)>0,MIN('Points Calculation'!CU56,'Points Calculation'!CV56),"") ->  | FO58: =IF(MIN('Points Calculation'!BL56,'Points Calculation'!BN56)>0,MIN('Points Calculation'!BL56,'Points Calculation'!BN56),"") -> 50.77 | FR58: ='Points Calculation'!$BP56 -> 92.59 | FT58: =IF(MIN('Points Calculation'!CZ56,'Points Calculation'!DA56)>0,MIN('Points Calculation'!CZ56,'Points Calculation'!DA56),"") -> 109.596 | FU58: =IF(MIN('Points Calculation'!BU56,'Points Calculation'!BW56)>0,MIN('Points Calculation'!BU56,'Points Calculation'!BW56),"") -> 109.6 | FV58: -0.004 | FW58: -3.649635037e-05 | FX58: ='Points Calculation'!$BP56 -> 92.59 | FZ58: ='Points Calculation'!BJ56 -> 48.66 | GA58: ='Points Calculation'!BK56 -> 52.87 | GB58: ='Points Calculation'!BL56 -> 50.77 | GC58: ='Points Calculation'!BO56 -> 50.77 | GE58: ='Points Calculation'!BS56 -> 91.33 | GF58: ='Points Calculation'!BT56 ->  | GG58: ='Points Calculation'!BU56 ->  | GH58: ='Points Calculation'!BX56 -> 77.16
A59: Jordan Rigby | B59: M | C59: 2000 | D59: =INDEX('Age Calculation'!$A$1:'Age Calculation'!$Q$108,MATCH(C59,'Age Calculation'!$A$1:'Age Calculation'!$A$108),MATCH($A$1,'Age Calculation'!$A$1:'Age Calculation'!$Q$1)) -> U16 | E59: 19910 | G59: =VLOOKUP(E59,'Start of Year Points'!A$2:I$62,9,FALSE) -> 111.82 | H59: =VLOOKUP(E59,'Start of Year Points'!A$2:L$62,12,FALSE) -> 111.82 | I59: =VLOOKUP(E59,'Start of Year Points'!A$2:L$62,11,FALSE) -> 111.82 | J59: 111.82 | K59: 111.82 | L59: 111.82 | M59: 111.82 | O59: 111.82 | P59: 111.82 | Q59: ='Points Calculation'!$BO57 -> 111.82 | R59: ='Points Calculation'!$BX57 -> 111.82 | T59: ='Points Calculation'!BQ57 -> 134.18 | U59: ='Points Calculation'!BZ57 -> 134.18 | CS59: 37 | CT59: 5 | CU59: 119.95 | FK59: =SUM((Z$5:FG$5="Overall")*(Z59:FG59<=3))-SUM((Z$5:FG$5="Overall")*(Z59:FG59=0)) -> 0 | FL59: =SUM((AA$5:FJ$5="Age")*(AA59:FJ59<=3))-SUM((AA$5:FJ$5="Age")*(AA59:FJ59=0)) -> 0 | FN59: =IF(MIN('Points Calculation'!CU57,'Points Calculation'!CV57)>0,MIN('Points Calculation'!CU57,'Points Calculation'!CV57),"") ->  | FO59: =IF(MIN('Points Calculation'!BL57,'Points Calculation'!BN57)>0,MIN('Points Calculation'!BL57,'Points Calculation'!BN57),"") -> 143.94 | FR59: ='Points Calculation'!$BP57 -> 134.18 | FT59: =IF(MIN('Points Calculation'!CZ57,'Points Calculation'!DA57)>0,MIN('Points Calculation'!CZ57,'Points Calculation'!DA57),"") ->  | FU59: =IF(MIN('Points Calculation'!BU57,'Points Calculation'!BW57)>0,MIN('Points Calculation'!BU57,'Points Calculation'!BW57),"") ->  | FX59: ='Points Calculation'!$BP57 -> 134.18 | FZ59: ='Points Calculation'!BJ57 -> 119.95 | GA59: ='Points Calculation'!BK57 ->  | GB59: ='Points Calculation'!BL57 ->  | GC59: ='Points Calculation'!BO57 -> 111.82 | GE59: ='Points Calculation'!BS57 ->  | GF59: ='Points Calculation'!BT57 ->  | GG59: ='Points Calculation'!BU57 ->  | GH59: ='Points Calculation'!BX57 -> 111.82
A60: Sam Dewison | B60: M | C60: 1998 | D60: =INDEX('Age Calculation'!$A$1:'Age Calculation'!$Q$108,MATCH(C60,'Age Calculation'!$A$1:'Age Calculation'!$A$108),MATCH($A$1,'Age Calculation'!$A$1:'Age Calculation'!$Q$1)) -> U18 | E60: 20846 | G60: =VLOOKUP(E60,'Start of Year Points'!A$2:I$62,9,FALSE) -> 119.86 | H60: =VLOOKUP(E60,'Start of Year Points'!A$2:L$62,12,FALSE) -> 119.86 | I60: =VLOOKUP(E60,'Start of Year Points'!A$2:L$62,11,FALSE) -> 119.86 | J60: 119.86 | K60: 119.86 | L60: 103.46 | M60: 119.86 | O60: 103.46 | P60: 119.86 | Q60: ='Points Calculation'!$BO58 -> 103.46 | R60: ='Points Calculation'!$BX58 -> 119.86 | T60: ='Points Calculation'!BQ58 -> 103.46 | U60: ='Points Calculation'!BZ58 -> 143.83 | W60: -16.4 | CJ60: 24 | CK60: 5 | CL60: 105.66 | CP60: 22 | CQ60: 5 | CR60: 101.25 | EE60: 53 | EF60: 9 | EG60: 132.7 | FK60: =SUM((Z$5:FG$5="Overall")*(Z60:FG60<=3))-SUM((Z$5:FG$5="Overall")*(Z60:FG60=0)) -> 0 | FL60: =SUM((AA$5:FJ$5="Age")*(AA60:FJ60<=3))-SUM((AA$5:FJ$5="Age")*(AA60:FJ60=0)) -> 0 | FN60: =IF(MIN('Points Calculation'!CU58,'Points Calculation'!CV58)>0,MIN('Points Calculation'!CU58,'Points Calculation'!CV58),"") -> 159.24 | FO60: =IF(MIN('Points Calculation'!BL58,'Points Calculation'!BN58)>0,MIN('Points Calculation'!BL58,'Points Calculation'!BN58),"") -> 103.46 | FP60: 55.78 | FQ60: 0.5391455635 | FR60: ='Points Calculation'!$BP58 -> 143.83 | FT60: =IF(MIN('Points Calculation'!CZ58,'Points Calculation'!DA58)>0,MIN('Points Calculation'!CZ58,'Points Calculation'!DA58),"") ->  | FU60: =IF(MIN('Points Calculation'!BU58,'Points Calculation'!BW58)>0,MIN('Points Calculation'!BU58,'Points Calculation'!BW58),"") ->  | FX60: ='Points Calculation'!$BP58 -> 143.83 | FZ60: ='Points Calculation'!BJ58 -> 101.25 | GA60: ='Points Calculation'!BK58 -> 105.66 | GB60: ='Points Calculation'!BL58 -> 103.46 | GC60: ='Points Calculation'!BO58 -> 103.46 | GE60: ='Points Calculation'!BS58 ->  | GF60: ='Points Calculation'!BT58 ->  | GG60: ='Points Calculation'!BU58 ->  | GH60: ='Points Calculation'!BX58 -> 119.86
A61: Roger Crombleholme | B61: M | C61: 1957 | D61: =INDEX('Age Calculation'!$A$1:'Age Calculation'!$Q$108,MATCH(C61,'Age Calculation'!$A$1:'Age Calculation'!$A$108),MATCH($A$1,'Age Calculation'!$A$1:'Age Calculation'!$Q$1)) -> MAS | E61: 5666 | G61: =VLOOKUP(E61,'Start of Year Points'!A$2:I$62,9,FALSE) -> 120.35 | H61: =VLOOKUP(E61,'Start of Year Points'!A$2:L$62,12,FALSE) -> 120.35 | I61: =VLOOKUP(E61,'Start of Year Points'!A$2:L$62,11,FALSE) -> 120.35 | J61: 120.35 | K61: 120.35 | L61: 120.35 | M61: 120.35 | O61: 120.35 | P61: 120.35 | Q61: ='Points Calculation'!$BO59 -> 120.35 | R61: ='Points Calculation'!$BX59 -> 120.35 | T61: ='Points Calculation'!BQ59 -> 144.42 | U61: ='Points Calculation'!BZ59 -> 144.42 | CS61: 57 | CT61: 6 | CU61: 167.61 | CV61: 52 | CW61: 6 | CX61: 177.57 | FK61: =SUM((Z$5:FG$5="Overall")*(Z61:FG61<=3))-SUM((Z$5:FG$5="Overall")*(Z61:FG61=0)) -> 0 | FL61: =SUM((AA$5:FJ$5="Age")*(AA61:FJ61<=3))-SUM((AA$5:FJ$5="Age")*(AA61:FJ61=0)) -> 0 | FN61: =IF(MIN('Points Calculation'!CU59,'Points Calculation'!CV59)>0,MIN('Points Calculation'!CU59,'Points Calculation'!CV59),"") ->  | FO61: =IF(MIN('Points Calculation'!BL59,'Points Calculation'!BN59)>0,MIN('Points Calculation'!BL59,'Points Calculation'!BN59),"") -> 201.13 | FR61: ='Points Calculation'!$BP59 -> 144.42 | FT61: =IF(MIN('Points Calculation'!CZ59,'Points Calculation'!DA59)>0,MIN('Points Calculation'!CZ59,'Points Calculation'!DA59),"") ->  | FU61: =IF(MIN('Points Calculation'!BU59,'Points Calculation'!BW59)>0,MIN('Points Calculation'!BU59,'Points Calculation'!BW59),"") ->  | FX61: ='Points Calculation'!$BP59 -> 144.42 | FZ61: ='Points Calculation'!BJ59 -> 167.61 | GA61: ='Points Calculation'!BK59 ->  | GB61: ='Points Calculation'!BL59 ->  | GC61: ='Points Calculation'!BO59 -> 120.35 | GE61: ='Points Calculation'!BS59 ->  | GF61: ='Points Calculation'!BT59 ->  | GG61: ='Points Calculation'!BU59 ->  | GH61: ='Points Calculation'!BX59 -> 120.35
A62: Joey Frost | B62: M | C62: 1995 | D62: =INDEX('Age Calculation'!$A$1:'Age Calculation'!$Q$108,MATCH(C62,'Age Calculation'!$A$1:'Age Calculation'!$A$108),MATCH($A$1,'Age Calculation'!$A$1:'Age Calculation'!$Q$1)) -> U21 | E62: 20677 | G62: =VLOOKUP(E62,'Start of Year Points'!A$2:I$62,9,FALSE) -> 127.79 | H62: =VLOOKUP(E62,'Start of Year Points'!A$2:L$62,12,FALSE) -> 127.79 | I62: =VLOOKUP(E62,'Start of Year Points'!A$2:L$62,11,FALSE) -> 127.79 | J62: 127.79 | K62: 127.79 | L62: 127.79 | M62: 127.79 | O62: 127.79 | P62: 127.79 | Q62: ='Points Calculation'!$BO60 -> 127.79 | R62: ='Points Calculation'!$BX60 -> 127.79 | T62: ='Points Calculation'!BQ60 -> 153.35 | U62: ='Points Calculation'!BZ60 -> 153.35 | FK62: =SUM((Z$5:FG$5="Overall")*(Z62:FG62<=3))-SUM((Z$5:FG$5="Overall")*(Z62:FG62=0)) -> 0 | FL62: =SUM((AA$5:FJ$5="Age")*(AA62:FJ62<=3))-SUM((AA$5:FJ$5="Age")*(AA62:FJ62=0)) -> 0 | FN62: =IF(MIN('Points Calculation'!CU60,'Points Calculation'!CV60)>0,MIN('Points Calculation'!CU60,'Points Calculation'!CV60),"") ->  | FO62: =IF(MIN('Points Calculation'!BL60,'Points Calculation'!BN60)>0,MIN('Points Calculation'!BL60,'Points Calculation'!BN60),"") ->  | FR62: ='Points Calculation'!$BP60 -> 153.35 | FT62: =IF(MIN('Points Calculation'!CZ60,'Points Calculation'!DA60)>0,MIN('Points Calculation'!CZ60,'Points Calculation'!DA60),"") ->  | FU62: =IF(MIN('Points Calculation'!BU60,'Points Calculation'!BW60)>0,MIN('Points Calculation'!BU60,'Points Calculation'!BW60),"") ->  | FX62: ='Points Calculation'!$BP60 -> 153.35 | FZ62: ='Points Calculation'!BJ60 ->  | GA62: ='Points Calculation'!BK60 ->  | GB62: ='Points Calculation'!BL60 ->  | GC62: ='Points Calculation'!BO60 -> 127.79 | GE62: ='Points Calculation'!BS60 ->  | GF62: ='Points Calculation'!BT60 ->  | GG62: ='Points Calculation'!BU60 ->  | GH62: ='Points Calculation'!BX60 -> 127.79
A63: Sam Lee | B63: M | C63: 1996 | D63: =INDEX('Age Calculation'!$A$1:'Age Calculation'!$Q$108,MATCH(C63,'Age Calculation'!$A$1:'Age Calculation'!$A$108),MATCH($A$1,'Age Calculation'!$A$1:'Age Calculation'!$Q$1)) -> U21 | E63: 41662 | G63: =VLOOKUP(E63,'Start of Year Points'!A$2:I$62,9,FALSE) -> 128.82 | H63: =VLOOKUP(E63,'Start of Year Points'!A$2:L$62,12,FALSE) -> 128.82 | I63: =VLOOKUP(E63,'Start of Year Points'!A$2:L$62,11,FALSE) -> 128.82 | J63: 128.82 | K63: 128.82 | L63: 128.82 | M63: 128.82 | O63: 128.82 | P63: 128.82 | Q63: ='Points Calculation'!$BO61 -> 128.82 | R63: ='Points Calculation'!$BX61 -> 128.82 | T63: ='Points Calculation'!BQ61 -> 151.46 | U63: ='Points Calculation'!BZ61 -> 154.58 | Z63: 13 | AA63: 2 | AB63: =106.28+102.43 -> 208.71 | AE63: 38 | AF63: 7 | AG63: 205.3 | AP63: 34 | AQ63: 9 | AR63: 129.86 | AS63: 29 | AT63: 7 | AU63: 215.46 | BB63: 27 | BC63: 4 | BD63: 188.41 | BE63: 32 | BG63: 182.66 | BH63: 36 | BI63: 8 | BJ63: 173.06 | CS63: DNF | CT63: DNF | CU63: DNF | DB63: DNF | DC63: DNF | DD63: DNF | FK63: =SUM((Z$5:FG$5="Overall")*(Z63:FG63<=3))-SUM((Z$5:FG$5="Overall")*(Z63:FG63=0)) -> 0 | FL63: =SUM((AA$5:FJ$5="Age")*(AA63:FJ63<=3))-SUM((AA$5:FJ$5="Age")*(AA63:FJ63=0)) -> 1 | FN63: =IF(MIN('Points Calculation'!CU61,'Points Calculation'!CV61)>0,MIN('Points Calculation'!CU61,'Points Calculation'!CV61),"") -> 177.86 | FO63: =IF(MIN('Points Calculation'!BL61,'Points Calculation'!BN61)>0,MIN('Points Calculation'!BL61,'Points Calculation'!BN61),"") -> 151.46 | FP63: 26.4 | FQ63: 0.1743034465 | FR63: ='Points Calculation'!$BP61 -> 154.58 | FT63: =IF(MIN('Points Calculation'!CZ61,'Points Calculation'!DA61)>0,MIN('Points Calculation'!CZ61,'Points Calculation'!DA61),"") ->  | FU63: =IF(MIN('Points Calculation'!BU61,'Points Calculation'!BW61)>0,MIN('Points Calculation'!BU61,'Points Calculation'!BW61),"") ->  | FX63: ='Points Calculation'!$BP61 -> 154.58 | FZ63: ='Points Calculation'!BJ61 -> 129.86 | GA63: ='Points Calculation'!BK61 -> 173.06 | GB63: ='Points Calculation'!BL61 -> 151.46 | GC63: ='Points Calculation'!BO61 -> 128.82 | GE63: ='Points Calculation'!BS61 ->  | GF63: ='Points Calculation'!BT61 ->  | GG63: ='Points Calculation'!BU61 ->  | GH63: ='Points Calculation'!BX61 -> 128.82
A64: Duncan Thorley | B64: M | C64: 1997 | D64: =INDEX('Age Calculation'!$A$1:'Age Calculation'!$Q$108,MATCH(C64,'Age Calculation'!$A$1:'Age Calculation'!$A$108),MATCH($A$1,'Age Calculation'!$A$1:'Age Calculation'!$Q$1)) -> U18 | E64: 18998 | G64: =VLOOKUP(E64,'Start of Year Points'!A$2:I$62,9,FALSE) -> 133.95 | H64: =VLOOKUP(E64,'Start of Year Points'!A$2:L$62,12,FALSE) -> 133.95 | I64: =VLOOKUP(E64,'Start of Year Points'!A$2:L$62,11,FALSE) -> 133.95 | J64: 133.95 | K64: 133.95 | L64: 133.95 | M64: 133.95 | O64: 133.95 | P64: 133.95 | Q64: ='Points Calculation'!$BO62 -> 133.95 | R64: ='Points Calculation'!$BX62 -> 133.95 | T64: ='Points Calculation'!BQ62 -> 160.74 | U64: ='Points Calculation'!BZ62 -> 160.74 | FK64: =SUM((Z$5:FG$5="Overall")*(Z64:FG64<=3))-SUM((Z$5:FG$5="Overall")*(Z64:FG64=0)) -> 0 | FL64: =SUM((AA$5:FJ$5="Age")*(AA64:FJ64<=3))-SUM((AA$5:FJ$5="Age")*(AA64:FJ64=0)) -> 0 | FN64: =IF(MIN('Points Calculation'!CU62,'Points Calculation'!CV62)>0,MIN('Points Calculation'!CU62,'Points Calculation'!CV62),"") ->  | FO64: =IF(MIN('Points Calculation'!BL62,'Points Calculation'!BN62)>0,MIN('Points Calculation'!BL62,'Points Calculation'!BN62),"") ->  | FR64: ='Points Calculation'!$BP62 -> 160.74 | FT64: =IF(MIN('Points Calculation'!CZ62,'Points Calculation'!DA62)>0,MIN('Points Calculation'!CZ62,'Points Calculation'!DA62),"") ->  | FU64: =IF(MIN('Points Calculation'!BU62,'Points Calculation'!BW62)>0,MIN('Points Calculation'!BU62,'Points Calculation'!BW62),"") ->  | FX64: ='Points Calculation'!$BP62 -> 160.74 | FZ64: ='Points Calculation'!BJ62 ->  | GA64: ='Points Calculation'!BK62 ->  | GB64: ='Points Calculation'!BL62 ->  | GC64: ='Points Calculation'!BO62 -> 133.95 | GE64: ='Points Calculation'!BS62 ->  | GF64: ='Points Calculation'!BT62 ->  | GG64: ='Points Calculation'!BU62 ->  | GH64: ='Points Calculation'!BX62 -> 133.95
A65: Thomas Lawrence | B65: M | C65: 1999 | D65: =INDEX('Age Calculation'!$A$1:'Age Calculation'!$Q$108,MATCH(C65,'Age Calculation'!$A$1:'Age Calculation'!$A$108),MATCH($A$1,'Age Calculation'!$A$1:'Age Calculation'!$Q$1)) -> U16 | E65: 19941 | G65: =VLOOKUP(E65,'Start of Year Points'!A$2:I$62,9,FALSE) -> 144.61 | H65: =VLOOKUP(E65,'Start of Year Points'!A$2:L$62,12,FALSE) -> 144.61 | I65: =VLOOKUP(E65,'Start of Year Points'!A$2:L$62,11,FALSE) -> 144.61 | J65: 144.61 | K65: 144.61 | L65: 119.4 | M65: 144.61 | O65: 103.06 | P65: 144.61 | Q65: ='Points Calculation'!$BO63 -> 103.06 | R65: ='Points Calculation'!$BX63 -> 144.61 | T65: ='Points Calculation'!BQ63 -> 103.06 | U65: ='Points Calculation'!BZ63 -> 173.53 | W65: -41.55 | BH65: DNF | BI65: DNF | BJ65: DNF | BZ65: 31 | CA65: 6 | CB65: 101.32 | CJ65: DSQ | CK65: DSQ | CL65: DSQ | CP65: 36 | CQ65: 6 | CR65: 137.47 | CS65: DSQ | CT65: DSQ | CU65: DSQ | CV65: DNS | CW65: DNS | CX65: DNS | CY65: DNF | CZ65: DNF | DA65: DNF | DB65: 29 | DC65: 3 | DD65: 104.8 | EE65: 54 | EF65: 13 | EG65: 135.56 | EN65: 36 | EO65: 10 | EP65: 174.2 | EQ65: 38 | ER65: 5 | ES65: 192.94 | EW65: DNS | EX65: DNS | EY65: 999.99 | FK65: =SUM((Z$5:FG$5="Overall")*(Z65:FG65<=3))-SUM((Z$5:FG$5="Overall")*(Z65:FG65=0)) -> 0 | FL65: =SUM((AA$5:FJ$5="Age")*(AA65:FJ65<=3))-SUM((AA$5:FJ$5="Age")*(AA65:FJ65=0)) -> 1 | FN65: =IF(MIN('Points Calculation'!CU63,'Points Calculation'!CV63)>0,MIN('Points Calculation'!CU63,'Points Calculation'!CV63),"") -> 120.18 | FO65: =IF(MIN('Points Calculation'!BL63,'Points Calculation'!BN63)>0,MIN('Points Calculation'!BL63,'Points Calculation'!BN63),"") -> 103.06 | FP65: 17.12 | FQ65: 0.1661168252 | FR65: ='Points Calculation'!$BP63 -> 173.53 | FT65: =IF(MIN('Points Calculation'!CZ63,'Points Calculation'!DA63)>0,MIN('Points Calculation'!CZ63,'Points Calculation'!DA63),"") -> 1199.988 | FU65: =IF(MIN('Points Calculation'!BU63,'Points Calculation'!BW63)>0,MIN('Points Calculation'!BU63,'Points Calculation'!BW63),"") ->  | FX65: ='Points Calculation'!$BP63 -> 173.53 | FZ65: ='Points Calculation'!BJ63 -> 101.32 | GA65: ='Points Calculation'!BK63 -> 104.8 | GB65: ='Points Calculation'!BL63 -> 103.06 | GC65: ='Points Calculation'!BO63 -> 103.06 | GE65: ='Points Calculation'!BS63 ->  | GF65: ='Points Calculation'!BT63 ->  | GG65: ='Points Calculation'!BU63 ->  | GH65: ='Points Calculation'!BX63 -> 144.61
A66: Ethan Hemming | B66: M | C66: 2001 | D66: =INDEX('Age Calculation'!$A$1:'Age Calculation'!$Q$108,MATCH(C66,'Age Calculation'!$A$1:'Age Calculation'!$A$108),MATCH($A$1,'Age Calculation'!$A$1:'Age Calculation'!$Q$1)) -> U14 | E66: 19829 | G66: =VLOOKUP(E66,'Start of Year Points'!A$2:I$62,9,FALSE) -> 150.21 | H66: =VLOOKUP(E66,'Start of Year Points'!A$2:L$62,12,FALSE) -> 150.21 | I66: =VLOOKUP(E66,'Start of Year Points'!A$2:L$62,11,FALSE) -> 150.21 | J66: 138.09 | K66: 150.21 | L66: 114.45 | M66: 150.21 | O66: 114.45 | P66: 150.21 | Q66: ='Points Calculation'!$BO64 -> 114.45 | R66: ='Points Calculation'!$BX64 -> 150.21 | T66: ='Points Calculation'!BQ64 -> 114.45 | U66: ='Points Calculation'!BZ64 -> 180.25 | W66: -35.76 | Z66: 14 | AA66: 9 | AB66: =111.01+102.43 -> 213.44 | AE66: 27 | AF66: 7 | AG66: 164.73 | AP66: 30 | AQ66: 7 | AR66: 125.97 | AS66: 25 | AT66: 8 | AU66: 198.38 | BB66: DSQ | BC66: DSQ | BD66: DSQ | BE66: 39 | BG66: 1183.6 | BH66: 38 | BI66: 10 | BJ66: 179.29 | BK66: 28 | BL66: 6 | BM66: 185.36 | BQ66: 22 | BR66: 7 | BS66: 209.25 | BZ66: 33 | CA66: 3 | CB66: 102.93 | CJ66: DNF | CK66: DNF | CL66: DNF | CP66: 37 | CQ66: 6 | CR66: 139.7 | CS66: DNF | CT66: DNF | CU66: DNF | CV66: 51 | CW66: 14 | CX66: 174.54 | DQ66: 26 | DR66: 4 | DS66: 134.1 | FK66: =SUM((Z$5:FG$5="Overall")*(Z66:FG66<=3))-SUM((Z$5:FG$5="Overall")*(Z66:FG66=0)) -> 0 | FL66: =SUM((AA$5:FJ$5="Age")*(AA66:FJ66<=3))-SUM((AA$5:FJ$5="Age")*(AA66:FJ66=0)) -> 1 | FN66: =IF(MIN('Points Calculation'!CU64,'Points Calculation'!CV64)>0,MIN('Points Calculation'!CU64,'Points Calculation'!CV64),"") -> 188.835 | FO66: =IF(MIN('Points Calculation'!BL64,'Points Calculation'!BN64)>0,MIN('Points Calculation'!BL64,'Points Calculation'!BN64),"") -> 114.45 | FP66: 74.385 | FQ66: 0.6499344692 | FR66: ='Points Calculation'!$BP64 -> 180.25 | FT66: =IF(MIN('Points Calculation'!CZ64,'Points Calculation'!DA64)>0,MIN('Points Calculation'!CZ64,'Points Calculation'!DA64),"") ->  | FU66: =IF(MIN('Points Calculation'!BU64,'Points Calculation'!BW64)>0,MIN('Points Calculation'!BU64,'Points Calculation'!BW64),"") ->  | FX66: ='Points Calculation'!$BP64 -> 180.25 | FZ66: ='Points Calculation'!BJ64 -> 102.93 | GA66: ='Points Calculation'!BK64 -> 125.97 | GB66: ='Points Calculation'!BL64 -> 114.45 | GC66: ='Points Calculation'!BO64 -> 114.45 | GE66: ='Points Calculation'!BS64 ->  | GF66: ='Points Calculation'!BT64 ->  | GG66: ='Points Calculation'!BU64 ->  | GH66: ='Points Calculation'!BX64 -> 150.21
A67: James Elgy | B67: M | C67: 1993 | D67: =INDEX('Age Calculation'!$A$1:'Age Calculation'!$Q$108,MATCH(C67,'Age Calculation'!$A$1:'Age Calculation'!$A$108),MATCH($A$1,'Age Calculation'!$A$1:'Age Calculation'!$Q$1)) -> SEN | E67: 19166 | G67: =VLOOKUP(E67,'Start of Year Points'!A$2:I$62,9,FALSE) -> 166.36 | H67: =VLOOKUP(E67,'Start of Year Points'!A$2:L$62,12,FALSE) -> 166.36 | I67: =VLOOKUP(E67,'Start of Year Points'!A$2:L$62,11,FALSE) -> 166.36 | J67: 166.36 | K67: 166.36 | L67: 166.36 | M67: 166.36 | O67: 166.36 | P67: 166.36 | Q67: ='Points Calculation'!$BO65 -> 166.36 | R67: ='Points Calculation'!$BX65 -> 166.36 | T67: ='Points Calculation'!BQ65 -> 199.63 | U67: ='Points Calculation'!BZ65 -> 199.63 | FK67: =SUM((Z$5:FG$5="Overall")*(Z67:FG67<=3))-SUM((Z$5:FG$5="Overall")*(Z67:FG67=0)) -> 0 | FL67: =SUM((AA$5:FJ$5="Age")*(AA67:FJ67<=3))-SUM((AA$5:FJ$5="Age")*(AA67:FJ67=0)) -> 0 | FN67: =IF(MIN('Points Calculation'!CU65,'Points Calculation'!CV65)>0,MIN('Points Calculation'!CU65,'Points Calculation'!CV65),"") ->  | FO67: =IF(MIN('Points Calculation'!BL65,'Points Calculation'!BN65)>0,MIN('Points Calculation'!BL65,'Points Calculation'!BN65),"") ->  | FR67: ='Points Calculation'!$BP65 -> 199.63 | FT67: =IF(MIN('Points Calculation'!CZ65,'Points Calculation'!DA65)>0,MIN('Points Calculation'!CZ65,'Points Calculation'!DA65),"") ->  | FU67: =IF(MIN('Points Calculation'!BU65,'Points Calculation'!BW65)>0,MIN('Points Calculation'!BU65,'Points Calculation'!BW65),"") ->  | FX67: ='Points Calculation'!$BP65 -> 199.63 | FZ67: ='Points Calculation'!BJ65 ->  | GA67: ='Points Calculation'!BK65 ->  | GB67: ='Points Calculation'!BL65 ->  | GC67: ='Points Calculation'!BO65 -> 166.36 | GE67: ='Points Calculation'!BS65 ->  | GF67: ='Points Calculation'!BT65 ->  | GG67: ='Points Calculation'!BU65 ->  | GH67: ='Points Calculation'!BX65 -> 166.36
A68: Toby Tarrant | B68: M | C68: 1997 | D68: =INDEX('Age Calculation'!$A$1:'Age Calculation'!$Q$108,MATCH(C68,'Age Calculation'!$A$1:'Age Calculation'!$A$108),MATCH($A$1,'Age Calculation'!$A$1:'Age Calculation'!$Q$1)) -> U18 | E68: 21550 | G68: =VLOOKUP(E68,'Start of Year Points'!A$2:I$62,9,FALSE) -> 186.2 | H68: =VLOOKUP(E68,'Start of Year Points'!A$2:L$62,12,FALSE) -> 186.2 | I68: =VLOOKUP(E68,'Start of Year Points'!A$2:L$62,11,FALSE) -> 186.2 | J68: 186.2 | K68: 186.2 | L68: 135.63 | M68: 186.2 | O68: 135.63 | P68: 186.2 | Q68: ='Points Calculation'!$BO66 -> 135.63 | R68: ='Points Calculation'!$BX66 -> 186.2 | T68: ='Points Calculation'!BQ66 -> 135.63 | U68: ='Points Calculation'!BZ66 -> 223.44 | W68: -50.57 | CJ68: 39 | CK68: 9 | CL68: 148.43 | CP68: 31 | CQ68: 8 | CR68: 122.83 | FK68: =SUM((Z$5:FG$5="Overall")*(Z68:FG68<=3))-SUM((Z$5:FG$5="Overall")*(Z68:FG68=0)) -> 0 | FL68: =SUM((AA$5:FJ$5="Age")*(AA68:FJ68<=3))-SUM((AA$5:FJ$5="Age")*(AA68:FJ68=0)) -> 0 | FN68: =IF(MIN('Points Calculation'!CU66,'Points Calculation'!CV66)>0,MIN('Points Calculation'!CU66,'Points Calculation'!CV66),"") ->  | FO68: =IF(MIN('Points Calculation'!BL66,'Points Calculation'!BN66)>0,MIN('Points Calculation'!BL66,'Points Calculation'!BN66),"") -> 135.63 | FR68: ='Points Calculation'!$BP66 -> 223.44 | FT68: =IF(MIN('Points Calculation'!CZ66,'Points Calculation'!DA66)>0,MIN('Points Calculation'!CZ66,'Points Calculation'!DA66),"") ->  | FU68: =IF(MIN('Points Calculation'!BU66,'Points Calculation'!BW66)>0,MIN('Points Calculation'!BU66,'Points Calculation'!BW66),"") ->  | FX68: ='Points Calculation'!$BP66 -> 223.44 | FZ68: ='Points Calculation'!BJ66 -> 122.83 | GA68: ='Points Calculation'!BK66 -> 148.43 | GB68: ='Points Calculation'!BL66 -> 135.63 | GC68: ='Points Calculation'!BO66 -> 135.63 | GE68: ='Points Calculation'!BS66 ->  | GF68: ='Points Calculation'!BT66 ->  | GG68: ='Points Calculation'!BU66 ->  | GH68: ='Points Calculation'!BX66 -> 186.2
A69: Thomas Upton | B69: M | C69: 2001 | D69: =INDEX('Age Calculation'!$A$1:'Age Calculation'!$Q$108,MATCH(C69,'Age Calculation'!$A$1:'Age Calculation'!$A$108),MATCH($A$1,'Age Calculation'!$A$1:'Age Calculation'!$Q$1)) -> U14 | E69: 21051 | G69: =VLOOKUP(E69,'Start of Year Points'!A$2:I$62,9,FALSE) -> 189.87 | H69: =VLOOKUP(E69,'Start of Year Points'!A$2:L$62,12,FALSE) -> 182.89 | I69: =VLOOKUP(E69,'Start of Year Points'!A$2:L$62,11,FALSE) -> 189.87 | J69: 126.27 | K69: 179.58 | L69: 123.67 | M69: 167.14 | O69: 117.2 | P69: 131.02 | Q69: ='Points Calculation'!$BO67 -> 104.95 | R69: ='Points Calculation'!$BX67 -> 121.49 | T69: ='Points Calculation'!BQ67 -> 104.95 | U69: ='Points Calculation'!BZ67 -> 121.49 | W69: -84.92 | X69: -68.38 | Z69: 9 | AA69: 6 | AB69: =73.48+102.43 -> 175.91 | AP69: 27 | AQ69: 5 | AR69: 115.46 | AS69: 21 | AT69: 4 | AU69: 141.08 | AV69: 59 | AW69: 15 | AX69: 235.1 | AY69: 35 | AZ69: 6 | BA69: 169.29 | BB69: 22 | BC69: 6 | BD69: 161.1 | BE69: 24 | BG69: 137.08 | BH69: DNF | BI69: DNF | BJ69: DNF | CF69: 43 | CG69: 15 | CH69: 164.99 | CI69: 240.44 | CJ69: 32 | CK69: 6 | CL69: 131.87 | CP69: 40 | CQ69: 7 | CR69: 140.7 | CS69: 39 | CT69: 3 | CU69: 125.83 | CV69: 35 | CW69: 6 | CX69: 118.93 | CY69: 22 | CZ69: 4 | DA69: 157.9 | DB69: 42 | DC69: 10 | DD69: 560.14 | DE69: 33 | DF69: 4 | DG69: 133.75 | DH69: 25 | DI69: 5 | DJ69: 126.84 | DK69: 24 | DL69: 5 | DM69: 141.73 | DN69: 23 | DO69: 4 | DP69: 135.2 | EE69: 40 | EF69: 4 | EG69: 99.17 | EH69: 41 | EI69: 11 | EJ69: 133.9 | EK69: 27 | EL69: 5 | EM69: 107.77 | EN69: 26 | EO69: 5 | EP69: 110.73 | EQ69: 33 | ER69: 7 | ES69: 168.8 | FK69: =SUM((Z$5:FG$5="Overall")*(Z69:FG69<=3))-SUM((Z$5:FG$5="Overall")*(Z69:FG69=0)) -> 0 | FL69: =SUM((AA$5:FJ$5="Age")*(AA69:FJ69<=3))-SUM((AA$5:FJ$5="Age")*(AA69:FJ69=0)) -> 1 | FN69: =IF(MIN('Points Calculation'!CU67,'Points Calculation'!CV67)>0,MIN('Points Calculation'!CU67,'Points Calculation'!CV67),"") -> 104.95 | FO69: =IF(MIN('Points Calculation'!BL67,'Points Calculation'!BN67)>0,MIN('Points Calculation'!BL67,'Points Calculation'!BN67),"") -> 104.95 | FP69: 0 | FQ69: 0 | FR69: ='Points Calculation'!$BP67 -> 227.84 | FT69: =IF(MIN('Points Calculation'!CZ67,'Points Calculation'!DA67)>0,MIN('Points Calculation'!CZ67,'Points Calculation'!DA67),"") -> 121.485 | FU69: =IF(MIN('Points Calculation'!BU67,'Points Calculation'!BW67)>0,MIN('Points Calculation'!BU67,'Points Calculation'!BW67),"") -> 121.49 | FV69: -0.005 | FW69: -4.115565067e-05 | FX69: ='Points Calculation'!$BP67 -> 227.84 | FZ69: ='Points Calculation'!BJ67 -> 99.17 | GA69: ='Points Calculation'!BK67 -> 110.73 | GB69: ='Points Calculation'!BL67 -> 104.95 | GC69: ='Points Calculation'!BO67 -> 104.95 | GE69: ='Points Calculation'!BS67 -> 107.77 | GF69: ='Points Calculation'!BT67 -> 135.2 | GG69: ='Points Calculation'!BU67 -> 121.49 | GH69: ='Points Calculation'!BX67 -> 121.49
A70: Edward Guy | B70: M | C70: 2001 | D70: =INDEX('Age Calculation'!$A$1:'Age Calculation'!$Q$108,MATCH(C70,'Age Calculation'!$A$1:'Age Calculation'!$A$108),MATCH($A$1,'Age Calculation'!$A$1:'Age Calculation'!$Q$1)) -> U14 | E70: 19379 | G70: =VLOOKUP(E70,'Start of Year Points'!A$2:I$62,9,FALSE) -> 238.89 | H70: =VLOOKUP(E70,'Start of Year Points'!A$2:L$62,12,FALSE) -> 238.89 | I70: =VLOOKUP(E70,'Start of Year Points'!A$2:L$62,11,FALSE) -> 238.89 | J70: 138.32 | K70: 238.89 | L70: 138.32 | M70: 238.89 | O70: 138.32 | P70: 238.89 | Q70: ='Points Calculation'!$BO68 -> 138.32 | R70: ='Points Calculation'!$BX68 -> 238.89 | T70: ='Points Calculation'!BQ68 -> 138.32 | U70: ='Points Calculation'!BZ68 -> 286.67 | W70: -100.57 | AP70: 29 | AQ70: 6 | AR70: 123.46 | AS70: DSQ | AT70: DSQ | AU70: DSQ | BB70: 21 | BC70: 5 | BD70: 153.17 | BE70: 28 | BG70: 154.11 | DB70: 37 | DC70: 7 | DD70: 172.45 | EE70: 57 | EF70: 8 | EG70: 158.15 | FK70: =SUM((Z$5:FG$5="Overall")*(Z70:FG70<=3))-SUM((Z$5:FG$5="Overall")*(Z70:FG70=0)) -> 0 | FL70: =SUM((AA$5:FJ$5="Age")*(AA70:FJ70<=3))-SUM((AA$5:FJ$5="Age")*(AA70:FJ70=0)) -> 0 | FN70: =IF(MIN('Points Calculation'!CU68,'Points Calculation'!CV68)>0,MIN('Points Calculation'!CU68,'Points Calculation'!CV68),"") -> 155.66 | FO70: =IF(MIN('Points Calculation'!BL68,'Points Calculation'!BN68)>0,MIN('Points Calculation'!BL68,'Points Calculation'!BN68),"") -> 138.32 | FP70: 17.34 | FQ70: 0.1253614806 | FR70: ='Points Calculation'!$BP68 -> 286.67 | FT70: =IF(MIN('Points Calculation'!CZ68,'Points Calculation'!DA68)>0,MIN('Points Calculation'!CZ68,'Points Calculation'!DA68),"") ->  | FU70: =IF(MIN('Points Calculation'!BU68,'Points Calculation'!BW68)>0,MIN('Points Calculation'!BU68,'Points Calculation'!BW68),"") ->  | FX70: ='Points Calculation'!$BP68 -> 286.67 | FZ70: ='Points Calculation'!BJ68 -> 123.46 | GA70: ='Points Calculation'!BK68 -> 153.17 | GB70: ='Points Calculation'!BL68 -> 138.32 | GC70: ='Points Calculation'!BO68 -> 138.32 | GE70: ='Points Calculation'!BS68 ->  | GF70: ='Points Calculation'!BT68 ->  | GG70: ='Points Calculation'!BU68 ->  | GH70: ='Points Calculation'!BX68 -> 238.89
A71: Samuel Doherty | B71: M | C71: 1999 | D71: =INDEX('Age Calculation'!$A$1:'Age Calculation'!$Q$108,MATCH(C71,'Age Calculation'!$A$1:'Age Calculation'!$A$108),MATCH($A$1,'Age Calculation'!$A$1:'Age Calculation'!$Q$1)) -> U16 | E71: 19572 | G71: =VLOOKUP(E71,'Start of Year Points'!A$2:I$62,9,FALSE) -> 257.09 | H71: =VLOOKUP(E71,'Start of Year Points'!A$2:L$62,12,FALSE) -> 257.09 | I71: =VLOOKUP(E71,'Start of Year Points'!A$2:L$62,11,FALSE) -> 257.09 | J71: 257.09 | K71: 257.09 | L71: 257.09 | M71: 257.09 | O71: 257.09 | P71: 257.09 | Q71: ='Points Calculation'!$BO69 -> 257.09 | R71: ='Points Calculation'!$BX69 -> 257.09 | T71: ='Points Calculation'!BQ69 -> 308.51 | U71: ='Points Calculation'!BZ69 -> 308.51 | FK71: =SUM((Z$5:FG$5="Overall")*(Z71:FG71<=3))-SUM((Z$5:FG$5="Overall")*(Z71:FG71=0)) -> 0 | FL71: =SUM((AA$5:FJ$5="Age")*(AA71:FJ71<=3))-SUM((AA$5:FJ$5="Age")*(AA71:FJ71=0)) -> 0 | FN71: =IF(MIN('Points Calculation'!CU69,'Points Calculation'!CV69)>0,MIN('Points Calculation'!CU69,'Points Calculation'!CV69),"") ->  | FO71: =IF(MIN('Points Calculation'!BL69,'Points Calculation'!BN69)>0,MIN('Points Calculation'!BL69,'Points Calculation'!BN69),"") ->  | FR71: ='Points Calculation'!$BP69 -> 308.51 | FT71: =IF(MIN('Points Calculation'!CZ69,'Points Calculation'!DA69)>0,MIN('Points Calculation'!CZ69,'Points Calculation'!DA69),"") ->  | FU71: =IF(MIN('Points Calculation'!BU69,'Points Calculation'!BW69)>0,MIN('Points Calculation'!BU69,'Points Calculation'!BW69),"") ->  | FX71: ='Points Calculation'!$BP69 -> 308.51 | FZ71: ='Points Calculation'!BJ69 ->  | GA71: ='Points Calculation'!BK69 ->  | GB71: ='Points Calculation'!BL69 ->  | GC71: ='Points Calculation'!BO69 -> 257.09 | GE71: ='Points Calculation'!BS69 ->  | GF71: ='Points Calculation'!BT69 ->  | GG71: ='Points Calculation'!BU69 ->  | GH71: ='Points Calculation'!BX69 -> 257.09
A72: Karl Hancock | B72: M | C72: 1995 | D72: =INDEX('Age Calculation'!$A$1:'Age Calculation'!$Q$108,MATCH(C72,'Age Calculation'!$A$1:'Age Calculation'!$A$108),MATCH($A$1,'Age Calculation'!$A$1:'Age Calculation'!$Q$1)) -> U21 | E72: 18616 | G72: =VLOOKUP(E72,'Start of Year Points'!A$2:I$62,9,FALSE) -> 259.37 | H72: =VLOOKUP(E72,'Start of Year Points'!A$2:L$62,12,FALSE) -> 259.37 | I72: =VLOOKUP(E72,'Start of Year Points'!A$2:L$62,11,FALSE) -> 259.37 | J72: 259.37 | K72: 259.37 | L72: 259.37 | M72: 203.44 | O72: 259.37 | P72: 203.44 | Q72: ='Points Calculation'!$BO70 -> 259.37 | R72: ='Points Calculation'!$BX70 -> 203.44 | T72: ='Points Calculation'!BQ70 -> 311.24 | U72: ='Points Calculation'!BZ70 -> 203.44 | X72: -55.93 | CM72: 25 | CN72: 4 | CO72: 169.53 | FK72: =SUM((Z$5:FG$5="Overall")*(Z72:FG72<=3))-SUM((Z$5:FG$5="Overall")*(Z72:FG72=0)) -> 0 | FL72: =SUM((AA$5:FJ$5="Age")*(AA72:FJ72<=3))-SUM((AA$5:FJ$5="Age")*(AA72:FJ72=0)) -> 0 | FN72: =IF(MIN('Points Calculation'!CU70,'Points Calculation'!CV70)>0,MIN('Points Calculation'!CU70,'Points Calculation'!CV70),"") ->  | FO72: =IF(MIN('Points Calculation'!BL70,'Points Calculation'!BN70)>0,MIN('Points Calculation'!BL70,'Points Calculation'!BN70),"") ->  | FR72: ='Points Calculation'!$BP70 -> 311.24 | FT72: =IF(MIN('Points Calculation'!CZ70,'Points Calculation'!DA70)>0,MIN('Points Calculation'!CZ70,'Points Calculation'!DA70),"") -> 203.436 | FU72: =IF(MIN('Points Calculation'!BU70,'Points Calculation'!BW70)>0,MIN('Points Calculation'!BU70,'Points Calculation'!BW70),"") -> 203.44 | FV72: -0.004 | FW72: -1.966181675e-05 | FX72: ='Points Calculation'!$BP70 -> 311.24 | FZ72: ='Points Calculation'!BJ70 ->  | GA72: ='Points Calculation'!BK70 ->  | GB72: ='Points Calculation'!BL70 ->  | GC72: ='Points Calculation'!BO70 -> 259.37 | GE72: ='Points Calculation'!BS70 -> 169.53 | GF72: ='Points Calculation'!BT70 ->  | GG72: ='Points Calculation'!BU70 ->  | GH72: ='Points Calculation'!BX70 -> 203.44
A73: John Elgy | B73: M | C73: 1951 | D73: =INDEX('Age Calculation'!$A$1:'Age Calculation'!$Q$108,MATCH(C73,'Age Calculation'!$A$1:'Age Calculation'!$A$108),MATCH($A$1,'Age Calculation'!$A$1:'Age Calculation'!$Q$1)) -> MAS | E73: 19164 | G73: =VLOOKUP(E73,'Start of Year Points'!A$2:I$62,9,FALSE) -> 332.56 | H73: =VLOOKUP(E73,'Start of Year Points'!A$2:L$62,12,FALSE) -> 332.56 | I73: =VLOOKUP(E73,'Start of Year Points'!A$2:L$62,11,FALSE) -> 332.56 | J73: 332.56 | K73: 332.56 | L73: 332.56 | M73: 332.56 | O73: 332.56 | P73: 332.56 | Q73: ='Points Calculation'!$BO71 -> 332.56 | R73: ='Points Calculation'!$BX71 -> 332.56 | T73: ='Points Calculation'!BQ71 -> 399.07 | U73: ='Points Calculation'!BZ71 -> 399.07 | FK73: =SUM((Z$5:FG$5="Overall")*(Z73:FG73<=3))-SUM((Z$5:FG$5="Overall")*(Z73:FG73=0)) -> 0 | FL73: =SUM((AA$5:FJ$5="Age")*(AA73:FJ73<=3))-SUM((AA$5:FJ$5="Age")*(AA73:FJ73=0)) -> 0 | FN73: =IF(MIN('Points Calculation'!CU71,'Points Calculation'!CV71)>0,MIN('Points Calculation'!CU71,'Points Calculation'!CV71),"") ->  | FO73: =IF(MIN('Points Calculation'!BL71,'Points Calculation'!BN71)>0,MIN('Points Calculation'!BL71,'Points Calculation'!BN71),"") ->  | FR73: ='Points Calculation'!$BP71 -> 399.07 | FT73: =IF(MIN('Points Calculation'!CZ71,'Points Calculation'!DA71)>0,MIN('Points Calculation'!CZ71,'Points Calculation'!DA71),"") ->  | FU73: =IF(MIN('Points Calculation'!BU71,'Points Calculation'!BW71)>0,MIN('Points Calculation'!BU71,'Points Calculation'!BW71),"") ->  | FX73: ='Points Calculation'!$BP71 -> 399.07 | FZ73: ='Points Calculation'!BJ71 ->  | GA73: ='Points Calculation'!BK71 ->  | GB73: ='Points Calculation'!BL71 ->  | GC73: ='Points Calculation'!BO71 -> 332.56 | GE73: ='Points Calculation'!BS71 ->  | GF73: ='Points Calculation'!BT71 ->  | GG73: ='Points Calculation'!BU71 ->  | GH73: ='Points Calculation'!BX71 -> 332.56
A74: Matthew Kirkland | B74: M | C74: 1992 | D74: =INDEX('Age Calculation'!$A$1:'Age Calculation'!$Q$108,MATCH(C74,'Age Calculation'!$A$1:'Age Calculation'!$A$108),MATCH($A$1,'Age Calculation'!$A$1:'Age Calculation'!$Q$1)) -> SEN | E74: 21633 | G74: =VLOOKUP(E74,'Start of Year Points'!A$2:I$62,9,FALSE) -> 345.98 | H74: =VLOOKUP(E74,'Start of Year Points'!A$2:L$62,12,FALSE) -> 345.98 | I74: =VLOOKUP(E74,'Start of Year Points'!A$2:L$62,11,FALSE) -> 345.98 | J74: 345.98 | K74: 345.98 | L74: 345.98 | M74: 345.98 | O74: 345.98 | P74: 345.98 | Q74: ='Points Calculation'!$BO72 -> 345.98 | R74: ='Points Calculation'!$BX72 -> 345.98 | T74: ='Points Calculation'!BQ72 -> 415.18 | U74: ='Points Calculation'!BZ72 -> 415.18 | FK74: =SUM((Z$5:FG$5="Overall")*(Z74:FG74<=3))-SUM((Z$5:FG$5="Overall")*(Z74:FG74=0)) -> 0 | FL74: =SUM((AA$5:FJ$5="Age")*(AA74:FJ74<=3))-SUM((AA$5:FJ$5="Age")*(AA74:FJ74=0)) -> 0 | FN74: =IF(MIN('Points Calculation'!CU72,'Points Calculation'!CV72)>0,MIN('Points Calculation'!CU72,'Points Calculation'!CV72),"") ->  | FO74: =IF(MIN('Points Calculation'!BL72,'Points Calculation'!BN72)>0,MIN('Points Calculation'!BL72,'Points Calculation'!BN72),"") ->  | FR74: ='Points Calculation'!$BP72 -> 415.18 | FT74: =IF(MIN('Points Calculation'!CZ72,'Points Calculation'!DA72)>0,MIN('Points Calculation'!CZ72,'Points Calculation'!DA72),"") ->  | FU74: =IF(MIN('Points Calculation'!BU72,'Points Calculation'!BW72)>0,MIN('Points Calculation'!BU72,'Points Calculation'!BW72),"") ->  | FX74: ='Points Calculation'!$BP72 -> 415.18 | FZ74: ='Points Calculation'!BJ72 ->  | GA74: ='Points Calculation'!BK72 ->  | GB74: ='Points Calculation'!BL72 ->  | GC74: ='Points Calculation'!BO72 -> 345.98 | GE74: ='Points Calculation'!BS72 ->  | GF74: ='Points Calculation'!BT72 ->  | GG74: ='Points Calculation'!BU72 ->  | GH74: ='Points Calculation'!BX72 -> 345.98
A75: Phil Deller | B75: M | C75: 1959 | D75: =INDEX('Age Calculation'!$A$1:'Age Calculation'!$Q$108,MATCH(C75,'Age Calculation'!$A$1:'Age Calculation'!$A$108),MATCH($A$1,'Age Calculation'!$A$1:'Age Calculation'!$Q$1)) -> MAS | E75: 17039 | G75: =VLOOKUP(E75,'Start of Year Points'!A$2:I$62,9,FALSE) -> 780.34 | H75: =VLOOKUP(E75,'Start of Year Points'!A$2:L$62,12,FALSE) -> 780.34 | I75: =VLOOKUP(E75,'Start of Year Points'!A$2:L$62,11,FALSE) -> 780.34 | J75: 780.34 | K75: 780.34 | L75: 780.34 | M75: 780.34 | O75: 780.34 | P75: 780.34 | Q75: ='Points Calculation'!$BO73 -> 780.34 | R75: ='Points Calculation'!$BX73 -> 780.34 | T75: ='Points Calculation'!BQ73 -> 936.41 | U75: ='Points Calculation'!BZ73 -> 936.41 | FK75: =SUM((Z$5:FG$5="Overall")*(Z75:FG75<=3))-SUM((Z$5:FG$5="Overall")*(Z75:FG75=0)) -> 0 | FL75: =SUM((AA$5:FJ$5="Age")*(AA75:FJ75<=3))-SUM((AA$5:FJ$5="Age")*(AA75:FJ75=0)) -> 0 | FN75: =IF(MIN('Points Calculation'!CU73,'Points Calculation'!CV73)>0,MIN('Points Calculation'!CU73,'Points Calculation'!CV73),"") ->  | FO75: =IF(MIN('Points Calculation'!BL73,'Points Calculation'!BN73)>0,MIN('Points Calculation'!BL73,'Points Calculation'!BN73),"") ->  | FR75: ='Points Calculation'!$BP73 -> 936.41 | FT75: =IF(MIN('Points Calculation'!CZ73,'Points Calculation'!DA73)>0,MIN('Points Calculation'!CZ73,'Points Calculation'!DA73),"") ->  | FU75: =IF(MIN('Points Calculation'!BU73,'Points Calculation'!BW73)>0,MIN('Points Calculation'!BU73,'Points Calculation'!BW73),"") ->  | FX75: ='Points Calculation'!$BP73 -> 936.41 | FZ75: ='Points Calculation'!BJ73 ->  | GA75: ='Points Calculation'!BK73 ->  | GB75: ='Points Calculation'!BL73 ->  | GC75: ='Points Calculation'!BO73 -> 780.34 | GE75: ='Points Calculation'!BS73 ->  | GF75: ='Points Calculation'!BT73 ->  | GG75: ='Points Calculation'!BU73 ->  | GH75: ='Points Calculation'!BX73 -> 780.34
A76: David Hancock | B76: M | C76: 1964 | D76: =INDEX('Age Calculation'!$A$1:'Age Calculation'!$Q$108,MATCH(C76,'Age Calculation'!$A$1:'Age Calculation'!$A$108),MATCH($A$1,'Age Calculation'!$A$1:'Age Calculation'!$Q$1)) -> MAS | E76: 17037 | G76: =VLOOKUP(E76,'Start of Year Points'!A$2:I$62,9,FALSE) -> 999.99 | H76: =VLOOKUP(E76,'Start of Year Points'!A$2:L$62,12,FALSE) -> 999.99 | I76: =VLOOKUP(E76,'Start of Year Points'!A$2:L$62,11,FALSE) -> 999.99 | J76: 999.99 | K76: 999.99 | L76: 999.99 | M76: 999.99 | O76: 999.99 | P76: 999.99 | Q76: ='Points Calculation'!$BO74 -> 999.99 | R76: ='Points Calculation'!$BX74 -> 999.99 | T76: ='Points Calculation'!BQ74 -> 999.99 | U76: ='Points Calculation'!BZ74 -> 999.99 | FK76: =SUM((Z$5:FG$5="Overall")*(Z76:FG76<=3))-SUM((Z$5:FG$5="Overall")*(Z76:FG76=0)) -> 0 | FL76: =SUM((AA$5:FJ$5="Age")*(AA76:FJ76<=3))-SUM((AA$5:FJ$5="Age")*(AA76:FJ76=0)) -> 0 | FN76: =IF(MIN('Points Calculation'!CU74,'Points Calculation'!CV74)>0,MIN('Points Calculation'!CU74,'Points Calculation'!CV74),"") ->  | FO76: =IF(MIN('Points Calculation'!BL74,'Points Calculation'!BN74)>0,MIN('Points Calculation'!BL74,'Points Calculation'!BN74),"") ->  | FR76: ='Points Calculation'!$BP74 -> 999.99 | FT76: =IF(MIN('Points Calculation'!CZ74,'Points Calculation'!DA74)>0,MIN('Points Calculation'!CZ74,'Points Calculation'!DA74),"") ->  | FU76: =IF(MIN('Points Calculation'!BU74,'Points Calculation'!BW74)>0,MIN('Points Calculation'!BU74,'Points Calculation'!BW74),"") ->  | FX76: ='Points Calculation'!$BP74 -> 999.99 | FZ76: ='Points Calculation'!BJ74 ->  | GA76: ='Points Calculation'!BK74 ->  | GB76: ='Points Calculation'!BL74 ->  | GC76: ='Points Calculation'!BO74 -> 999.99 | GE76: ='Points Calculation'!BS74 ->  | GF76: ='Points Calculation'!BT74 ->  | GG76: ='Points Calculation'!BU74 ->  | GH76: ='Points Calculation'!BX74 -> 999.99
A77: Joe Bird | B77: M | C77: 1994 | D77: =INDEX('Age Calculation'!$A$1:'Age Calculation'!$Q$108,MATCH(C77,'Age Calculation'!$A$1:'Age Calculation'!$A$108),MATCH($A$1,'Age Calculation'!$A$1:'Age Calculation'!$Q$1)) -> U21 | E77: 21714 | G77: =VLOOKUP(E77,'Start of Year Points'!A$2:I$62,9,FALSE) -> 999.99 | H77: =VLOOKUP(E77,'Start of Year Points'!A$2:L$62,12,FALSE) -> 999.99 | I77: =VLOOKUP(E77,'Start of Year Points'!A$2:L$62,11,FALSE) -> 999.99 | O77: 999.99 | P77: 999.99 | Q77: ='Points Calculation'!$BO75 -> 999.99 | R77: ='Points Calculation'!$BX75 -> 999.99 | T77: ='Points Calculation'!BQ75 -> 999.99 | U77: ='Points Calculation'!BZ75 -> 999.99 | FK77: =SUM((Z$5:FG$5="Overall")*(Z77:FG77<=3))-SUM((Z$5:FG$5="Overall")*(Z77:FG77=0)) -> 0 | FL77: =SUM((AA$5:FJ$5="Age")*(AA77:FJ77<=3))-SUM((AA$5:FJ$5="Age")*(AA77:FJ77=0)) -> 0 | FN77: =IF(MIN('Points Calculation'!CU75,'Points Calculation'!CV75)>0,MIN('Points Calculation'!CU75,'Points Calculation'!CV75),"") ->  | FO77: =IF(MIN('Points Calculation'!BL75,'Points Calculation'!BN75)>0,MIN('Points Calculation'!BL75,'Points Calculation'!BN75),"") ->  | FR77: ='Points Calculation'!$BP75 -> 999.99 | FT77: =IF(MIN('Points Calculation'!CZ75,'Points Calculation'!DA75)>0,MIN('Points Calculation'!CZ75,'Points Calculation'!DA75),"") ->  | FU77: =IF(MIN('Points Calculation'!BU75,'Points Calculation'!BW75)>0,MIN('Points Calculation'!BU75,'Points Calculation'!BW75),"") ->  | FX77: ='Points Calculation'!$BP75 -> 999.99 | FZ77: ='Points Calculation'!BJ75 ->  | GA77: ='Points Calculation'!BK75 ->  | GB77: ='Points Calculation'!BL75 ->  | GC77: ='Points Calculation'!BO75 -> 999.99 | GE77: ='Points Calculation'!BS75 ->  | GF77: ='Points Calculation'!BT75 ->  | GG77: ='Points Calculation'!BU75 ->  | GH77: ='Points Calculation'!BX75 -> 999.99
A78: Jake Heard | B78: M | C78: 1998 | D78: =INDEX('Age Calculation'!$A$1:'Age Calculation'!$Q$108,MATCH(C78,'Age Calculation'!$A$1:'Age Calculation'!$A$108),MATCH($A$1,'Age Calculation'!$A$1:'Age Calculation'!$Q$1)) -> U18 | E78: 21075 | G78: =VLOOKUP(E78,'Start of Year Points'!A$2:I$62,9,FALSE) -> 999.99 | H78: =VLOOKUP(E78,'Start of Year Points'!A$2:L$62,12,FALSE) -> 999.99 | I78: =VLOOKUP(E78,'Start of Year Points'!A$2:L$62,11,FALSE) -> 999.99 | J78: 999.99 | K78: 999.99 | L78: 999.99 | M78: 999.99 | O78: 999.99 | P78: 999.99 | Q78: ='Points Calculation'!$BO76 -> 999.99 | R78: ='Points Calculation'!$BX76 -> 999.99 | T78: ='Points Calculation'!BQ76 -> 999.99 | U78: ='Points Calculation'!BZ76 -> 999.99 | FK78: =SUM((Z$5:FG$5="Overall")*(Z78:FG78<=3))-SUM((Z$5:FG$5="Overall")*(Z78:FG78=0)) -> 0 | FL78: =SUM((AA$5:FJ$5="Age")*(AA78:FJ78<=3))-SUM((AA$5:FJ$5="Age")*(AA78:FJ78=0)) -> 0 | FN78: =IF(MIN('Points Calculation'!CU76,'Points Calculation'!CV76)>0,MIN('Points Calculation'!CU76,'Points Calculation'!CV76),"") ->  | FO78: =IF(MIN('Points Calculation'!BL76,'Points Calculation'!BN76)>0,MIN('Points Calculation'!BL76,'Points Calculation'!BN76),"") ->  | FR78: ='Points Calculation'!$BP76 -> 999.99 | FT78: =IF(MIN('Points Calculation'!CZ76,'Points Calculation'!DA76)>0,MIN('Points Calculation'!CZ76,'Points Calculation'!DA76),"") ->  | FU78: =IF(MIN('Points Calculation'!BU76,'Points Calculation'!BW76)>0,MIN('Points Calculation'!BU76,'Points Calculation'!BW76),"") ->  | FX78: ='Points Calculation'!$BP76 -> 999.99 | FZ78: ='Points Calculation'!BJ76 ->  | GA78: ='Points Calculation'!BK76 ->  | GB78: ='Points Calculation'!BL76 ->  | GC78: ='Points Calculation'!BO76 -> 999.99 | GE78: ='Points Calculation'!BS76 ->  | GF78: ='Points Calculation'!BT76 ->  | GG78: ='Points Calculation'!BU76 ->  | GH78: ='Points Calculation'!BX76 -> 999.99
A79: James Care | B79: M | C79: 2002 | D79: =INDEX('Age Calculation'!$A$1:'Age Calculation'!$Q$108,MATCH(C79,'Age Calculation'!$A$1:'Age Calculation'!$A$108),MATCH($A$1,'Age Calculation'!$A$1:'Age Calculation'!$Q$1)) -> U14 | E79: 20590 | G79: =VLOOKUP(E79,'Start of Year Points'!A$2:I$62,9,FALSE) -> 999.99 | H79: =VLOOKUP(E79,'Start of Year Points'!A$2:L$62,12,FALSE) -> 398.04 | I79: =VLOOKUP(E79,'Start of Year Points'!A$2:L$62,11,FALSE) -> 999.99 | J79: 398.04 | K79: 999.99 | L79: 398.04 | M79: 999.99 | O79: 342.97 | P79: 999.99 | Q79: ='Points Calculation'!$BO77 -> 342.97 | R79: ='Points Calculation'!$BX77 -> 999.99 | T79: ='Points Calculation'!BQ77 -> 342.97 | U79: ='Points Calculation'!BZ77 -> 999.99 | Z79: 21 | AA79: 14 | AB79: =229.27+102.43 -> 331.7 | CY79: 37 | CZ79: 13 | DA79: 354.23 | FK79: =SUM((Z$5:FG$5="Overall")*(Z79:FG79<=3))-SUM((Z$5:FG$5="Overall")*(Z79:FG79=0)) -> 0 | FL79: =SUM((AA$5:FJ$5="Age")*(AA79:FJ79<=3))-SUM((AA$5:FJ$5="Age")*(AA79:FJ79=0)) -> 0 | FN79: =IF(MIN('Points Calculation'!CU77,'Points Calculation'!CV77)>0,MIN('Points Calculation'!CU77,'Points Calculation'!CV77),"") ->  | FO79: =IF(MIN('Points Calculation'!BL77,'Points Calculation'!BN77)>0,MIN('Points Calculation'!BL77,'Points Calculation'!BN77),"") -> 342.97 | FR79: ='Points Calculation'!$BP77 -> 999.99 | FT79: =IF(MIN('Points Calculation'!CZ77,'Points Calculation'!DA77)>0,MIN('Points Calculation'!CZ77,'Points Calculation'!DA77),"") ->  | FU79: =IF(MIN('Points Calculation'!BU77,'Points Calculation'!BW77)>0,MIN('Points Calculation'!BU77,'Points Calculation'!BW77),"") ->  | FX79: ='Points Calculation'!$BP77 -> 999.99 | FZ79: ='Points Calculation'!BJ77 -> 331.7 | GA79: ='Points Calculation'!BK77 -> 354.23 | GB79: ='Points Calculation'!BL77 -> 342.97 | GC79: ='Points Calculation'!BO77 -> 342.97 | GE79: ='Points Calculation'!BS77 ->  | GF79: ='Points Calculation'!BT77 ->  | GG79: ='Points Calculation'!BU77 ->  | GH79: ='Points Calculation'!BX77 -> 999.99
A80: Seamus O'Brien | B80: M | C80: 2002 | D80: =INDEX('Age Calculation'!$A$1:'Age Calculation'!$Q$108,MATCH(C80,'Age Calculation'!$A$1:'Age Calculation'!$A$108),MATCH($A$1,'Age Calculation'!$A$1:'Age Calculation'!$Q$1)) -> U14 | E80: 19737 | G80: =VLOOKUP(E80,'Start of Year Points'!A$2:I$62,9,FALSE) -> 999.99 | H80: =VLOOKUP(E80,'Start of Year Points'!A$2:L$62,12,FALSE) -> 999.99 | I80: =VLOOKUP(E80,'Start of Year Points'!A$2:L$62,11,FALSE) -> 185.65 | J80: 999.99 | K80: 142.41 | L80: 999.99 | M80: 122.26 | O80: 999.99 | P80: 110.43 | Q80: ='Points Calculation'!$BO78 -> 999.99 | R80: ='Points Calculation'!$BX78 -> 99.19 | T80: ='Points Calculation'!BQ78 -> 999.99 | U80: ='Points Calculation'!BZ78 -> 99.19 | AH80: 47 | AI80: 10 | AJ80: 201.14 | AK80: 201 | AL80: 37 | AM80: 6 | AN80: 154.71 | AO80: 158.47 | AV80: 37 | AW80: 4 | AX80: 130.11 | AY80: DNF | AZ80: DNF | BA80: DNF | CF80: 21 | CG80: 5 | CH80: 114.4 | CI80: 115.54 | DK80: 18 | DL80: 2 | DM80: 114.08 | DN80: 15 | DO80: 2 | DP80: 106.46 | EH80: 26 | EI80: 4 | EJ80: 91.92 | EK80: 45 | EL80: 15 | EM80: 167.19 | FK80: =SUM((Z$5:FG$5="Overall")*(Z80:FG80<=3))-SUM((Z$5:FG$5="Overall")*(Z80:FG80=0)) -> 0 | FL80: =SUM((AA$5:FJ$5="Age")*(AA80:FJ80<=3))-SUM((AA$5:FJ$5="Age")*(AA80:FJ80=0)) -> 2 | FN80: =IF(MIN('Points Calculation'!CU78,'Points Calculation'!CV78)>0,MIN('Points Calculation'!CU78,'Points Calculation'!CV78),"") ->  | FO80: =IF(MIN('Points Calculation'!BL78,'Points Calculation'!BN78)>0,MIN('Points Calculation'!BL78,'Points Calculation'!BN78),"") ->  | FR80: ='Points Calculation'!$BP78 -> 999.99 | FT80: =IF(MIN('Points Calculation'!CZ78,'Points Calculation'!DA78)>0,MIN('Points Calculation'!CZ78,'Points Calculation'!DA78),"") -> 99.19 | FU80: =IF(MIN('Points Calculation'!BU78,'Points Calculation'!BW78)>0,MIN('Points Calculation'!BU78,'Points Calculation'!BW78),"") -> 99.19 | FV80: 0 | FW80: 0 | FX80: ='Points Calculation'!$BP78 -> 999.99 | FZ80: ='Points Calculation'!BJ78 ->  | GA80: ='Points Calculation'!BK78 ->  | GB80: ='Points Calculation'!BL78 ->  | GC80: ='Points Calculation'!BO78 -> 999.99 | GE80: ='Points Calculation'!BS78 -> 91.92 | GF80: ='Points Calculation'!BT78 -> 106.46 | GG80: ='Points Calculation'!BU78 -> 99.19 | GH80: ='Points Calculation'!BX78 -> 99.19
A81: Matthew Treuge | B81: M | C81: 2002 | D81: =INDEX('Age Calculation'!$A$1:'Age Calculation'!$Q$108,MATCH(C81,'Age Calculation'!$A$1:'Age Calculation'!$A$108),MATCH($A$1,'Age Calculation'!$A$1:'Age Calculation'!$Q$1)) -> U14 | E81: 20670 | G81: =VLOOKUP(E81,'Start of Year Points'!A$2:I$62,9,FALSE) -> 999.99 | H81: =VLOOKUP(E81,'Start of Year Points'!A$2:L$62,12,FALSE) -> 999.99 | I81: =VLOOKUP(E81,'Start of Year Points'!A$2:L$62,11,FALSE) -> 999.99 | J81: 999.99 | K81: 999.99 | L81: 999.99 | M81: 999.99 | O81: 307.82 | P81: 999.99 | Q81: ='Points Calculation'!$BO79 -> 307.82 | R81: ='Points Calculation'!$BX79 -> 999.99 | T81: ='Points Calculation'!BQ79 -> 307.82 | U81: ='Points Calculation'!BZ79 -> 999.99 | CV81: 66 | CW81: 20 | CX81: 256.52 | FK81: =SUM((Z$5:FG$5="Overall")*(Z81:FG81<=3))-SUM((Z$5:FG$5="Overall")*(Z81:FG81=0)) -> 0 | FL81: =SUM((AA$5:FJ$5="Age")*(AA81:FJ81<=3))-SUM((AA$5:FJ$5="Age")*(AA81:FJ81=0)) -> 0 | FN81: =IF(MIN('Points Calculation'!CU79,'Points Calculation'!CV79)>0,MIN('Points Calculation'!CU79,'Points Calculation'!CV79),"") ->  | FO81: =IF(MIN('Points Calculation'!BL79,'Points Calculation'!BN79)>0,MIN('Points Calculation'!BL79,'Points Calculation'!BN79),"") -> 307.82 | FR81: ='Points Calculation'!$BP79 -> 999.99 | FT81: =IF(MIN('Points Calculation'!CZ79,'Points Calculation'!DA79)>0,MIN('Points Calculation'!CZ79,'Points Calculation'!DA79),"") ->  | FU81: =IF(MIN('Points Calculation'!BU79,'Points Calculation'!BW79)>0,MIN('Points Calculation'!BU79,'Points Calculation'!BW79),"") ->  | FX81: ='Points Calculation'!$BP79 -> 999.99 | FZ81: ='Points Calculation'!BJ79 -> 256.52 | GA81: ='Points Calculation'!BK79 ->  | GB81: ='Points Calculation'!BL79 ->  | GC81: ='Points Calculation'!BO79 -> 307.82 | GE81: ='Points Calculation'!BS79 ->  | GF81: ='Points Calculation'!BT79 ->  | GG81: ='Points Calculation'!BU79 ->  | GH81: ='Points Calculation'!BX79 -> 999.99
A82: JJ Frost | B82: M | C82: 1993 | D82: =INDEX('Age Calculation'!$A$1:'Age Calculation'!$Q$108,MATCH(C82,'Age Calculation'!$A$1:'Age Calculation'!$A$108),MATCH($A$1,'Age Calculation'!$A$1:'Age Calculation'!$Q$1)) -> SEN | E82: 20676 | G82: NR | H82: NR | I82: NR | O82: NR | P82: NR | Q82: NR | R82: NR | T82: NR | U82: NR | FK82: =SUM((Z$5:FG$5="Overall")*(Z82:FG82<=3))-SUM((Z$5:FG$5="Overall")*(Z82:FG82=0)) -> 0 | FL82: =SUM((AA$5:FJ$5="Age")*(AA82:FJ82<=3))-SUM((AA$5:FJ$5="Age")*(AA82:FJ82=0)) -> 0 | FN82: =IF(MIN('Points Calculation'!CU80,'Points Calculation'!CV80)>0,MIN('Points Calculation'!CU80,'Points Calculation'!CV80),"") ->  | FO82: =IF(MIN('Points Calculation'!BL80,'Points Calculation'!BN80)>0,MIN('Points Calculation'!BL80,'Points Calculation'!BN80),"") ->  | FT82: =IF(MIN('Points Calculation'!CZ80,'Points Calculation'!DA80)>0,MIN('Points Calculation'!CZ80,'Points Calculation'!DA80),"") ->  | FU82: =IF(MIN('Points Calculation'!BU80,'Points Calculation'!BW80)>0,MIN('Points Calculation'!BU80,'Points Calculation'!BW80),"") ->  | FZ82: ='Points Calculation'!BJ80 ->  | GA82: ='Points Calculation'!BK80 ->  | GB82: ='Points Calculation'!BL80 ->  | GE82: ='Points Calculation'!BS80 ->  | GF82: ='Points Calculation'!BT80 ->  | GG82: ='Points Calculation'!BU80 -> 
A83: Ben Hall | B83: M | C83: 1994 | D83: =INDEX('Age Calculation'!$A$1:'Age Calculation'!$Q$108,MATCH(C83,'Age Calculation'!$A$1:'Age Calculation'!$A$108),MATCH($A$1,'Age Calculation'!$A$1:'Age Calculation'!$Q$1)) -> U21 | E83: 21130 | G83: NR | H83: NR | I83: NR | O83: NR | P83: NR | Q83: NR | R83: NR | T83: NR | U83: NR | FK83: =SUM((Z$5:FG$5="Overall")*(Z83:FG83<=3))-SUM((Z$5:FG$5="Overall")*(Z83:FG83=0)) -> 0 | FL83: =SUM((AA$5:FJ$5="Age")*(AA83:FJ83<=3))-SUM((AA$5:FJ$5="Age")*(AA83:FJ83=0)) -> 0 | FN83: =IF(MIN('Points Calculation'!CU81,'Points Calculation'!CV81)>0,MIN('Points Calculation'!CU81,'Points Calculation'!CV81),"") ->  | FO83: =IF(MIN('Points Calculation'!BL81,'Points Calculation'!BN81)>0,MIN('Points Calculation'!BL81,'Points Calculation'!BN81),"") ->  | FT83: =IF(MIN('Points Calculation'!CZ81,'Points Calculation'!DA81)>0,MIN('Points Calculation'!CZ81,'Points Calculation'!DA81),"") ->  | FU83: =IF(MIN('Points Calculation'!BU81,'Points Calculation'!BW81)>0,MIN('Points Calculation'!BU81,'Points Calculation'!BW81),"") ->  | FZ83: ='Points Calculation'!BJ81 ->  | GA83: ='Points Calculation'!BK81 ->  | GB83: ='Points Calculation'!BL81 ->  | GE83: ='Points Calculation'!BS81 ->  | GF83: ='Points Calculation'!BT81 ->  | GG83: ='Points Calculation'!BU81 -> 
A84: Matthew Waller | B84: M | C84: 1999 | D84: =INDEX('Age Calculation'!$A$1:'Age Calculation'!$Q$108,MATCH(C84,'Age Calculation'!$A$1:'Age Calculation'!$A$108),MATCH($A$1,'Age Calculation'!$A$1:'Age Calculation'!$Q$1)) -> U16 | E84: 17958 | G84: NR | H84: NR | I84: NR | O84: NR | P84: NR | Q84: NR | R84: NR | T84: NR | U84: NR | FK84: =SUM((Z$5:FG$5="Overall")*(Z84:FG84<=3))-SUM((Z$5:FG$5="Overall")*(Z84:FG84=0)) -> 0 | FL84: =SUM((AA$5:FJ$5="Age")*(AA84:FJ84<=3))-SUM((AA$5:FJ$5="Age")*(AA84:FJ84=0)) -> 0 | FN84: =IF(MIN('Points Calculation'!CU82,'Points Calculation'!CV82)>0,MIN('Points Calculation'!CU82,'Points Calculation'!CV82),"") ->  | FO84: =IF(MIN('Points Calculation'!BL82,'Points Calculation'!BN82)>0,MIN('Points Calculation'!BL82,'Points Calculation'!BN82),"") ->  | FT84: =IF(MIN('Points Calculation'!CZ82,'Points Calculation'!DA82)>0,MIN('Points Calculation'!CZ82,'Points Calculation'!DA82),"") ->  | FU84: =IF(MIN('Points Calculation'!BU82,'Points Calculation'!BW82)>0,MIN('Points Calculation'!BU82,'Points Calculation'!BW82),"") ->  | FZ84: ='Points Calculation'!BJ82 ->  | GA84: ='Points Calculation'!BK82 ->  | GB84: ='Points Calculation'!BL82 ->  | GE84: ='Points Calculation'!BS82 ->  | GF84: ='Points Calculation'!BT82 ->  | GG84: ='Points Calculation'!BU82 -> 
A85: Patrick Kelly | B85: M | C85: 2000 | D85: U16 | E85: Day | G85: NR | H85: NR | I85: NR | J85: NR | K85: NR | L85: NR | M85: NR | O85: NR | P85: NR | Q85: NR | R85: NR | T85: NR | U85: NR | CS85: DNF | CT85: DNF | CU85: DNF | FK85: =SUM((Z$5:FG$5="Overall")*(Z85:FG85<=3))-SUM((Z$5:FG$5="Overall")*(Z85:FG85=0)) -> 0 | FL85: =SUM((AA$5:FJ$5="Age")*(AA85:FJ85<=3))-SUM((AA$5:FJ$5="Age")*(AA85:FJ85=0)) -> 0 | FN85: =IF(MIN('Points Calculation'!CU82,'Points Calculation'!CV82)>0,MIN('Points Calculation'!CU82,'Points Calculation'!CV82),"") ->  | FO85: =IF(MIN('Points Calculation'!BL82,'Points Calculation'!BN82)>0,MIN('Points Calculation'!BL82,'Points Calculation'!BN82),"") ->  | FP85: =IF(FN85<>"",FN85-FO85,"") ->  | FQ85: =IF(FN85<>"",FP85/FO85,"") ->  | FT85: =IF(MIN('Points Calculation'!CZ82,'Points Calculation'!DA82)>0,MIN('Points Calculation'!CZ82,'Points Calculation'!DA82),"") ->  | FU85: =IF(MIN('Points Calculation'!BU82,'Points Calculation'!BW82)>0,MIN('Points Calculation'!BU82,'Points Calculation'!BW82),"") ->  | FV85: =IF(FT85<>"",FT85-FU85,"") ->  | FW85: =IF(FT85<>"",FV85/FU85,"") ->  | FZ85: ='Points Calculation'!BJ82 ->  | GA85: ='Points Calculation'!BK82 ->  | GB85: ='Points Calculation'!BL82 ->  | GE85: ='Points Calculation'!BS82 ->  | GF85: ='Points Calculation'!BT82 ->  | GG85: ='Points Calculation'!BU82 -> 
A86: Macaulay Clover | B86: M | C86: 2002 | D86: =INDEX('Age Calculation'!$A$1:'Age Calculation'!$Q$108,MATCH(C86,'Age Calculation'!$A$1:'Age Calculation'!$A$108),MATCH($A$1,'Age Calculation'!$A$1:'Age Calculation'!$Q$1)) -> U14 | E86: Day | G86: NR | H86: NR | I86: NR | O86: NR | P86: NR | Q86: NR | R86: NR | T86: NR | U86: NR | W86: =IF(G86<999.99,IF(MIN(O86,L86)<G86,MIN(O86,L86)-G86,""),"") ->  | FK86: =SUM((Z$5:FG$5="Overall")*(Z86:FG86<=3))-SUM((Z$5:FG$5="Overall")*(Z86:FG86=0)) -> 0 | FL86: =SUM((AA$5:FJ$5="Age")*(AA86:FJ86<=3))-SUM((AA$5:FJ$5="Age")*(AA86:FJ86=0)) -> 0 | FN86: =IF(MIN('Points Calculation'!CU83,'Points Calculation'!CV83)>0,MIN('Points Calculation'!CU83,'Points Calculation'!CV83),"") ->  | FO86: =IF(MIN('Points Calculation'!BL83,'Points Calculation'!BN83)>0,MIN('Points Calculation'!BL83,'Points Calculation'!BN83),"") ->  | FT86: =IF(MIN('Points Calculation'!CZ83,'Points Calculation'!DA83)>0,MIN('Points Calculation'!CZ83,'Points Calculation'!DA83),"") ->  | FU86: =IF(MIN('Points Calculation'!BU83,'Points Calculation'!BW83)>0,MIN('Points Calculation'!BU83,'Points Calculation'!BW83),"") ->  | FZ86: ='Points Calculation'!BJ83 ->  | GA86: ='Points Calculation'!BK83 ->  | GB86: ='Points Calculation'!BL83 ->  | GE86: ='Points Calculation'!BS83 ->  | GF86: ='Points Calculation'!BT83 ->  | GG86: ='Points Calculation'!BU83 -> 
Y87: Podiums/ Participants | AD87: =COUNTA(AD8:AD86) -> 6 | AE87: =COUNTIF(AE22:AE86,"<=3") -> 2 | AF87: =COUNTIF(AF8:AF86,"<=3") -> 6 | AG87: =COUNTA(AG8:AG86) -> 10 | AH87: =COUNTIF(AH22:AH86,"<=3") -> 0 | AI87: =COUNTIF(AI8:AI86,"<=3") -> 2 | AJ87: =COUNTA(AJ8:AJ86) -> 5 | AK87: =COUNTA(AK8:AK86) -> 5 | AL87: =COUNTIF(AL22:AL86,"<=3") -> 0 | AM87: =COUNTIF(AM8:AM86,"<=3") -> 4 | AN87: =COUNTA(AN8:AN86) -> 5 | AO87: =COUNTA(AO8:AO86) -> 5 | AP87: =COUNTIF(AP22:AP86,"<=3") -> 1 | AQ87: =COUNTIF(AQ8:AQ86,"<=3") -> 7 | AR87: =COUNTA(AR8:AR86) -> 11 | AS87: =COUNTIF(AS22:AS86,"<=3") -> 0 | AT87: =COUNTIF(AT8:AT86,"<=3") -> 6 | AU87: =COUNTA(AU8:AU86) -> 12 | AV87: =COUNTIF(AV22:AV86,"<=3") -> 0 | AW87: =COUNTIF(AW8:AW86,"<=3") -> 3 | AX87: =COUNTA(AX8:AX86) -> 8 | AY87: =COUNTIF(AY22:AY86,"<=3") -> 0 | AZ87: =COUNTIF(AZ8:AZ86,"<=3") -> 4 | BA87: =COUNTA(BA8:BA86) -> 8 | BB87: =COUNTIF(BB22:BB86,"<=3") -> 0 | BC87: =COUNTIF(BC8:BC86,"<=3") -> 6 | BD87: =COUNTA(BD8:BD86) -> 13 | BE87: =COUNTIF(BE22:BE86,"<=3") -> 1 | BF87: =COUNTIF(BF8:BF86,"<=3") -> 6 | BG87: =COUNTA(BG8:BG86) -> 12 | BH87: =COUNTIF(BH22:BH86,"<=3") -> 0 | BI87: =COUNTIF(BI8:BI86,"<=3") -> 5 | BJ87: =COUNTA(BJ8:BJ86) -> 14 | BK87: =COUNTIF(BK22:BK86,"<=3") -> 0 | BL87: =COUNTIF(BL8:BL86,"<=3") -> 3 | BM87: =COUNTA(BM8:BM86) -> 7 | BN87: =COUNTIF(BN22:BN86,"<=3") -> 0 | BO87: =COUNTIF(BO8:BO86,"<=3") -> 0 | BP87: =COUNTA(BP8:BP86) -> 0 | BQ87: =COUNTIF(BQ22:BQ86,"<=3") -> 0 | BR87: =COUNTIF(BR8:BR86,"<=3") -> 3 | BS87: =COUNTA(BS8:BS86) -> 8 | BT87: =COUNTIF(BT22:BT86,"<=3") -> 0 | BU87: =COUNTIF(BU8:BU86,"<=3") -> 0 | BV87: =COUNTA(BV8:BV86) -> 0 | BW87: =COUNTIF(BW22:BW86,"<=3") -> 0 | BX87: =COUNTIF(BX8:BX86,"<=3") -> 2 | BY87: =COUNTA(BY8:BY86) -> 3 | BZ87: =COUNTIF(BZ22:BZ86,"<=3") -> 1 | CA87: =COUNTIF(CA8:CA86,"<=3") -> 5 | CB87: =COUNTA(CB8:CB86) -> 10 | CC87: =COUNTIF(CC22:CC86,"<=3") -> 0 | CD87: =COUNTIF(CD8:CD86,"<=3") -> 1 | CE87: =COUNTA(CE8:CE86) -> 3 | CF87: =COUNTIF(CF22:CF86,"<=3") -> 0 | CG87: =COUNTIF(CG8:CG86,"<=3") -> 1 | CH87: =COUNTA(CH8:CH86) -> 4 | CI87: =COUNTA(CI8:CI86) -> 4 | CJ87: =COUNTIF(CJ22:CJ86,"<=3") -> 1 | CK87: =COUNTIF(CK8:CK86,"<=3") -> 5 | CL87: =COUNTA(CL8:CL86) -> 13 | CM87: =COUNTIF(CM22:CM86,"<=3") -> 0 | CN87: =COUNTIF(CN8:CN86,"<=3") -> 2 | CO87: =COUNTA(CO8:CO86) -> 4 | CP87: =COUNTIF(CP22:CP86,"<=3") -> 1 | CQ87: =COUNTIF(CQ8:CQ86,"<=3") -> 5 | CR87: =COUNTA(CR8:CR86) -> 13 | CS87: =COUNTIF(CS22:CS86,"<=3") -> 0 | CT87: =COUNTIF(CT8:CT86,"<=3") -> 7 | CU87: =COUNT(CU8:CU86) -> 17 | CV87: =COUNTIF(CV22:CV86,"<=3") -> 2 | CW87: =COUNTIF(CW8:CW86,"<=3") -> 10 | CX87: =COUNT(CX8:CX86) -> 18 | CY87: =COUNTIF(CY22:CY86,"<=3") -> 0 | CZ87: =COUNTIF(CZ8:CZ86,"<=3") -> 3 | DA87: =COUNT(DA8:DA86) -> 8 | DB87: =COUNTIF(DB22:DB86,"<=3") -> 1 | DC87: =COUNTIF(DC8:DC86,"<=3") -> 7 | DD87: =COUNT(DD8:DD86) -> 14 | DE87: =COUNTIF(DE22:DE86,"<=3") -> 0 | DF87: =COUNTIF(DF8:DF86,"<=3") -> 3 | DG87: =COUNT(DG8:DG86) -> 4 | DH87: =COUNTIF(DH22:DH86,"<=3") -> 0 | DI87: =COUNTIF(DI8:DI86,"<=3") -> 3 | DJ87: =COUNT(DJ8:DJ86) -> 4 | DK87: =COUNTIF(DK22:DK86,"<=3") -> 0 | DL87: =COUNTIF(DL8:DL86,"<=3") -> 3 | DM87: =COUNT(DM8:DM86) -> 4 | DN87: =COUNTIF(DN22:DN86,"<=3") -> 0 | DO87: =COUNTIF(DO8:DO86,"<=3") -> 4 | DP87: =COUNT(DP8:DP86) -> 5 | DQ87: =COUNTIF(DQ22:DQ86,"<=3") -> 0 | DR87: =COUNTIF(DR8:DR86,"<=3") -> 6 | DS87: =COUNT(DS8:DS86) -> 8 | DT87: =COUNTIF(DT22:DT86,"<=3") -> 0 | DU87: =COUNTIF(DU8:DU86,"<=3") -> 2 | DV87: =COUNT(DV8:DV86) -> 5 | DW87: =COUNTIF(DW22:DW86,"<=3") -> 0 | DX87: =COUNTIF(DX8:DX86,"<=3") -> 2 | DY87: =COUNT(DY8:DY86) -> 4 | DZ87: =COUNTIF(DZ22:DZ86,"<=3") -> 0 | EA87: =COUNTIF(EA8:EA86,"<=3") -> 1 | EB87: =COUNT(EB8:EB86) -> 1 | EC87: =COUNTIF(EC22:EC86,"<=3") -> 0 | ED87: =COUNTIF(ED8:ED86,"<=3") -> 0 | EE87: =COUNTIF(EE22:EE86,"<=3") -> 0 | EF87: =COUNTIF(EF8:EF86,"<=3") -> 3 | EG87: =COUNT(EG8:EG86) -> 15 | EH87: =COUNTIF(EH22:EH86,"<=3") -> 0 | EI87: =COUNTIF(EI8:EI86,"<=3") -> 5 | EJ87: =COUNT(EJ8:EJ86) -> 8 | EK87: =COUNTIF(EK22:EK86,"<=3") -> 0 | EL87: =COUNTIF(EL8:EL86,"<=3") -> 3 | EM87: =COUNT(EM8:EM86) -> 7 | EN87: =COUNTIF(EN22:EN86,"<=3") -> 0 | EO87: =COUNTIF(EO8:EO86,"<=3") -> 2 | EP87: =COUNT(EP8:EP86) -> 9 | EQ87: =COUNTIF(EQ22:EQ86,"<=3") -> 0 | ER87: =COUNTIF(ER8:ER86,"<=3") -> 3 | ES87: =COUNT(ES8:ES86) -> 9 | ET87: =COUNTIF(ET22:ET86,"<=3") -> 0 | EU87: =COUNTIF(EU8:EU86,"<=3") -> 0 | EV87: =COUNT(EV8:EV86) -> 0 | EW87: =COUNTIF(EW22:EW86,"<=3") -> 0 | EX87: =COUNTIF(EX8:EX86,"<=3") -> 4 | EY87: =COUNT(EY8:EY86) -> 5 | EZ87: =COUNTIF(EZ22:EZ86,"<=3") -> 0 | FA87: =COUNTIF(FA8:FA86,"<=3") -> 0 | FB87: =COUNT(FB8:FB86) -> 0 | FC87: =COUNTIF(FC22:FC86,"<=3") -> 0 | FD87: =COUNTIF(FD8:FD86,"<=3") -> 0 | FE87: =COUNT(FE8:FE86) -> 0 | FF87: =COUNTIF(FF22:FF86,"<=3") -> 0 | FG87: =COUNTIF(FG8:FG86,"<=3") -> 0 | FH87: =COUNTIF(FH22:FH86,"<=3") -> 0 | FI87: =COUNT(FI8:FI86) -> 0 | FK87: =SUM(FK8:FK83) -> 11 | FL87: =SUM(FL8:FL83) -> 151
A89: Figures in red (outdoor) or blue (indoor) - used for current year seed point calculations
A90: Note: Final seed point list cannot use start of year in the calculation unless used alone | FK90: 5 point - only 2014 - 5 or zero point races
FK92: Start * - result based on start of season, x1.2 or +10
D95: Number of Registered Racers | E95: =COUNTIFS(G8:G86,">0") -> 65
D96: Number of Unregistered Racers | E96: =COUNTIF(G8:G86,"=NR") -> 11
G97: Number of Seeded Racers | H97: =COUNTIFS(H22:H86,">0") -> 53
E99: Number of Point Reductions | W99: =COUNTIF(W8:W86,"<0") -> 18 | X99: =COUNTIF(X8:X86,"<0") -> 5
A103: Data collection for club statistics sheet below:
E104: Mini Age 1st | Y104: =SUM(Z104:FH104) -> 28 | AA104: =COUNTIFS(AA$8:AA$86,"=1",$D$8:$D$86,"=U10")+COUNTIFS(AA$8:AA$86,"=1",$D$8:$D$86,"=U12") -> 1 | AF104: =COUNTIFS(AF$8:AF$86,"=1",$D$8:$D$86,"=U10")+COUNTIFS(AF$8:AF$86,"=1",$D$8:$D$86,"=U12") -> 0 | AI104: =COUNTIFS(AI$8:AI$86,"=1",$D$8:$D$86,"=U10")+COUNTIFS(AI$8:AI$86,"=1",$D$8:$D$86,"=U12") -> 1 | AM104: =COUNTIFS(AM$8:AM$86,"=1",$D$8:$D$86,"=U10")+COUNTIFS(AM$8:AM$86,"=1",$D$8:$D$86,"=U12") -> 2 | AQ104: =COUNTIFS(AQ$8:AQ$86,"=1",$D$8:$D$86,"=U10")+COUNTIFS(AQ$8:AQ$86,"=1",$D$8:$D$86,"=U12") -> 2 | AT104: =COUNTIFS(AT$8:AT$86,"=1",$D$8:$D$86,"=U10")+COUNTIFS(AT$8:AT$86,"=1",$D$8:$D$86,"=U12") -> 2 | AW104: =COUNTIFS(AW$8:AW$86,"=1",$D$8:$D$86,"=U10")+COUNTIFS(AW$8:AW$86,"=1",$D$8:$D$86,"=U12") -> 0 | AZ104: =COUNTIFS(AZ$8:AZ$86,"=1",$D$8:$D$86,"=U10")+COUNTIFS(AZ$8:AZ$86,"=1",$D$8:$D$86,"=U12") -> 0 | BC104: =COUNTIFS(BC$8:BC$86,"=1",$D$8:$D$86,"=U10")+COUNTIFS(BC$8:BC$86,"=1",$D$8:$D$86,"=U12") -> 1 | BF104: =COUNTIFS(BF$8:BF$86,"=1",$D$8:$D$86,"=U10")+COUNTIFS(BF$8:BF$86,"=1",$D$8:$D$86,"=U12") -> 2 | BI104: =COUNTIFS(BI$8:BI$86,"=1",$D$8:$D$86,"=U10")+COUNTIFS(BI$8:BI$86,"=1",$D$8:$D$86,"=U12") -> 0 | BL104: =COUNTIFS(BL$8:BL$86,"=1",$D$8:$D$86,"=U10")+COUNTIFS(BL$8:BL$86,"=1",$D$8:$D$86,"=U12") -> 0 | BO104: =COUNTIFS(BO$8:BO$86,"=1",$D$8:$D$86,"=U10")+COUNTIFS(BO$8:BO$86,"=1",$D$8:$D$86,"=U12") -> 0 | BR104: =COUNTIFS(BR$8:BR$86,"=1",$D$8:$D$86,"=U10")+COUNTIFS(BR$8:BR$86,"=1",$D$8:$D$86,"=U12") -> 0 | BU104: =COUNTIFS(BU$8:BU$86,"=1",$D$8:$D$86,"=U10")+COUNTIFS(BU$8:BU$86,"=1",$D$8:$D$86,"=U12") -> 0 | BX104: =COUNTIFS(BX$8:BX$86,"=1",$D$8:$D$86,"=U10")+COUNTIFS(BX$8:BX$86,"=1",$D$8:$D$86,"=U12") -> 1 | CA104: =COUNTIFS(CA$8:CA$86,"=1",$D$8:$D$86,"=U10")+COUNTIFS(CA$8:CA$86,"=1",$D$8:$D$86,"=U12") -> 1 | CD104: =COUNTIFS(CD$8:CD$86,"=1",$D$8:$D$86,"=U10")+COUNTIFS(CD$8:CD$86,"=1",$D$8:$D$86,"=U12") -> 0 | CG104: =COUNTIFS(CG$8:CG$86,"=1",$D$8:$D$86,"=U10")+COUNTIFS(CG$8:CG$86,"=1",$D$8:$D$86,"=U12") -> 1 | CK104: =COUNTIFS(CK$8:CK$86,"=1",$D$8:$D$86,"=U10")+COUNTIFS(CK$8:CK$86,"=1",$D$8:$D$86,"=U12") -> 1 | CN104: =COUNTIFS(CN$8:CN$86,"=1",$D$8:$D$86,"=U10")+COUNTIFS(CN$8:CN$86,"=1",$D$8:$D$86,"=U12") -> 0 | CQ104: =COUNTIFS(CQ$8:CQ$86,"=1",$D$8:$D$86,"=U10")+COUNTIFS(CQ$8:CQ$86,"=1",$D$8:$D$86,"=U12") -> 1 | CT104: =COUNTIFS(CT$8:CT$86,"=1",$D$8:$D$86,"=U10")+COUNTIFS(CT$8:CT$86,"=1",$D$8:$D$86,"=U12") -> 0 | CW104: =COUNTIFS(CW$8:CW$86,"=1",$D$8:$D$86,"=U10")+COUNTIFS(CW$8:CW$86,"=1",$D$8:$D$86,"=U12") -> 0 | CZ104: =COUNTIFS(CZ$8:CZ$86,"=1",$D$8:$D$86,"=U10")+COUNTIFS(CZ$8:CZ$86,"=1",$D$8:$D$86,"=U12") -> 1 | DC104: =COUNTIFS(DC$8:DC$86,"=1",$D$8:$D$86,"=U10")+COUNTIFS(DC$8:DC$86,"=1",$D$8:$D$86,"=U12") -> 2 | DF104: =COUNTIFS(DF$8:DF$86,"=1",$D$8:$D$86,"=U10")+COUNTIFS(DF$8:DF$86,"=1",$D$8:$D$86,"=U12") -> 0 | DI104: =COUNTIFS(DI$8:DI$86,"=1",$D$8:$D$86,"=U10")+COUNTIFS(DI$8:DI$86,"=1",$D$8:$D$86,"=U12") -> 0 | DL104: =COUNTIFS(DL$8:DL$86,"=1",$D$8:$D$86,"=U10")+COUNTIFS(DL$8:DL$86,"=1",$D$8:$D$86,"=U12") -> 1 | DO104: =COUNTIFS(DO$8:DO$86,"=1",$D$8:$D$86,"=U10")+COUNTIFS(DO$8:DO$86,"=1",$D$8:$D$86,"=U12") -> 1 | DR104: =COUNTIFS(DR$8:DR$86,"=1",$D$8:$D$86,"=U10")+COUNTIFS(DR$8:DR$86,"=1",$D$8:$D$86,"=U12") -> 0 | DU104: =COUNTIFS(DU$8:DU$86,"=1",$D$8:$D$86,"=U10")+COUNTIFS(DU$8:DU$86,"=1",$D$8:$D$86,"=U12") -> 1 | DX104: =COUNTIFS(DX$8:DX$86,"=1",$D$8:$D$86,"=U10")+COUNTIFS(DX$8:DX$86,"=1",$D$8:$D$86,"=U12") -> 0 | EA104: =COUNTIFS(EA$8:EA$86,"=1",$D$8:$D$86,"=U10")+COUNTIFS(EA$8:EA$86,"=1",$D$8:$D$86,"=U12") -> 0 | ED104: =COUNTIFS(ED$8:ED$86,"=1",$D$8:$D$86,"=U10")+COUNTIFS(ED$8:ED$86,"=1",$D$8:$D$86,"=U12") -> 0 | EF104: =COUNTIFS(EF$8:EF$86,"=1",$D$8:$D$86,"=U10")+COUNTIFS(EF$8:EF$86,"=1",$D$8:$D$86,"=U12") -> 0 | EI104: =COUNTIFS(EI$8:EI$86,"=1",$D$8:$D$86,"=U10")+COUNTIFS(EI$8:EI$86,"=1",$D$8:$D$86,"=U12") -> 2 | EL104: =COUNTIFS(EL$8:EL$86,"=1",$D$8:$D$86,"=U10")+COUNTIFS(EL$8:EL$86,"=1",$D$8:$D$86,"=U12") -> 1 | EO104: =COUNTIFS(EO$8:EO$86,"=1",$D$8:$D$86,"=U10")+COUNTIFS(EO$8:EO$86,"=1",$D$8:$D$86,"=U12") -> 1 | ER104: =COUNTIFS(ER$8:ER$86,"=1",$D$8:$D$86,"=U10")+COUNTIFS(ER$8:ER$86,"=1",$D$8:$D$86,"=U12") -> 1 | EU104: =COUNTIFS(EU$8:EU$86,"=1",$D$8:$D$86,"=U10")+COUNTIFS(EU$8:EU$86,"=1",$D$8:$D$86,"=U12") -> 0 | EX104: =COUNTIFS(EX$8:EX$86,"=1",$D$8:$D$86,"=U10")+COUNTIFS(EX$8:EX$86,"=1",$D$8:$D$86,"=U12") -> 1 | FA104: =COUNTIFS(FA$8:FA$86,"=1",$D$8:$D$86,"=U10")+COUNTIFS(FA$8:FA$86,"=1",$D$8:$D$86,"=U12") -> 0 | FD104: =COUNTIFS(FD$8:FD$86,"=1",$D$8:$D$86,"=U10")+COUNTIFS(FD$8:FD$86,"=1",$D$8:$D$86,"=U12") -> 0 | FG104: =COUNTIFS(FG$8:FG$86,"=1",$D$8:$D$86,"=U10")+COUNTIFS(FG$8:FG$86,"=1",$D$8:$D$86,"=U12") -> 0
E105: Mini Age 2nd | Y105: 30 | AA105: =COUNTIFS(AA$8:AA$86,"=2",$D$8:$D$86,"=U10")+COUNTIFS(AA$8:AA$86,"=2",$D$8:$D$86,"=U12") -> 0 | AF105: =COUNTIFS(AF$8:AF$86,"=2",$D$8:$D$86,"=U10")+COUNTIFS(AF$8:AF$86,"=2",$D$8:$D$86,"=U12") -> 0 | AI105: =COUNTIFS(AI$8:AI$86,"=2",$D$8:$D$86,"=U10")+COUNTIFS(AI$8:AI$86,"=2",$D$8:$D$86,"=U12") -> 0 | AM105: =COUNTIFS(AM$8:AM$86,"=2",$D$8:$D$86,"=U10")+COUNTIFS(AM$8:AM$86,"=2",$D$8:$D$86,"=U12") -> 0 | AQ105: =COUNTIFS(AQ$8:AQ$86,"=2",$D$8:$D$86,"=U10")+COUNTIFS(AQ$8:AQ$86,"=2",$D$8:$D$86,"=U12") -> 1 | AT105: =COUNTIFS(AT$8:AT$86,"=2",$D$8:$D$86,"=U10")+COUNTIFS(AT$8:AT$86,"=2",$D$8:$D$86,"=U12") -> 0 | AW105: =COUNTIFS(AW$8:AW$86,"=2",$D$8:$D$86,"=U10")+COUNTIFS(AW$8:AW$86,"=2",$D$8:$D$86,"=U12") -> 2 | AZ105: =COUNTIFS(AZ$8:AZ$86,"=2",$D$8:$D$86,"=U10")+COUNTIFS(AZ$8:AZ$86,"=2",$D$8:$D$86,"=U12") -> 2 | BC105: =COUNTIFS(BC$8:BC$86,"=2",$D$8:$D$86,"=U10")+COUNTIFS(BC$8:BC$86,"=2",$D$8:$D$86,"=U12") -> 2 | BF105: =COUNTIFS(BF$8:BF$86,"=2",$D$8:$D$86,"=U10")+COUNTIFS(BF$8:BF$86,"=2",$D$8:$D$86,"=U12") -> 1 | BI105: =COUNTIFS(BI$8:BI$86,"=2",$D$8:$D$86,"=U10")+COUNTIFS(BI$8:BI$86,"=2",$D$8:$D$86,"=U12") -> 2 | BL105: =COUNTIFS(BL$8:BL$86,"=2",$D$8:$D$86,"=U10")+COUNTIFS(BL$8:BL$86,"=2",$D$8:$D$86,"=U12") -> 0 | BO105: =COUNTIFS(BO$8:BO$86,"=2",$D$8:$D$86,"=U10")+COUNTIFS(BO$8:BO$86,"=2",$D$8:$D$86,"=U12") -> 0 | BR105: =COUNTIFS(BR$8:BR$86,"=2",$D$8:$D$86,"=U10")+COUNTIFS(BR$8:BR$86,"=2",$D$8:$D$86,"=U12") -> 1 | BU105: =COUNTIFS(BU$8:BU$86,"=2",$D$8:$D$86,"=U10")+COUNTIFS(BU$8:BU$86,"=2",$D$8:$D$86,"=U12") -> 0 | BX105: =COUNTIFS(BX$8:BX$86,"=2",$D$8:$D$86,"=U10")+COUNTIFS(BX$8:BX$86,"=2",$D$8:$D$86,"=U12") -> 0 | CA105: =COUNTIFS(CA$8:CA$86,"=2",$D$8:$D$86,"=U10")+COUNTIFS(CA$8:CA$86,"=2",$D$8:$D$86,"=U12") -> 0 | CD105: =COUNTIFS(CD$8:CD$86,"=2",$D$8:$D$86,"=U10")+COUNTIFS(CD$8:CD$86,"=2",$D$8:$D$86,"=U12") -> 1 | CG105: =COUNTIFS(CG$8:CG$86,"=2",$D$8:$D$86,"=U10")+COUNTIFS(CG$8:CG$86,"=2",$D$8:$D$86,"=U12") -> 0 | CK105: =COUNTIFS(CK$8:CK$86,"=2",$D$8:$D$86,"=U10")+COUNTIFS(CK$8:CK$86,"=2",$D$8:$D$86,"=U12") -> 0 | CN105: =COUNTIFS(CN$8:CN$86,"=2",$D$8:$D$86,"=U10")+COUNTIFS(CN$8:CN$86,"=2",$D$8:$D$86,"=U12") -> 1 | CQ105: =COUNTIFS(CQ$8:CQ$86,"=2",$D$8:$D$86,"=U10")+COUNTIFS(CQ$8:CQ$86,"=2",$D$8:$D$86,"=U12") -> 0 | CT105: =COUNTIFS(CT$8:CT$86,"=2",$D$8:$D$86,"=U10")+COUNTIFS(CT$8:CT$86,"=2",$D$8:$D$86,"=U12") -> 2 | CW105: =COUNTIFS(CW$8:CW$86,"=2",$D$8:$D$86,"=U10")+COUNTIFS(CW$8:CW$86,"=2",$D$8:$D$86,"=U12") -> 2 | CZ105: =COUNTIFS(CZ$8:CZ$86,"=2",$D$8:$D$86,"=U10")+COUNTIFS(CZ$8:CZ$86,"=2",$D$8:$D$86,"=U12") -> 0 | DC105: =COUNTIFS(DC$8:DC$86,"=2",$D$8:$D$86,"=U10")+COUNTIFS(DC$8:DC$86,"=2",$D$8:$D$86,"=U12") -> 0 | DF105: =COUNTIFS(DF$8:DF$86,"=2",$D$8:$D$86,"=U10")+COUNTIFS(DF$8:DF$86,"=2",$D$8:$D$86,"=U12") -> 2 | DI105: =COUNTIFS(DI$8:DI$86,"=2",$D$8:$D$86,"=U10")+COUNTIFS(DI$8:DI$86,"=2",$D$8:$D$86,"=U12") -> 2 | DL105: =COUNTIFS(DL$8:DL$86,"=2",$D$8:$D$86,"=U10")+COUNTIFS(DL$8:DL$86,"=2",$D$8:$D$86,"=U12") -> 1 | DO105: =COUNTIFS(DO$8:DO$86,"=2",$D$8:$D$86,"=U10")+COUNTIFS(DO$8:DO$86,"=2",$D$8:$D$86,"=U12") -> 2 | DR105: =COUNTIFS(DR$8:DR$86,"=2",$D$8:$D$86,"=U10")+COUNTIFS(DR$8:DR$86,"=2",$D$8:$D$86,"=U12") -> 1 | DU105: =COUNTIFS(DU$8:DU$86,"=2",$D$8:$D$86,"=U10")+COUNTIFS(DU$8:DU$86,"=2",$D$8:$D$86,"=U12") -> 0 | DX105: =COUNTIFS(DX$8:DX$86,"=2",$D$8:$D$86,"=U10")+COUNTIFS(DX$8:DX$86,"=2",$D$8:$D$86,"=U12") -> 1 | EA105: =COUNTIFS(EA$8:EA$86,"=2",$D$8:$D$86,"=U10")+COUNTIFS(EA$8:EA$86,"=2",$D$8:$D$86,"=U12") -> 0 | ED105: =COUNTIFS(ED$8:ED$86,"=2",$D$8:$D$86,"=U10")+COUNTIFS(ED$8:ED$86,"=2",$D$8:$D$86,"=U12") -> 0 | EF105: =COUNTIFS(EF$8:EF$86,"=2",$D$8:$D$86,"=U10")+COUNTIFS(EF$8:EF$86,"=2",$D$8:$D$86,"=U12") -> 1 | EI105: =COUNTIFS(EI$8:EI$86,"=2",$D$8:$D$86,"=U10")+COUNTIFS(EI$8:EI$86,"=2",$D$8:$D$86,"=U12") -> 1 | EL105: =COUNTIFS(EL$8:EL$86,"=2",$D$8:$D$86,"=U10")+COUNTIFS(EL$8:EL$86,"=2",$D$8:$D$86,"=U12") -> 1 | EO105: =COUNTIFS(EO$8:EO$86,"=2",$D$8:$D$86,"=U10")+COUNTIFS(EO$8:EO$86,"=2",$D$8:$D$86,"=U12") -> 0 | ER105: =COUNTIFS(ER$8:ER$86,"=2",$D$8:$D$86,"=U10")+COUNTIFS(ER$8:ER$86,"=2",$D$8:$D$86,"=U12") -> 0 | EU105: =COUNTIFS(EU$8:EU$86,"=2",$D$8:$D$86,"=U10")+COUNTIFS(EU$8:EU$86,"=2",$D$8:$D$86,"=U12") -> 0 | EX105: =COUNTIFS(EX$8:EX$86,"=2",$D$8:$D$86,"=U10")+COUNTIFS(EX$8:EX$86,"=2",$D$8:$D$86,"=U12") -> 1 | FA105: =COUNTIFS(FA$8:FA$86,"=2",$D$8:$D$86,"=U10")+COUNTIFS(FA$8:FA$86,"=2",$D$8:$D$86,"=U12") -> 0 | FD105: =COUNTIFS(FD$8:FD$86,"=2",$D$8:$D$86,"=U10")+COUNTIFS(FD$8:FD$86,"=2",$D$8:$D$86,"=U12") -> 0 | FG105: =COUNTIFS(FG$8:FG$86,"=2",$D$8:$D$86,"=U10")+COUNTIFS(FG$8:FG$86,"=2",$D$8:$D$86,"=U12") -> 0
E106: Mini Age 3rd | Y106: 8 | AA106: =COUNTIFS(AA$8:AA$86,"=3",$D$8:$D$86,"=U10")+COUNTIFS(AA$8:AA$86,"=3",$D$8:$D$86,"=U12") -> 0 | AF106: =COUNTIFS(AF$8:AF$86,"=3",$D$8:$D$86,"=U10")+COUNTIFS(AF$8:AF$86,"=3",$D$8:$D$86,"=U12") -> 0 | AI106: =COUNTIFS(AI$8:AI$86,"=3",$D$8:$D$86,"=U10")+COUNTIFS(AI$8:AI$86,"=3",$D$8:$D$86,"=U12") -> 0 | AM106: =COUNTIFS(AM$8:AM$86,"=3",$D$8:$D$86,"=U10")+COUNTIFS(AM$8:AM$86,"=3",$D$8:$D$86,"=U12") -> 0 | AQ106: =COUNTIFS(AQ$8:AQ$86,"=3",$D$8:$D$86,"=U10")+COUNTIFS(AQ$8:AQ$86,"=3",$D$8:$D$86,"=U12") -> 0 | AT106: =COUNTIFS(AT$8:AT$86,"=3",$D$8:$D$86,"=U10")+COUNTIFS(AT$8:AT$86,"=3",$D$8:$D$86,"=U12") -> 1 | AW106: =COUNTIFS(AW$8:AW$86,"=3",$D$8:$D$86,"=U10")+COUNTIFS(AW$8:AW$86,"=3",$D$8:$D$86,"=U12") -> 0 | AZ106: =COUNTIFS(AZ$8:AZ$86,"=3",$D$8:$D$86,"=U10")+COUNTIFS(AZ$8:AZ$86,"=3",$D$8:$D$86,"=U12") -> 1 | BC106: =COUNTIFS(BC$8:BC$86,"=3",$D$8:$D$86,"=U10")+COUNTIFS(BC$8:BC$86,"=3",$D$8:$D$86,"=U12") -> 0 | BF106: =COUNTIFS(BF$8:BF$86,"=3",$D$8:$D$86,"=U10")+COUNTIFS(BF$8:BF$86,"=3",$D$8:$D$86,"=U12") -> 0 | BI106: =COUNTIFS(BI$8:BI$86,"=3",$D$8:$D$86,"=U10")+COUNTIFS(BI$8:BI$86,"=3",$D$8:$D$86,"=U12") -> 1 | BL106: =COUNTIFS(BL$8:BL$86,"=3",$D$8:$D$86,"=U10")+COUNTIFS(BL$8:BL$86,"=3",$D$8:$D$86,"=U12") -> 1 | BO106: =COUNTIFS(BO$8:BO$86,"=3",$D$8:$D$86,"=U10")+COUNTIFS(BO$8:BO$86,"=3",$D$8:$D$86,"=U12") -> 0 | BR106: =COUNTIFS(BR$8:BR$86,"=3",$D$8:$D$86,"=U10")+COUNTIFS(BR$8:BR$86,"=3",$D$8:$D$86,"=U12") -> 0 | BU106: =COUNTIFS(BU$8:BU$86,"=3",$D$8:$D$86,"=U10")+COUNTIFS(BU$8:BU$86,"=3",$D$8:$D$86,"=U12") -> 0 | BX106: =COUNTIFS(BX$8:BX$86,"=3",$D$8:$D$86,"=U10")+COUNTIFS(BX$8:BX$86,"=3",$D$8:$D$86,"=U12") -> 0 | CA106: =COUNTIFS(CA$8:CA$86,"=3",$D$8:$D$86,"=U10")+COUNTIFS(CA$8:CA$86,"=3",$D$8:$D$86,"=U12") -> 0 | CD106: =COUNTIFS(CD$8:CD$86,"=3",$D$8:$D$86,"=U10")+COUNTIFS(CD$8:CD$86,"=3",$D$8:$D$86,"=U12") -> 0 | CG106: =COUNTIFS(CG$8:CG$86,"=3",$D$8:$D$86,"=U10")+COUNTIFS(CG$8:CG$86,"=3",$D$8:$D$86,"=U12") -> 0 | CK106: =COUNTIFS(CK$8:CK$86,"=3",$D$8:$D$86,"=U10")+COUNTIFS(CK$8:CK$86,"=3",$D$8:$D$86,"=U12") -> 1 | CN106: =COUNTIFS(CN$8:CN$86,"=3",$D$8:$D$86,"=U10")+COUNTIFS(CN$8:CN$86,"=3",$D$8:$D$86,"=U12") -> 0 | CQ106: =COUNTIFS(CQ$8:CQ$86,"=3",$D$8:$D$86,"=U10")+COUNTIFS(CQ$8:CQ$86,"=3",$D$8:$D$86,"=U12") -> 1 | CT106: =COUNTIFS(CT$8:CT$86,"=3",$D$8:$D$86,"=U10")+COUNTIFS(CT$8:CT$86,"=3",$D$8:$D$86,"=U12") -> 0 | CW106: =COUNTIFS(CW$8:CW$86,"=3",$D$8:$D$86,"=U10")+COUNTIFS(CW$8:CW$86,"=3",$D$8:$D$86,"=U12") -> 1 | CZ106: =COUNTIFS(CZ$8:CZ$86,"=3",$D$8:$D$86,"=U10")+COUNTIFS(CZ$8:CZ$86,"=3",$D$8:$D$86,"=U12") -> 1 | DC106: =COUNTIFS(DC$8:DC$86,"=3",$D$8:$D$86,"=U10")+COUNTIFS(DC$8:DC$86,"=3",$D$8:$D$86,"=U12") -> 0 | DF106: =COUNTIFS(DF$8:DF$86,"=3",$D$8:$D$86,"=U10")+COUNTIFS(DF$8:DF$86,"=3",$D$8:$D$86,"=U12") -> 0 | DI106: =COUNTIFS(DI$8:DI$86,"=3",$D$8:$D$86,"=U10")+COUNTIFS(DI$8:DI$86,"=3",$D$8:$D$86,"=U12") -> 0 | DL106: =COUNTIFS(DL$8:DL$86,"=3",$D$8:$D$86,"=U10")+COUNTIFS(DL$8:DL$86,"=3",$D$8:$D$86,"=U12") -> 0 | DO106: =COUNTIFS(DO$8:DO$86,"=3",$D$8:$D$86,"=U10")+COUNTIFS(DO$8:DO$86,"=3",$D$8:$D$86,"=U12") -> 0 | DR106: =COUNTIFS(DR$8:DR$86,"=3",$D$8:$D$86,"=U10")+COUNTIFS(DR$8:DR$86,"=3",$D$8:$D$86,"=U12") -> 0 | DU106: =COUNTIFS(DU$8:DU$86,"=3",$D$8:$D$86,"=U10")+COUNTIFS(DU$8:DU$86,"=3",$D$8:$D$86,"=U12") -> 0 | DX106: =COUNTIFS(DX$8:DX$86,"=3",$D$8:$D$86,"=U10")+COUNTIFS(DX$8:DX$86,"=3",$D$8:$D$86,"=U12") -> 0 | EA106: =COUNTIFS(EA$8:EA$86,"=3",$D$8:$D$86,"=U10")+COUNTIFS(EA$8:EA$86,"=3",$D$8:$D$86,"=U12") -> 0 | ED106: =COUNTIFS(ED$8:ED$86,"=3",$D$8:$D$86,"=U10")+COUNTIFS(ED$8:ED$86,"=3",$D$8:$D$86,"=U12") -> 0 | EF106: =COUNTIFS(EF$8:EF$86,"=3",$D$8:$D$86,"=U10")+COUNTIFS(EF$8:EF$86,"=3",$D$8:$D$86,"=U12") -> 0 | EI106: =COUNTIFS(EI$8:EI$86,"=3",$D$8:$D$86,"=U10")+COUNTIFS(EI$8:EI$86,"=3",$D$8:$D$86,"=U12") -> 0 | EL106: =COUNTIFS(EL$8:EL$86,"=3",$D$8:$D$86,"=U10")+COUNTIFS(EL$8:EL$86,"=3",$D$8:$D$86,"=U12") -> 0 | EO106: =COUNTIFS(EO$8:EO$86,"=3",$D$8:$D$86,"=U10")+COUNTIFS(EO$8:EO$86,"=3",$D$8:$D$86,"=U12") -> 0 | ER106: =COUNTIFS(ER$8:ER$86,"=3",$D$8:$D$86,"=U10")+COUNTIFS(ER$8:ER$86,"=3",$D$8:$D$86,"=U12") -> 0 | EU106: =COUNTIFS(EU$8:EU$86,"=3",$D$8:$D$86,"=U10")+COUNTIFS(EU$8:EU$86,"=3",$D$8:$D$86,"=U12") -> 0 | EX106: =COUNTIFS(EX$8:EX$86,"=3",$D$8:$D$86,"=U10")+COUNTIFS(EX$8:EX$86,"=3",$D$8:$D$86,"=U12") -> 0 | FA106: =COUNTIFS(FA$8:FA$86,"=3",$D$8:$D$86,"=U10")+COUNTIFS(FA$8:FA$86,"=3",$D$8:$D$86,"=U12") -> 0 | FD106: =COUNTIFS(FD$8:FD$86,"=3",$D$8:$D$86,"=U10")+COUNTIFS(FD$8:FD$86,"=3",$D$8:$D$86,"=U12") -> 0 | FG106: =COUNTIFS(FG$8:FG$86,"=3",$D$8:$D$86,"=U10")+COUNTIFS(FG$8:FG$86,"=3",$D$8:$D$86,"=U12") -> 0
E107: CH Age 1st | Y107: 28 | AA107: =COUNTIFS(AA$8:AA$86,"=1",$D8:$D86,"=U14")+COUNTIFS(AA$8:AA$86,"=1",$D8:$D86,"=U16") -> 1 | AF107: =COUNTIFS(AF$8:AF$86,"=1",$D8:$D86,"=U14")+COUNTIFS(AF$8:AF$86,"=1",$D8:$D86,"=U16") -> 2 | AI107: =COUNTIFS(AI$8:AI$86,"=1",$D8:$D86,"=U14")+COUNTIFS(AI$8:AI$86,"=1",$D8:$D86,"=U16") -> 1 | AM107: =COUNTIFS(AM$8:AM$86,"=1",$D8:$D86,"=U14")+COUNTIFS(AM$8:AM$86,"=1",$D8:$D86,"=U16") -> 1 | AQ107: =COUNTIFS(AQ$8:AQ$86,"=1",$D8:$D86,"=U14")+COUNTIFS(AQ$8:AQ$86,"=1",$D8:$D86,"=U16") -> 2 | AT107: =COUNTIFS(AT$8:AT$86,"=1",$D8:$D86,"=U14")+COUNTIFS(AT$8:AT$86,"=1",$D8:$D86,"=U16") -> 1 | AW107: =COUNTIFS(AW$8:AW$86,"=1",$D8:$D86,"=U14")+COUNTIFS(AW$8:AW$86,"=1",$D8:$D86,"=U16") -> 1 | AZ107: =COUNTIFS(AZ$8:AZ$86,"=1",$D8:$D86,"=U14")+COUNTIFS(AZ$8:AZ$86,"=1",$D8:$D86,"=U16") -> 0 | BC107: =COUNTIFS(BC$8:BC$86,"=1",$D8:$D86,"=U14")+COUNTIFS(BC$8:BC$86,"=1",$D8:$D86,"=U16") -> 1 | BF107: =COUNTIFS(BF$8:BF$86,"=1",$D8:$D86,"=U14")+COUNTIFS(BF$8:BF$86,"=1",$D8:$D86,"=U16") -> 2 | BI107: =COUNTIFS(BI$8:BI$86,"=1",$D8:$D86,"=U14")+COUNTIFS(BI$8:BI$86,"=1",$D8:$D86,"=U16") -> 1 | BL107: =COUNTIFS(BL$8:BL$86,"=1",$D8:$D86,"=U14")+COUNTIFS(BL$8:BL$86,"=1",$D8:$D86,"=U16") -> 1 | BO107: =COUNTIFS(BO$8:BO$86,"=1",$D8:$D86,"=U14")+COUNTIFS(BO$8:BO$86,"=1",$D8:$D86,"=U16") -> 0 | BR107: =COUNTIFS(BR$8:BR$86,"=1",$D8:$D86,"=U14")+COUNTIFS(BR$8:BR$86,"=1",$D8:$D86,"=U16") -> 0 | BU107: =COUNTIFS(BU$8:BU$86,"=1",$D8:$D86,"=U14")+COUNTIFS(BU$8:BU$86,"=1",$D8:$D86,"=U16") -> 0 | BX107: =COUNTIFS(BX$8:BX$86,"=1",$D8:$D86,"=U14")+COUNTIFS(BX$8:BX$86,"=1",$D8:$D86,"=U16") -> 1 | CA107: =COUNTIFS(CA$8:CA$86,"=1",$D8:$D86,"=U14")+COUNTIFS(CA$8:CA$86,"=1",$D8:$D86,"=U16") -> 0 | CD107: =COUNTIFS(CD$8:CD$86,"=1",$D8:$D86,"=U14")+COUNTIFS(CD$8:CD$86,"=1",$D8:$D86,"=U16") -> 0 | CG107: =COUNTIFS(CG$8:CG$86,"=1",$D8:$D86,"=U14")+COUNTIFS(CG$8:CG$86,"=1",$D8:$D86,"=U16") -> 0 | CK107: =COUNTIFS(CK$8:CK$86,"=1",$D8:$D86,"=U14")+COUNTIFS(CK$8:CK$86,"=1",$D8:$D86,"=U16") -> 1 | CN107: =COUNTIFS(CN$8:CN$86,"=1",$D8:$D86,"=U14")+COUNTIFS(CN$8:CN$86,"=1",$D8:$D86,"=U16") -> 1 | CQ107: =COUNTIFS(CQ$8:CQ$86,"=1",$D8:$D86,"=U14")+COUNTIFS(CQ$8:CQ$86,"=1",$D8:$D86,"=U16") -> 0 | CT107: =COUNTIFS(CT$8:CT$86,"=1",$D8:$D86,"=U14")+COUNTIFS(CT$8:CT$86,"=1",$D8:$D86,"=U16") -> 1 | CW107: =COUNTIFS(CW$8:CW$86,"=1",$D8:$D86,"=U14")+COUNTIFS(CW$8:CW$86,"=1",$D8:$D86,"=U16") -> 1 | CZ107: =COUNTIFS(CZ$8:CZ$86,"=1",$D8:$D86,"=U14")+COUNTIFS(CZ$8:CZ$86,"=1",$D8:$D86,"=U16") -> 1 | DC107: =COUNTIFS(DC$8:DC$86,"=1",$D8:$D86,"=U14")+COUNTIFS(DC$8:DC$86,"=1",$D8:$D86,"=U16") -> 1 | DF107: =COUNTIFS(DF$8:DF$86,"=1",$D8:$D86,"=U14")+COUNTIFS(DF$8:DF$86,"=1",$D8:$D86,"=U16") -> 1 | DI107: =COUNTIFS(DI$8:DI$86,"=1",$D8:$D86,"=U14")+COUNTIFS(DI$8:DI$86,"=1",$D8:$D86,"=U16") -> 0 | DL107: =COUNTIFS(DL$8:DL$86,"=1",$D8:$D86,"=U14")+COUNTIFS(DL$8:DL$86,"=1",$D8:$D86,"=U16") -> 0 | DO107: =COUNTIFS(DO$8:DO$86,"=1",$D8:$D86,"=U14")+COUNTIFS(DO$8:DO$86,"=1",$D8:$D86,"=U16") -> 0 | DR107: =COUNTIFS(DR$8:DR$86,"=1",$D8:$D86,"=U14")+COUNTIFS(DR$8:DR$86,"=1",$D8:$D86,"=U16") -> 1 | DU107: =COUNTIFS(DU$8:DU$86,"=1",$D8:$D86,"=U14")+COUNTIFS(DU$8:DU$86,"=1",$D8:$D86,"=U16") -> 1 | DX107: =COUNTIFS(DX$8:DX$86,"=1",$D8:$D86,"=U14")+COUNTIFS(DX$8:DX$86,"=1",$D8:$D86,"=U16") -> 1 | EA107: =COUNTIFS(EA$8:EA$86,"=1",$D8:$D86,"=U14")+COUNTIFS(EA$8:EA$86,"=1",$D8:$D86,"=U16") -> 0 | ED107: =COUNTIFS(ED$8:ED$86,"=1",$D8:$D86,"=U14")+COUNTIFS(ED$8:ED$86,"=1",$D8:$D86,"=U16") -> 0 | EF107: =COUNTIFS(EF$8:EF$86,"=1",$D8:$D86,"=U14")+COUNTIFS(EF$8:EF$86,"=1",$D8:$D86,"=U16") -> 0 | EI107: =COUNTIFS(EI$8:EI$86,"=1",$D8:$D86,"=U14")+COUNTIFS(EI$8:EI$86,"=1",$D8:$D86,"=U16") -> 0 | EL107: =COUNTIFS(EL$8:EL$86,"=1",$D8:$D86,"=U14")+COUNTIFS(EL$8:EL$86,"=1",$D8:$D86,"=U16") -> 0 | EO107: =COUNTIFS(EO$8:EO$86,"=1",$D8:$D86,"=U14")+COUNTIFS(EO$8:EO$86,"=1",$D8:$D86,"=U16") -> 1 | ER107: =COUNTIFS(ER$8:ER$86,"=1",$D8:$D86,"=U14")+COUNTIFS(ER$8:ER$86,"=1",$D8:$D86,"=U16") -> 1 | EU107: =COUNTIFS(EU$8:EU$86,"=1",$D8:$D86,"=U14")+COUNTIFS(EU$8:EU$86,"=1",$D8:$D86,"=U16") -> 0 | EX107: =COUNTIFS(EX$8:EX$86,"=1",$D8:$D86,"=U14")+COUNTIFS(EX$8:EX$86,"=1",$D8:$D86,"=U16") -> 1 | FA107: =COUNTIFS(FA$8:FA$86,"=1",$D8:$D86,"=U14")+COUNTIFS(FA$8:FA$86,"=1",$D8:$D86,"=U16") -> 0 | FD107: =COUNTIFS(FD$8:FD$86,"=1",$D8:$D86,"=U14")+COUNTIFS(FD$8:FD$86,"=1",$D8:$D86,"=U16") -> 0 | FG107: =COUNTIFS(FG$8:FG$86,"=1",$D8:$D86,"=U14")+COUNTIFS(FG$8:FG$86,"=1",$D8:$D86,"=U16") -> 0
E108: CH Age 2nd | Y108: 7 | AA108: =COUNTIFS(AA$8:AA$86,"=2",$D$8:$D$86,"=U14")+COUNTIFS(AA$8:AA$86,"=2",$D$8:$D$86,"=U16") -> 0 | AF108: =COUNTIFS(AF$8:AF$86,"=2",$D$8:$D$86,"=U14")+COUNTIFS(AF$8:AF$86,"=2",$D$8:$D$86,"=U16") -> 0 | AI108: =COUNTIFS(AI$8:AI$86,"=2",$D$8:$D$86,"=U14")+COUNTIFS(AI$8:AI$86,"=2",$D$8:$D$86,"=U16") -> 0 | AM108: =COUNTIFS(AM$8:AM$86,"=2",$D$8:$D$86,"=U14")+COUNTIFS(AM$8:AM$86,"=2",$D$8:$D$86,"=U16") -> 0 | AQ108: =COUNTIFS(AQ$8:AQ$86,"=2",$D$8:$D$86,"=U14")+COUNTIFS(AQ$8:AQ$86,"=2",$D$8:$D$86,"=U16") -> 0 | AT108: =COUNTIFS(AT$8:AT$86,"=2",$D$8:$D$86,"=U14")+COUNTIFS(AT$8:AT$86,"=2",$D$8:$D$86,"=U16") -> 0 | AW108: =COUNTIFS(AW$8:AW$86,"=2",$D$8:$D$86,"=U14")+COUNTIFS(AW$8:AW$86,"=2",$D$8:$D$86,"=U16") -> 0 | AZ108: =COUNTIFS(AZ$8:AZ$86,"=2",$D$8:$D$86,"=U14")+COUNTIFS(AZ$8:AZ$86,"=2",$D$8:$D$86,"=U16") -> 0 | BC108: =COUNTIFS(BC$8:BC$86,"=2",$D$8:$D$86,"=U14")+COUNTIFS(BC$8:BC$86,"=2",$D$8:$D$86,"=U16") -> 0 | BF108: =COUNTIFS(BF$8:BF$86,"=2",$D$8:$D$86,"=U14")+COUNTIFS(BF$8:BF$86,"=2",$D$8:$D$86,"=U16") -> 0 | BI108: =COUNTIFS(BI$8:BI$86,"=2",$D$8:$D$86,"=U14")+COUNTIFS(BI$8:BI$86,"=2",$D$8:$D$86,"=U16") -> 0 | BL108: =COUNTIFS(BL$8:BL$86,"=2",$D$8:$D$86,"=U14")+COUNTIFS(BL$8:BL$86,"=2",$D$8:$D$86,"=U16") -> 0 | BO108: =COUNTIFS(BO$8:BO$86,"=2",$D$8:$D$86,"=U14")+COUNTIFS(BO$8:BO$86,"=2",$D$8:$D$86,"=U16") -> 0 | BR108: =COUNTIFS(BR$8:BR$86,"=2",$D$8:$D$86,"=U14")+COUNTIFS(BR$8:BR$86,"=2",$D$8:$D$86,"=U16") -> 0 | BU108: =COUNTIFS(BU$8:BU$86,"=2",$D$8:$D$86,"=U14")+COUNTIFS(BU$8:BU$86,"=2",$D$8:$D$86,"=U16") -> 0 | BX108: =COUNTIFS(BX$8:BX$86,"=2",$D$8:$D$86,"=U14")+COUNTIFS(BX$8:BX$86,"=2",$D$8:$D$86,"=U16") -> 0 | CA108: =COUNTIFS(CA$8:CA$86,"=2",$D$8:$D$86,"=U14")+COUNTIFS(CA$8:CA$86,"=2",$D$8:$D$86,"=U16") -> 0 | CD108: =COUNTIFS(CD$8:CD$86,"=2",$D$8:$D$86,"=U14")+COUNTIFS(CD$8:CD$86,"=2",$D$8:$D$86,"=U16") -> 0 | CG108: =COUNTIFS(CG$8:CG$86,"=2",$D$8:$D$86,"=U14")+COUNTIFS(CG$8:CG$86,"=2",$D$8:$D$86,"=U16") -> 0 | CK108: =COUNTIFS(CK$8:CK$86,"=2",$D$8:$D$86,"=U14")+COUNTIFS(CK$8:CK$86,"=2",$D$8:$D$86,"=U16") -> 0 | CN108: =COUNTIFS(CN$8:CN$86,"=2",$D$8:$D$86,"=U14")+COUNTIFS(CN$8:CN$86,"=2",$D$8:$D$86,"=U16") -> 0 | CQ108: =COUNTIFS(CQ$8:CQ$86,"=2",$D$8:$D$86,"=U14")+COUNTIFS(CQ$8:CQ$86,"=2",$D$8:$D$86,"=U16") -> 0 | CT108: =COUNTIFS(CT$8:CT$86,"=2",$D$8:$D$86,"=U14")+COUNTIFS(CT$8:CT$86,"=2",$D$8:$D$86,"=U16") -> 1 | CW108: =COUNTIFS(CW$8:CW$86,"=2",$D$8:$D$86,"=U14")+COUNTIFS(CW$8:CW$86,"=2",$D$8:$D$86,"=U16") -> 1 | CZ108: =COUNTIFS(CZ$8:CZ$86,"=2",$D$8:$D$86,"=U14")+COUNTIFS(CZ$8:CZ$86,"=2",$D$8:$D$86,"=U16") -> 0 | DC108: =COUNTIFS(DC$8:DC$86,"=2",$D$8:$D$86,"=U14")+COUNTIFS(DC$8:DC$86,"=2",$D$8:$D$86,"=U16") -> 0 | DF108: =COUNTIFS(DF$8:DF$86,"=2",$D$8:$D$86,"=U14")+COUNTIFS(DF$8:DF$86,"=2",$D$8:$D$86,"=U16") -> 0 | DI108: =COUNTIFS(DI$8:DI$86,"=2",$D$8:$D$86,"=U14")+COUNTIFS(DI$8:DI$86,"=2",$D$8:$D$86,"=U16") -> 1 | DL108: =COUNTIFS(DL$8:DL$86,"=2",$D$8:$D$86,"=U14")+COUNTIFS(DL$8:DL$86,"=2",$D$8:$D$86,"=U16") -> 1 | DO108: =COUNTIFS(DO$8:DO$86,"=2",$D$8:$D$86,"=U14")+COUNTIFS(DO$8:DO$86,"=2",$D$8:$D$86,"=U16") -> 1 | DR108: =COUNTIFS(DR$8:DR$86,"=2",$D$8:$D$86,"=U14")+COUNTIFS(DR$8:DR$86,"=2",$D$8:$D$86,"=U16") -> 0 | DU108: =COUNTIFS(DU$8:DU$86,"=2",$D$8:$D$86,"=U14")+COUNTIFS(DU$8:DU$86,"=2",$D$8:$D$86,"=U16") -> 0 | DX108: =COUNTIFS(DX$8:DX$86,"=2",$D$8:$D$86,"=U14")+COUNTIFS(DX$8:DX$86,"=2",$D$8:$D$86,"=U16") -> 0 | EA108: =COUNTIFS(EA$8:EA$86,"=2",$D$8:$D$86,"=U14")+COUNTIFS(EA$8:EA$86,"=2",$D$8:$D$86,"=U16") -> 0 | ED108: =COUNTIFS(ED$8:ED$86,"=2",$D$8:$D$86,"=U14")+COUNTIFS(ED$8:ED$86,"=2",$D$8:$D$86,"=U16") -> 0 | EF108: =COUNTIFS(EF$8:EF$86,"=2",$D$8:$D$86,"=U14")+COUNTIFS(EF$8:EF$86,"=2",$D$8:$D$86,"=U16") -> 1 | EI108: =COUNTIFS(EI$8:EI$86,"=2",$D$8:$D$86,"=U14")+COUNTIFS(EI$8:EI$86,"=2",$D$8:$D$86,"=U16") -> 1 | EL108: =COUNTIFS(EL$8:EL$86,"=2",$D$8:$D$86,"=U14")+COUNTIFS(EL$8:EL$86,"=2",$D$8:$D$86,"=U16") -> 0 | EO108: =COUNTIFS(EO$8:EO$86,"=2",$D$8:$D$86,"=U14")+COUNTIFS(EO$8:EO$86,"=2",$D$8:$D$86,"=U16") -> 0 | ER108: =COUNTIFS(ER$8:ER$86,"=2",$D$8:$D$86,"=U14")+COUNTIFS(ER$8:ER$86,"=2",$D$8:$D$86,"=U16") -> 0 | EU108: =COUNTIFS(EU$8:EU$86,"=2",$D$8:$D$86,"=U14")+COUNTIFS(EU$8:EU$86,"=2",$D$8:$D$86,"=U16") -> 0 | EX108: =COUNTIFS(EX$8:EX$86,"=2",$D$8:$D$86,"=U14")+COUNTIFS(EX$8:EX$86,"=2",$D$8:$D$86,"=U16") -> 0 | FA108: =COUNTIFS(FA$8:FA$86,"=2",$D$8:$D$86,"=U14")+COUNTIFS(FA$8:FA$86,"=2",$D$8:$D$86,"=U16") -> 0 | FD108: =COUNTIFS(FD$8:FD$86,"=2",$D$8:$D$86,"=U14")+COUNTIFS(FD$8:FD$86,"=2",$D$8:$D$86,"=U16") -> 0 | FG108: =COUNTIFS(FG$8:FG$86,"=2",$D$8:$D$86,"=U14")+COUNTIFS(FG$8:FG$86,"=2",$D$8:$D$86,"=U16") -> 0
E109: CH Age 3rd | Y109: 6 | AA109: =COUNTIFS(AA$8:AA$86,"=3",$D$8:$D$86,"=U14")+COUNTIFS(AA$8:AA$86,"=3",$D$8:$D$86,"=U16") -> 0 | AF109: =COUNTIFS(AF$8:AF$86,"=3",$D$8:$D$86,"=U14")+COUNTIFS(AF$8:AF$86,"=3",$D$8:$D$86,"=U16") -> 0 | AI109: =COUNTIFS(AI$8:AI$86,"=3",$D$8:$D$86,"=U14")+COUNTIFS(AI$8:AI$86,"=3",$D$8:$D$86,"=U16") -> 0 | AM109: =COUNTIFS(AM$8:AM$86,"=3",$D$8:$D$86,"=U14")+COUNTIFS(AM$8:AM$86,"=3",$D$8:$D$86,"=U16") -> 0 | AQ109: =COUNTIFS(AQ$8:AQ$86,"=3",$D$8:$D$86,"=U14")+COUNTIFS(AQ$8:AQ$86,"=3",$D$8:$D$86,"=U16") -> 0 | AT109: =COUNTIFS(AT$8:AT$86,"=3",$D$8:$D$86,"=U14")+COUNTIFS(AT$8:AT$86,"=3",$D$8:$D$86,"=U16") -> 0 | AW109: =COUNTIFS(AW$8:AW$86,"=3",$D$8:$D$86,"=U14")+COUNTIFS(AW$8:AW$86,"=3",$D$8:$D$86,"=U16") -> 0 | AZ109: =COUNTIFS(AZ$8:AZ$86,"=3",$D$8:$D$86,"=U14")+COUNTIFS(AZ$8:AZ$86,"=3",$D$8:$D$86,"=U16") -> 0 | BC109: =COUNTIFS(BC$8:BC$86,"=3",$D$8:$D$86,"=U14")+COUNTIFS(BC$8:BC$86,"=3",$D$8:$D$86,"=U16") -> 0 | BF109: =COUNTIFS(BF$8:BF$86,"=3",$D$8:$D$86,"=U14")+COUNTIFS(BF$8:BF$86,"=3",$D$8:$D$86,"=U16") -> 0 | BI109: =COUNTIFS(BI$8:BI$86,"=3",$D$8:$D$86,"=U14")+COUNTIFS(BI$8:BI$86,"=3",$D$8:$D$86,"=U16") -> 0 | BL109: =COUNTIFS(BL$8:BL$86,"=3",$D$8:$D$86,"=U14")+COUNTIFS(BL$8:BL$86,"=3",$D$8:$D$86,"=U16") -> 0 | BO109: =COUNTIFS(BO$8:BO$86,"=3",$D$8:$D$86,"=U14")+COUNTIFS(BO$8:BO$86,"=3",$D$8:$D$86,"=U16") -> 0 | BR109: =COUNTIFS(BR$8:BR$86,"=3",$D$8:$D$86,"=U14")+COUNTIFS(BR$8:BR$86,"=3",$D$8:$D$86,"=U16") -> 1 | BU109: =COUNTIFS(BU$8:BU$86,"=3",$D$8:$D$86,"=U14")+COUNTIFS(BU$8:BU$86,"=3",$D$8:$D$86,"=U16") -> 0 | BX109: =COUNTIFS(BX$8:BX$86,"=3",$D$8:$D$86,"=U14")+COUNTIFS(BX$8:BX$86,"=3",$D$8:$D$86,"=U16") -> 0 | CA109: =COUNTIFS(CA$8:CA$86,"=3",$D$8:$D$86,"=U14")+COUNTIFS(CA$8:CA$86,"=3",$D$8:$D$86,"=U16") -> 1 | CD109: =COUNTIFS(CD$8:CD$86,"=3",$D$8:$D$86,"=U14")+COUNTIFS(CD$8:CD$86,"=3",$D$8:$D$86,"=U16") -> 0 | CG109: =COUNTIFS(CG$8:CG$86,"=3",$D$8:$D$86,"=U14")+COUNTIFS(CG$8:CG$86,"=3",$D$8:$D$86,"=U16") -> 0 | CK109: =COUNTIFS(CK$8:CK$86,"=3",$D$8:$D$86,"=U14")+COUNTIFS(CK$8:CK$86,"=3",$D$8:$D$86,"=U16") -> 1 | CN109: =COUNTIFS(CN$8:CN$86,"=3",$D$8:$D$86,"=U14")+COUNTIFS(CN$8:CN$86,"=3",$D$8:$D$86,"=U16") -> 0 | CQ109: =COUNTIFS(CQ$8:CQ$86,"=3",$D$8:$D$86,"=U14")+COUNTIFS(CQ$8:CQ$86,"=3",$D$8:$D$86,"=U16") -> 1 | CT109: =COUNTIFS(CT$8:CT$86,"=3",$D$8:$D$86,"=U14")+COUNTIFS(CT$8:CT$86,"=3",$D$8:$D$86,"=U16") -> 1 | CW109: =COUNTIFS(CW$8:CW$86,"=3",$D$8:$D$86,"=U14")+COUNTIFS(CW$8:CW$86,"=3",$D$8:$D$86,"=U16") -> 0 | CZ109: =COUNTIFS(CZ$8:CZ$86,"=3",$D$8:$D$86,"=U14")+COUNTIFS(CZ$8:CZ$86,"=3",$D$8:$D$86,"=U16") -> 0 | DC109: =COUNTIFS(DC$8:DC$86,"=3",$D$8:$D$86,"=U14")+COUNTIFS(DC$8:DC$86,"=3",$D$8:$D$86,"=U16") -> 1 | DF109: =COUNTIFS(DF$8:DF$86,"=3",$D$8:$D$86,"=U14")+COUNTIFS(DF$8:DF$86,"=3",$D$8:$D$86,"=U16") -> 0 | DI109: =COUNTIFS(DI$8:DI$86,"=3",$D$8:$D$86,"=U14")+COUNTIFS(DI$8:DI$86,"=3",$D$8:$D$86,"=U16") -> 0 | DL109: =COUNTIFS(DL$8:DL$86,"=3",$D$8:$D$86,"=U14")+COUNTIFS(DL$8:DL$86,"=3",$D$8:$D$86,"=U16") -> 0 | DO109: =COUNTIFS(DO$8:DO$86,"=3",$D$8:$D$86,"=U14")+COUNTIFS(DO$8:DO$86,"=3",$D$8:$D$86,"=U16") -> 0 | DR109: =COUNTIFS(DR$8:DR$86,"=3",$D$8:$D$86,"=U14")+COUNTIFS(DR$8:DR$86,"=3",$D$8:$D$86,"=U16") -> 0 | DU109: =COUNTIFS(DU$8:DU$86,"=3",$D$8:$D$86,"=U14")+COUNTIFS(DU$8:DU$86,"=3",$D$8:$D$86,"=U16") -> 0 | DX109: =COUNTIFS(DX$8:DX$86,"=3",$D$8:$D$86,"=U14")+COUNTIFS(DX$8:DX$86,"=3",$D$8:$D$86,"=U16") -> 0 | EA109: =COUNTIFS(EA$8:EA$86,"=3",$D$8:$D$86,"=U14")+COUNTIFS(EA$8:EA$86,"=3",$D$8:$D$86,"=U16") -> 0 | ED109: =COUNTIFS(ED$8:ED$86,"=3",$D$8:$D$86,"=U14")+COUNTIFS(ED$8:ED$86,"=3",$D$8:$D$86,"=U16") -> 0 | EF109: =COUNTIFS(EF$8:EF$86,"=3",$D$8:$D$86,"=U14")+COUNTIFS(EF$8:EF$86,"=3",$D$8:$D$86,"=U16") -> 0 | EI109: =COUNTIFS(EI$8:EI$86,"=3",$D$8:$D$86,"=U14")+COUNTIFS(EI$8:EI$86,"=3",$D$8:$D$86,"=U16") -> 0 | EL109: =COUNTIFS(EL$8:EL$86,"=3",$D$8:$D$86,"=U14")+COUNTIFS(EL$8:EL$86,"=3",$D$8:$D$86,"=U16") -> 0 | EO109: =COUNTIFS(EO$8:EO$86,"=3",$D$8:$D$86,"=U14")+COUNTIFS(EO$8:EO$86,"=3",$D$8:$D$86,"=U16") -> 0 | ER109: =COUNTIFS(ER$8:ER$86,"=3",$D$8:$D$86,"=U14")+COUNTIFS(ER$8:ER$86,"=3",$D$8:$D$86,"=U16") -> 0 | EU109: =COUNTIFS(EU$8:EU$86,"=3",$D$8:$D$86,"=U14")+COUNTIFS(EU$8:EU$86,"=3",$D$8:$D$86,"=U16") -> 0 | EX109: =COUNTIFS(EX$8:EX$86,"=3",$D$8:$D$86,"=U14")+COUNTIFS(EX$8:EX$86,"=3",$D$8:$D$86,"=U16") -> 0 | FA109: =COUNTIFS(FA$8:FA$86,"=3",$D$8:$D$86,"=U14")+COUNTIFS(FA$8:FA$86,"=3",$D$8:$D$86,"=U16") -> 0 | FD109: =COUNTIFS(FD$8:FD$86,"=3",$D$8:$D$86,"=U14")+COUNTIFS(FD$8:FD$86,"=3",$D$8:$D$86,"=U16") -> 0 | FG109: =COUNTIFS(FG$8:FG$86,"=3",$D$8:$D$86,"=U14")+COUNTIFS(FG$8:FG$86,"=3",$D$8:$D$86,"=U16") -> 0
E110: JN Age 1st | Y110: 5 | AA110: =COUNTIFS(AA$8:AA$86,"=1",$D$8:$D$86,"=U18")+COUNTIFS(AA$8:AA$86,"=1",$D$8:$D$86,"=U21") -> 1 | AF110: =COUNTIFS(AF$8:AF$86,"=1",$D$8:$D$86,"=U18")+COUNTIFS(AF$8:AF$86,"=1",$D$8:$D$86,"=U21") -> 1 | AI110: =COUNTIFS(AI$8:AI$86,"=1",$D$8:$D$86,"=U18")+COUNTIFS(AI$8:AI$86,"=1",$D$8:$D$86,"=U21") -> 0 | AM110: =COUNTIFS(AM$8:AM$86,"=1",$D$8:$D$86,"=U18")+COUNTIFS(AM$8:AM$86,"=1",$D$8:$D$86,"=U21") -> 0 | AQ110: =COUNTIFS(AQ$8:AQ$86,"=1",$D$8:$D$86,"=U18")+COUNTIFS(AQ$8:AQ$86,"=1",$D$8:$D$86,"=U21") -> 1 | AT110: =COUNTIFS(AT$8:AT$86,"=1",$D$8:$D$86,"=U18")+COUNTIFS(AT$8:AT$86,"=1",$D$8:$D$86,"=U21") -> 0 | AW110: =COUNTIFS(AW$8:AW$86,"=1",$D$8:$D$86,"=U18")+COUNTIFS(AW$8:AW$86,"=1",$D$8:$D$86,"=U21") -> 0 | AZ110: =COUNTIFS(AZ$8:AZ$86,"=1",$D$8:$D$86,"=U18")+COUNTIFS(AZ$8:AZ$86,"=1",$D$8:$D$86,"=U21") -> 0 | BC110: =COUNTIFS(BC$8:BC$86,"=1",$D$8:$D$86,"=U18")+COUNTIFS(BC$8:BC$86,"=1",$D$8:$D$86,"=U21") -> 0 | BF110: =COUNTIFS(BF$8:BF$86,"=1",$D$8:$D$86,"=U18")+COUNTIFS(BF$8:BF$86,"=1",$D$8:$D$86,"=U21") -> 0 | BI110: =COUNTIFS(BI$8:BI$86,"=1",$D$8:$D$86,"=U18")+COUNTIFS(BI$8:BI$86,"=1",$D$8:$D$86,"=U21") -> 0 | BL110: =COUNTIFS(BL$8:BL$86,"=1",$D$8:$D$86,"=U18")+COUNTIFS(BL$8:BL$86,"=1",$D$8:$D$86,"=U21") -> 0 | BO110: =COUNTIFS(BO$8:BO$86,"=1",$D$8:$D$86,"=U18")+COUNTIFS(BO$8:BO$86,"=1",$D$8:$D$86,"=U21") -> 0 | BR110: =COUNTIFS(BR$8:BR$86,"=1",$D$8:$D$86,"=U18")+COUNTIFS(BR$8:BR$86,"=1",$D$8:$D$86,"=U21") -> 1 | BU110: =COUNTIFS(BU$8:BU$86,"=1",$D$8:$D$86,"=U18")+COUNTIFS(BU$8:BU$86,"=1",$D$8:$D$86,"=U21") -> 0 | BX110: =COUNTIFS(BX$8:BX$86,"=1",$D$8:$D$86,"=U18")+COUNTIFS(BX$8:BX$86,"=1",$D$8:$D$86,"=U21") -> 0 | CA110: =COUNTIFS(CA$8:CA$86,"=1",$D$8:$D$86,"=U18")+COUNTIFS(CA$8:CA$86,"=1",$D$8:$D$86,"=U21") -> 0 | CD110: =COUNTIFS(CD$8:CD$86,"=1",$D$8:$D$86,"=U18")+COUNTIFS(CD$8:CD$86,"=1",$D$8:$D$86,"=U21") -> 0 | CG110: =COUNTIFS(CG$8:CG$86,"=1",$D$8:$D$86,"=U18")+COUNTIFS(CG$8:CG$86,"=1",$D$8:$D$86,"=U21") -> 0 | CK110: =COUNTIFS(CK$8:CK$86,"=1",$D$8:$D$86,"=U18")+COUNTIFS(CK$8:CK$86,"=1",$D$8:$D$86,"=U21") -> 0 | CN110: =COUNTIFS(CN$8:CN$86,"=1",$D$8:$D$86,"=U18")+COUNTIFS(CN$8:CN$86,"=1",$D$8:$D$86,"=U21") -> 0 | CQ110: =COUNTIFS(CQ$8:CQ$86,"=1",$D$8:$D$86,"=U18")+COUNTIFS(CQ$8:CQ$86,"=1",$D$8:$D$86,"=U21") -> 0 | CT110: =COUNTIFS(CT$8:CT$86,"=1",$D$8:$D$86,"=U18")+COUNTIFS(CT$8:CT$86,"=1",$D$8:$D$86,"=U21") -> 0 | CW110: =COUNTIFS(CW$8:CW$86,"=1",$D$8:$D$86,"=U18")+COUNTIFS(CW$8:CW$86,"=1",$D$8:$D$86,"=U21") -> 0 | CZ110: =COUNTIFS(CZ$8:CZ$86,"=1",$D$8:$D$86,"=U18")+COUNTIFS(CZ$8:CZ$86,"=1",$D$8:$D$86,"=U21") -> 0 | DC110: =COUNTIFS(DC$8:DC$86,"=1",$D$8:$D$86,"=U18")+COUNTIFS(DC$8:DC$86,"=1",$D$8:$D$86,"=U21") -> 0 | DF110: =COUNTIFS(DF$8:DF$86,"=1",$D$8:$D$86,"=U18")+COUNTIFS(DF$8:DF$86,"=1",$D$8:$D$86,"=U21") -> 0 | DI110: =COUNTIFS(DI$8:DI$86,"=1",$D$8:$D$86,"=U18")+COUNTIFS(DI$8:DI$86,"=1",$D$8:$D$86,"=U21") -> 0 | DL110: =COUNTIFS(DL$8:DL$86,"=1",$D$8:$D$86,"=U18")+COUNTIFS(DL$8:DL$86,"=1",$D$8:$D$86,"=U21") -> 0 | DO110: =COUNTIFS(DO$8:DO$86,"=1",$D$8:$D$86,"=U18")+COUNTIFS(DO$8:DO$86,"=1",$D$8:$D$86,"=U21") -> 0 | DR110: =COUNTIFS(DR$8:DR$86,"=1",$D$8:$D$86,"=U18")+COUNTIFS(DR$8:DR$86,"=1",$D$8:$D$86,"=U21") -> 0 | DU110: =COUNTIFS(DU$8:DU$86,"=1",$D$8:$D$86,"=U18")+COUNTIFS(DU$8:DU$86,"=1",$D$8:$D$86,"=U21") -> 0 | DX110: =COUNTIFS(DX$8:DX$86,"=1",$D$8:$D$86,"=U18")+COUNTIFS(DX$8:DX$86,"=1",$D$8:$D$86,"=U21") -> 0 | EA110: =COUNTIFS(EA$8:EA$86,"=1",$D$8:$D$86,"=U18")+COUNTIFS(EA$8:EA$86,"=1",$D$8:$D$86,"=U21") -> 0 | ED110: =COUNTIFS(ED$8:ED$86,"=1",$D$8:$D$86,"=U18")+COUNTIFS(ED$8:ED$86,"=1",$D$8:$D$86,"=U21") -> 0 | EF110: =COUNTIFS(EF$8:EF$86,"=1",$D$8:$D$86,"=U18")+COUNTIFS(EF$8:EF$86,"=1",$D$8:$D$86,"=U21") -> 0 | EI110: =COUNTIFS(EI$8:EI$86,"=1",$D$8:$D$86,"=U18")+COUNTIFS(EI$8:EI$86,"=1",$D$8:$D$86,"=U21") -> 0 | EL110: =COUNTIFS(EL$8:EL$86,"=1",$D$8:$D$86,"=U18")+COUNTIFS(EL$8:EL$86,"=1",$D$8:$D$86,"=U21") -> 0 | EO110: =COUNTIFS(EO$8:EO$86,"=1",$D$8:$D$86,"=U18")+COUNTIFS(EO$8:EO$86,"=1",$D$8:$D$86,"=U21") -> 0 | ER110: =COUNTIFS(ER$8:ER$86,"=1",$D$8:$D$86,"=U18")+COUNTIFS(ER$8:ER$86,"=1",$D$8:$D$86,"=U21") -> 0 | EU110: =COUNTIFS(EU$8:EU$86,"=1",$D$8:$D$86,"=U18")+COUNTIFS(EU$8:EU$86,"=1",$D$8:$D$86,"=U21") -> 0 | EX110: =COUNTIFS(EX$8:EX$86,"=1",$D$8:$D$86,"=U18")+COUNTIFS(EX$8:EX$86,"=1",$D$8:$D$86,"=U21") -> 1 | FA110: =COUNTIFS(FA$8:FA$86,"=1",$D$8:$D$86,"=U18")+COUNTIFS(FA$8:FA$86,"=1",$D$8:$D$86,"=U21") -> 0 | FD110: =COUNTIFS(FD$8:FD$86,"=1",$D$8:$D$86,"=U18")+COUNTIFS(FD$8:FD$86,"=1",$D$8:$D$86,"=U21") -> 0 | FG110: =COUNTIFS(FG$8:FG$86,"=1",$D$8:$D$86,"=U18")+COUNTIFS(FG$8:FG$86,"=1",$D$8:$D$86,"=U21") -> 0
E111: JN Age 2nd | Y111: 8 | AA111: =COUNTIFS(AA$8:AA$86,"=2",$D$8:$D$86,"=U18")+COUNTIFS(AA$8:AA$86,"=2",$D$8:$D$86,"=U21") -> 1 | AF111: =COUNTIFS(AF$8:AF$86,"=2",$D$8:$D$86,"=U18")+COUNTIFS(AF$8:AF$86,"=2",$D$8:$D$86,"=U21") -> 0 | AI111: =COUNTIFS(AI$8:AI$86,"=2",$D$8:$D$86,"=U18")+COUNTIFS(AI$8:AI$86,"=2",$D$8:$D$86,"=U21") -> 0 | AM111: =COUNTIFS(AM$8:AM$86,"=2",$D$8:$D$86,"=U18")+COUNTIFS(AM$8:AM$86,"=2",$D$8:$D$86,"=U21") -> 0 | AQ111: =COUNTIFS(AQ$8:AQ$86,"=2",$D$8:$D$86,"=U18")+COUNTIFS(AQ$8:AQ$86,"=2",$D$8:$D$86,"=U21") -> 0 | AT111: =COUNTIFS(AT$8:AT$86,"=2",$D$8:$D$86,"=U18")+COUNTIFS(AT$8:AT$86,"=2",$D$8:$D$86,"=U21") -> 1 | AW111: =COUNTIFS(AW$8:AW$86,"=2",$D$8:$D$86,"=U18")+COUNTIFS(AW$8:AW$86,"=2",$D$8:$D$86,"=U21") -> 0 | AZ111: =COUNTIFS(AZ$8:AZ$86,"=2",$D$8:$D$86,"=U18")+COUNTIFS(AZ$8:AZ$86,"=2",$D$8:$D$86,"=U21") -> 1 | BC111: =COUNTIFS(BC$8:BC$86,"=2",$D$8:$D$86,"=U18")+COUNTIFS(BC$8:BC$86,"=2",$D$8:$D$86,"=U21") -> 1 | BF111: =COUNTIFS(BF$8:BF$86,"=2",$D$8:$D$86,"=U18")+COUNTIFS(BF$8:BF$86,"=2",$D$8:$D$86,"=U21") -> 0 | BI111: =COUNTIFS(BI$8:BI$86,"=2",$D$8:$D$86,"=U18")+COUNTIFS(BI$8:BI$86,"=2",$D$8:$D$86,"=U21") -> 0 | BL111: =COUNTIFS(BL$8:BL$86,"=2",$D$8:$D$86,"=U18")+COUNTIFS(BL$8:BL$86,"=2",$D$8:$D$86,"=U21") -> 0 | BO111: =COUNTIFS(BO$8:BO$86,"=2",$D$8:$D$86,"=U18")+COUNTIFS(BO$8:BO$86,"=2",$D$8:$D$86,"=U21") -> 0 | BR111: =COUNTIFS(BR$8:BR$86,"=2",$D$8:$D$86,"=U18")+COUNTIFS(BR$8:BR$86,"=2",$D$8:$D$86,"=U21") -> 0 | BU111: =COUNTIFS(BU$8:BU$86,"=2",$D$8:$D$86,"=U18")+COUNTIFS(BU$8:BU$86,"=2",$D$8:$D$86,"=U21") -> 0 | BX111: =COUNTIFS(BX$8:BX$86,"=2",$D$8:$D$86,"=U18")+COUNTIFS(BX$8:BX$86,"=2",$D$8:$D$86,"=U21") -> 0 | CA111: =COUNTIFS(CA$8:CA$86,"=2",$D$8:$D$86,"=U18")+COUNTIFS(CA$8:CA$86,"=2",$D$8:$D$86,"=U21") -> 0 | CD111: =COUNTIFS(CD$8:CD$86,"=2",$D$8:$D$86,"=U18")+COUNTIFS(CD$8:CD$86,"=2",$D$8:$D$86,"=U21") -> 0 | CG111: =COUNTIFS(CG$8:CG$86,"=2",$D$8:$D$86,"=U18")+COUNTIFS(CG$8:CG$86,"=2",$D$8:$D$86,"=U21") -> 0 | CK111: =COUNTIFS(CK$8:CK$86,"=2",$D$8:$D$86,"=U18")+COUNTIFS(CK$8:CK$86,"=2",$D$8:$D$86,"=U21") -> 0 | CN111: =COUNTIFS(CN$8:CN$86,"=2",$D$8:$D$86,"=U18")+COUNTIFS(CN$8:CN$86,"=2",$D$8:$D$86,"=U21") -> 0 | CQ111: =COUNTIFS(CQ$8:CQ$86,"=2",$D$8:$D$86,"=U18")+COUNTIFS(CQ$8:CQ$86,"=2",$D$8:$D$86,"=U21") -> 0 | CT111: =COUNTIFS(CT$8:CT$86,"=2",$D$8:$D$86,"=U18")+COUNTIFS(CT$8:CT$86,"=2",$D$8:$D$86,"=U21") -> 0 | CW111: =COUNTIFS(CW$8:CW$86,"=2",$D$8:$D$86,"=U18")+COUNTIFS(CW$8:CW$86,"=2",$D$8:$D$86,"=U21") -> 2 | CZ111: =COUNTIFS(CZ$8:CZ$86,"=2",$D$8:$D$86,"=U18")+COUNTIFS(CZ$8:CZ$86,"=2",$D$8:$D$86,"=U21") -> 0 | DC111: =COUNTIFS(DC$8:DC$86,"=2",$D$8:$D$86,"=U18")+COUNTIFS(DC$8:DC$86,"=2",$D$8:$D$86,"=U21") -> 0 | DF111: =COUNTIFS(DF$8:DF$86,"=2",$D$8:$D$86,"=U18")+COUNTIFS(DF$8:DF$86,"=2",$D$8:$D$86,"=U21") -> 0 | DI111: =COUNTIFS(DI$8:DI$86,"=2",$D$8:$D$86,"=U18")+COUNTIFS(DI$8:DI$86,"=2",$D$8:$D$86,"=U21") -> 0 | DL111: =COUNTIFS(DL$8:DL$86,"=2",$D$8:$D$86,"=U18")+COUNTIFS(DL$8:DL$86,"=2",$D$8:$D$86,"=U21") -> 0 | DO111: =COUNTIFS(DO$8:DO$86,"=2",$D$8:$D$86,"=U18")+COUNTIFS(DO$8:DO$86,"=2",$D$8:$D$86,"=U21") -> 0 | DR111: =COUNTIFS(DR$8:DR$86,"=2",$D$8:$D$86,"=U18")+COUNTIFS(DR$8:DR$86,"=2",$D$8:$D$86,"=U21") -> 1 | DU111: =COUNTIFS(DU$8:DU$86,"=2",$D$8:$D$86,"=U18")+COUNTIFS(DU$8:DU$86,"=2",$D$8:$D$86,"=U21") -> 0 | DX111: =COUNTIFS(DX$8:DX$86,"=2",$D$8:$D$86,"=U18")+COUNTIFS(DX$8:DX$86,"=2",$D$8:$D$86,"=U21") -> 0 | EA111: =COUNTIFS(EA$8:EA$86,"=2",$D$8:$D$86,"=U18")+COUNTIFS(EA$8:EA$86,"=2",$D$8:$D$86,"=U21") -> 1 | ED111: =COUNTIFS(ED$8:ED$86,"=2",$D$8:$D$86,"=U18")+COUNTIFS(ED$8:ED$86,"=2",$D$8:$D$86,"=U21") -> 0 | EF111: =COUNTIFS(EF$8:EF$86,"=2",$D$8:$D$86,"=U18")+COUNTIFS(EF$8:EF$86,"=2",$D$8:$D$86,"=U21") -> 0 | EI111: =COUNTIFS(EI$8:EI$86,"=2",$D$8:$D$86,"=U18")+COUNTIFS(EI$8:EI$86,"=2",$D$8:$D$86,"=U21") -> 0 | EL111: =COUNTIFS(EL$8:EL$86,"=2",$D$8:$D$86,"=U18")+COUNTIFS(EL$8:EL$86,"=2",$D$8:$D$86,"=U21") -> 0 | EO111: =COUNTIFS(EO$8:EO$86,"=2",$D$8:$D$86,"=U18")+COUNTIFS(EO$8:EO$86,"=2",$D$8:$D$86,"=U21") -> 0 | ER111: =COUNTIFS(ER$8:ER$86,"=2",$D$8:$D$86,"=U18")+COUNTIFS(ER$8:ER$86,"=2",$D$8:$D$86,"=U21") -> 0 | EU111: =COUNTIFS(EU$8:EU$86,"=2",$D$8:$D$86,"=U18")+COUNTIFS(EU$8:EU$86,"=2",$D$8:$D$86,"=U21") -> 0 | EX111: =COUNTIFS(EX$8:EX$86,"=2",$D$8:$D$86,"=U18")+COUNTIFS(EX$8:EX$86,"=2",$D$8:$D$86,"=U21") -> 0 | FA111: =COUNTIFS(FA$8:FA$86,"=2",$D$8:$D$86,"=U18")+COUNTIFS(FA$8:FA$86,"=2",$D$8:$D$86,"=U21") -> 0 | FD111: =COUNTIFS(FD$8:FD$86,"=2",$D$8:$D$86,"=U18")+COUNTIFS(FD$8:FD$86,"=2",$D$8:$D$86,"=U21") -> 0 | FG111: =COUNTIFS(FG$8:FG$86,"=2",$D$8:$D$86,"=U18")+COUNTIFS(FG$8:FG$86,"=2",$D$8:$D$86,"=U21") -> 0
E112: JN Age 3rd | Y112: 9 | AA112: =COUNTIFS(AA$8:AA$86,"=3",$D$8:$D$86,"=U18")+COUNTIFS(AA$8:AA$86,"=3",$D$8:$D$86,"=U21") -> 0 | AF112: =COUNTIFS(AF$8:AF$86,"=3",$D$8:$D$86,"=U18")+COUNTIFS(AF$8:AF$86,"=3",$D$8:$D$86,"=U21") -> 0 | AI112: =COUNTIFS(AI$8:AI$86,"=3",$D$8:$D$86,"=U18")+COUNTIFS(AI$8:AI$86,"=3",$D$8:$D$86,"=U21") -> 0 | AM112: =COUNTIFS(AM$8:AM$86,"=3",$D$8:$D$86,"=U18")+COUNTIFS(AM$8:AM$86,"=3",$D$8:$D$86,"=U21") -> 1 | AQ112: =COUNTIFS(AQ$8:AQ$86,"=3",$D$8:$D$86,"=U18")+COUNTIFS(AQ$8:AQ$86,"=3",$D$8:$D$86,"=U21") -> 0 | AT112: =COUNTIFS(AT$8:AT$86,"=3",$D$8:$D$86,"=U18")+COUNTIFS(AT$8:AT$86,"=3",$D$8:$D$86,"=U21") -> 0 | AW112: =COUNTIFS(AW$8:AW$86,"=3",$D$8:$D$86,"=U18")+COUNTIFS(AW$8:AW$86,"=3",$D$8:$D$86,"=U21") -> 0 | AZ112: =COUNTIFS(AZ$8:AZ$86,"=3",$D$8:$D$86,"=U18")+COUNTIFS(AZ$8:AZ$86,"=3",$D$8:$D$86,"=U21") -> 0 | BC112: =COUNTIFS(BC$8:BC$86,"=3",$D$8:$D$86,"=U18")+COUNTIFS(BC$8:BC$86,"=3",$D$8:$D$86,"=U21") -> 0 | BF112: =COUNTIFS(BF$8:BF$86,"=3",$D$8:$D$86,"=U18")+COUNTIFS(BF$8:BF$86,"=3",$D$8:$D$86,"=U21") -> 0 | BI112: =COUNTIFS(BI$8:BI$86,"=3",$D$8:$D$86,"=U18")+COUNTIFS(BI$8:BI$86,"=3",$D$8:$D$86,"=U21") -> 0 | BL112: =COUNTIFS(BL$8:BL$86,"=3",$D$8:$D$86,"=U18")+COUNTIFS(BL$8:BL$86,"=3",$D$8:$D$86,"=U21") -> 0 | BO112: =COUNTIFS(BO$8:BO$86,"=3",$D$8:$D$86,"=U18")+COUNTIFS(BO$8:BO$86,"=3",$D$8:$D$86,"=U21") -> 0 | BR112: =COUNTIFS(BR$8:BR$86,"=3",$D$8:$D$86,"=U18")+COUNTIFS(BR$8:BR$86,"=3",$D$8:$D$86,"=U21") -> 0 | BU112: =COUNTIFS(BU$8:BU$86,"=3",$D$8:$D$86,"=U18")+COUNTIFS(BU$8:BU$86,"=3",$D$8:$D$86,"=U21") -> 0 | BX112: =COUNTIFS(BX$8:BX$86,"=3",$D$8:$D$86,"=U18")+COUNTIFS(BX$8:BX$86,"=3",$D$8:$D$86,"=U21") -> 0 | CA112: =COUNTIFS(CA$8:CA$86,"=3",$D$8:$D$86,"=U18")+COUNTIFS(CA$8:CA$86,"=3",$D$8:$D$86,"=U21") -> 1 | CD112: =COUNTIFS(CD$8:CD$86,"=3",$D$8:$D$86,"=U18")+COUNTIFS(CD$8:CD$86,"=3",$D$8:$D$86,"=U21") -> 0 | CG112: =COUNTIFS(CG$8:CG$86,"=3",$D$8:$D$86,"=U18")+COUNTIFS(CG$8:CG$86,"=3",$D$8:$D$86,"=U21") -> 0 | CK112: =COUNTIFS(CK$8:CK$86,"=3",$D$8:$D$86,"=U18")+COUNTIFS(CK$8:CK$86,"=3",$D$8:$D$86,"=U21") -> 0 | CN112: =COUNTIFS(CN$8:CN$86,"=3",$D$8:$D$86,"=U18")+COUNTIFS(CN$8:CN$86,"=3",$D$8:$D$86,"=U21") -> 0 | CQ112: =COUNTIFS(CQ$8:CQ$86,"=3",$D$8:$D$86,"=U18")+COUNTIFS(CQ$8:CQ$86,"=3",$D$8:$D$86,"=U21") -> 0 | CT112: =COUNTIFS(CT$8:CT$86,"=3",$D$8:$D$86,"=U18")+COUNTIFS(CT$8:CT$86,"=3",$D$8:$D$86,"=U21") -> 1 | CW112: =COUNTIFS(CW$8:CW$86,"=3",$D$8:$D$86,"=U18")+COUNTIFS(CW$8:CW$86,"=3",$D$8:$D$86,"=U21") -> 1 | CZ112: =COUNTIFS(CZ$8:CZ$86,"=3",$D$8:$D$86,"=U18")+COUNTIFS(CZ$8:CZ$86,"=3",$D$8:$D$86,"=U21") -> 0 | DC112: =COUNTIFS(DC$8:DC$86,"=3",$D$8:$D$86,"=U18")+COUNTIFS(DC$8:DC$86,"=3",$D$8:$D$86,"=U21") -> 1 | DF112: =COUNTIFS(DF$8:DF$86,"=3",$D$8:$D$86,"=U18")+COUNTIFS(DF$8:DF$86,"=3",$D$8:$D$86,"=U21") -> 0 | DI112: =COUNTIFS(DI$8:DI$86,"=3",$D$8:$D$86,"=U18")+COUNTIFS(DI$8:DI$86,"=3",$D$8:$D$86,"=U21") -> 0 | DL112: =COUNTIFS(DL$8:DL$86,"=3",$D$8:$D$86,"=U18")+COUNTIFS(DL$8:DL$86,"=3",$D$8:$D$86,"=U21") -> 0 | DO112: =COUNTIFS(DO$8:DO$86,"=3",$D$8:$D$86,"=U18")+COUNTIFS(DO$8:DO$86,"=3",$D$8:$D$86,"=U21") -> 0 | DR112: =COUNTIFS(DR$8:DR$86,"=3",$D$8:$D$86,"=U18")+COUNTIFS(DR$8:DR$86,"=3",$D$8:$D$86,"=U21") -> 2 | DU112: =COUNTIFS(DU$8:DU$86,"=3",$D$8:$D$86,"=U18")+COUNTIFS(DU$8:DU$86,"=3",$D$8:$D$86,"=U21") -> 0 | DX112: =COUNTIFS(DX$8:DX$86,"=3",$D$8:$D$86,"=U18")+COUNTIFS(DX$8:DX$86,"=3",$D$8:$D$86,"=U21") -> 0 | EA112: =COUNTIFS(EA$8:EA$86,"=3",$D$8:$D$86,"=U18")+COUNTIFS(EA$8:EA$86,"=3",$D$8:$D$86,"=U21") -> 0 | ED112: =COUNTIFS(ED$8:ED$86,"=3",$D$8:$D$86,"=U18")+COUNTIFS(ED$8:ED$86,"=3",$D$8:$D$86,"=U21") -> 0 | EF112: =COUNTIFS(EF$8:EF$86,"=3",$D$8:$D$86,"=U18")+COUNTIFS(EF$8:EF$86,"=3",$D$8:$D$86,"=U21") -> 0 | EI112: =COUNTIFS(EI$8:EI$86,"=3",$D$8:$D$86,"=U18")+COUNTIFS(EI$8:EI$86,"=3",$D$8:$D$86,"=U21") -> 1 | EL112: =COUNTIFS(EL$8:EL$86,"=3",$D$8:$D$86,"=U18")+COUNTIFS(EL$8:EL$86,"=3",$D$8:$D$86,"=U21") -> 1 | EO112: =COUNTIFS(EO$8:EO$86,"=3",$D$8:$D$86,"=U18")+COUNTIFS(EO$8:EO$86,"=3",$D$8:$D$86,"=U21") -> 0 | ER112: =COUNTIFS(ER$8:ER$86,"=3",$D$8:$D$86,"=U18")+COUNTIFS(ER$8:ER$86,"=3",$D$8:$D$86,"=U21") -> 0 | EU112: =COUNTIFS(EU$8:EU$86,"=3",$D$8:$D$86,"=U18")+COUNTIFS(EU$8:EU$86,"=3",$D$8:$D$86,"=U21") -> 0 | EX112: =COUNTIFS(EX$8:EX$86,"=3",$D$8:$D$86,"=U18")+COUNTIFS(EX$8:EX$86,"=3",$D$8:$D$86,"=U21") -> 0 | FA112: =COUNTIFS(FA$8:FA$86,"=3",$D$8:$D$86,"=U18")+COUNTIFS(FA$8:FA$86,"=3",$D$8:$D$86,"=U21") -> 0 | FD112: =COUNTIFS(FD$8:FD$86,"=3",$D$8:$D$86,"=U18")+COUNTIFS(FD$8:FD$86,"=3",$D$8:$D$86,"=U21") -> 0 | FG112: =COUNTIFS(FG$8:FG$86,"=3",$D$8:$D$86,"=U18")+COUNTIFS(FG$8:FG$86,"=3",$D$8:$D$86,"=U21") -> 0
E113: SEN Age 1st | Y113: 4 | AA113: =COUNTIFS(AA$8:AA$86,"=1",$D$8:$D$86,"=SEN") -> 0 | AF113: =COUNTIFS(AF$8:AF$86,"=1",$D$8:$D$86,"=SEN") -> 1 | AI113: =COUNTIFS(AI$8:AI$86,"=1",$D$8:$D$86,"=SEN") -> 0 | AM113: =COUNTIFS(AM$8:AM$86,"=1",$D$8:$D$86,"=SEN") -> 0 | AQ113: =COUNTIFS(AQ$8:AQ$86,"=1",$D$8:$D$86,"=SEN") -> 0 | AT113: =COUNTIFS(AT$8:AT$86,"=1",$D$8:$D$86,"=SEN") -> 0 | AW113: =COUNTIFS(AW$8:AW$86,"=1",$D$8:$D$86,"=SEN") -> 0 | AZ113: =COUNTIFS(AZ$8:AZ$86,"=1",$D$8:$D$86,"=SEN") -> 0 | BC113: =COUNTIFS(BC$8:BC$86,"=1",$D$8:$D$86,"=SEN") -> 0 | BF113: =COUNTIFS(BF$8:BF$86,"=1",$D$8:$D$86,"=SEN") -> 0 | BI113: =COUNTIFS(BI$8:BI$86,"=1",$D$8:$D$86,"=SEN") -> 0 | BL113: =COUNTIFS(BL$8:BL$86,"=1",$D$8:$D$86,"=SEN") -> 0 | BO113: =COUNTIFS(BO$8:BO$86,"=1",$D$8:$D$86,"=SEN") -> 0 | BR113: =COUNTIFS(BR$8:BR$86,"=1",$D$8:$D$86,"=SEN") -> 0 | BU113: =COUNTIFS(BU$8:BU$86,"=1",$D$8:$D$86,"=SEN") -> 0 | BX113: =COUNTIFS(BX$8:BX$86,"=1",$D$8:$D$86,"=SEN") -> 0 | CA113: =COUNTIFS(CA$8:CA$86,"=1",$D$8:$D$86,"=SEN") -> 1 | CD113: =COUNTIFS(CD$8:CD$86,"=1",$D$8:$D$86,"=SEN") -> 0 | CG113: =COUNTIFS(CG$8:CG$86,"=1",$D$8:$D$86,"=SEN") -> 0 | CK113: =COUNTIFS(CK$8:CK$86,"=1",$D$8:$D$86,"=SEN") -> 1 | CN113: =COUNTIFS(CN$8:CN$86,"=1",$D$8:$D$86,"=SEN") -> 0 | CQ113: =COUNTIFS(CQ$8:CQ$86,"=1",$D$8:$D$86,"=SEN") -> 1 | CT113: =COUNTIFS(CT$8:CT$86,"=1",$D$8:$D$86,"=SEN") -> 0 | CW113: =COUNTIFS(CW$8:CW$86,"=1",$D$8:$D$86,"=SEN") -> 0 | CZ113: =COUNTIFS(CZ$8:CZ$86,"=1",$D$8:$D$86,"=SEN") -> 0 | DC113: =COUNTIFS(DC$8:DC$86,"=1",$D$8:$D$86,"=SEN") -> 0 | DF113: =COUNTIFS(DF$8:DF$86,"=1",$D$8:$D$86,"=SEN") -> 0 | DI113: =COUNTIFS(DI$8:DI$86,"=1",$D$8:$D$86,"=SEN") -> 0 | DL113: =COUNTIFS(DL$8:DL$86,"=1",$D$8:$D$86,"=SEN") -> 0 | DO113: =COUNTIFS(DO$8:DO$86,"=1",$D$8:$D$86,"=SEN") -> 0 | DR113: =COUNTIFS(DR$8:DR$86,"=1",$D$8:$D$86,"=SEN") -> 0 | DU113: =COUNTIFS(DU$8:DU$86,"=1",$D$8:$D$86,"=SEN") -> 0 | DX113: =COUNTIFS(DX$8:DX$86,"=1",$D$8:$D$86,"=SEN") -> 0 | EA113: =COUNTIFS(EA$8:EA$86,"=1",$D$8:$D$86,"=SEN") -> 0 | ED113: =COUNTIFS(ED$8:ED$86,"=1",$D$8:$D$86,"=SEN") -> 0 | EF113: =COUNTIFS(EF$8:EF$86,"=1",$D$8:$D$86,"=SEN") -> 0 | EI113: =COUNTIFS(EI$8:EI$86,"=1",$D$8:$D$86,"=SEN") -> 0 | EL113: =COUNTIFS(EL$8:EL$86,"=1",$D$8:$D$86,"=SEN") -> 0 | EO113: =COUNTIFS(EO$8:EO$86,"=1",$D$8:$D$86,"=SEN") -> 0 | ER113: =COUNTIFS(ER$8:ER$86,"=1",$D$8:$D$86,"=SEN") -> 0 | EU113: =COUNTIFS(EU$8:EU$86,"=1",$D$8:$D$86,"=SEN") -> 0 | EX113: =COUNTIFS(EX$8:EX$86,"=1",$D$8:$D$86,"=SEN") -> 0 | FA113: =COUNTIFS(FA$8:FA$86,"=1",$D$8:$D$86,"=SEN") -> 0 | FD113: =COUNTIFS(FD$8:FD$86,"=1",$D$8:$D$86,"=SEN") -> 0 | FG113: =COUNTIFS(FG$8:FG$86,"=1",$D$8:$D$86,"=SEN") -> 0
E114: SEN Age 2nd | Y114: 2 | AA114: =COUNTIFS(AA$8:AA$86,"=2",$D$8:$D$86,"=SEN") -> 0 | AF114: =COUNTIFS(AF$8:AF$86,"=2",$D$8:$D$86,"=SEN") -> 0 | AI114: =COUNTIFS(AI$8:AI$86,"=2",$D$8:$D$86,"=SEN") -> 0 | AM114: =COUNTIFS(AM$8:AM$86,"=2",$D$8:$D$86,"=SEN") -> 0 | AQ114: =COUNTIFS(AQ$8:AQ$86,"=2",$D$8:$D$86,"=SEN") -> 0 | AT114: =COUNTIFS(AT$8:AT$86,"=2",$D$8:$D$86,"=SEN") -> 0 | AW114: =COUNTIFS(AW$8:AW$86,"=2",$D$8:$D$86,"=SEN") -> 0 | AZ114: =COUNTIFS(AZ$8:AZ$86,"=2",$D$8:$D$86,"=SEN") -> 0 | BC114: =COUNTIFS(BC$8:BC$86,"=2",$D$8:$D$86,"=SEN") -> 0 | BF114: =COUNTIFS(BF$8:BF$86,"=2",$D$8:$D$86,"=SEN") -> 0 | BI114: =COUNTIFS(BI$8:BI$86,"=2",$D$8:$D$86,"=SEN") -> 0 | BL114: =COUNTIFS(BL$8:BL$86,"=2",$D$8:$D$86,"=SEN") -> 0 | BO114: =COUNTIFS(BO$8:BO$86,"=2",$D$8:$D$86,"=SEN") -> 0 | BR114: =COUNTIFS(BR$8:BR$86,"=2",$D$8:$D$86,"=SEN") -> 0 | BU114: =COUNTIFS(BU$8:BU$86,"=2",$D$8:$D$86,"=SEN") -> 0 | BX114: =COUNTIFS(BX$8:BX$86,"=2",$D$8:$D$86,"=SEN") -> 0 | CA114: =COUNTIFS(CA$8:CA$86,"=2",$D$8:$D$86,"=SEN") -> 1 | CD114: =COUNTIFS(CD$8:CD$86,"=2",$D$8:$D$86,"=SEN") -> 0 | CG114: =COUNTIFS(CG$8:CG$86,"=2",$D$8:$D$86,"=SEN") -> 0 | CK114: =COUNTIFS(CK$8:CK$86,"=2",$D$8:$D$86,"=SEN") -> 0 | CN114: =COUNTIFS(CN$8:CN$86,"=2",$D$8:$D$86,"=SEN") -> 0 | CQ114: =COUNTIFS(CQ$8:CQ$86,"=2",$D$8:$D$86,"=SEN") -> 0 | CT114: =COUNTIFS(CT$8:CT$86,"=2",$D$8:$D$86,"=SEN") -> 0 | CW114: =COUNTIFS(CW$8:CW$86,"=2",$D$8:$D$86,"=SEN") -> 1 | CZ114: =COUNTIFS(CZ$8:CZ$86,"=2",$D$8:$D$86,"=SEN") -> 0 | DC114: =COUNTIFS(DC$8:DC$86,"=2",$D$8:$D$86,"=SEN") -> 0 | DF114: =COUNTIFS(DF$8:DF$86,"=2",$D$8:$D$86,"=SEN") -> 0 | DI114: =COUNTIFS(DI$8:DI$86,"=2",$D$8:$D$86,"=SEN") -> 0 | DL114: =COUNTIFS(DL$8:DL$86,"=2",$D$8:$D$86,"=SEN") -> 0 | DO114: =COUNTIFS(DO$8:DO$86,"=2",$D$8:$D$86,"=SEN") -> 0 | DR114: =COUNTIFS(DR$8:DR$86,"=2",$D$8:$D$86,"=SEN") -> 0 | DU114: =COUNTIFS(DU$8:DU$86,"=2",$D$8:$D$86,"=SEN") -> 0 | DX114: =COUNTIFS(DX$8:DX$86,"=2",$D$8:$D$86,"=SEN") -> 0 | EA114: =COUNTIFS(EA$8:EA$86,"=2",$D$8:$D$86,"=SEN") -> 0 | ED114: =COUNTIFS(ED$8:ED$86,"=2",$D$8:$D$86,"=SEN") -> 0 | EF114: =COUNTIFS(EF$8:EF$86,"=2",$D$8:$D$86,"=SEN") -> 0 | EI114: =COUNTIFS(EI$8:EI$86,"=2",$D$8:$D$86,"=SEN") -> 0 | EL114: =COUNTIFS(EL$8:EL$86,"=2",$D$8:$D$86,"=SEN") -> 0 | EO114: =COUNTIFS(EO$8:EO$86,"=2",$D$8:$D$86,"=SEN") -> 0 | ER114: =COUNTIFS(ER$8:ER$86,"=2",$D$8:$D$86,"=SEN") -> 0 | EU114: =COUNTIFS(EU$8:EU$86,"=2",$D$8:$D$86,"=SEN") -> 0 | EX114: =COUNTIFS(EX$8:EX$86,"=2",$D$8:$D$86,"=SEN") -> 0 | FA114: =COUNTIFS(FA$8:FA$86,"=2",$D$8:$D$86,"=SEN") -> 0 | FD114: =COUNTIFS(FD$8:FD$86,"=2",$D$8:$D$86,"=SEN") -> 0 | FG114: =COUNTIFS(FG$8:FG$86,"=2",$D$8:$D$86,"=SEN") -> 0
E115: SEN Age 3rd | Y115: 7 | AA115: =COUNTIFS(AA$8:AA$86,"=3",$D$8:$D$86,"=SEN") -> 0 | AF115: =COUNTIFS(AF$8:AF$86,"=3",$D$8:$D$86,"=SEN") -> 1 | AI115: =COUNTIFS(AI$8:AI$86,"=3",$D$8:$D$86,"=SEN") -> 0 | AM115: =COUNTIFS(AM$8:AM$86,"=3",$D$8:$D$86,"=SEN") -> 0 | AQ115: =COUNTIFS(AQ$8:AQ$86,"=3",$D$8:$D$86,"=SEN") -> 0 | AT115: =COUNTIFS(AT$8:AT$86,"=3",$D$8:$D$86,"=SEN") -> 1 | AW115: =COUNTIFS(AW$8:AW$86,"=3",$D$8:$D$86,"=SEN") -> 0 | AZ115: =COUNTIFS(AZ$8:AZ$86,"=3",$D$8:$D$86,"=SEN") -> 0 | BC115: =COUNTIFS(BC$8:BC$86,"=3",$D$8:$D$86,"=SEN") -> 0 | BF115: =COUNTIFS(BF$8:BF$86,"=3",$D$8:$D$86,"=SEN") -> 0 | BI115: =COUNTIFS(BI$8:BI$86,"=3",$D$8:$D$86,"=SEN") -> 0 | BL115: =COUNTIFS(BL$8:BL$86,"=3",$D$8:$D$86,"=SEN") -> 1 | BO115: =COUNTIFS(BO$8:BO$86,"=3",$D$8:$D$86,"=SEN") -> 0 | BR115: =COUNTIFS(BR$8:BR$86,"=3",$D$8:$D$86,"=SEN") -> 0 | BU115: =COUNTIFS(BU$8:BU$86,"=3",$D$8:$D$86,"=SEN") -> 0 | BX115: =COUNTIFS(BX$8:BX$86,"=3",$D$8:$D$86,"=SEN") -> 0 | CA115: =COUNTIFS(CA$8:CA$86,"=3",$D$8:$D$86,"=SEN") -> 0 | CD115: =COUNTIFS(CD$8:CD$86,"=3",$D$8:$D$86,"=SEN") -> 0 | CG115: =COUNTIFS(CG$8:CG$86,"=3",$D$8:$D$86,"=SEN") -> 0 | CK115: =COUNTIFS(CK$8:CK$86,"=3",$D$8:$D$86,"=SEN") -> 0 | CN115: =COUNTIFS(CN$8:CN$86,"=3",$D$8:$D$86,"=SEN") -> 0 | CQ115: =COUNTIFS(CQ$8:CQ$86,"=3",$D$8:$D$86,"=SEN") -> 1 | CT115: =COUNTIFS(CT$8:CT$86,"=3",$D$8:$D$86,"=SEN") -> 1 | CW115: =COUNTIFS(CW$8:CW$86,"=3",$D$8:$D$86,"=SEN") -> 0 | CZ115: =COUNTIFS(CZ$8:CZ$86,"=3",$D$8:$D$86,"=SEN") -> 0 | DC115: =COUNTIFS(DC$8:DC$86,"=3",$D$8:$D$86,"=SEN") -> 1 | DF115: =COUNTIFS(DF$8:DF$86,"=3",$D$8:$D$86,"=SEN") -> 0 | DI115: =COUNTIFS(DI$8:DI$86,"=3",$D$8:$D$86,"=SEN") -> 0 | DL115: =COUNTIFS(DL$8:DL$86,"=3",$D$8:$D$86,"=SEN") -> 0 | DO115: =COUNTIFS(DO$8:DO$86,"=3",$D$8:$D$86,"=SEN") -> 0 | DR115: =COUNTIFS(DR$8:DR$86,"=3",$D$8:$D$86,"=SEN") -> 1 | DU115: =COUNTIFS(DU$8:DU$86,"=3",$D$8:$D$86,"=SEN") -> 0 | DX115: =COUNTIFS(DX$8:DX$86,"=3",$D$8:$D$86,"=SEN") -> 0 | EA115: =COUNTIFS(EA$8:EA$86,"=3",$D$8:$D$86,"=SEN") -> 0 | ED115: =COUNTIFS(ED$8:ED$86,"=3",$D$8:$D$86,"=SEN") -> 0 | EF115: =COUNTIFS(EF$8:EF$86,"=3",$D$8:$D$86,"=SEN") -> 0 | EI115: =COUNTIFS(EI$8:EI$86,"=3",$D$8:$D$86,"=SEN") -> 0 | EL115: =COUNTIFS(EL$8:EL$86,"=3",$D$8:$D$86,"=SEN") -> 0 | EO115: =COUNTIFS(EO$8:EO$86,"=3",$D$8:$D$86,"=SEN") -> 0 | ER115: =COUNTIFS(ER$8:ER$86,"=3",$D$8:$D$86,"=SEN") -> 0 | EU115: =COUNTIFS(EU$8:EU$86,"=3",$D$8:$D$86,"=SEN") -> 0 | EX115: =COUNTIFS(EX$8:EX$86,"=3",$D$8:$D$86,"=SEN") -> 0 | FA115: =COUNTIFS(FA$8:FA$86,"=3",$D$8:$D$86,"=SEN") -> 0 | FD115: =COUNTIFS(FD$8:FD$86,"=3",$D$8:$D$86,"=SEN") -> 0 | FG115: =COUNTIFS(FG$8:FG$86,"=3",$D$8:$D$86,"=SEN") -> 0
E116: MAS Age 1st | Y116: 8 | AA116: =COUNTIFS(AA$8:AA$86,"=1",$D$8:$D$86,"=MAS") -> 0 | AF116: =COUNTIFS(AF$8:AF$86,"=1",$D$8:$D$86,"=MAS") -> 1 | AI116: =COUNTIFS(AI$8:AI$86,"=1",$D$8:$D$86,"=MAS") -> 0 | AM116: =COUNTIFS(AM$8:AM$86,"=1",$D$8:$D$86,"=MAS") -> 0 | AQ116: =COUNTIFS(AQ$8:AQ$86,"=1",$D$8:$D$86,"=MAS") -> 1 | AT116: =COUNTIFS(AT$8:AT$86,"=1",$D$8:$D$86,"=MAS") -> 0 | AW116: =COUNTIFS(AW$8:AW$86,"=1",$D$8:$D$86,"=MAS") -> 0 | AZ116: =COUNTIFS(AZ$8:AZ$86,"=1",$D$8:$D$86,"=MAS") -> 0 | BC116: =COUNTIFS(BC$8:BC$86,"=1",$D$8:$D$86,"=MAS") -> 1 | BF116: =COUNTIFS(BF$8:BF$86,"=1",$D$8:$D$86,"=MAS") -> 0 | BI116: =COUNTIFS(BI$8:BI$86,"=1",$D$8:$D$86,"=MAS") -> 1 | BL116: =COUNTIFS(BL$8:BL$86,"=1",$D$8:$D$86,"=MAS") -> 0 | BO116: =COUNTIFS(BO$8:BO$86,"=1",$D$8:$D$86,"=MAS") -> 0 | BR116: =COUNTIFS(BR$8:BR$86,"=1",$D$8:$D$86,"=MAS") -> 0 | BU116: =COUNTIFS(BU$8:BU$86,"=1",$D$8:$D$86,"=MAS") -> 0 | BX116: =COUNTIFS(BX$8:BX$86,"=1",$D$8:$D$86,"=MAS") -> 0 | CA116: =COUNTIFS(CA$8:CA$86,"=1",$D$8:$D$86,"=MAS") -> 0 | CD116: =COUNTIFS(CD$8:CD$86,"=1",$D$8:$D$86,"=MAS") -> 0 | CG116: =COUNTIFS(CG$8:CG$86,"=1",$D$8:$D$86,"=MAS") -> 0 | CK116: =COUNTIFS(CK$8:CK$86,"=1",$D$8:$D$86,"=MAS") -> 0 | CN116: =COUNTIFS(CN$8:CN$86,"=1",$D$8:$D$86,"=MAS") -> 0 | CQ116: =COUNTIFS(CQ$8:CQ$86,"=1",$D$8:$D$86,"=MAS") -> 0 | CT116: =COUNTIFS(CT$8:CT$86,"=1",$D$8:$D$86,"=MAS") -> 0 | CW116: =COUNTIFS(CW$8:CW$86,"=1",$D$8:$D$86,"=MAS") -> 1 | CZ116: =COUNTIFS(CZ$8:CZ$86,"=1",$D$8:$D$86,"=MAS") -> 0 | DC116: =COUNTIFS(DC$8:DC$86,"=1",$D$8:$D$86,"=MAS") -> 1 | DF116: =COUNTIFS(DF$8:DF$86,"=1",$D$8:$D$86,"=MAS") -> 0 | DI116: =COUNTIFS(DI$8:DI$86,"=1",$D$8:$D$86,"=MAS") -> 0 | DL116: =COUNTIFS(DL$8:DL$86,"=1",$D$8:$D$86,"=MAS") -> 0 | DO116: =COUNTIFS(DO$8:DO$86,"=1",$D$8:$D$86,"=MAS") -> 0 | DR116: =COUNTIFS(DR$8:DR$86,"=1",$D$8:$D$86,"=MAS") -> 0 | DU116: =COUNTIFS(DU$8:DU$86,"=1",$D$8:$D$86,"=MAS") -> 0 | DX116: =COUNTIFS(DX$8:DX$86,"=1",$D$8:$D$86,"=MAS") -> 0 | EA116: =COUNTIFS(EA$8:EA$86,"=1",$D$8:$D$86,"=MAS") -> 0 | ED116: =COUNTIFS(ED$8:ED$86,"=1",$D$8:$D$86,"=MAS") -> 0 | EF116: =COUNTIFS(EF$8:EF$86,"=1",$D$8:$D$86,"=MAS") -> 1 | EI116: =COUNTIFS(EI$8:EI$86,"=1",$D$8:$D$86,"=MAS") -> 0 | EL116: =COUNTIFS(EL$8:EL$86,"=1",$D$8:$D$86,"=MAS") -> 0 | EO116: =COUNTIFS(EO$8:EO$86,"=1",$D$8:$D$86,"=MAS") -> 0 | ER116: =COUNTIFS(ER$8:ER$86,"=1",$D$8:$D$86,"=MAS") -> 1 | EU116: =COUNTIFS(EU$8:EU$86,"=1",$D$8:$D$86,"=MAS") -> 0 | EX116: =COUNTIFS(EX$8:EX$86,"=1",$D$8:$D$86,"=MAS") -> 0 | FA116: =COUNTIFS(FA$8:FA$86,"=1",$D$8:$D$86,"=MAS") -> 0 | FD116: =COUNTIFS(FD$8:FD$86,"=1",$D$8:$D$86,"=MAS") -> 0 | FG116: =COUNTIFS(FG$8:FG$86,"=1",$D$8:$D$86,"=MAS") -> 0
E117: MAS Age 2nd | Y117: 1 | AA117: =COUNTIFS(AA$8:AA$86,"=2",$D$8:$D$86,"=MAS") -> 0 | AF117: =COUNTIFS(AF$8:AF$86,"=2",$D$8:$D$86,"=MAS") -> 0 | AI117: =COUNTIFS(AI$8:AI$86,"=2",$D$8:$D$86,"=MAS") -> 0 | AM117: =COUNTIFS(AM$8:AM$86,"=2",$D$8:$D$86,"=MAS") -> 0 | AQ117: =COUNTIFS(AQ$8:AQ$86,"=2",$D$8:$D$86,"=MAS") -> 0 | AT117: =COUNTIFS(AT$8:AT$86,"=2",$D$8:$D$86,"=MAS") -> 0 | AW117: =COUNTIFS(AW$8:AW$86,"=2",$D$8:$D$86,"=MAS") -> 0 | AZ117: =COUNTIFS(AZ$8:AZ$86,"=2",$D$8:$D$86,"=MAS") -> 0 | BC117: =COUNTIFS(BC$8:BC$86,"=2",$D$8:$D$86,"=MAS") -> 0 | BF117: =COUNTIFS(BF$8:BF$86,"=2",$D$8:$D$86,"=MAS") -> 1 | BI117: =COUNTIFS(BI$8:BI$86,"=2",$D$8:$D$86,"=MAS") -> 0 | BL117: =COUNTIFS(BL$8:BL$86,"=2",$D$8:$D$86,"=MAS") -> 0 | BO117: =COUNTIFS(BO$8:BO$86,"=2",$D$8:$D$86,"=MAS") -> 0 | BR117: =COUNTIFS(BR$8:BR$86,"=2",$D$8:$D$86,"=MAS") -> 0 | BU117: =COUNTIFS(BU$8:BU$86,"=2",$D$8:$D$86,"=MAS") -> 0 | BX117: =COUNTIFS(BX$8:BX$86,"=2",$D$8:$D$86,"=MAS") -> 0 | CA117: =COUNTIFS(CA$8:CA$86,"=2",$D$8:$D$86,"=MAS") -> 0 | CD117: =COUNTIFS(CD$8:CD$86,"=2",$D$8:$D$86,"=MAS") -> 0 | CG117: =COUNTIFS(CG$8:CG$86,"=2",$D$8:$D$86,"=MAS") -> 0 | CK117: =COUNTIFS(CK$8:CK$86,"=2",$D$8:$D$86,"=MAS") -> 0 | CN117: =COUNTIFS(CN$8:CN$86,"=2",$D$8:$D$86,"=MAS") -> 0 | CQ117: =COUNTIFS(CQ$8:CQ$86,"=2",$D$8:$D$86,"=MAS") -> 0 | CT117: =COUNTIFS(CT$8:CT$86,"=2",$D$8:$D$86,"=MAS") -> 0 | CW117: =COUNTIFS(CW$8:CW$86,"=2",$D$8:$D$86,"=MAS") -> 0 | CZ117: =COUNTIFS(CZ$8:CZ$86,"=2",$D$8:$D$86,"=MAS") -> 0 | DC117: =COUNTIFS(DC$8:DC$86,"=2",$D$8:$D$86,"=MAS") -> 0 | DF117: =COUNTIFS(DF$8:DF$86,"=2",$D$8:$D$86,"=MAS") -> 0 | DI117: =COUNTIFS(DI$8:DI$86,"=2",$D$8:$D$86,"=MAS") -> 0 | DL117: =COUNTIFS(DL$8:DL$86,"=2",$D$8:$D$86,"=MAS") -> 0 | DO117: =COUNTIFS(DO$8:DO$86,"=2",$D$8:$D$86,"=MAS") -> 0 | DR117: =COUNTIFS(DR$8:DR$86,"=2",$D$8:$D$86,"=MAS") -> 0 | DU117: =COUNTIFS(DU$8:DU$86,"=2",$D$8:$D$86,"=MAS") -> 0 | DX117: =COUNTIFS(DX$8:DX$86,"=2",$D$8:$D$86,"=MAS") -> 0 | EA117: =COUNTIFS(EA$8:EA$86,"=2",$D$8:$D$86,"=MAS") -> 0 | ED117: =COUNTIFS(ED$8:ED$86,"=2",$D$8:$D$86,"=MAS") -> 0 | EF117: =COUNTIFS(EF$8:EF$86,"=2",$D$8:$D$86,"=MAS") -> 0 | EI117: =COUNTIFS(EI$8:EI$86,"=2",$D$8:$D$86,"=MAS") -> 0 | EL117: =COUNTIFS(EL$8:EL$86,"=2",$D$8:$D$86,"=MAS") -> 0 | EO117: =COUNTIFS(EO$8:EO$86,"=2",$D$8:$D$86,"=MAS") -> 0 | ER117: =COUNTIFS(ER$8:ER$86,"=2",$D$8:$D$86,"=MAS") -> 0 | EU117: =COUNTIFS(EU$8:EU$86,"=2",$D$8:$D$86,"=MAS") -> 0 | EX117: =COUNTIFS(EX$8:EX$86,"=2",$D$8:$D$86,"=MAS") -> 0 | FA117: =COUNTIFS(FA$8:FA$86,"=2",$D$8:$D$86,"=MAS") -> 0 | FD117: =COUNTIFS(FD$8:FD$86,"=2",$D$8:$D$86,"=MAS") -> 0 | FG117: =COUNTIFS(FG$8:FG$86,"=2",$D$8:$D$86,"=MAS") -> 0
E118: MAS Age 3rd | Y118: 0 | AA118: =COUNTIFS(AA$8:AA$86,"=3",$D$8:$D$86,"=MAS") -> 0 | AF118: =COUNTIFS(AF$8:AF$86,"=3",$D$8:$D$86,"=MAS") -> 0 | AI118: =COUNTIFS(AI$8:AI$86,"=3",$D$8:$D$86,"=MAS") -> 0 | AM118: =COUNTIFS(AM$8:AM$86,"=3",$D$8:$D$86,"=MAS") -> 0 | AQ118: =COUNTIFS(AQ$8:AQ$86,"=3",$D$8:$D$86,"=MAS") -> 0 | AT118: =COUNTIFS(AT$8:AT$86,"=3",$D$8:$D$86,"=MAS") -> 0 | AW118: =COUNTIFS(AW$8:AW$86,"=3",$D$8:$D$86,"=MAS") -> 0 | AZ118: =COUNTIFS(AZ$8:AZ$86,"=3",$D$8:$D$86,"=MAS") -> 0 | BC118: =COUNTIFS(BC$8:BC$86,"=3",$D$8:$D$86,"=MAS") -> 0 | BF118: =COUNTIFS(BF$8:BF$86,"=3",$D$8:$D$86,"=MAS") -> 0 | BI118: =COUNTIFS(BI$8:BI$86,"=3",$D$8:$D$86,"=MAS") -> 0 | BL118: =COUNTIFS(BL$8:BL$86,"=3",$D$8:$D$86,"=MAS") -> 0 | BO118: =COUNTIFS(BO$8:BO$86,"=3",$D$8:$D$86,"=MAS") -> 0 | BR118: =COUNTIFS(BR$8:BR$86,"=3",$D$8:$D$86,"=MAS") -> 0 | BU118: =COUNTIFS(BU$8:BU$86,"=3",$D$8:$D$86,"=MAS") -> 0 | BX118: =COUNTIFS(BX$8:BX$86,"=3",$D$8:$D$86,"=MAS") -> 0 | CA118: =COUNTIFS(CA$8:CA$86,"=3",$D$8:$D$86,"=MAS") -> 0 | CD118: =COUNTIFS(CD$8:CD$86,"=3",$D$8:$D$86,"=MAS") -> 0 | CG118: =COUNTIFS(CG$8:CG$86,"=3",$D$8:$D$86,"=MAS") -> 0 | CK118: =COUNTIFS(CK$8:CK$86,"=3",$D$8:$D$86,"=MAS") -> 0 | CN118: =COUNTIFS(CN$8:CN$86,"=3",$D$8:$D$86,"=MAS") -> 0 | CQ118: =COUNTIFS(CQ$8:CQ$86,"=3",$D$8:$D$86,"=MAS") -> 0 | CT118: =COUNTIFS(CT$8:CT$86,"=3",$D$8:$D$86,"=MAS") -> 0 | CW118: =COUNTIFS(CW$8:CW$86,"=3",$D$8:$D$86,"=MAS") -> 0 | CZ118: =COUNTIFS(CZ$8:CZ$86,"=3",$D$8:$D$86,"=MAS") -> 0 | DC118: =COUNTIFS(DC$8:DC$86,"=3",$D$8:$D$86,"=MAS") -> 0 | DF118: =COUNTIFS(DF$8:DF$86,"=3",$D$8:$D$86,"=MAS") -> 0 | DI118: =COUNTIFS(DI$8:DI$86,"=3",$D$8:$D$86,"=MAS") -> 0 | DL118: =COUNTIFS(DL$8:DL$86,"=3",$D$8:$D$86,"=MAS") -> 0 | DO118: =COUNTIFS(DO$8:DO$86,"=3",$D$8:$D$86,"=MAS") -> 0 | DR118: =COUNTIFS(DR$8:DR$86,"=3",$D$8:$D$86,"=MAS") -> 0 | DU118: =COUNTIFS(DU$8:DU$86,"=3",$D$8:$D$86,"=MAS") -> 0 | DX118: =COUNTIFS(DX$8:DX$86,"=3",$D$8:$D$86,"=MAS") -> 0 | EA118: =COUNTIFS(EA$8:EA$86,"=3",$D$8:$D$86,"=MAS") -> 0 | ED118: =COUNTIFS(ED$8:ED$86,"=3",$D$8:$D$86,"=MAS") -> 0 | EF118: =COUNTIFS(EF$8:EF$86,"=3",$D$8:$D$86,"=MAS") -> 0 | EI118: =COUNTIFS(EI$8:EI$86,"=3",$D$8:$D$86,"=MAS") -> 0 | EL118: =COUNTIFS(EL$8:EL$86,"=3",$D$8:$D$86,"=MAS") -> 0 | EO118: =COUNTIFS(EO$8:EO$86,"=3",$D$8:$D$86,"=MAS") -> 0 | ER118: =COUNTIFS(ER$8:ER$86,"=3",$D$8:$D$86,"=MAS") -> 0 | EU118: =COUNTIFS(EU$8:EU$86,"=3",$D$8:$D$86,"=MAS") -> 0 | EX118: =COUNTIFS(EX$8:EX$86,"=3",$D$8:$D$86,"=MAS") -> 0 | FA118: =COUNTIFS(FA$8:FA$86,"=3",$D$8:$D$86,"=MAS") -> 0 | FD118: =COUNTIFS(FD$8:FD$86,"=3",$D$8:$D$86,"=MAS") -> 0 | FG118: =COUNTIFS(FG$8:FG$86,"=3",$D$8:$D$86,"=MAS") -> 0
E119: Male Age Podiums | Y119: 107 | AA119: =COUNTIFS(AA$8:AA$86,"<=3",$B$8:$B$86,"=M") -> 3 | AF119: =COUNTIFS(AF$8:AF$86,"<=3",$B$8:$B$86,"=M") -> 5 | AI119: =COUNTIFS(AI$8:AI$86,"<=3",$B$8:$B$86,"=M") -> 1 | AM119: =COUNTIFS(AM$8:AM$86,"<=3",$B$8:$B$86,"=M") -> 3 | AQ119: =COUNTIFS(AQ$8:AQ$86,"<=3",$B$8:$B$86,"=M") -> 5 | AT119: =COUNTIFS(AT$8:AT$86,"<=3",$B$8:$B$86,"=M") -> 5 | AW119: =COUNTIFS(AW$8:AW$86,"<=3",$B$8:$B$86,"=M") -> 2 | AZ119: =COUNTIFS(AZ$8:AZ$86,"<=3",$B$8:$B$86,"=M") -> 2 | BC119: =COUNTIFS(BC$8:BC$86,"<=3",$B$8:$B$86,"=M") -> 3 | BF119: =COUNTIFS(BF$8:BF$86,"<=3",$B$8:$B$86,"=M") -> 4 | BI119: =COUNTIFS(BI$8:BI$86,"<=3",$B$8:$B$86,"=M") -> 4 | BL119: =COUNTIFS(BL$8:BL$86,"<=3",$B$8:$B$86,"=M") -> 2 | BO119: =COUNTIFS(BO$8:BO$86,"<=3",$B$8:$B$86,"=M") -> 0 | BR119: =COUNTIFS(BR$8:BR$86,"<=3",$B$8:$B$86,"=M") -> 1 | BU119: =COUNTIFS(BU$8:BU$86,"<=3",$B$8:$B$86,"=M") -> 0 | BX119: =COUNTIFS(BX$8:BX$86,"<=3",$B$8:$B$86,"=M") -> 2 | CA119: =COUNTIFS(CA$8:CA$86,"<=3",$B$8:$B$86,"=M") -> 2 | CD119: =COUNTIFS(CD$8:CD$86,"<=3",$B$8:$B$86,"=M") -> 1 | CG119: =COUNTIFS(CG$8:CG$86,"<=3",$B$8:$B$86,"=M") -> 0 | CK119: =COUNTIFS(CK$8:CK$86,"<=3",$B$8:$B$86,"=M") -> 3 | CN119: =COUNTIFS(CN$8:CN$86,"<=3",$B$8:$B$86,"=M") -> 2 | CQ119: =COUNTIFS(CQ$8:CQ$86,"<=3",$B$8:$B$86,"=M") -> 3 | CT119: =COUNTIFS(CT$8:CT$86,"<=3",$B$8:$B$86,"=M") -> 5 | CW119: =COUNTIFS(CW$8:CW$86,"<=3",$B$8:$B$86,"=M") -> 6 | CZ119: =COUNTIFS(CZ$8:CZ$86,"<=3",$B$8:$B$86,"=M") -> 2 | DC119: =COUNTIFS(DC$8:DC$86,"<=3",$B$8:$B$86,"=M") -> 7 | DF119: =COUNTIFS(DF$8:DF$86,"<=3",$B$8:$B$86,"=M") -> 3 | DI119: =COUNTIFS(DI$8:DI$86,"<=3",$B$8:$B$86,"=M") -> 3 | DL119: =COUNTIFS(DL$8:DL$86,"<=3",$B$8:$B$86,"=M") -> 2 | DO119: =COUNTIFS(DO$8:DO$86,"<=3",$B$8:$B$86,"=M") -> 3 | DR119: =COUNTIFS(DR$8:DR$86,"<=3",$B$8:$B$86,"=M") -> 4 | DU119: =COUNTIFS(DU$8:DU$86,"<=3",$B$8:$B$86,"=M") -> 1 | DX119: =COUNTIFS(DX$8:DX$86,"<=3",$B$8:$B$86,"=M") -> 1 | EA119: =COUNTIFS(EA$8:EA$86,"<=3",$B$8:$B$86,"=M") -> 1 | ED119: =COUNTIFS(ED$8:ED$86,"<=3",$B$8:$B$86,"=M") -> 0 | EF119: =COUNTIFS(EF$8:EF$86,"<=3",$B$8:$B$86,"=M") -> 3 | EI119: =COUNTIFS(EI$8:EI$86,"<=3",$B$8:$B$86,"=M") -> 3 | EL119: =COUNTIFS(EL$8:EL$86,"<=3",$B$8:$B$86,"=M") -> 2 | EO119: =COUNTIFS(EO$8:EO$86,"<=3",$B$8:$B$86,"=M") -> 2 | ER119: =COUNTIFS(ER$8:ER$86,"<=3",$B$8:$B$86,"=M") -> 3 | EU119: =COUNTIFS(EU$8:EU$86,"<=3",$B$8:$B$86,"=M") -> 0 | EX119: =COUNTIFS(EX$8:EX$86,"<=3",$B$8:$B$86,"=M") -> 3 | FA119: =COUNTIFS(FA$8:FA$86,"<=3",$B$8:$B$86,"=M") -> 0 | FD119: =COUNTIFS(FD$8:FD$86,"<=3",$B$8:$B$86,"=M") -> 0 | FG119: =COUNTIFS(FG$8:FG$86,"<=3",$B$8:$B$86,"=M") -> 0
E120: Female Age Podiums | Y120: 44 | AA120: =COUNTIFS(AA$8:AA$86,"<=3",$B$8:$B$86,"=F") -> 1 | AF120: =COUNTIFS(AF$8:AF$86,"<=3",$B$8:$B$86,"=F") -> 1 | AI120: =COUNTIFS(AI$8:AI$86,"<=3",$B$8:$B$86,"=F") -> 1 | AM120: =COUNTIFS(AM$8:AM$86,"<=3",$B$8:$B$86,"=F") -> 1 | AQ120: =COUNTIFS(AQ$8:AQ$86,"<=3",$B$8:$B$86,"=F") -> 2 | AT120: =COUNTIFS(AT$8:AT$86,"<=3",$B$8:$B$86,"=F") -> 1 | AW120: =COUNTIFS(AW$8:AW$86,"<=3",$B$8:$B$86,"=F") -> 1 | AZ120: =COUNTIFS(AZ$8:AZ$86,"<=3",$B$8:$B$86,"=F") -> 2 | BC120: =COUNTIFS(BC$8:BC$86,"<=3",$B$8:$B$86,"=F") -> 3 | BF120: =COUNTIFS(BF$8:BF$86,"<=3",$B$8:$B$86,"=F") -> 2 | BI120: =COUNTIFS(BI$8:BI$86,"<=3",$B$8:$B$86,"=F") -> 1 | BL120: =COUNTIFS(BL$8:BL$86,"<=3",$B$8:$B$86,"=F") -> 1 | BO120: =COUNTIFS(BO$8:BO$86,"<=3",$B$8:$B$86,"=F") -> 0 | BR120: =COUNTIFS(BR$8:BR$86,"<=3",$B$8:$B$86,"=F") -> 2 | BU120: =COUNTIFS(BU$8:BU$86,"<=3",$B$8:$B$86,"=F") -> 0 | BX120: =COUNTIFS(BX$8:BX$86,"<=3",$B$8:$B$86,"=F") -> 0 | CA120: =COUNTIFS(CA$8:CA$86,"<=3",$B$8:$B$86,"=F") -> 3 | CD120: =COUNTIFS(CD$8:CD$86,"<=3",$B$8:$B$86,"=F") -> 0 | CG120: =COUNTIFS(CG$8:CG$86,"<=3",$B$8:$B$86,"=F") -> 1 | CK120: =COUNTIFS(CK$8:CK$86,"<=3",$B$8:$B$86,"=F") -> 2 | CN120: =COUNTIFS(CN$8:CN$86,"<=3",$B$8:$B$86,"=F") -> 0 | CQ120: =COUNTIFS(CQ$8:CQ$86,"<=3",$B$8:$B$86,"=F") -> 2 | CT120: =COUNTIFS(CT$8:CT$86,"<=3",$B$8:$B$86,"=F") -> 2 | CW120: =COUNTIFS(CW$8:CW$86,"<=3",$B$8:$B$86,"=F") -> 4 | CZ120: =COUNTIFS(CZ$8:CZ$86,"<=3",$B$8:$B$86,"=F") -> 1 | DC120: =COUNTIFS(DC$8:DC$86,"<=3",$B$8:$B$86,"=F") -> 0 | DF120: =COUNTIFS(DF$8:DF$86,"<=3",$B$8:$B$86,"=F") -> 0 | DI120: =COUNTIFS(DI$8:DI$86,"<=3",$B$8:$B$86,"=F") -> 0 | DL120: =COUNTIFS(DL$8:DL$86,"<=3",$B$8:$B$86,"=F") -> 1 | DO120: =COUNTIFS(DO$8:DO$86,"<=3",$B$8:$B$86,"=F") -> 1 | DR120: =COUNTIFS(DR$8:DR$86,"<=3",$B$8:$B$86,"=F") -> 2 | DU120: =COUNTIFS(DU$8:DU$86,"<=3",$B$8:$B$86,"=F") -> 1 | DX120: =COUNTIFS(DX$8:DX$86,"<=3",$B$8:$B$86,"=F") -> 1 | EA120: =COUNTIFS(EA$8:EA$86,"<=3",$B$8:$B$86,"=F") -> 0 | ED120: =COUNTIFS(ED$8:ED$86,"<=3",$B$8:$B$86,"=F") -> 0 | EF120: =COUNTIFS(EF$8:EF$86,"<=3",$B$8:$B$86,"=F") -> 0 | EI120: =COUNTIFS(EI$8:EI$86,"<=3",$B$8:$B$86,"=F") -> 2 | EL120: =COUNTIFS(EL$8:EL$86,"<=3",$B$8:$B$86,"=F") -> 1 | EO120: =COUNTIFS(EO$8:EO$86,"<=3",$B$8:$B$86,"=F") -> 0 | ER120: =COUNTIFS(ER$8:ER$86,"<=3",$B$8:$B$86,"=F") -> 0 | EU120: =COUNTIFS(EU$8:EU$86,"<=3",$B$8:$B$86,"=F") -> 0 | EX120: =COUNTIFS(EX$8:EX$86,"<=3",$B$8:$B$86,"=F") -> 1 | FA120: =COUNTIFS(FA$8:FA$86,"<=3",$B$8:$B$86,"=F") -> 0 | FD120: =COUNTIFS(FD$8:FD$86,"<=3",$B$8:$B$86,"=F") -> 0 | FG120: =COUNTIFS(FG$8:FG$86,"<=3",$B$8:$B$86,"=F") -> 0
E121: CH Overall 1st | Y121: =SUM(Z121:FI121) -> 0 | Z121: =COUNTIFS(Z$8:Z$86,"=1",$D$8:$D$86,"=U14")+COUNTIFS(Z$8:Z$86,"=1",$D$8:$D$86,"=U16") -> 0 | AC121: =COUNTIFS(AC$8:AC$86,"=1",$D$8:$D$86,"=U14")+COUNTIFS(AC$8:AC$86,"=1",$D$8:$D$86,"=U16") -> 0 | AE121: =COUNTIFS(AE$8:AE$86,"=1",$D$8:$D$86,"=U14")+COUNTIFS(AE$8:AE$86,"=1",$D$8:$D$86,"=U16") -> 0 | AH121: =COUNTIFS(AH$8:AH$86,"=1",$D$8:$D$86,"=U14")+COUNTIFS(AH$8:AH$86,"=1",$D$8:$D$86,"=U16") -> 0 | AL121: =COUNTIFS(AL$8:AL$86,"=1",$D$8:$D$86,"=U14")+COUNTIFS(AL$8:AL$86,"=1",$D$8:$D$86,"=U16") -> 0 | AP121: =COUNTIFS(AP$8:AP$86,"=1",$D$8:$D$86,"=U14")+COUNTIFS(AP$8:AP$86,"=1",$D$8:$D$86,"=U16") -> 0 | AS121: =COUNTIFS(AS$8:AS$86,"=1",$D$8:$D$86,"=U14")+COUNTIFS(AS$8:AS$86,"=1",$D$8:$D$86,"=U16") -> 0 | AV121: =COUNTIFS(AV$8:AV$86,"=1",$D$8:$D$86,"=U14")+COUNTIFS(AV$8:AV$86,"=1",$D$8:$D$86,"=U16") -> 0 | AY121: =COUNTIFS(AY$8:AY$86,"=1",$D$8:$D$86,"=U14")+COUNTIFS(AY$8:AY$86,"=1",$D$8:$D$86,"=U16") -> 0 | BB121: =COUNTIFS(BB$8:BB$86,"=1",$D$8:$D$86,"=U14")+COUNTIFS(BB$8:BB$86,"=1",$D$8:$D$86,"=U16") -> 0 | BE121: =COUNTIFS(BE$8:BE$86,"=1",$D$8:$D$86,"=U14")+COUNTIFS(BE$8:BE$86,"=1",$D$8:$D$86,"=U16") -> 0 | BH121: =COUNTIFS(BH$8:BH$86,"=1",$D$8:$D$86,"=U14")+COUNTIFS(BH$8:BH$86,"=1",$D$8:$D$86,"=U16") -> 0 | BK121: =COUNTIFS(BK$8:BK$86,"=1",$D$8:$D$86,"=U14")+COUNTIFS(BK$8:BK$86,"=1",$D$8:$D$86,"=U16") -> 0 | BN121: =COUNTIFS(BN$8:BN$86,"=1",$D$8:$D$86,"=U14")+COUNTIFS(BN$8:BN$86,"=1",$D$8:$D$86,"=U16") -> 0 | BQ121: =COUNTIFS(BQ$8:BQ$86,"=1",$D$8:$D$86,"=U14")+COUNTIFS(BQ$8:BQ$86,"=1",$D$8:$D$86,"=U16") -> 0 | BT121: =COUNTIFS(BT$8:BT$86,"=1",$D$8:$D$86,"=U14")+COUNTIFS(BT$8:BT$86,"=1",$D$8:$D$86,"=U16") -> 0 | BW121: =COUNTIFS(BW$8:BW$86,"=1",$D$8:$D$86,"=U14")+COUNTIFS(BW$8:BW$86,"=1",$D$8:$D$86,"=U16") -> 0 | BZ121: =COUNTIFS(BZ$8:BZ$86,"=1",$D$8:$D$86,"=U14")+COUNTIFS(BZ$8:BZ$86,"=1",$D$8:$D$86,"=U16") -> 0 | CC121: =COUNTIFS(CC$8:CC$86,"=1",$D$8:$D$86,"=U14")+COUNTIFS(CC$8:CC$86,"=1",$D$8:$D$86,"=U16") -> 0 | CF121: =COUNTIFS(CF$8:CF$86,"=1",$D$8:$D$86,"=U14")+COUNTIFS(CF$8:CF$86,"=1",$D$8:$D$86,"=U16") -> 0 | CJ121: =COUNTIFS(CJ$8:CJ$86,"=1",$D$8:$D$86,"=U14")+COUNTIFS(CJ$8:CJ$86,"=1",$D$8:$D$86,"=U16") -> 0 | CM121: =COUNTIFS(CM$8:CM$86,"=1",$D$8:$D$86,"=U14")+COUNTIFS(CM$8:CM$86,"=1",$D$8:$D$86,"=U16") -> 0 | CP121: =COUNTIFS(CP$8:CP$86,"=1",$D$8:$D$86,"=U14")+COUNTIFS(CP$8:CP$86,"=1",$D$8:$D$86,"=U16") -> 0 | CS121: =COUNTIFS(CS$8:CS$86,"=1",$D$8:$D$86,"=U14")+COUNTIFS(CS$8:CS$86,"=1",$D$8:$D$86,"=U16") -> 0 | CV121: =COUNTIFS(CV$8:CV$86,"=1",$D$8:$D$86,"=U14")+COUNTIFS(CV$8:CV$86,"=1",$D$8:$D$86,"=U16") -> 0 | CY121: =COUNTIFS(CY$8:CY$86,"=1",$D$8:$D$86,"=U14")+COUNTIFS(CY$8:CY$86,"=1",$D$8:$D$86,"=U16") -> 0 | DB121: =COUNTIFS(DB$8:DB$86,"=1",$D$8:$D$86,"=U14")+COUNTIFS(DB$8:DB$86,"=1",$D$8:$D$86,"=U16") -> 0 | DE121: =COUNTIFS(DE$8:DE$86,"=1",$D$8:$D$86,"=U14")+COUNTIFS(DE$8:DE$86,"=1",$D$8:$D$86,"=U16") -> 0 | DH121: =COUNTIFS(DH$8:DH$86,"=1",$D$8:$D$86,"=U14")+COUNTIFS(DH$8:DH$86,"=1",$D$8:$D$86,"=U16") -> 0 | DK121: =COUNTIFS(DK$8:DK$86,"=1",$D$8:$D$86,"=U14")+COUNTIFS(DK$8:DK$86,"=1",$D$8:$D$86,"=U16") -> 0 | DN121: =COUNTIFS(DN$8:DN$86,"=1",$D$8:$D$86,"=U14")+COUNTIFS(DN$8:DN$86,"=1",$D$8:$D$86,"=U16") -> 0 | DQ121: =COUNTIFS(DQ$8:DQ$86,"=1",$D$8:$D$86,"=U14")+COUNTIFS(DQ$8:DQ$86,"=1",$D$8:$D$86,"=U16") -> 0 | DT121: =COUNTIFS(DT$8:DT$86,"=1",$D$8:$D$86,"=U14")+COUNTIFS(DT$8:DT$86,"=1",$D$8:$D$86,"=U16") -> 0 | DW121: =COUNTIFS(DW$8:DW$86,"=1",$D$8:$D$86,"=U14")+COUNTIFS(DW$8:DW$86,"=1",$D$8:$D$86,"=U16") -> 0 | DZ121: =COUNTIFS(DZ$8:DZ$86,"=1",$D$8:$D$86,"=U14")+COUNTIFS(DZ$8:DZ$86,"=1",$D$8:$D$86,"=U16") -> 0 | EC121: =COUNTIFS(EC$8:EC$86,"=1",$D$8:$D$86,"=U14")+COUNTIFS(EC$8:EC$86,"=1",$D$8:$D$86,"=U16") -> 0 | EE121: =COUNTIFS(EE$8:EE$86,"=1",$D$8:$D$86,"=U14")+COUNTIFS(EE$8:EE$86,"=1",$D$8:$D$86,"=U16") -> 0 | EH121: =COUNTIFS(EH$8:EH$86,"=1",$D$8:$D$86,"=U14")+COUNTIFS(EH$8:EH$86,"=1",$D$8:$D$86,"=U16") -> 0 | EK121: =COUNTIFS(EK$8:EK$86,"=1",$D$8:$D$86,"=U14")+COUNTIFS(EK$8:EK$86,"=1",$D$8:$D$86,"=U16") -> 0 | EN121: =COUNTIFS(EN$8:EN$86,"=1",$D$8:$D$86,"=U14")+COUNTIFS(EN$8:EN$86,"=1",$D$8:$D$86,"=U16") -> 0 | EQ121: =COUNTIFS(EQ$8:EQ$86,"=1",$D$8:$D$86,"=U14")+COUNTIFS(EQ$8:EQ$86,"=1",$D$8:$D$86,"=U16") -> 0 | ET121: =COUNTIFS(ET$8:ET$86,"=1",$D$8:$D$86,"=U14")+COUNTIFS(ET$8:ET$86,"=1",$D$8:$D$86,"=U16") -> 0 | EW121: =COUNTIFS(EW$8:EW$86,"=1",$D$8:$D$86,"=U14")+COUNTIFS(EW$8:EW$86,"=1",$D$8:$D$86,"=U16") -> 0 | EZ121: =COUNTIFS(EZ$8:EZ$86,"=1",$D$8:$D$86,"=U14")+COUNTIFS(EZ$8:EZ$86,"=1",$D$8:$D$86,"=U16") -> 0 | FC121: =COUNTIFS(FC$8:FC$86,"=1",$D$8:$D$86,"=U14")+COUNTIFS(FC$8:FC$86,"=1",$D$8:$D$86,"=U16") -> 0 | FF121: =COUNTIFS(FF$8:FF$86,"=1",$D$8:$D$86,"=U14")+COUNTIFS(FF$8:FF$86,"=1",$D$8:$D$86,"=U16") -> 0 | FH121: =COUNTIFS(FH$8:FH$86,"=1",$D$8:$D$86,"=U14")+COUNTIFS(FH$8:FH$86,"=1",$D$8:$D$86,"=U16") -> 0
E122: CH Overall 2nd | Y122: =SUM(Z122:FI122) -> 2 | Z122: =COUNTIFS(Z$8:Z$86,"=2",$D$8:$D$86,"=U14")+COUNTIFS(Z$8:Z$86,"=2",$D$8:$D$86,"=U16") -> 1 | AC122: =COUNTIFS(AC$8:AC$86,"=2",$D$8:$D$86,"=U14")+COUNTIFS(AC$8:AC$86,"=2",$D$8:$D$86,"=U16") -> 0 | AE122: =COUNTIFS(AE$8:AE$86,"=2",$D$8:$D$86,"=U14")+COUNTIFS(AE$8:AE$86,"=2",$D$8:$D$86,"=U16") -> 0 | AH122: =COUNTIFS(AH$8:AH$86,"=2",$D$8:$D$86,"=U14")+COUNTIFS(AH$8:AH$86,"=2",$D$8:$D$86,"=U16") -> 0 | AL122: =COUNTIFS(AL$8:AL$86,"=2",$D$8:$D$86,"=U14")+COUNTIFS(AL$8:AL$86,"=2",$D$8:$D$86,"=U16") -> 0 | AP122: =COUNTIFS(AP$8:AP$86,"=2",$D$8:$D$86,"=U14")+COUNTIFS(AP$8:AP$86,"=2",$D$8:$D$86,"=U16") -> 0 | AS122: =COUNTIFS(AS$8:AS$86,"=2",$D$8:$D$86,"=U14")+COUNTIFS(AS$8:AS$86,"=2",$D$8:$D$86,"=U16") -> 0 | AV122: =COUNTIFS(AV$8:AV$86,"=2",$D$8:$D$86,"=U14")+COUNTIFS(AV$8:AV$86,"=2",$D$8:$D$86,"=U16") -> 0 | AY122: =COUNTIFS(AY$8:AY$86,"=2",$D$8:$D$86,"=U14")+COUNTIFS(AY$8:AY$86,"=2",$D$8:$D$86,"=U16") -> 0 | BB122: =COUNTIFS(BB$8:BB$86,"=2",$D$8:$D$86,"=U14")+COUNTIFS(BB$8:BB$86,"=2",$D$8:$D$86,"=U16") -> 0 | BE122: =COUNTIFS(BE$8:BE$86,"=2",$D$8:$D$86,"=U14")+COUNTIFS(BE$8:BE$86,"=2",$D$8:$D$86,"=U16") -> 1 | BH122: =COUNTIFS(BH$8:BH$86,"=2",$D$8:$D$86,"=U14")+COUNTIFS(BH$8:BH$86,"=2",$D$8:$D$86,"=U16") -> 0 | BK122: =COUNTIFS(BK$8:BK$86,"=2",$D$8:$D$86,"=U14")+COUNTIFS(BK$8:BK$86,"=2",$D$8:$D$86,"=U16") -> 0 | BN122: =COUNTIFS(BN$8:BN$86,"=2",$D$8:$D$86,"=U14")+COUNTIFS(BN$8:BN$86,"=2",$D$8:$D$86,"=U16") -> 0 | BQ122: =COUNTIFS(BQ$8:BQ$86,"=2",$D$8:$D$86,"=U14")+COUNTIFS(BQ$8:BQ$86,"=2",$D$8:$D$86,"=U16") -> 0 | BT122: =COUNTIFS(BT$8:BT$86,"=2",$D$8:$D$86,"=U14")+COUNTIFS(BT$8:BT$86,"=2",$D$8:$D$86,"=U16") -> 0 | BW122: =COUNTIFS(BW$8:BW$86,"=2",$D$8:$D$86,"=U14")+COUNTIFS(BW$8:BW$86,"=2",$D$8:$D$86,"=U16") -> 0 | BZ122: =COUNTIFS(BZ$8:BZ$86,"=2",$D$8:$D$86,"=U14")+COUNTIFS(BZ$8:BZ$86,"=2",$D$8:$D$86,"=U16") -> 0 | CC122: =COUNTIFS(CC$8:CC$86,"=2",$D$8:$D$86,"=U14")+COUNTIFS(CC$8:CC$86,"=2",$D$8:$D$86,"=U16") -> 0 | CF122: =COUNTIFS(CF$8:CF$86,"=2",$D$8:$D$86,"=U14")+COUNTIFS(CF$8:CF$86,"=2",$D$8:$D$86,"=U16") -> 0 | CJ122: =COUNTIFS(CJ$8:CJ$86,"=2",$D$8:$D$86,"=U14")+COUNTIFS(CJ$8:CJ$86,"=2",$D$8:$D$86,"=U16") -> 0 | CM122: =COUNTIFS(CM$8:CM$86,"=2",$D$8:$D$86,"=U14")+COUNTIFS(CM$8:CM$86,"=2",$D$8:$D$86,"=U16") -> 0 | CP122: =COUNTIFS(CP$8:CP$86,"=2",$D$8:$D$86,"=U14")+COUNTIFS(CP$8:CP$86,"=2",$D$8:$D$86,"=U16") -> 0 | CS122: =COUNTIFS(CS$8:CS$86,"=2",$D$8:$D$86,"=U14")+COUNTIFS(CS$8:CS$86,"=2",$D$8:$D$86,"=U16") -> 0 | CV122: =COUNTIFS(CV$8:CV$86,"=2",$D$8:$D$86,"=U14")+COUNTIFS(CV$8:CV$86,"=2",$D$8:$D$86,"=U16") -> 0 | CY122: =COUNTIFS(CY$8:CY$86,"=2",$D$8:$D$86,"=U14")+COUNTIFS(CY$8:CY$86,"=2",$D$8:$D$86,"=U16") -> 0 | DB122: =COUNTIFS(DB$8:DB$86,"=2",$D$8:$D$86,"=U14")+COUNTIFS(DB$8:DB$86,"=2",$D$8:$D$86,"=U16") -> 0 | DE122: =COUNTIFS(DE$8:DE$86,"=2",$D$8:$D$86,"=U14")+COUNTIFS(DE$8:DE$86,"=2",$D$8:$D$86,"=U16") -> 0 | DH122: =COUNTIFS(DH$8:DH$86,"=2",$D$8:$D$86,"=U14")+COUNTIFS(DH$8:DH$86,"=2",$D$8:$D$86,"=U16") -> 0 | DK122: =COUNTIFS(DK$8:DK$86,"=2",$D$8:$D$86,"=U14")+COUNTIFS(DK$8:DK$86,"=2",$D$8:$D$86,"=U16") -> 0 | DN122: =COUNTIFS(DN$8:DN$86,"=2",$D$8:$D$86,"=U14")+COUNTIFS(DN$8:DN$86,"=2",$D$8:$D$86,"=U16") -> 0 | DQ122: =COUNTIFS(DQ$8:DQ$86,"=2",$D$8:$D$86,"=U14")+COUNTIFS(DQ$8:DQ$86,"=2",$D$8:$D$86,"=U16") -> 0 | DT122: =COUNTIFS(DT$8:DT$86,"=2",$D$8:$D$86,"=U14")+COUNTIFS(DT$8:DT$86,"=2",$D$8:$D$86,"=U16") -> 0 | DW122: =COUNTIFS(DW$8:DW$86,"=2",$D$8:$D$86,"=U14")+COUNTIFS(DW$8:DW$86,"=2",$D$8:$D$86,"=U16") -> 0 | DZ122: =COUNTIFS(DZ$8:DZ$86,"=2",$D$8:$D$86,"=U14")+COUNTIFS(DZ$8:DZ$86,"=2",$D$8:$D$86,"=U16") -> 0 | EC122: =COUNTIFS(EC$8:EC$86,"=2",$D$8:$D$86,"=U14")+COUNTIFS(EC$8:EC$86,"=2",$D$8:$D$86,"=U16") -> 0 | EE122: =COUNTIFS(EE$8:EE$86,"=2",$D$8:$D$86,"=U14")+COUNTIFS(EE$8:EE$86,"=2",$D$8:$D$86,"=U16") -> 0 | EH122: =COUNTIFS(EH$8:EH$86,"=2",$D$8:$D$86,"=U14")+COUNTIFS(EH$8:EH$86,"=2",$D$8:$D$86,"=U16") -> 0 | EK122: =COUNTIFS(EK$8:EK$86,"=2",$D$8:$D$86,"=U14")+COUNTIFS(EK$8:EK$86,"=2",$D$8:$D$86,"=U16") -> 0 | EN122: =COUNTIFS(EN$8:EN$86,"=2",$D$8:$D$86,"=U14")+COUNTIFS(EN$8:EN$86,"=2",$D$8:$D$86,"=U16") -> 0 | EQ122: =COUNTIFS(EQ$8:EQ$86,"=2",$D$8:$D$86,"=U14")+COUNTIFS(EQ$8:EQ$86,"=2",$D$8:$D$86,"=U16") -> 0 | ET122: =COUNTIFS(ET$8:ET$86,"=2",$D$8:$D$86,"=U14")+COUNTIFS(ET$8:ET$86,"=2",$D$8:$D$86,"=U16") -> 0 | EW122: =COUNTIFS(EW$8:EW$86,"=2",$D$8:$D$86,"=U14")+COUNTIFS(EW$8:EW$86,"=2",$D$8:$D$86,"=U16") -> 0 | EZ122: =COUNTIFS(EZ$8:EZ$86,"=2",$D$8:$D$86,"=U14")+COUNTIFS(EZ$8:EZ$86,"=2",$D$8:$D$86,"=U16") -> 0 | FC122: =COUNTIFS(FC$8:FC$86,"=2",$D$8:$D$86,"=U14")+COUNTIFS(FC$8:FC$86,"=2",$D$8:$D$86,"=U16") -> 0 | FF122: =COUNTIFS(FF$8:FF$86,"=2",$D$8:$D$86,"=U14")+COUNTIFS(FF$8:FF$86,"=2",$D$8:$D$86,"=U16") -> 0 | FH122: =COUNTIFS(FH$8:FH$86,"=2",$D$8:$D$86,"=U14")+COUNTIFS(FH$8:FH$86,"=2",$D$8:$D$86,"=U16") -> 0
E123: CH Overall 3rd | Y123: 0 | Z123: =COUNTIFS(Z$8:Z$86,"=3",$D$8:$D$86,"=U14")+COUNTIFS(Z$8:Z$86,"=3",$D$8:$D$86,"=U16") -> 0 | AC123: =COUNTIFS(AC$8:AC$86,"=3",$D$8:$D$86,"=U14")+COUNTIFS(AC$8:AC$86,"=3",$D$8:$D$86,"=U16") -> 0 | AE123: =COUNTIFS(AE$8:AE$86,"=3",$D$8:$D$86,"=U14")+COUNTIFS(AE$8:AE$86,"=3",$D$8:$D$86,"=U16") -> 0 | AH123: =COUNTIFS(AH$8:AH$86,"=3",$D$8:$D$86,"=U14")+COUNTIFS(AH$8:AH$86,"=3",$D$8:$D$86,"=U16") -> 0 | AL123: =COUNTIFS(AL$8:AL$86,"=3",$D$8:$D$86,"=U14")+COUNTIFS(AL$8:AL$86,"=3",$D$8:$D$86,"=U16") -> 0 | AP123: =COUNTIFS(AP$8:AP$86,"=3",$D$8:$D$86,"=U14")+COUNTIFS(AP$8:AP$86,"=3",$D$8:$D$86,"=U16") -> 0 | AS123: =COUNTIFS(AS$8:AS$86,"=3",$D$8:$D$86,"=U14")+COUNTIFS(AS$8:AS$86,"=3",$D$8:$D$86,"=U16") -> 0 | AV123: =COUNTIFS(AV$8:AV$86,"=3",$D$8:$D$86,"=U14")+COUNTIFS(AV$8:AV$86,"=3",$D$8:$D$86,"=U16") -> 0 | AY123: =COUNTIFS(AY$8:AY$86,"=3",$D$8:$D$86,"=U14")+COUNTIFS(AY$8:AY$86,"=3",$D$8:$D$86,"=U16") -> 0 | BB123: =COUNTIFS(BB$8:BB$86,"=3",$D$8:$D$86,"=U14")+COUNTIFS(BB$8:BB$86,"=3",$D$8:$D$86,"=U16") -> 0 | BE123: =COUNTIFS(BE$8:BE$86,"=3",$D$8:$D$86,"=U14")+COUNTIFS(BE$8:BE$86,"=3",$D$8:$D$86,"=U16") -> 0 | BH123: =COUNTIFS(BH$8:BH$86,"=3",$D$8:$D$86,"=U14")+COUNTIFS(BH$8:BH$86,"=3",$D$8:$D$86,"=U16") -> 0 | BK123: =COUNTIFS(BK$8:BK$86,"=3",$D$8:$D$86,"=U14")+COUNTIFS(BK$8:BK$86,"=3",$D$8:$D$86,"=U16") -> 0 | BN123: =COUNTIFS(BN$8:BN$86,"=3",$D$8:$D$86,"=U14")+COUNTIFS(BN$8:BN$86,"=3",$D$8:$D$86,"=U16") -> 0 | BQ123: =COUNTIFS(BQ$8:BQ$86,"=3",$D$8:$D$86,"=U14")+COUNTIFS(BQ$8:BQ$86,"=3",$D$8:$D$86,"=U16") -> 0 | BT123: =COUNTIFS(BT$8:BT$86,"=3",$D$8:$D$86,"=U14")+COUNTIFS(BT$8:BT$86,"=3",$D$8:$D$86,"=U16") -> 0 | BW123: =COUNTIFS(BW$8:BW$86,"=3",$D$8:$D$86,"=U14")+COUNTIFS(BW$8:BW$86,"=3",$D$8:$D$86,"=U16") -> 0 | BZ123: =COUNTIFS(BZ$8:BZ$86,"=3",$D$8:$D$86,"=U14")+COUNTIFS(BZ$8:BZ$86,"=3",$D$8:$D$86,"=U16") -> 0 | CC123: =COUNTIFS(CC$8:CC$86,"=3",$D$8:$D$86,"=U14")+COUNTIFS(CC$8:CC$86,"=3",$D$8:$D$86,"=U16") -> 0 | CF123: =COUNTIFS(CF$8:CF$86,"=3",$D$8:$D$86,"=U14")+COUNTIFS(CF$8:CF$86,"=3",$D$8:$D$86,"=U16") -> 0 | CJ123: =COUNTIFS(CJ$8:CJ$86,"=3",$D$8:$D$86,"=U14")+COUNTIFS(CJ$8:CJ$86,"=3",$D$8:$D$86,"=U16") -> 0 | CM123: =COUNTIFS(CM$8:CM$86,"=3",$D$8:$D$86,"=U14")+COUNTIFS(CM$8:CM$86,"=3",$D$8:$D$86,"=U16") -> 0 | CP123: =COUNTIFS(CP$8:CP$86,"=3",$D$8:$D$86,"=U14")+COUNTIFS(CP$8:CP$86,"=3",$D$8:$D$86,"=U16") -> 0 | CS123: =COUNTIFS(CS$8:CS$86,"=3",$D$8:$D$86,"=U14")+COUNTIFS(CS$8:CS$86,"=3",$D$8:$D$86,"=U16") -> 0 | CV123: =COUNTIFS(CV$8:CV$86,"=3",$D$8:$D$86,"=U14")+COUNTIFS(CV$8:CV$86,"=3",$D$8:$D$86,"=U16") -> 0 | CY123: =COUNTIFS(CY$8:CY$86,"=3",$D$8:$D$86,"=U14")+COUNTIFS(CY$8:CY$86,"=3",$D$8:$D$86,"=U16") -> 0 | DB123: =COUNTIFS(DB$8:DB$86,"=3",$D$8:$D$86,"=U14")+COUNTIFS(DB$8:DB$86,"=3",$D$8:$D$86,"=U16") -> 0 | DE123: =COUNTIFS(DE$8:DE$86,"=3",$D$8:$D$86,"=U14")+COUNTIFS(DE$8:DE$86,"=3",$D$8:$D$86,"=U16") -> 0 | DH123: =COUNTIFS(DH$8:DH$86,"=3",$D$8:$D$86,"=U14")+COUNTIFS(DH$8:DH$86,"=3",$D$8:$D$86,"=U16") -> 0 | DK123: =COUNTIFS(DK$8:DK$86,"=3",$D$8:$D$86,"=U14")+COUNTIFS(DK$8:DK$86,"=3",$D$8:$D$86,"=U16") -> 0 | DN123: =COUNTIFS(DN$8:DN$86,"=3",$D$8:$D$86,"=U14")+COUNTIFS(DN$8:DN$86,"=3",$D$8:$D$86,"=U16") -> 0 | DQ123: =COUNTIFS(DQ$8:DQ$86,"=3",$D$8:$D$86,"=U14")+COUNTIFS(DQ$8:DQ$86,"=3",$D$8:$D$86,"=U16") -> 0 | DT123: =COUNTIFS(DT$8:DT$86,"=3",$D$8:$D$86,"=U14")+COUNTIFS(DT$8:DT$86,"=3",$D$8:$D$86,"=U16") -> 0 | DW123: =COUNTIFS(DW$8:DW$86,"=3",$D$8:$D$86,"=U14")+COUNTIFS(DW$8:DW$86,"=3",$D$8:$D$86,"=U16") -> 0 | DZ123: =COUNTIFS(DZ$8:DZ$86,"=3",$D$8:$D$86,"=U14")+COUNTIFS(DZ$8:DZ$86,"=3",$D$8:$D$86,"=U16") -> 0 | EC123: =COUNTIFS(EC$8:EC$86,"=3",$D$8:$D$86,"=U14")+COUNTIFS(EC$8:EC$86,"=3",$D$8:$D$86,"=U16") -> 0 | EE123: =COUNTIFS(EE$8:EE$86,"=3",$D$8:$D$86,"=U14")+COUNTIFS(EE$8:EE$86,"=3",$D$8:$D$86,"=U16") -> 0 | EH123: =COUNTIFS(EH$8:EH$86,"=3",$D$8:$D$86,"=U14")+COUNTIFS(EH$8:EH$86,"=3",$D$8:$D$86,"=U16") -> 0 | EK123: =COUNTIFS(EK$8:EK$86,"=3",$D$8:$D$86,"=U14")+COUNTIFS(EK$8:EK$86,"=3",$D$8:$D$86,"=U16") -> 0 | EN123: =COUNTIFS(EN$8:EN$86,"=3",$D$8:$D$86,"=U14")+COUNTIFS(EN$8:EN$86,"=3",$D$8:$D$86,"=U16") -> 0 | EQ123: =COUNTIFS(EQ$8:EQ$86,"=3",$D$8:$D$86,"=U14")+COUNTIFS(EQ$8:EQ$86,"=3",$D$8:$D$86,"=U16") -> 0 | ET123: =COUNTIFS(ET$8:ET$86,"=3",$D$8:$D$86,"=U14")+COUNTIFS(ET$8:ET$86,"=3",$D$8:$D$86,"=U16") -> 0 | EW123: =COUNTIFS(EW$8:EW$86,"=3",$D$8:$D$86,"=U14")+COUNTIFS(EW$8:EW$86,"=3",$D$8:$D$86,"=U16") -> 0 | EZ123: =COUNTIFS(EZ$8:EZ$86,"=3",$D$8:$D$86,"=U14")+COUNTIFS(EZ$8:EZ$86,"=3",$D$8:$D$86,"=U16") -> 0 | FC123: =COUNTIFS(FC$8:FC$86,"=3",$D$8:$D$86,"=U14")+COUNTIFS(FC$8:FC$86,"=3",$D$8:$D$86,"=U16") -> 0 | FF123: =COUNTIFS(FF$8:FF$86,"=3",$D$8:$D$86,"=U14")+COUNTIFS(FF$8:FF$86,"=3",$D$8:$D$86,"=U16") -> 0 | FH123: =COUNTIFS(FH$8:FH$86,"=3",$D$8:$D$86,"=U14")+COUNTIFS(FH$8:FH$86,"=3",$D$8:$D$86,"=U16") -> 0
E124: JN Overall 1st | Y124: 1 | Z124: =COUNTIFS(Z$8:Z$86,"=1",$D$8:$D$86,"=U18")+COUNTIFS(Z$8:Z$86,"=1",$D$8:$D$86,"=U21") -> 0 | AC124: =COUNTIFS(AC$8:AC$86,"=1",$D$8:$D$86,"=U18")+COUNTIFS(AC$8:AC$86,"=1",$D$8:$D$86,"=U21") -> 0 | AE124: =COUNTIFS(AE$8:AE$86,"=1",$D$8:$D$86,"=U18")+COUNTIFS(AE$8:AE$86,"=1",$D$8:$D$86,"=U21") -> 0 | AH124: =COUNTIFS(AH$8:AH$86,"=1",$D$8:$D$86,"=U18")+COUNTIFS(AH$8:AH$86,"=1",$D$8:$D$86,"=U21") -> 0 | AL124: =COUNTIFS(AL$8:AL$86,"=1",$D$8:$D$86,"=U18")+COUNTIFS(AL$8:AL$86,"=1",$D$8:$D$86,"=U21") -> 0 | AP124: =COUNTIFS(AP$8:AP$86,"=1",$D$8:$D$86,"=U18")+COUNTIFS(AP$8:AP$86,"=1",$D$8:$D$86,"=U21") -> 1 | AS124: =COUNTIFS(AS$8:AS$86,"=1",$D$8:$D$86,"=U18")+COUNTIFS(AS$8:AS$86,"=1",$D$8:$D$86,"=U21") -> 0 | AV124: =COUNTIFS(AV$8:AV$86,"=1",$D$8:$D$86,"=U18")+COUNTIFS(AV$8:AV$86,"=1",$D$8:$D$86,"=U21") -> 0 | AY124: =COUNTIFS(AY$8:AY$86,"=1",$D$8:$D$86,"=U18")+COUNTIFS(AY$8:AY$86,"=1",$D$8:$D$86,"=U21") -> 0 | BB124: =COUNTIFS(BB$8:BB$86,"=1",$D$8:$D$86,"=U18")+COUNTIFS(BB$8:BB$86,"=1",$D$8:$D$86,"=U21") -> 0 | BE124: =COUNTIFS(BE$8:BE$86,"=1",$D$8:$D$86,"=U18")+COUNTIFS(BE$8:BE$86,"=1",$D$8:$D$86,"=U21") -> 0 | BH124: =COUNTIFS(BH$8:BH$86,"=1",$D$8:$D$86,"=U18")+COUNTIFS(BH$8:BH$86,"=1",$D$8:$D$86,"=U21") -> 0 | BK124: =COUNTIFS(BK$8:BK$86,"=1",$D$8:$D$86,"=U18")+COUNTIFS(BK$8:BK$86,"=1",$D$8:$D$86,"=U21") -> 0 | BN124: =COUNTIFS(BN$8:BN$86,"=1",$D$8:$D$86,"=U18")+COUNTIFS(BN$8:BN$86,"=1",$D$8:$D$86,"=U21") -> 0 | BQ124: =COUNTIFS(BQ$8:BQ$86,"=1",$D$8:$D$86,"=U18")+COUNTIFS(BQ$8:BQ$86,"=1",$D$8:$D$86,"=U21") -> 0 | BT124: =COUNTIFS(BT$8:BT$86,"=1",$D$8:$D$86,"=U18")+COUNTIFS(BT$8:BT$86,"=1",$D$8:$D$86,"=U21") -> 0 | BW124: =COUNTIFS(BW$8:BW$86,"=1",$D$8:$D$86,"=U18")+COUNTIFS(BW$8:BW$86,"=1",$D$8:$D$86,"=U21") -> 0 | BZ124: =COUNTIFS(BZ$8:BZ$86,"=1",$D$8:$D$86,"=U18")+COUNTIFS(BZ$8:BZ$86,"=1",$D$8:$D$86,"=U21") -> 0 | CC124: =COUNTIFS(CC$8:CC$86,"=1",$D$8:$D$86,"=U18")+COUNTIFS(CC$8:CC$86,"=1",$D$8:$D$86,"=U21") -> 0 | CF124: =COUNTIFS(CF$8:CF$86,"=1",$D$8:$D$86,"=U18")+COUNTIFS(CF$8:CF$86,"=1",$D$8:$D$86,"=U21") -> 0 | CJ124: =COUNTIFS(CJ$8:CJ$86,"=1",$D$8:$D$86,"=U18")+COUNTIFS(CJ$8:CJ$86,"=1",$D$8:$D$86,"=U21") -> 0 | CM124: =COUNTIFS(CM$8:CM$86,"=1",$D$8:$D$86,"=U18")+COUNTIFS(CM$8:CM$86,"=1",$D$8:$D$86,"=U21") -> 0 | CP124: =COUNTIFS(CP$8:CP$86,"=1",$D$8:$D$86,"=U18")+COUNTIFS(CP$8:CP$86,"=1",$D$8:$D$86,"=U21") -> 0 | CS124: =COUNTIFS(CS$8:CS$86,"=1",$D$8:$D$86,"=U18")+COUNTIFS(CS$8:CS$86,"=1",$D$8:$D$86,"=U21") -> 0 | CV124: =COUNTIFS(CV$8:CV$86,"=1",$D$8:$D$86,"=U18")+COUNTIFS(CV$8:CV$86,"=1",$D$8:$D$86,"=U21") -> 0 | CY124: =COUNTIFS(CY$8:CY$86,"=1",$D$8:$D$86,"=U18")+COUNTIFS(CY$8:CY$86,"=1",$D$8:$D$86,"=U21") -> 0 | DB124: =COUNTIFS(DB$8:DB$86,"=1",$D$8:$D$86,"=U18")+COUNTIFS(DB$8:DB$86,"=1",$D$8:$D$86,"=U21") -> 0 | DE124: =COUNTIFS(DE$8:DE$86,"=1",$D$8:$D$86,"=U18")+COUNTIFS(DE$8:DE$86,"=1",$D$8:$D$86,"=U21") -> 0 | DH124: =COUNTIFS(DH$8:DH$86,"=1",$D$8:$D$86,"=U18")+COUNTIFS(DH$8:DH$86,"=1",$D$8:$D$86,"=U21") -> 0 | DK124: =COUNTIFS(DK$8:DK$86,"=1",$D$8:$D$86,"=U18")+COUNTIFS(DK$8:DK$86,"=1",$D$8:$D$86,"=U21") -> 0 | DN124: =COUNTIFS(DN$8:DN$86,"=1",$D$8:$D$86,"=U18")+COUNTIFS(DN$8:DN$86,"=1",$D$8:$D$86,"=U21") -> 0 | DQ124: =COUNTIFS(DQ$8:DQ$86,"=1",$D$8:$D$86,"=U18")+COUNTIFS(DQ$8:DQ$86,"=1",$D$8:$D$86,"=U21") -> 0 | DT124: =COUNTIFS(DT$8:DT$86,"=1",$D$8:$D$86,"=U18")+COUNTIFS(DT$8:DT$86,"=1",$D$8:$D$86,"=U21") -> 0 | DW124: =COUNTIFS(DW$8:DW$86,"=1",$D$8:$D$86,"=U18")+COUNTIFS(DW$8:DW$86,"=1",$D$8:$D$86,"=U21") -> 0 | DZ124: =COUNTIFS(DZ$8:DZ$86,"=1",$D$8:$D$86,"=U18")+COUNTIFS(DZ$8:DZ$86,"=1",$D$8:$D$86,"=U21") -> 0 | EC124: =COUNTIFS(EC$8:EC$86,"=1",$D$8:$D$86,"=U18")+COUNTIFS(EC$8:EC$86,"=1",$D$8:$D$86,"=U21") -> 0 | EE124: =COUNTIFS(EE$8:EE$86,"=1",$D$8:$D$86,"=U18")+COUNTIFS(EE$8:EE$86,"=1",$D$8:$D$86,"=U21") -> 0 | EH124: =COUNTIFS(EH$8:EH$86,"=1",$D$8:$D$86,"=U18")+COUNTIFS(EH$8:EH$86,"=1",$D$8:$D$86,"=U21") -> 0 | EK124: =COUNTIFS(EK$8:EK$86,"=1",$D$8:$D$86,"=U18")+COUNTIFS(EK$8:EK$86,"=1",$D$8:$D$86,"=U21") -> 0 | EN124: =COUNTIFS(EN$8:EN$86,"=1",$D$8:$D$86,"=U18")+COUNTIFS(EN$8:EN$86,"=1",$D$8:$D$86,"=U21") -> 0 | EQ124: =COUNTIFS(EQ$8:EQ$86,"=1",$D$8:$D$86,"=U18")+COUNTIFS(EQ$8:EQ$86,"=1",$D$8:$D$86,"=U21") -> 0 | ET124: =COUNTIFS(ET$8:ET$86,"=1",$D$8:$D$86,"=U18")+COUNTIFS(ET$8:ET$86,"=1",$D$8:$D$86,"=U21") -> 0 | EW124: =COUNTIFS(EW$8:EW$86,"=1",$D$8:$D$86,"=U18")+COUNTIFS(EW$8:EW$86,"=1",$D$8:$D$86,"=U21") -> 0 | EZ124: =COUNTIFS(EZ$8:EZ$86,"=1",$D$8:$D$86,"=U18")+COUNTIFS(EZ$8:EZ$86,"=1",$D$8:$D$86,"=U21") -> 0 | FC124: =COUNTIFS(FC$8:FC$86,"=1",$D$8:$D$86,"=U18")+COUNTIFS(FC$8:FC$86,"=1",$D$8:$D$86,"=U21") -> 0 | FF124: =COUNTIFS(FF$8:FF$86,"=1",$D$8:$D$86,"=U18")+COUNTIFS(FF$8:FF$86,"=1",$D$8:$D$86,"=U21") -> 0 | FH124: =COUNTIFS(FH$8:FH$86,"=1",$D$8:$D$86,"=U18")+COUNTIFS(FH$8:FH$86,"=1",$D$8:$D$86,"=U21") -> 0
E125: JN Overall 2nd | Y125: 0 | Z125: =COUNTIFS(Z$8:Z$86,"=2",$D$8:$D$86,"=U18")+COUNTIFS(Z$8:Z$86,"=2",$D$8:$D$86,"=U21") -> 0 | AC125: =COUNTIFS(AC$8:AC$86,"=2",$D$8:$D$86,"=U18")+COUNTIFS(AC$8:AC$86,"=2",$D$8:$D$86,"=U21") -> 0 | AE125: =COUNTIFS(AE$8:AE$86,"=2",$D$8:$D$86,"=U18")+COUNTIFS(AE$8:AE$86,"=2",$D$8:$D$86,"=U21") -> 0 | AH125: =COUNTIFS(AH$8:AH$86,"=2",$D$8:$D$86,"=U18")+COUNTIFS(AH$8:AH$86,"=2",$D$8:$D$86,"=U21") -> 0 | AL125: =COUNTIFS(AL$8:AL$86,"=2",$D$8:$D$86,"=U18")+COUNTIFS(AL$8:AL$86,"=2",$D$8:$D$86,"=U21") -> 0 | AP125: =COUNTIFS(AP$8:AP$86,"=2",$D$8:$D$86,"=U18")+COUNTIFS(AP$8:AP$86,"=2",$D$8:$D$86,"=U21") -> 0 | AS125: =COUNTIFS(AS$8:AS$86,"=2",$D$8:$D$86,"=U18")+COUNTIFS(AS$8:AS$86,"=2",$D$8:$D$86,"=U21") -> 0 | AV125: =COUNTIFS(AV$8:AV$86,"=2",$D$8:$D$86,"=U18")+COUNTIFS(AV$8:AV$86,"=2",$D$8:$D$86,"=U21") -> 0 | AY125: =COUNTIFS(AY$8:AY$86,"=2",$D$8:$D$86,"=U18")+COUNTIFS(AY$8:AY$86,"=2",$D$8:$D$86,"=U21") -> 0 | BB125: =COUNTIFS(BB$8:BB$86,"=2",$D$8:$D$86,"=U18")+COUNTIFS(BB$8:BB$86,"=2",$D$8:$D$86,"=U21") -> 0 | BE125: =COUNTIFS(BE$8:BE$86,"=2",$D$8:$D$86,"=U18")+COUNTIFS(BE$8:BE$86,"=2",$D$8:$D$86,"=U21") -> 0 | BH125: =COUNTIFS(BH$8:BH$86,"=2",$D$8:$D$86,"=U18")+COUNTIFS(BH$8:BH$86,"=2",$D$8:$D$86,"=U21") -> 0 | BK125: =COUNTIFS(BK$8:BK$86,"=2",$D$8:$D$86,"=U18")+COUNTIFS(BK$8:BK$86,"=2",$D$8:$D$86,"=U21") -> 0 | BN125: =COUNTIFS(BN$8:BN$86,"=2",$D$8:$D$86,"=U18")+COUNTIFS(BN$8:BN$86,"=2",$D$8:$D$86,"=U21") -> 0 | BQ125: =COUNTIFS(BQ$8:BQ$86,"=2",$D$8:$D$86,"=U18")+COUNTIFS(BQ$8:BQ$86,"=2",$D$8:$D$86,"=U21") -> 0 | BT125: =COUNTIFS(BT$8:BT$86,"=2",$D$8:$D$86,"=U18")+COUNTIFS(BT$8:BT$86,"=2",$D$8:$D$86,"=U21") -> 0 | BW125: =COUNTIFS(BW$8:BW$86,"=2",$D$8:$D$86,"=U18")+COUNTIFS(BW$8:BW$86,"=2",$D$8:$D$86,"=U21") -> 0 | BZ125: =COUNTIFS(BZ$8:BZ$86,"=2",$D$8:$D$86,"=U18")+COUNTIFS(BZ$8:BZ$86,"=2",$D$8:$D$86,"=U21") -> 0 | CC125: =COUNTIFS(CC$8:CC$86,"=2",$D$8:$D$86,"=U18")+COUNTIFS(CC$8:CC$86,"=2",$D$8:$D$86,"=U21") -> 0 | CF125: =COUNTIFS(CF$8:CF$86,"=2",$D$8:$D$86,"=U18")+COUNTIFS(CF$8:CF$86,"=2",$D$8:$D$86,"=U21") -> 0 | CJ125: =COUNTIFS(CJ$8:CJ$86,"=2",$D$8:$D$86,"=U18")+COUNTIFS(CJ$8:CJ$86,"=2",$D$8:$D$86,"=U21") -> 0 | CM125: =COUNTIFS(CM$8:CM$86,"=2",$D$8:$D$86,"=U18")+COUNTIFS(CM$8:CM$86,"=2",$D$8:$D$86,"=U21") -> 0 | CP125: =COUNTIFS(CP$8:CP$86,"=2",$D$8:$D$86,"=U18")+COUNTIFS(CP$8:CP$86,"=2",$D$8:$D$86,"=U21") -> 0 | CS125: =COUNTIFS(CS$8:CS$86,"=2",$D$8:$D$86,"=U18")+COUNTIFS(CS$8:CS$86,"=2",$D$8:$D$86,"=U21") -> 0 | CV125: =COUNTIFS(CV$8:CV$86,"=2",$D$8:$D$86,"=U18")+COUNTIFS(CV$8:CV$86,"=2",$D$8:$D$86,"=U21") -> 0 | CY125: =COUNTIFS(CY$8:CY$86,"=2",$D$8:$D$86,"=U18")+COUNTIFS(CY$8:CY$86,"=2",$D$8:$D$86,"=U21") -> 0 | DB125: =COUNTIFS(DB$8:DB$86,"=2",$D$8:$D$86,"=U18")+COUNTIFS(DB$8:DB$86,"=2",$D$8:$D$86,"=U21") -> 0 | DE125: =COUNTIFS(DE$8:DE$86,"=2",$D$8:$D$86,"=U18")+COUNTIFS(DE$8:DE$86,"=2",$D$8:$D$86,"=U21") -> 0 | DH125: =COUNTIFS(DH$8:DH$86,"=2",$D$8:$D$86,"=U18")+COUNTIFS(DH$8:DH$86,"=2",$D$8:$D$86,"=U21") -> 0 | DK125: =COUNTIFS(DK$8:DK$86,"=2",$D$8:$D$86,"=U18")+COUNTIFS(DK$8:DK$86,"=2",$D$8:$D$86,"=U21") -> 0 | DN125: =COUNTIFS(DN$8:DN$86,"=2",$D$8:$D$86,"=U18")+COUNTIFS(DN$8:DN$86,"=2",$D$8:$D$86,"=U21") -> 0 | DQ125: =COUNTIFS(DQ$8:DQ$86,"=2",$D$8:$D$86,"=U18")+COUNTIFS(DQ$8:DQ$86,"=2",$D$8:$D$86,"=U21") -> 0 | DT125: =COUNTIFS(DT$8:DT$86,"=2",$D$8:$D$86,"=U18")+COUNTIFS(DT$8:DT$86,"=2",$D$8:$D$86,"=U21") -> 0 | DW125: =COUNTIFS(DW$8:DW$86,"=2",$D$8:$D$86,"=U18")+COUNTIFS(DW$8:DW$86,"=2",$D$8:$D$86,"=U21") -> 0 | DZ125: =COUNTIFS(DZ$8:DZ$86,"=2",$D$8:$D$86,"=U18")+COUNTIFS(DZ$8:DZ$86,"=2",$D$8:$D$86,"=U21") -> 0 | EC125: =COUNTIFS(EC$8:EC$86,"=2",$D$8:$D$86,"=U18")+COUNTIFS(EC$8:EC$86,"=2",$D$8:$D$86,"=U21") -> 0 | EE125: =COUNTIFS(EE$8:EE$86,"=2",$D$8:$D$86,"=U18")+COUNTIFS(EE$8:EE$86,"=2",$D$8:$D$86,"=U21") -> 0 | EH125: =COUNTIFS(EH$8:EH$86,"=2",$D$8:$D$86,"=U18")+COUNTIFS(EH$8:EH$86,"=2",$D$8:$D$86,"=U21") -> 0 | EK125: =COUNTIFS(EK$8:EK$86,"=2",$D$8:$D$86,"=U18")+COUNTIFS(EK$8:EK$86,"=2",$D$8:$D$86,"=U21") -> 0 | EN125: =COUNTIFS(EN$8:EN$86,"=2",$D$8:$D$86,"=U18")+COUNTIFS(EN$8:EN$86,"=2",$D$8:$D$86,"=U21") -> 0 | EQ125: =COUNTIFS(EQ$8:EQ$86,"=2",$D$8:$D$86,"=U18")+COUNTIFS(EQ$8:EQ$86,"=2",$D$8:$D$86,"=U21") -> 0 | ET125: =COUNTIFS(ET$8:ET$86,"=2",$D$8:$D$86,"=U18")+COUNTIFS(ET$8:ET$86,"=2",$D$8:$D$86,"=U21") -> 0 | EW125: =COUNTIFS(EW$8:EW$86,"=2",$D$8:$D$86,"=U18")+COUNTIFS(EW$8:EW$86,"=2",$D$8:$D$86,"=U21") -> 0 | EZ125: =COUNTIFS(EZ$8:EZ$86,"=2",$D$8:$D$86,"=U18")+COUNTIFS(EZ$8:EZ$86,"=2",$D$8:$D$86,"=U21") -> 0 | FC125: =COUNTIFS(FC$8:FC$86,"=2",$D$8:$D$86,"=U18")+COUNTIFS(FC$8:FC$86,"=2",$D$8:$D$86,"=U21") -> 0 | FF125: =COUNTIFS(FF$8:FF$86,"=2",$D$8:$D$86,"=U18")+COUNTIFS(FF$8:FF$86,"=2",$D$8:$D$86,"=U21") -> 0 | FH125: =COUNTIFS(FH$8:FH$86,"=2",$D$8:$D$86,"=U18")+COUNTIFS(FH$8:FH$86,"=2",$D$8:$D$86,"=U21") -> 0
E126: JN Overall 3rd | Y126: 2 | Z126: =COUNTIFS(Z$8:Z$86,"=3",$D$8:$D$86,"=U18")+COUNTIFS(Z$8:Z$86,"=3",$D$8:$D$86,"=U21") -> 0 | AC126: =COUNTIFS(AC$8:AC$86,"=3",$D$8:$D$86,"=U18")+COUNTIFS(AC$8:AC$86,"=3",$D$8:$D$86,"=U21") -> 0 | AE126: =COUNTIFS(AE$8:AE$86,"=3",$D$8:$D$86,"=U18")+COUNTIFS(AE$8:AE$86,"=3",$D$8:$D$86,"=U21") -> 1 | AH126: =COUNTIFS(AH$8:AH$86,"=3",$D$8:$D$86,"=U18")+COUNTIFS(AH$8:AH$86,"=3",$D$8:$D$86,"=U21") -> 0 | AL126: =COUNTIFS(AL$8:AL$86,"=3",$D$8:$D$86,"=U18")+COUNTIFS(AL$8:AL$86,"=3",$D$8:$D$86,"=U21") -> 0 | AP126: =COUNTIFS(AP$8:AP$86,"=3",$D$8:$D$86,"=U18")+COUNTIFS(AP$8:AP$86,"=3",$D$8:$D$86,"=U21") -> 0 | AS126: =COUNTIFS(AS$8:AS$86,"=3",$D$8:$D$86,"=U18")+COUNTIFS(AS$8:AS$86,"=3",$D$8:$D$86,"=U21") -> 0 | AV126: =COUNTIFS(AV$8:AV$86,"=3",$D$8:$D$86,"=U18")+COUNTIFS(AV$8:AV$86,"=3",$D$8:$D$86,"=U21") -> 0 | AY126: =COUNTIFS(AY$8:AY$86,"=3",$D$8:$D$86,"=U18")+COUNTIFS(AY$8:AY$86,"=3",$D$8:$D$86,"=U21") -> 0 | BB126: =COUNTIFS(BB$8:BB$86,"=3",$D$8:$D$86,"=U18")+COUNTIFS(BB$8:BB$86,"=3",$D$8:$D$86,"=U21") -> 0 | BE126: =COUNTIFS(BE$8:BE$86,"=3",$D$8:$D$86,"=U18")+COUNTIFS(BE$8:BE$86,"=3",$D$8:$D$86,"=U21") -> 0 | BH126: =COUNTIFS(BH$8:BH$86,"=3",$D$8:$D$86,"=U18")+COUNTIFS(BH$8:BH$86,"=3",$D$8:$D$86,"=U21") -> 0 | BK126: =COUNTIFS(BK$8:BK$86,"=3",$D$8:$D$86,"=U18")+COUNTIFS(BK$8:BK$86,"=3",$D$8:$D$86,"=U21") -> 0 | BN126: =COUNTIFS(BN$8:BN$86,"=3",$D$8:$D$86,"=U18")+COUNTIFS(BN$8:BN$86,"=3",$D$8:$D$86,"=U21") -> 0 | BQ126: =COUNTIFS(BQ$8:BQ$86,"=3",$D$8:$D$86,"=U18")+COUNTIFS(BQ$8:BQ$86,"=3",$D$8:$D$86,"=U21") -> 0 | BT126: =COUNTIFS(BT$8:BT$86,"=3",$D$8:$D$86,"=U18")+COUNTIFS(BT$8:BT$86,"=3",$D$8:$D$86,"=U21") -> 0 | BW126: =COUNTIFS(BW$8:BW$86,"=3",$D$8:$D$86,"=U18")+COUNTIFS(BW$8:BW$86,"=3",$D$8:$D$86,"=U21") -> 0 | BZ126: =COUNTIFS(BZ$8:BZ$86,"=3",$D$8:$D$86,"=U18")+COUNTIFS(BZ$8:BZ$86,"=3",$D$8:$D$86,"=U21") -> 0 | CC126: =COUNTIFS(CC$8:CC$86,"=3",$D$8:$D$86,"=U18")+COUNTIFS(CC$8:CC$86,"=3",$D$8:$D$86,"=U21") -> 0 | CF126: =COUNTIFS(CF$8:CF$86,"=3",$D$8:$D$86,"=U18")+COUNTIFS(CF$8:CF$86,"=3",$D$8:$D$86,"=U21") -> 0 | CJ126: =COUNTIFS(CJ$8:CJ$86,"=3",$D$8:$D$86,"=U18")+COUNTIFS(CJ$8:CJ$86,"=3",$D$8:$D$86,"=U21") -> 0 | CM126: =COUNTIFS(CM$8:CM$86,"=3",$D$8:$D$86,"=U18")+COUNTIFS(CM$8:CM$86,"=3",$D$8:$D$86,"=U21") -> 0 | CP126: =COUNTIFS(CP$8:CP$86,"=3",$D$8:$D$86,"=U18")+COUNTIFS(CP$8:CP$86,"=3",$D$8:$D$86,"=U21") -> 0 | CS126: =COUNTIFS(CS$8:CS$86,"=3",$D$8:$D$86,"=U18")+COUNTIFS(CS$8:CS$86,"=3",$D$8:$D$86,"=U21") -> 0 | CV126: =COUNTIFS(CV$8:CV$86,"=3",$D$8:$D$86,"=U18")+COUNTIFS(CV$8:CV$86,"=3",$D$8:$D$86,"=U21") -> 1 | CY126: =COUNTIFS(CY$8:CY$86,"=3",$D$8:$D$86,"=U18")+COUNTIFS(CY$8:CY$86,"=3",$D$8:$D$86,"=U21") -> 0 | DB126: =COUNTIFS(DB$8:DB$86,"=3",$D$8:$D$86,"=U18")+COUNTIFS(DB$8:DB$86,"=3",$D$8:$D$86,"=U21") -> 0 | DE126: =COUNTIFS(DE$8:DE$86,"=3",$D$8:$D$86,"=U18")+COUNTIFS(DE$8:DE$86,"=3",$D$8:$D$86,"=U21") -> 0 | DH126: =COUNTIFS(DH$8:DH$86,"=3",$D$8:$D$86,"=U18")+COUNTIFS(DH$8:DH$86,"=3",$D$8:$D$86,"=U21") -> 0 | DK126: =COUNTIFS(DK$8:DK$86,"=3",$D$8:$D$86,"=U18")+COUNTIFS(DK$8:DK$86,"=3",$D$8:$D$86,"=U21") -> 0 | DN126: =COUNTIFS(DN$8:DN$86,"=3",$D$8:$D$86,"=U18")+COUNTIFS(DN$8:DN$86,"=3",$D$8:$D$86,"=U21") -> 0 | DQ126: =COUNTIFS(DQ$8:DQ$86,"=3",$D$8:$D$86,"=U18")+COUNTIFS(DQ$8:DQ$86,"=3",$D$8:$D$86,"=U21") -> 0 | DT126: =COUNTIFS(DT$8:DT$86,"=3",$D$8:$D$86,"=U18")+COUNTIFS(DT$8:DT$86,"=3",$D$8:$D$86,"=U21") -> 0 | DW126: =COUNTIFS(DW$8:DW$86,"=3",$D$8:$D$86,"=U18")+COUNTIFS(DW$8:DW$86,"=3",$D$8:$D$86,"=U21") -> 0 | DZ126: =COUNTIFS(DZ$8:DZ$86,"=3",$D$8:$D$86,"=U18")+COUNTIFS(DZ$8:DZ$86,"=3",$D$8:$D$86,"=U21") -> 0 | EC126: =COUNTIFS(EC$8:EC$86,"=3",$D$8:$D$86,"=U18")+COUNTIFS(EC$8:EC$86,"=3",$D$8:$D$86,"=U21") -> 0 | EE126: =COUNTIFS(EE$8:EE$86,"=3",$D$8:$D$86,"=U18")+COUNTIFS(EE$8:EE$86,"=3",$D$8:$D$86,"=U21") -> 0 | EH126: =COUNTIFS(EH$8:EH$86,"=3",$D$8:$D$86,"=U18")+COUNTIFS(EH$8:EH$86,"=3",$D$8:$D$86,"=U21") -> 0 | EK126: =COUNTIFS(EK$8:EK$86,"=3",$D$8:$D$86,"=U18")+COUNTIFS(EK$8:EK$86,"=3",$D$8:$D$86,"=U21") -> 0 | EN126: =COUNTIFS(EN$8:EN$86,"=3",$D$8:$D$86,"=U18")+COUNTIFS(EN$8:EN$86,"=3",$D$8:$D$86,"=U21") -> 0 | EQ126: =COUNTIFS(EQ$8:EQ$86,"=3",$D$8:$D$86,"=U18")+COUNTIFS(EQ$8:EQ$86,"=3",$D$8:$D$86,"=U21") -> 0 | ET126: =COUNTIFS(ET$8:ET$86,"=3",$D$8:$D$86,"=U18")+COUNTIFS(ET$8:ET$86,"=3",$D$8:$D$86,"=U21") -> 0 | EW126: =COUNTIFS(EW$8:EW$86,"=3",$D$8:$D$86,"=U18")+COUNTIFS(EW$8:EW$86,"=3",$D$8:$D$86,"=U21") -> 0 | EZ126: =COUNTIFS(EZ$8:EZ$86,"=3",$D$8:$D$86,"=U18")+COUNTIFS(EZ$8:EZ$86,"=3",$D$8:$D$86,"=U21") -> 0 | FC126: =COUNTIFS(FC$8:FC$86,"=3",$D$8:$D$86,"=U18")+COUNTIFS(FC$8:FC$86,"=3",$D$8:$D$86,"=U21") -> 0 | FF126: =COUNTIFS(FF$8:FF$86,"=3",$D$8:$D$86,"=U18")+COUNTIFS(FF$8:FF$86,"=3",$D$8:$D$86,"=U21") -> 0 | FH126: =COUNTIFS(FH$8:FH$86,"=3",$D$8:$D$86,"=U18")+COUNTIFS(FH$8:FH$86,"=3",$D$8:$D$86,"=U21") -> 0
E127: SEN Overall 1st | Y127: 3 | Z127: =COUNTIFS(Z$8:Z$86,"=1",$D$8:$D$86,"=SEN") -> 0 | AC127: =COUNTIFS(AC$8:AC$86,"=1",$D$8:$D$86,"=SEN") -> 0 | AE127: =COUNTIFS(AE$8:AE$86,"=1",$D$8:$D$86,"=SEN") -> 1 | AH127: =COUNTIFS(AH$8:AH$86,"=1",$D$8:$D$86,"=SEN") -> 0 | AL127: =COUNTIFS(AL$8:AL$86,"=1",$D$8:$D$86,"=SEN") -> 0 | AP127: =COUNTIFS(AP$8:AP$86,"=1",$D$8:$D$86,"=SEN") -> 0 | AS127: =COUNTIFS(AS$8:AS$86,"=1",$D$8:$D$86,"=SEN") -> 0 | AV127: =COUNTIFS(AV$8:AV$86,"=1",$D$8:$D$86,"=SEN") -> 0 | AY127: =COUNTIFS(AY$8:AY$86,"=1",$D$8:$D$86,"=SEN") -> 0 | BB127: =COUNTIFS(BB$8:BB$86,"=1",$D$8:$D$86,"=SEN") -> 0 | BE127: =COUNTIFS(BE$8:BE$86,"=1",$D$8:$D$86,"=SEN") -> 0 | BH127: =COUNTIFS(BH$8:BH$86,"=1",$D$8:$D$86,"=SEN") -> 0 | BK127: =COUNTIFS(BK$8:BK$86,"=1",$D$8:$D$86,"=SEN") -> 0 | BN127: =COUNTIFS(BN$8:BN$86,"=1",$D$8:$D$86,"=SEN") -> 0 | BQ127: =COUNTIFS(BQ$8:BQ$86,"=1",$D$8:$D$86,"=SEN") -> 0 | BT127: =COUNTIFS(BT$8:BT$86,"=1",$D$8:$D$86,"=SEN") -> 0 | BW127: =COUNTIFS(BW$8:BW$86,"=1",$D$8:$D$86,"=SEN") -> 0 | BZ127: =COUNTIFS(BZ$8:BZ$86,"=1",$D$8:$D$86,"=SEN") -> 0 | CC127: =COUNTIFS(CC$8:CC$86,"=1",$D$8:$D$86,"=SEN") -> 0 | CF127: =COUNTIFS(CF$8:CF$86,"=1",$D$8:$D$86,"=SEN") -> 0 | CJ127: =COUNTIFS(CJ$8:CJ$86,"=1",$D$8:$D$86,"=SEN") -> 1 | CM127: =COUNTIFS(CM$8:CM$86,"=1",$D$8:$D$86,"=SEN") -> 0 | CP127: =COUNTIFS(CP$8:CP$86,"=1",$D$8:$D$86,"=SEN") -> 1 | CS127: =COUNTIFS(CS$8:CS$86,"=1",$D$8:$D$86,"=SEN") -> 0 | CV127: =COUNTIFS(CV$8:CV$86,"=1",$D$8:$D$86,"=SEN") -> 0 | CY127: =COUNTIFS(CY$8:CY$86,"=1",$D$8:$D$86,"=SEN") -> 0 | DB127: =COUNTIFS(DB$8:DB$86,"=1",$D$8:$D$86,"=SEN") -> 0 | DE127: =COUNTIFS(DE$8:DE$86,"=1",$D$8:$D$86,"=SEN") -> 0 | DH127: =COUNTIFS(DH$8:DH$86,"=1",$D$8:$D$86,"=SEN") -> 0 | DK127: =COUNTIFS(DK$8:DK$86,"=1",$D$8:$D$86,"=SEN") -> 0 | DN127: =COUNTIFS(DN$8:DN$86,"=1",$D$8:$D$86,"=SEN") -> 0 | DQ127: =COUNTIFS(DQ$8:DQ$86,"=1",$D$8:$D$86,"=SEN") -> 0 | DT127: =COUNTIFS(DT$8:DT$86,"=1",$D$8:$D$86,"=SEN") -> 0 | DW127: =COUNTIFS(DW$8:DW$86,"=1",$D$8:$D$86,"=SEN") -> 0 | DZ127: =COUNTIFS(DZ$8:DZ$86,"=1",$D$8:$D$86,"=SEN") -> 0 | EC127: =COUNTIFS(EC$8:EC$86,"=1",$D$8:$D$86,"=SEN") -> 0 | EE127: =COUNTIFS(EE$8:EE$86,"=1",$D$8:$D$86,"=SEN") -> 0 | EH127: =COUNTIFS(EH$8:EH$86,"=1",$D$8:$D$86,"=SEN") -> 0 | EK127: =COUNTIFS(EK$8:EK$86,"=1",$D$8:$D$86,"=SEN") -> 0 | EN127: =COUNTIFS(EN$8:EN$86,"=1",$D$8:$D$86,"=SEN") -> 0 | EQ127: =COUNTIFS(EQ$8:EQ$86,"=1",$D$8:$D$86,"=SEN") -> 0 | ET127: =COUNTIFS(ET$8:ET$86,"=1",$D$8:$D$86,"=SEN") -> 0 | EW127: =COUNTIFS(EW$8:EW$86,"=1",$D$8:$D$86,"=SEN") -> 0 | EZ127: =COUNTIFS(EZ$8:EZ$86,"=1",$D$8:$D$86,"=SEN") -> 0 | FC127: =COUNTIFS(FC$8:FC$86,"=1",$D$8:$D$86,"=SEN") -> 0 | FF127: =COUNTIFS(FF$8:FF$86,"=1",$D$8:$D$86,"=SEN") -> 0 | FH127: =COUNTIFS(FH$8:FH$86,"=1",$D$8:$D$86,"=SEN") -> 0
E128: SEN Overall 2nd | Y128: 1 | Z128: =COUNTIFS(Z$8:Z$86,"=2",$D$8:$D$86,"=SEN") -> 0 | AC128: =COUNTIFS(AC$8:AC$86,"=2",$D$8:$D$86,"=SEN") -> 0 | AE128: =COUNTIFS(AE$8:AE$86,"=2",$D$8:$D$86,"=SEN") -> 0 | AH128: =COUNTIFS(AH$8:AH$86,"=2",$D$8:$D$86,"=SEN") -> 0 | AL128: =COUNTIFS(AL$8:AL$86,"=2",$D$8:$D$86,"=SEN") -> 0 | AP128: =COUNTIFS(AP$8:AP$86,"=2",$D$8:$D$86,"=SEN") -> 0 | AS128: =COUNTIFS(AS$8:AS$86,"=2",$D$8:$D$86,"=SEN") -> 0 | AV128: =COUNTIFS(AV$8:AV$86,"=2",$D$8:$D$86,"=SEN") -> 0 | AY128: =COUNTIFS(AY$8:AY$86,"=2",$D$8:$D$86,"=SEN") -> 0 | BB128: =COUNTIFS(BB$8:BB$86,"=2",$D$8:$D$86,"=SEN") -> 0 | BE128: =COUNTIFS(BE$8:BE$86,"=2",$D$8:$D$86,"=SEN") -> 0 | BH128: =COUNTIFS(BH$8:BH$86,"=2",$D$8:$D$86,"=SEN") -> 0 | BK128: =COUNTIFS(BK$8:BK$86,"=2",$D$8:$D$86,"=SEN") -> 0 | BN128: =COUNTIFS(BN$8:BN$86,"=2",$D$8:$D$86,"=SEN") -> 0 | BQ128: =COUNTIFS(BQ$8:BQ$86,"=2",$D$8:$D$86,"=SEN") -> 0 | BT128: =COUNTIFS(BT$8:BT$86,"=2",$D$8:$D$86,"=SEN") -> 0 | BW128: =COUNTIFS(BW$8:BW$86,"=2",$D$8:$D$86,"=SEN") -> 0 | BZ128: =COUNTIFS(BZ$8:BZ$86,"=2",$D$8:$D$86,"=SEN") -> 1 | CC128: =COUNTIFS(CC$8:CC$86,"=2",$D$8:$D$86,"=SEN") -> 0 | CF128: =COUNTIFS(CF$8:CF$86,"=2",$D$8:$D$86,"=SEN") -> 0 | CJ128: =COUNTIFS(CJ$8:CJ$86,"=2",$D$8:$D$86,"=SEN") -> 0 | CM128: =COUNTIFS(CM$8:CM$86,"=2",$D$8:$D$86,"=SEN") -> 0 | CP128: =COUNTIFS(CP$8:CP$86,"=2",$D$8:$D$86,"=SEN") -> 0 | CS128: =COUNTIFS(CS$8:CS$86,"=2",$D$8:$D$86,"=SEN") -> 0 | CV128: =COUNTIFS(CV$8:CV$86,"=2",$D$8:$D$86,"=SEN") -> 0 | CY128: =COUNTIFS(CY$8:CY$86,"=2",$D$8:$D$86,"=SEN") -> 0 | DB128: =COUNTIFS(DB$8:DB$86,"=2",$D$8:$D$86,"=SEN") -> 0 | DE128: =COUNTIFS(DE$8:DE$86,"=2",$D$8:$D$86,"=SEN") -> 0 | DH128: =COUNTIFS(DH$8:DH$86,"=2",$D$8:$D$86,"=SEN") -> 0 | DK128: =COUNTIFS(DK$8:DK$86,"=2",$D$8:$D$86,"=SEN") -> 0 | DN128: =COUNTIFS(DN$8:DN$86,"=2",$D$8:$D$86,"=SEN") -> 0 | DQ128: =COUNTIFS(DQ$8:DQ$86,"=2",$D$8:$D$86,"=SEN") -> 0 | DT128: =COUNTIFS(DT$8:DT$86,"=2",$D$8:$D$86,"=SEN") -> 0 | DW128: =COUNTIFS(DW$8:DW$86,"=2",$D$8:$D$86,"=SEN") -> 0 | DZ128: =COUNTIFS(DZ$8:DZ$86,"=2",$D$8:$D$86,"=SEN") -> 0 | EC128: =COUNTIFS(EC$8:EC$86,"=2",$D$8:$D$86,"=SEN") -> 0 | EE128: =COUNTIFS(EE$8:EE$86,"=2",$D$8:$D$86,"=SEN") -> 0 | EH128: =COUNTIFS(EH$8:EH$86,"=2",$D$8:$D$86,"=SEN") -> 0 | EK128: =COUNTIFS(EK$8:EK$86,"=2",$D$8:$D$86,"=SEN") -> 0 | EN128: =COUNTIFS(EN$8:EN$86,"=2",$D$8:$D$86,"=SEN") -> 0 | EQ128: =COUNTIFS(EQ$8:EQ$86,"=2",$D$8:$D$86,"=SEN") -> 0 | ET128: =COUNTIFS(ET$8:ET$86,"=2",$D$8:$D$86,"=SEN") -> 0 | EW128: =COUNTIFS(EW$8:EW$86,"=2",$D$8:$D$86,"=SEN") -> 0 | EZ128: =COUNTIFS(EZ$8:EZ$86,"=2",$D$8:$D$86,"=SEN") -> 0 | FC128: =COUNTIFS(FC$8:FC$86,"=2",$D$8:$D$86,"=SEN") -> 0 | FF128: =COUNTIFS(FF$8:FF$86,"=2",$D$8:$D$86,"=SEN") -> 0 | FH128: =COUNTIFS(FH$8:FH$86,"=2",$D$8:$D$86,"=SEN") -> 0
E129: SEN Overall 3rd | Y129: 2 | Z129: =COUNTIFS(Z$8:Z$86,"=3",$D$8:$D$86,"=SEN") -> 0 | AC129: =COUNTIFS(AC$8:AC$86,"=3",$D$8:$D$86,"=SEN") -> 0 | AE129: =COUNTIFS(AE$8:AE$86,"=3",$D$8:$D$86,"=SEN") -> 0 | AH129: =COUNTIFS(AH$8:AH$86,"=3",$D$8:$D$86,"=SEN") -> 0 | AL129: =COUNTIFS(AL$8:AL$86,"=3",$D$8:$D$86,"=SEN") -> 0 | AP129: =COUNTIFS(AP$8:AP$86,"=3",$D$8:$D$86,"=SEN") -> 0 | AS129: =COUNTIFS(AS$8:AS$86,"=3",$D$8:$D$86,"=SEN") -> 0 | AV129: =COUNTIFS(AV$8:AV$86,"=3",$D$8:$D$86,"=SEN") -> 0 | AY129: =COUNTIFS(AY$8:AY$86,"=3",$D$8:$D$86,"=SEN") -> 0 | BB129: =COUNTIFS(BB$8:BB$86,"=3",$D$8:$D$86,"=SEN") -> 0 | BE129: =COUNTIFS(BE$8:BE$86,"=3",$D$8:$D$86,"=SEN") -> 0 | BH129: =COUNTIFS(BH$8:BH$86,"=3",$D$8:$D$86,"=SEN") -> 0 | BK129: =COUNTIFS(BK$8:BK$86,"=3",$D$8:$D$86,"=SEN") -> 0 | BN129: =COUNTIFS(BN$8:BN$86,"=3",$D$8:$D$86,"=SEN") -> 0 | BQ129: =COUNTIFS(BQ$8:BQ$86,"=3",$D$8:$D$86,"=SEN") -> 0 | BT129: =COUNTIFS(BT$8:BT$86,"=3",$D$8:$D$86,"=SEN") -> 0 | BW129: =COUNTIFS(BW$8:BW$86,"=3",$D$8:$D$86,"=SEN") -> 0 | BZ129: =COUNTIFS(BZ$8:BZ$86,"=3",$D$8:$D$86,"=SEN") -> 0 | CC129: =COUNTIFS(CC$8:CC$86,"=3",$D$8:$D$86,"=SEN") -> 0 | CF129: =COUNTIFS(CF$8:CF$86,"=3",$D$8:$D$86,"=SEN") -> 0 | CJ129: =COUNTIFS(CJ$8:CJ$86,"=3",$D$8:$D$86,"=SEN") -> 0 | CM129: =COUNTIFS(CM$8:CM$86,"=3",$D$8:$D$86,"=SEN") -> 0 | CP129: =COUNTIFS(CP$8:CP$86,"=3",$D$8:$D$86,"=SEN") -> 0 | CS129: =COUNTIFS(CS$8:CS$86,"=3",$D$8:$D$86,"=SEN") -> 0 | CV129: =COUNTIFS(CV$8:CV$86,"=3",$D$8:$D$86,"=SEN") -> 1 | CY129: =COUNTIFS(CY$8:CY$86,"=3",$D$8:$D$86,"=SEN") -> 0 | DB129: =COUNTIFS(DB$8:DB$86,"=3",$D$8:$D$86,"=SEN") -> 1 | DE129: =COUNTIFS(DE$8:DE$86,"=3",$D$8:$D$86,"=SEN") -> 0 | DH129: =COUNTIFS(DH$8:DH$86,"=3",$D$8:$D$86,"=SEN") -> 0 | DK129: =COUNTIFS(DK$8:DK$86,"=3",$D$8:$D$86,"=SEN") -> 0 | DN129: =COUNTIFS(DN$8:DN$86,"=3",$D$8:$D$86,"=SEN") -> 0 | DQ129: =COUNTIFS(DQ$8:DQ$86,"=3",$D$8:$D$86,"=SEN") -> 0 | DT129: =COUNTIFS(DT$8:DT$86,"=3",$D$8:$D$86,"=SEN") -> 0 | DW129: =COUNTIFS(DW$8:DW$86,"=3",$D$8:$D$86,"=SEN") -> 0 | DZ129: =COUNTIFS(DZ$8:DZ$86,"=3",$D$8:$D$86,"=SEN") -> 0 | EC129: =COUNTIFS(EC$8:EC$86,"=3",$D$8:$D$86,"=SEN") -> 0 | EE129: =COUNTIFS(EE$8:EE$86,"=3",$D$8:$D$86,"=SEN") -> 0 | EH129: =COUNTIFS(EH$8:EH$86,"=3",$D$8:$D$86,"=SEN") -> 0 | EK129: =COUNTIFS(EK$8:EK$86,"=3",$D$8:$D$86,"=SEN") -> 0 | EN129: =COUNTIFS(EN$8:EN$86,"=3",$D$8:$D$86,"=SEN") -> 0 | EQ129: =COUNTIFS(EQ$8:EQ$86,"=3",$D$8:$D$86,"=SEN") -> 0 | ET129: =COUNTIFS(ET$8:ET$86,"=3",$D$8:$D$86,"=SEN") -> 0 | EW129: =COUNTIFS(EW$8:EW$86,"=3",$D$8:$D$86,"=SEN") -> 0 | EZ129: =COUNTIFS(EZ$8:EZ$86,"=3",$D$8:$D$86,"=SEN") -> 0 | FC129: =COUNTIFS(FC$8:FC$86,"=3",$D$8:$D$86,"=SEN") -> 0 | FF129: =COUNTIFS(FF$8:FF$86,"=3",$D$8:$D$86,"=SEN") -> 0 | FH129: =COUNTIFS(FH$8:FH$86,"=3",$D$8:$D$86,"=SEN") -> 0
E130: MAS Overall 1st | Y130: 0 | Z130: =COUNTIFS(Z$8:Z$86,"=1",$D$8:$D$86,"=MAS") -> 0 | AC130: =COUNTIFS(AC$8:AC$86,"=1",$D$8:$D$86,"=MAS") -> 0 | AE130: =COUNTIFS(AE$8:AE$86,"=1",$D$8:$D$86,"=MAS") -> 0 | AH130: =COUNTIFS(AH$8:AH$86,"=1",$D$8:$D$86,"=MAS") -> 0 | AL130: =COUNTIFS(AL$8:AL$86,"=1",$D$8:$D$86,"=MAS") -> 0 | AP130: =COUNTIFS(AP$8:AP$86,"=1",$D$8:$D$86,"=MAS") -> 0 | AS130: =COUNTIFS(AS$8:AS$86,"=1",$D$8:$D$86,"=MAS") -> 0 | AV130: =COUNTIFS(AV$8:AV$86,"=1",$D$8:$D$86,"=MAS") -> 0 | AY130: =COUNTIFS(AY$8:AY$86,"=1",$D$8:$D$86,"=MAS") -> 0 | BB130: =COUNTIFS(BB$8:BB$86,"=1",$D$8:$D$86,"=MAS") -> 0 | BE130: =COUNTIFS(BE$8:BE$86,"=1",$D$8:$D$86,"=MAS") -> 0 | BH130: =COUNTIFS(BH$8:BH$86,"=1",$D$8:$D$86,"=MAS") -> 0 | BK130: =COUNTIFS(BK$8:BK$86,"=1",$D$8:$D$86,"=MAS") -> 0 | BN130: =COUNTIFS(BN$8:BN$86,"=1",$D$8:$D$86,"=MAS") -> 0 | BQ130: =COUNTIFS(BQ$8:BQ$86,"=1",$D$8:$D$86,"=MAS") -> 0 | BT130: =COUNTIFS(BT$8:BT$86,"=1",$D$8:$D$86,"=MAS") -> 0 | BW130: =COUNTIFS(BW$8:BW$86,"=1",$D$8:$D$86,"=MAS") -> 0 | BZ130: =COUNTIFS(BZ$8:BZ$86,"=1",$D$8:$D$86,"=MAS") -> 0 | CC130: =COUNTIFS(CC$8:CC$86,"=1",$D$8:$D$86,"=MAS") -> 0 | CF130: =COUNTIFS(CF$8:CF$86,"=1",$D$8:$D$86,"=MAS") -> 0 | CJ130: =COUNTIFS(CJ$8:CJ$86,"=1",$D$8:$D$86,"=MAS") -> 0 | CM130: =COUNTIFS(CM$8:CM$86,"=1",$D$8:$D$86,"=MAS") -> 0 | CP130: =COUNTIFS(CP$8:CP$86,"=1",$D$8:$D$86,"=MAS") -> 0 | CS130: =COUNTIFS(CS$8:CS$86,"=1",$D$8:$D$86,"=MAS") -> 0 | CV130: =COUNTIFS(CV$8:CV$86,"=1",$D$8:$D$86,"=MAS") -> 0 | CY130: =COUNTIFS(CY$8:CY$86,"=1",$D$8:$D$86,"=MAS") -> 0 | DB130: =COUNTIFS(DB$8:DB$86,"=1",$D$8:$D$86,"=MAS") -> 0 | DE130: =COUNTIFS(DE$8:DE$86,"=1",$D$8:$D$86,"=MAS") -> 0 | DH130: =COUNTIFS(DH$8:DH$86,"=1",$D$8:$D$86,"=MAS") -> 0 | DK130: =COUNTIFS(DK$8:DK$86,"=1",$D$8:$D$86,"=MAS") -> 0 | DN130: =COUNTIFS(DN$8:DN$86,"=1",$D$8:$D$86,"=MAS") -> 0 | DQ130: =COUNTIFS(DQ$8:DQ$86,"=1",$D$8:$D$86,"=MAS") -> 0 | DT130: =COUNTIFS(DT$8:DT$86,"=1",$D$8:$D$86,"=MAS") -> 0 | DW130: =COUNTIFS(DW$8:DW$86,"=1",$D$8:$D$86,"=MAS") -> 0 | DZ130: =COUNTIFS(DZ$8:DZ$86,"=1",$D$8:$D$86,"=MAS") -> 0 | EC130: =COUNTIFS(EC$8:EC$86,"=1",$D$8:$D$86,"=MAS") -> 0 | EE130: =COUNTIFS(EE$8:EE$86,"=1",$D$8:$D$86,"=MAS") -> 0 | EH130: =COUNTIFS(EH$8:EH$86,"=1",$D$8:$D$86,"=MAS") -> 0 | EK130: =COUNTIFS(EK$8:EK$86,"=1",$D$8:$D$86,"=MAS") -> 0 | EN130: =COUNTIFS(EN$8:EN$86,"=1",$D$8:$D$86,"=MAS") -> 0 | EQ130: =COUNTIFS(EQ$8:EQ$86,"=1",$D$8:$D$86,"=MAS") -> 0 | ET130: =COUNTIFS(ET$8:ET$86,"=1",$D$8:$D$86,"=MAS") -> 0 | EW130: =COUNTIFS(EW$8:EW$86,"=1",$D$8:$D$86,"=MAS") -> 0 | EZ130: =COUNTIFS(EZ$8:EZ$86,"=1",$D$8:$D$86,"=MAS") -> 0 | FC130: =COUNTIFS(FC$8:FC$86,"=1",$D$8:$D$86,"=MAS") -> 0 | FF130: =COUNTIFS(FF$8:FF$86,"=1",$D$8:$D$86,"=MAS") -> 0 | FH130: =COUNTIFS(FH$8:FH$86,"=1",$D$8:$D$86,"=MAS") -> 0
E131: MAS Overall 2nd | Y131: 0 | Z131: =COUNTIFS(Z$8:Z$86,"=2",$D$8:$D$86,"=MAS") -> 0 | AC131: =COUNTIFS(AC$8:AC$86,"=2",$D$8:$D$86,"=MAS") -> 0 | AE131: =COUNTIFS(AE$8:AE$86,"=2",$D$8:$D$86,"=MAS") -> 0 | AH131: =COUNTIFS(AH$8:AH$86,"=2",$D$8:$D$86,"=MAS") -> 0 | AL131: =COUNTIFS(AL$8:AL$86,"=2",$D$8:$D$86,"=MAS") -> 0 | AP131: =COUNTIFS(AP$8:AP$86,"=2",$D$8:$D$86,"=MAS") -> 0 | AS131: =COUNTIFS(AS$8:AS$86,"=2",$D$8:$D$86,"=MAS") -> 0 | AV131: =COUNTIFS(AV$8:AV$86,"=2",$D$8:$D$86,"=MAS") -> 0 | AY131: =COUNTIFS(AY$8:AY$86,"=2",$D$8:$D$86,"=MAS") -> 0 | BB131: =COUNTIFS(BB$8:BB$86,"=2",$D$8:$D$86,"=MAS") -> 0 | BE131: =COUNTIFS(BE$8:BE$86,"=2",$D$8:$D$86,"=MAS") -> 0 | BH131: =COUNTIFS(BH$8:BH$86,"=2",$D$8:$D$86,"=MAS") -> 0 | BK131: =COUNTIFS(BK$8:BK$86,"=2",$D$8:$D$86,"=MAS") -> 0 | BN131: =COUNTIFS(BN$8:BN$86,"=2",$D$8:$D$86,"=MAS") -> 0 | BQ131: =COUNTIFS(BQ$8:BQ$86,"=2",$D$8:$D$86,"=MAS") -> 0 | BT131: =COUNTIFS(BT$8:BT$86,"=2",$D$8:$D$86,"=MAS") -> 0 | BW131: =COUNTIFS(BW$8:BW$86,"=2",$D$8:$D$86,"=MAS") -> 0 | BZ131: =COUNTIFS(BZ$8:BZ$86,"=2",$D$8:$D$86,"=MAS") -> 0 | CC131: =COUNTIFS(CC$8:CC$86,"=2",$D$8:$D$86,"=MAS") -> 0 | CF131: =COUNTIFS(CF$8:CF$86,"=2",$D$8:$D$86,"=MAS") -> 0 | CJ131: =COUNTIFS(CJ$8:CJ$86,"=2",$D$8:$D$86,"=MAS") -> 0 | CM131: =COUNTIFS(CM$8:CM$86,"=2",$D$8:$D$86,"=MAS") -> 0 | CP131: =COUNTIFS(CP$8:CP$86,"=2",$D$8:$D$86,"=MAS") -> 0 | CS131: =COUNTIFS(CS$8:CS$86,"=2",$D$8:$D$86,"=MAS") -> 0 | CV131: =COUNTIFS(CV$8:CV$86,"=2",$D$8:$D$86,"=MAS") -> 0 | CY131: =COUNTIFS(CY$8:CY$86,"=2",$D$8:$D$86,"=MAS") -> 0 | DB131: =COUNTIFS(DB$8:DB$86,"=2",$D$8:$D$86,"=MAS") -> 0 | DE131: =COUNTIFS(DE$8:DE$86,"=2",$D$8:$D$86,"=MAS") -> 0 | DH131: =COUNTIFS(DH$8:DH$86,"=2",$D$8:$D$86,"=MAS") -> 0 | DK131: =COUNTIFS(DK$8:DK$86,"=2",$D$8:$D$86,"=MAS") -> 0 | DN131: =COUNTIFS(DN$8:DN$86,"=2",$D$8:$D$86,"=MAS") -> 0 | DQ131: =COUNTIFS(DQ$8:DQ$86,"=2",$D$8:$D$86,"=MAS") -> 0 | DT131: =COUNTIFS(DT$8:DT$86,"=2",$D$8:$D$86,"=MAS") -> 0 | DW131: =COUNTIFS(DW$8:DW$86,"=2",$D$8:$D$86,"=MAS") -> 0 | DZ131: =COUNTIFS(DZ$8:DZ$86,"=2",$D$8:$D$86,"=MAS") -> 0 | EC131: =COUNTIFS(EC$8:EC$86,"=2",$D$8:$D$86,"=MAS") -> 0 | EE131: =COUNTIFS(EE$8:EE$86,"=2",$D$8:$D$86,"=MAS") -> 0 | EH131: =COUNTIFS(EH$8:EH$86,"=2",$D$8:$D$86,"=MAS") -> 0 | EK131: =COUNTIFS(EK$8:EK$86,"=2",$D$8:$D$86,"=MAS") -> 0 | EN131: =COUNTIFS(EN$8:EN$86,"=2",$D$8:$D$86,"=MAS") -> 0 | EQ131: =COUNTIFS(EQ$8:EQ$86,"=2",$D$8:$D$86,"=MAS") -> 0 | ET131: =COUNTIFS(ET$8:ET$86,"=2",$D$8:$D$86,"=MAS") -> 0 | EW131: =COUNTIFS(EW$8:EW$86,"=2",$D$8:$D$86,"=MAS") -> 0 | EZ131: =COUNTIFS(EZ$8:EZ$86,"=2",$D$8:$D$86,"=MAS") -> 0 | FC131: =COUNTIFS(FC$8:FC$86,"=2",$D$8:$D$86,"=MAS") -> 0 | FF131: =COUNTIFS(FF$8:FF$86,"=2",$D$8:$D$86,"=MAS") -> 0 | FH131: =COUNTIFS(FH$8:FH$86,"=2",$D$8:$D$86,"=MAS") -> 0
E132: MAS Overall 3rd | Y132: 0 | Z132: =COUNTIFS(Z$8:Z$86,"=3",$D$8:$D$86,"=MAS") -> 0 | AC132: =COUNTIFS(AC$8:AC$86,"=3",$D$8:$D$86,"=MAS") -> 0 | AE132: =COUNTIFS(AE$8:AE$86,"=3",$D$8:$D$86,"=MAS") -> 0 | AH132: =COUNTIFS(AH$8:AH$86,"=3",$D$8:$D$86,"=MAS") -> 0 | AL132: =COUNTIFS(AL$8:AL$86,"=3",$D$8:$D$86,"=MAS") -> 0 | AP132: =COUNTIFS(AP$8:AP$86,"=3",$D$8:$D$86,"=MAS") -> 0 | AS132: =COUNTIFS(AS$8:AS$86,"=3",$D$8:$D$86,"=MAS") -> 0 | AV132: =COUNTIFS(AV$8:AV$86,"=3",$D$8:$D$86,"=MAS") -> 0 | AY132: =COUNTIFS(AY$8:AY$86,"=3",$D$8:$D$86,"=MAS") -> 0 | BB132: =COUNTIFS(BB$8:BB$86,"=3",$D$8:$D$86,"=MAS") -> 0 | BE132: =COUNTIFS(BE$8:BE$86,"=3",$D$8:$D$86,"=MAS") -> 0 | BH132: =COUNTIFS(BH$8:BH$86,"=3",$D$8:$D$86,"=MAS") -> 0 | BK132: =COUNTIFS(BK$8:BK$86,"=3",$D$8:$D$86,"=MAS") -> 0 | BN132: =COUNTIFS(BN$8:BN$86,"=3",$D$8:$D$86,"=MAS") -> 0 | BQ132: =COUNTIFS(BQ$8:BQ$86,"=3",$D$8:$D$86,"=MAS") -> 0 | BT132: =COUNTIFS(BT$8:BT$86,"=3",$D$8:$D$86,"=MAS") -> 0 | BW132: =COUNTIFS(BW$8:BW$86,"=3",$D$8:$D$86,"=MAS") -> 0 | BZ132: =COUNTIFS(BZ$8:BZ$86,"=3",$D$8:$D$86,"=MAS") -> 0 | CC132: =COUNTIFS(CC$8:CC$86,"=3",$D$8:$D$86,"=MAS") -> 0 | CF132: =COUNTIFS(CF$8:CF$86,"=3",$D$8:$D$86,"=MAS") -> 0 | CJ132: =COUNTIFS(CJ$8:CJ$86,"=3",$D$8:$D$86,"=MAS") -> 0 | CM132: =COUNTIFS(CM$8:CM$86,"=3",$D$8:$D$86,"=MAS") -> 0 | CP132: =COUNTIFS(CP$8:CP$86,"=3",$D$8:$D$86,"=MAS") -> 0 | CS132: =COUNTIFS(CS$8:CS$86,"=3",$D$8:$D$86,"=MAS") -> 0 | CV132: =COUNTIFS(CV$8:CV$86,"=3",$D$8:$D$86,"=MAS") -> 0 | CY132: =COUNTIFS(CY$8:CY$86,"=3",$D$8:$D$86,"=MAS") -> 0 | DB132: =COUNTIFS(DB$8:DB$86,"=3",$D$8:$D$86,"=MAS") -> 0 | DE132: =COUNTIFS(DE$8:DE$86,"=3",$D$8:$D$86,"=MAS") -> 0 | DH132: =COUNTIFS(DH$8:DH$86,"=3",$D$8:$D$86,"=MAS") -> 0 | DK132: =COUNTIFS(DK$8:DK$86,"=3",$D$8:$D$86,"=MAS") -> 0 | DN132: =COUNTIFS(DN$8:DN$86,"=3",$D$8:$D$86,"=MAS") -> 0 | DQ132: =COUNTIFS(DQ$8:DQ$86,"=3",$D$8:$D$86,"=MAS") -> 0 | DT132: =COUNTIFS(DT$8:DT$86,"=3",$D$8:$D$86,"=MAS") -> 0 | DW132: =COUNTIFS(DW$8:DW$86,"=3",$D$8:$D$86,"=MAS") -> 0 | DZ132: =COUNTIFS(DZ$8:DZ$86,"=3",$D$8:$D$86,"=MAS") -> 0 | EC132: =COUNTIFS(EC$8:EC$86,"=3",$D$8:$D$86,"=MAS") -> 0 | EE132: =COUNTIFS(EE$8:EE$86,"=3",$D$8:$D$86,"=MAS") -> 0 | EH132: =COUNTIFS(EH$8:EH$86,"=3",$D$8:$D$86,"=MAS") -> 0 | EK132: =COUNTIFS(EK$8:EK$86,"=3",$D$8:$D$86,"=MAS") -> 0 | EN132: =COUNTIFS(EN$8:EN$86,"=3",$D$8:$D$86,"=MAS") -> 0 | EQ132: =COUNTIFS(EQ$8:EQ$86,"=3",$D$8:$D$86,"=MAS") -> 0 | ET132: =COUNTIFS(ET$8:ET$86,"=3",$D$8:$D$86,"=MAS") -> 0 | EW132: =COUNTIFS(EW$8:EW$86,"=3",$D$8:$D$86,"=MAS") -> 0 | EZ132: =COUNTIFS(EZ$8:EZ$86,"=3",$D$8:$D$86,"=MAS") -> 0 | FC132: =COUNTIFS(FC$8:FC$86,"=3",$D$8:$D$86,"=MAS") -> 0 | FF132: =COUNTIFS(FF$8:FF$86,"=3",$D$8:$D$86,"=MAS") -> 0 | FH132: =COUNTIFS(FH$8:FH$86,"=3",$D$8:$D$86,"=MAS") -> 0
E133: Male Overall Podiums | Y133: 9 | Z133: =COUNTIFS(Z$22:Z$86,"<=3",Z$22:Z$86,">=1",$B$22:$B$86,"=M") -> 1 | AC133: =COUNTIFS(AC$22:AC$86,"<=3",AC$22:AC$86,">=1",$B$22:$B$86,"=M") -> 0 | AE133: =COUNTIFS(AE$22:AE$86,"<=3",AE$22:AE$86,">=1",$B$22:$B$86,"=M") -> 2 | AH133: =COUNTIFS(AH$22:AH$86,"<=3",AH$22:AH$86,">=1",$B$22:$B$86,"=M") -> 0 | AL133: =COUNTIFS(AL$22:AL$86,"<=3",AL$22:AL$86,">=1",$B$22:$B$86,"=M") -> 0 | AP133: =COUNTIFS(AP$22:AP$86,"<=3",AP$22:AP$86,">=1",$B$22:$B$86,"=M") -> 1 | AS133: =COUNTIFS(AS$22:AS$86,"<=3",AS$22:AS$86,">=1",$B$22:$B$86,"=M") -> 0 | AV133: =COUNTIFS(AV$22:AV$86,"<=3",AV$22:AV$86,">=1",$B$22:$B$86,"=M") -> 0 | AY133: =COUNTIFS(AY$22:AY$86,"<=3",AY$22:AY$86,">=1",$B$22:$B$86,"=M") -> 0 | BB133: =COUNTIFS(BB$22:BB$86,"<=3",BB$22:BB$86,">=1",$B$22:$B$86,"=M") -> 0 | BE133: =COUNTIFS(BE$22:BE$86,"<=3",BE$22:BE$86,">=1",$B$22:$B$86,"=M") -> 0 | BH133: =COUNTIFS(BH$22:BH$86,"<=3",BH$22:BH$86,">=1",$B$22:$B$86,"=M") -> 0 | BK133: =COUNTIFS(BK$22:BK$86,"<=3",BK$22:BK$86,">=1",$B$22:$B$86,"=M") -> 0 | BN133: =COUNTIFS(BN$22:BN$86,"<=3",BN$22:BN$86,">=1",$B$22:$B$86,"=M") -> 0 | BQ133: =COUNTIFS(BQ$22:BQ$86,"<=3",BQ$22:BQ$86,">=1",$B$22:$B$86,"=M") -> 0 | BT133: =COUNTIFS(BT$22:BT$86,"<=3",BT$22:BT$86,">=1",$B$22:$B$86,"=M") -> 0 | BW133: =COUNTIFS(BW$22:BW$86,"<=3",BW$22:BW$86,">=1",$B$22:$B$86,"=M") -> 0 | BZ133: =COUNTIFS(BZ$22:BZ$86,"<=3",BZ$22:BZ$86,">=1",$B$22:$B$86,"=M") -> 1 | CC133: =COUNTIFS(CC$22:CC$86,"<=3",CC$22:CC$86,">=1",$B$22:$B$86,"=M") -> 0 | CF133: =COUNTIFS(CF$22:CF$86,"<=3",CF$22:CF$86,">=1",$B$22:$B$86,"=M") -> 0 | CJ133: =COUNTIFS(CJ$22:CJ$86,"<=3",CJ$22:CJ$86,">=1",$B$22:$B$86,"=M") -> 1 | CM133: =COUNTIFS(CM$22:CM$86,"<=3",CM$22:CM$86,">=1",$B$22:$B$86,"=M") -> 0 | CP133: =COUNTIFS(CP$22:CP$86,"<=3",CP$22:CP$86,">=1",$B$22:$B$86,"=M") -> 1 | CS133: =COUNTIFS(CS$22:CS$86,"<=3",CS$22:CS$86,">=1",$B$22:$B$86,"=M") -> 0 | CV133: =COUNTIFS(CV$22:CV$86,"<=3",CV$22:CV$86,">=1",$B$22:$B$86,"=M") -> 1 | CY133: =COUNTIFS(CY$22:CY$86,"<=3",CY$22:CY$86,">=1",$B$22:$B$86,"=M") -> 0 | DB133: =COUNTIFS(DB$22:DB$86,"<=3",DB$22:DB$86,">=1",$B$22:$B$86,"=M") -> 1 | DE133: =COUNTIFS(DE$22:DE$86,"<=3",DE$22:DE$86,">=1",$B$22:$B$86,"=M") -> 0 | DH133: =COUNTIFS(DH$22:DH$86,"<=3",DH$22:DH$86,">=1",$B$22:$B$86,"=M") -> 0 | DK133: =COUNTIFS(DK$22:DK$86,"<=3",DK$22:DK$86,">=1",$B$22:$B$86,"=M") -> 0 | DN133: =COUNTIFS(DN$22:DN$86,"<=3",DN$22:DN$86,">=1",$B$22:$B$86,"=M") -> 0 | DQ133: =COUNTIFS(DQ$22:DQ$86,"<=3",DQ$22:DQ$86,">=1",$B$22:$B$86,"=M") -> 0 | DT133: =COUNTIFS(DT$22:DT$86,"<=3",DT$22:DT$86,">=1",$B$22:$B$86,"=M") -> 0 | DW133: =COUNTIFS(DW$22:DW$86,"<=3",DW$22:DW$86,">=1",$B$22:$B$86,"=M") -> 0 | DZ133: =COUNTIFS(DZ$22:DZ$86,"<=3",DZ$22:DZ$86,">=1",$B$22:$B$86,"=M") -> 0 | EC133: =COUNTIFS(EC$22:EC$86,"<=3",EC$22:EC$86,">=1",$B$22:$B$86,"=M") -> 0 | EE133: =COUNTIFS(EE$22:EE$86,"<=3",EE$22:EE$86,">=1",$B$22:$B$86,"=M") -> 0 | EH133: =COUNTIFS(EH$22:EH$86,"<=3",EH$22:EH$86,">=1",$B$22:$B$86,"=M") -> 0 | EK133: =COUNTIFS(EK$22:EK$86,"<=3",EK$22:EK$86,">=1",$B$22:$B$86,"=M") -> 0 | EN133: =COUNTIFS(EN$22:EN$86,"<=3",EN$22:EN$86,">=1",$B$22:$B$86,"=M") -> 0 | EQ133: =COUNTIFS(EQ$22:EQ$86,"<=3",EQ$22:EQ$86,">=1",$B$22:$B$86,"=M") -> 0 | ET133: =COUNTIFS(ET$22:ET$86,"<=3",ET$22:ET$86,">=1",$B$22:$B$86,"=M") -> 0 | EW133: =COUNTIFS(EW$22:EW$86,"<=3",EW$22:EW$86,">=1",$B$22:$B$86,"=M") -> 0 | EZ133: =COUNTIFS(EZ$22:EZ$86,"<=3",EZ$22:EZ$86,">=1",$B$22:$B$86,"=M") -> 0 | FC133: =COUNTIFS(FC$22:FC$86,"<=3",FC$22:FC$86,">=1",$B$22:$B$86,"=M") -> 0 | FF133: =COUNTIFS(FF$22:FF$86,"<=3",FF$22:FF$86,">=1",$B$22:$B$86,"=M") -> 0 | FH133: =COUNTIFS(FH$22:FH$86,"<=3",FH$22:FH$86,">=1",$B$22:$B$86,"=M") -> 0
E134: Female Overall Podiums | Y134: 2 | Z134: =COUNTIFS(Z$22:Z$86,"<=3",Z$22:Z$86,">=1",$B$22:$B$86,"=F") -> 0 | AC134: =COUNTIFS(AC$22:AC$86,"<=3",AC$22:AC$86,">=1",$B$22:$B$86,"=F") -> 0 | AE134: =COUNTIFS(AE$22:AE$86,"<=3",AE$22:AE$86,">=1",$B$22:$B$86,"=F") -> 0 | AH134: =COUNTIFS(AH$22:AH$86,"<=3",AH$22:AH$86,">=1",$B$22:$B$86,"=F") -> 0 | AL134: =COUNTIFS(AL$22:AL$86,"<=3",AL$22:AL$86,">=1",$B$22:$B$86,"=F") -> 0 | AP134: =COUNTIFS(AP$22:AP$86,"<=3",AP$22:AP$86,">=1",$B$22:$B$86,"=F") -> 0 | AS134: =COUNTIFS(AS$22:AS$86,"<=3",AS$22:AS$86,">=1",$B$22:$B$86,"=F") -> 0 | AV134: =COUNTIFS(AV$22:AV$86,"<=3",AV$22:AV$86,">=1",$B$22:$B$86,"=F") -> 0 | AY134: =COUNTIFS(AY$22:AY$86,"<=3",AY$22:AY$86,">=1",$B$22:$B$86,"=F") -> 0 | BB134: =COUNTIFS(BB$22:BB$86,"<=3",BB$22:BB$86,">=1",$B$22:$B$86,"=F") -> 0 | BE134: =COUNTIFS(BE$22:BE$86,"<=3",BE$22:BE$86,">=1",$B$22:$B$86,"=F") -> 1 | BH134: =COUNTIFS(BH$22:BH$86,"<=3",BH$22:BH$86,">=1",$B$22:$B$86,"=F") -> 0 | BK134: =COUNTIFS(BK$22:BK$86,"<=3",BK$22:BK$86,">=1",$B$22:$B$86,"=F") -> 0 | BN134: =COUNTIFS(BN$22:BN$86,"<=3",BN$22:BN$86,">=1",$B$22:$B$86,"=F") -> 0 | BQ134: =COUNTIFS(BQ$22:BQ$86,"<=3",BQ$22:BQ$86,">=1",$B$22:$B$86,"=F") -> 0 | BT134: =COUNTIFS(BT$22:BT$86,"<=3",BT$22:BT$86,">=1",$B$22:$B$86,"=F") -> 0 | BW134: =COUNTIFS(BW$22:BW$86,"<=3",BW$22:BW$86,">=1",$B$22:$B$86,"=F") -> 0 | BZ134: =COUNTIFS(BZ$22:BZ$86,"<=3",BZ$22:BZ$86,">=1",$B$22:$B$86,"=F") -> 0 | CC134: =COUNTIFS(CC$22:CC$86,"<=3",CC$22:CC$86,">=1",$B$22:$B$86,"=F") -> 0 | CF134: =COUNTIFS(CF$22:CF$86,"<=3",CF$22:CF$86,">=1",$B$22:$B$86,"=F") -> 0 | CJ134: =COUNTIFS(CJ$22:CJ$86,"<=3",CJ$22:CJ$86,">=1",$B$22:$B$86,"=F") -> 0 | CM134: =COUNTIFS(CM$22:CM$86,"<=3",CM$22:CM$86,">=1",$B$22:$B$86,"=F") -> 0 | CP134: =COUNTIFS(CP$22:CP$86,"<=3",CP$22:CP$86,">=1",$B$22:$B$86,"=F") -> 0 | CS134: =COUNTIFS(CS$22:CS$86,"<=3",CS$22:CS$86,">=1",$B$22:$B$86,"=F") -> 0 | CV134: =COUNTIFS(CV$22:CV$86,"<=3",CV$22:CV$86,">=1",$B$22:$B$86,"=F") -> 1 | CY134: =COUNTIFS(CY$22:CY$86,"<=3",CY$22:CY$86,">=1",$B$22:$B$86,"=F") -> 0 | DB134: =COUNTIFS(DB$22:DB$86,"<=3",DB$22:DB$86,">=1",$B$22:$B$86,"=F") -> 0 | DE134: =COUNTIFS(DE$22:DE$86,"<=3",DE$22:DE$86,">=1",$B$22:$B$86,"=F") -> 0 | DH134: =COUNTIFS(DH$22:DH$86,"<=3",DH$22:DH$86,">=1",$B$22:$B$86,"=F") -> 0 | DK134: =COUNTIFS(DK$22:DK$86,"<=3",DK$22:DK$86,">=1",$B$22:$B$86,"=F") -> 0 | DN134: =COUNTIFS(DN$22:DN$86,"<=3",DN$22:DN$86,">=1",$B$22:$B$86,"=F") -> 0 | DQ134: =COUNTIFS(DQ$22:DQ$86,"<=3",DQ$22:DQ$86,">=1",$B$22:$B$86,"=F") -> 0 | DT134: =COUNTIFS(DT$22:DT$86,"<=3",DT$22:DT$86,">=1",$B$22:$B$86,"=F") -> 0 | DW134: =COUNTIFS(DW$22:DW$86,"<=3",DW$22:DW$86,">=1",$B$22:$B$86,"=F") -> 0 | DZ134: =COUNTIFS(DZ$22:DZ$86,"<=3",DZ$22:DZ$86,">=1",$B$22:$B$86,"=F") -> 0 | EC134: =COUNTIFS(EC$22:EC$86,"<=3",EC$22:EC$86,">=1",$B$22:$B$86,"=F") -> 0 | EE134: =COUNTIFS(EE$22:EE$86,"<=3",EE$22:EE$86,">=1",$B$22:$B$86,"=F") -> 0 | EH134: =COUNTIFS(EH$22:EH$86,"<=3",EH$22:EH$86,">=1",$B$22:$B$86,"=F") -> 0 | EK134: =COUNTIFS(EK$22:EK$86,"<=3",EK$22:EK$86,">=1",$B$22:$B$86,"=F") -> 0 | EN134: =COUNTIFS(EN$22:EN$86,"<=3",EN$22:EN$86,">=1",$B$22:$B$86,"=F") -> 0 | EQ134: =COUNTIFS(EQ$22:EQ$86,"<=3",EQ$22:EQ$86,">=1",$B$22:$B$86,"=F") -> 0 | ET134: =COUNTIFS(ET$22:ET$86,"<=3",ET$22:ET$86,">=1",$B$22:$B$86,"=F") -> 0 | EW134: =COUNTIFS(EW$22:EW$86,"<=3",EW$22:EW$86,">=1",$B$22:$B$86,"=F") -> 0 | EZ134: =COUNTIFS(EZ$22:EZ$86,"<=3",EZ$22:EZ$86,">=1",$B$22:$B$86,"=F") -> 0 | FC134: =COUNTIFS(FC$22:FC$86,"<=3",FC$22:FC$86,">=1",$B$22:$B$86,"=F") -> 0 | FF134: =COUNTIFS(FF$22:FF$86,"<=3",FF$22:FF$86,">=1",$B$22:$B$86,"=F") -> 0 | FH134: =COUNTIFS(FH$22:FH$86,"<=3",FH$22:FH$86,">=1",$B$22:$B$86,"=F") -> 0

Sheet Points Rules
A1: Snowsport England - Seed Points
A3: DETERMINATION OF EVENT POINTS | C3: Year of Birth | D3: Age Category
C4: 2006 | D4: U10
A5: Event Points = Race Points + Penalty Points | C5: 2005 | D5: U10
C6: 2004 | D6: U12
A7: Calculation of Race Points | C7: 2003 | D7: U12
A8: Competitor's time divided by the winner's time, minus 1, multiplied by F (F = 620 in 2014) | C8: 2002 | D8: U14
C9: 2001 | D9: U14
A10: Calculation of Penalty Points | C10: 2000 | D10: U16
A11: A + B - C, divided by 10 | C11: 1999 | D11: U16
C12: 1998 | D12: U18
A13: A = the sum of the seed points of the 5 best seeded competitors in the first 10 finishers | C13: 1997 | D13: U18
A14: B = the sum of the seed points of the 5 best seeded competitors at the start of the race | C14: 1996 | D14: U21
A15: C = the sum of the race points of the 5 best seeded competitors in the first 10 finishers | C15: 1995 | D15: U21
C16: 1994 | D16: U21
A17: Minimum Penalty Points | C17: 1993 | D17: SEN
A18: British, English, Welsh, Scottish and Irish Championships = 0 points | C18: 1992 | D18: SEN
A19: Great British Series = 5 points | C19: 1991 | D19: SEN
A20: Club National = 10 points | C20: 1990 | D20: SEN
A21: Indoor Club National Single run=10 points | C21: 1989 | D21: SEN
A22: Note | C22: 1988 | D22: SEN
A23: Male and Female races are seeded separately and carry their own penalty points. | C23: 1987 | D23: SEN
C24: 1986 | D24: SEN
A25: CALCULATION OF SEED POINTS | C25: 1985 | D25: SEN
C26: 1984 | D26: MAS
A27: Seed points for all but the end-of-season list are the minimum of: | C27: 1983 | D27: MAS
C28: 1982 | D28: MAS
A29: A. Last year's end-of-season points (the basic points) | C29: 1981 | D29: MAS
A30: B. The average of the 2 best results (event points) this season | C30: 1980 | D30: MAS
A31: C. The average of the best result this season and the the basic points | C31: 1979 | D31: MAS
A32: D. The best result this season + 20% (minimum loading = 10 points) | C32: 1978 | D32: MAS
C33: 1977 | D33: MAS
A34: End-of-season seed points are the minimum of: | C34: 1976 | D34: MAS
C35: 1975 | D35: MAS
A36: A. Last year's end-of-season seed points + 20% (minimum loading = 10 points) | C36: 1974 | D36: MAS
A37: B. The average of the 2 best results this season | C37: 1973 | D37: MAS
A38: C. The best result from this season + 20% (minimum loading = 10 points) | C38: 1972 | D38: MAS
C39: 1971 | D39: MAS
A40: Notes | C40: 1970 | D40: MAS
A41: For option B to be valid, the 2 results must be from different venues. | C41: 1969 | D41: MAS
A42: In order to calculate the final end-of-season seed points, the provisional seed points are adjusted by a value | C42: 1968 | D42: MAS
A43: which sets the seed points of the best seeded competitor to zero. | C43: 1967 | D43: MAS
A44: Separate male and female seed points lists are published. | C44: 1966 | D44: MAS
A45: Seed lists are published on www.britski.org and www.gbski.com | C45: 1965 | D45: MAS
C46: 1964 | D46: MAS
C47: 1963 | D47: MAS
C48: 1962 | D48: MAS
C49: 1961 | D49: MAS
C50: 1960 | D50: MAS
C51: 1959 | D51: MAS
C52: 1958 | D52: MAS
C53: 1957 | D53: MAS
C54: 1956 | D54: MAS
C55: 1955 | D55: MAS
C56: 1954 | D56: MAS
C57: 1953 | D57: MAS
C58: 1952 | D58: MAS
C59: 1951 | D59: MAS

Sheet Individual Statistics
B1: MSC Podiums in BARTS Events
J4: 2011 | K4: 2014 | L4: 2014
A5: Reg | B5: Racer | C5: Year of | D5: Age | E5: 2014 | F5: 2014 | G5: 2014 | H5: Overall | I5: Age Grp | J5: ESSKIA | K5: England | L5: Wales
A6: No | B6: Name | C6: Birth | D6: Group | E6: Start | F6: Change - o | G6: Change - i | H6: Podiums | I6: Podiums | J6: Squad | K6: Squad | L6: Squad
B7: GIRLS | C7: =IF(ISERROR(VLOOKUP($B7,'Races, Positions & Points'!$A:$C,3,FALSE)),"",IF((VLOOKUP($B7,'Races, Positions & Points'!$A:$C,3,FALSE))=0,"",VLOOKUP($B7,'Races, Positions & Points'!$A:$C,3,FALSE))) ->  | D7: =IF(ISERROR(VLOOKUP($B7,'Races, Positions & Points'!$A:$D,4,FALSE)),"",IF((VLOOKUP($B7,'Races, Positions & Points'!$A:$D,4,FALSE))=0,"",VLOOKUP($B7,'Races, Positions & Points'!$A:$D,4,FALSE))) ->  | E7: =IF(ISERROR(VLOOKUP($B7,'Races, Positions & Points'!$A:$G,7,FALSE)),"",IF((VLOOKUP($B7,'Races, Positions & Points'!$A:$G,7,FALSE))=0,"",VLOOKUP($B7,'Races, Positions & Points'!$A:$G,7,FALSE))) ->  | F7: =IF(ISERROR(VLOOKUP($B7,'Races, Positions & Points'!$A:$Y,9,FALSE)),"",IF((VLOOKUP($B7,'Races, Positions & Points'!$A:$Y,9,FALSE))=0,"",VLOOKUP($B7,'Races, Positions & Points'!$A:$Y,9,FALSE))) ->  | G7: =IF(ISERROR(VLOOKUP($B7,'Races, Positions & Points'!$A:$Y,9,FALSE)),"",IF((VLOOKUP($B7,'Races, Positions & Points'!$A:$Y,9,FALSE))=0,"",VLOOKUP($B7,'Races, Positions & Points'!$A:$Y,9,FALSE))) ->  | H7: =IF(ISERROR(VLOOKUP($B7,'Races, Positions & Points'!$A:$FJ,131,FALSE)),"",IF((VLOOKUP($B7,'Races, Positions & Points'!$A:$FJ,131,FALSE))=0,"",VLOOKUP($B7,'Races, Positions & Points'!$A:$FJ,131,FALSE))) ->  | I7: =IF(ISERROR(VLOOKUP($B7,'Races, Positions & Points'!$A:$FJ,132,FALSE)),"",IF((VLOOKUP($B7,'Races, Positions & Points'!$A:$FJ,132,FALSE))=0,"",VLOOKUP($B7,'Races, Positions & Points'!$A:$FJ,132,FALSE))) -> 
A8: ='Races, Positions & Points'!E8 -> 20669 | B8: ='Races, Positions & Points'!A8 -> Lauren Treuge | C8: ='Races, Positions & Points'!C8 -> 2003 | D8: =IF(ISERROR(VLOOKUP($B8,'Races, Positions & Points'!$A:$D,4,FALSE)),"",IF((VLOOKUP($B8,'Races, Positions & Points'!$A:$D,4,FALSE))=0,"",VLOOKUP($B8,'Races, Positions & Points'!$A:$D,4,FALSE))) -> U12 | E8: ='Races, Positions & Points'!G8 -> 999.99 | H8: ='Races, Positions & Points'!FK8 -> 0 | I8: ='Races, Positions & Points'!FL8 -> 1
A9: ='Races, Positions & Points'!E9 -> 20809 | B9: ='Races, Positions & Points'!A9 -> Tilley O'Brien | C9: ='Races, Positions & Points'!C9 -> 2004 | D9: =IF(ISERROR(VLOOKUP($B9,'Races, Positions & Points'!$A:$D,4,FALSE)),"",IF((VLOOKUP($B9,'Races, Positions & Points'!$A:$D,4,FALSE))=0,"",VLOOKUP($B9,'Races, Positions & Points'!$A:$D,4,FALSE))) -> U12 | E9: ='Races, Positions & Points'!G9 -> 999.99 | H9: ='Races, Positions & Points'!FK9 -> 0 | I9: ='Races, Positions & Points'!FL9 -> 10
A10: ='Races, Positions & Points'!E10 -> 22176 | B10: ='Races, Positions & Points'!A10 -> Ella Giles | C10: ='Races, Positions & Points'!C10 -> 2003 | D10: =IF(ISERROR(VLOOKUP($B10,'Races, Positions & Points'!$A:$D,4,FALSE)),"",IF((VLOOKUP($B10,'Races, Positions & Points'!$A:$D,4,FALSE))=0,"",VLOOKUP($B10,'Races, Positions & Points'!$A:$D,4,FALSE))) -> U12 | E10: ='Races, Positions & Points'!G10 -> 999.99 | H10: ='Races, Positions & Points'!FK10 -> 0 | I10: ='Races, Positions & Points'!FL10 -> 1
A11: ='Races, Positions & Points'!E11 -> 21569 | B11: ='Races, Positions & Points'!A11 -> Anya Hemming | C11: ='Races, Positions & Points'!C11 -> 2005 | D11: =IF(ISERROR(VLOOKUP($B11,'Races, Positions & Points'!$A:$D,4,FALSE)),"",IF((VLOOKUP($B11,'Races, Positions & Points'!$A:$D,4,FALSE))=0,"",VLOOKUP($B11,'Races, Positions & Points'!$A:$D,4,FALSE))) -> U10 | E11: ='Races, Positions & Points'!G11 -> 999.99 | H11: ='Races, Positions & Points'!FK11 -> 0 | I11: ='Races, Positions & Points'!FL11 -> 12
A12: ='Races, Positions & Points'!E12 -> 22015 | B12: ='Races, Positions & Points'!A12 -> Aaliyah Llewellyn | C12: ='Races, Positions & Points'!C12 -> 2006 | D12: ='Races, Positions & Points'!D12 -> U10 | E12: ='Races, Positions & Points'!G12 -> 999.99 | H12: ='Races, Positions & Points'!FK12 -> 0 | I12: ='Races, Positions & Points'!FL12 -> 0
B13: BOYS | C13: =IF(ISERROR(VLOOKUP($B13,'Races, Positions & Points'!$A:$C,3,FALSE)),"",IF((VLOOKUP($B13,'Races, Positions & Points'!$A:$C,3,FALSE))=0,"",VLOOKUP($B13,'Races, Positions & Points'!$A:$C,3,FALSE))) ->  | D13: =IF(ISERROR(VLOOKUP($B13,'Races, Positions & Points'!$A:$G,7,FALSE)),"",IF((VLOOKUP($B13,'Races, Positions & Points'!$A:$G,7,FALSE))=0,"",VLOOKUP($B13,'Races, Positions & Points'!$A:$G,7,FALSE))) ->  | E13: =IF(ISERROR(VLOOKUP($B13,'Races, Positions & Points'!$A:$G,7,FALSE)),"",IF((VLOOKUP($B13,'Races, Positions & Points'!$A:$G,7,FALSE))=0,"",VLOOKUP($B13,'Races, Positions & Points'!$A:$G,7,FALSE))) ->  | F13: =IF(ISERROR(VLOOKUP($B13,'Races, Positions & Points'!$A:$Y,9,FALSE)),"",IF((VLOOKUP($B13,'Races, Positions & Points'!$A:$Y,9,FALSE))=0,"",VLOOKUP($B13,'Races, Positions & Points'!$A:$Y,9,FALSE))) ->  | G13: =IF(ISERROR(VLOOKUP($B13,'Races, Positions & Points'!$A:$Y,9,FALSE)),"",IF((VLOOKUP($B13,'Races, Positions & Points'!$A:$Y,9,FALSE))=0,"",VLOOKUP($B13,'Races, Positions & Points'!$A:$Y,9,FALSE))) ->  | H13: =IF(ISERROR(VLOOKUP($B13,'Races, Positions & Points'!$A:$Y,9,FALSE)),"",IF((VLOOKUP($B13,'Races, Positions & Points'!$A:$Y,9,FALSE))=0,"",VLOOKUP($B13,'Races, Positions & Points'!$A:$Y,9,FALSE))) ->  | I13: =IF(ISERROR(VLOOKUP($B13,'Races, Positions & Points'!$A:$FJ,132,FALSE)),"",IF((VLOOKUP($B13,'Races, Positions & Points'!$A:$FJ,132,FALSE))=0,"",VLOOKUP($B13,'Races, Positions & Points'!$A:$FJ,132,FALSE))) -> 
A14: ='Races, Positions & Points'!E14 -> 20340 | B14: ='Races, Positions & Points'!A14 -> James Shakeshaft | C14: ='Races, Positions & Points'!C14 -> 2003 | D14: ='Races, Positions & Points'!D14 -> U12 | E14: ='Races, Positions & Points'!G14 -> 999.99 | F14: ='Races, Positions & Points'!W14 ->  | G14: ='Races, Positions & Points'!X14 ->  | H14: ='Races, Positions & Points'!FK14 -> 0 | I14: ='Races, Positions & Points'!FL14 -> 0
A15: ='Races, Positions & Points'!E15 -> 20719 | B15: ='Races, Positions & Points'!A15 -> Daniel Hadley | C15: ='Races, Positions & Points'!C15 -> 2004 | D15: ='Races, Positions & Points'!D15 -> U12 | E15: ='Races, Positions & Points'!G15 -> 999.99 | F15: ='Races, Positions & Points'!W15 ->  | G15: ='Races, Positions & Points'!X15 ->  | H15: ='Races, Positions & Points'!FK15 -> 0 | I15: ='Races, Positions & Points'!FL15 -> 0
A16: ='Races, Positions & Points'!E16 -> 20630 | B16: ='Races, Positions & Points'!A16 -> Jack Teague | C16: ='Races, Positions & Points'!C16 -> 2004 | D16: ='Races, Positions & Points'!D16 -> U12 | E16: ='Races, Positions & Points'!G16 -> 999.99 | F16: ='Races, Positions & Points'!W16 ->  | G16: ='Races, Positions & Points'!X16 ->  | H16: ='Races, Positions & Points'!FK16 -> 0 | I16: ='Races, Positions & Points'!FL16 -> 0
A17: ='Races, Positions & Points'!E17 -> 21052 | B17: ='Races, Positions & Points'!A17 -> Jack Upton | C17: ='Races, Positions & Points'!C17 -> 2004 | D17: ='Races, Positions & Points'!D17 -> U12 | E17: ='Races, Positions & Points'!G17 -> 999.99 | H17: ='Races, Positions & Points'!FK17 -> 0 | I17: ='Races, Positions & Points'!FL17 -> 20
A18: ='Races, Positions & Points'!E18 -> 21837 | B18: ='Races, Positions & Points'!A18 -> Keiron Wooley | C18: ='Races, Positions & Points'!C18 -> 2005 | D18: ='Races, Positions & Points'!D18 -> U10 | E18: ='Races, Positions & Points'!G18 -> 999.99 | H18: ='Races, Positions & Points'!FK18 -> 0 | I18: ='Races, Positions & Points'!FL18 -> 22
A19: ='Races, Positions & Points'!E19 -> 22198 | B19: ='Races, Positions & Points'!A19 -> Noah Bailey | C19: ='Races, Positions & Points'!C19 -> 2006 | D19: ='Races, Positions & Points'!D19 -> U10 | E19: ='Races, Positions & Points'!G19 -> 999.99 | H19: ='Races, Positions & Points'!FK19 -> 0 | I19: ='Races, Positions & Points'!FL19 -> 0
A20: ='Races, Positions & Points'!E20 -> 22203 | B20: ='Races, Positions & Points'!A20 -> Daniel Giles | C20: ='Races, Positions & Points'!C20 -> 2003 | D20: ='Races, Positions & Points'!D20 -> U12 | E20: ='Races, Positions & Points'!G20 -> 999.99 | H20: ='Races, Positions & Points'!FK20 -> 0 | I20: ='Races, Positions & Points'!FL20 -> 0
B21: FEMALES | C21: =IF(ISERROR(VLOOKUP($B21,'Races, Positions & Points'!$A:$C,3,FALSE)),"",IF((VLOOKUP($B21,'Races, Positions & Points'!$A:$C,3,FALSE))=0,"",VLOOKUP($B21,'Races, Positions & Points'!$A:$C,3,FALSE))) ->  | D21: =IF(ISERROR(VLOOKUP($B21,'Races, Positions & Points'!$A:$D,4,FALSE)),"",IF((VLOOKUP($B21,'Races, Positions & Points'!$A:$D,4,FALSE))=0,"",VLOOKUP($B21,'Races, Positions & Points'!$A:$D,4,FALSE))) ->  | E21: =IF(ISERROR(VLOOKUP($B21,'Races, Positions & Points'!$A:$G,7,FALSE)),"",IF((VLOOKUP($B21,'Races, Positions & Points'!$A:$G,7,FALSE))=0,"",VLOOKUP($B21,'Races, Positions & Points'!$A:$G,7,FALSE))) ->  | F21: =IF(ISERROR(VLOOKUP($B21,'Races, Positions & Points'!$A:$Y,9,FALSE)),"",IF((VLOOKUP($B21,'Races, Positions & Points'!$A:$Y,9,FALSE))=0,"",VLOOKUP($B21,'Races, Positions & Points'!$A:$Y,9,FALSE))) ->  | G21: =IF(ISERROR(VLOOKUP($B21,'Races, Positions & Points'!$A:$Y,9,FALSE)),"",IF((VLOOKUP($B21,'Races, Positions & Points'!$A:$Y,9,FALSE))=0,"",VLOOKUP($B21,'Races, Positions & Points'!$A:$Y,9,FALSE))) ->  | I21: =IF(ISERROR(VLOOKUP($B21,'Races, Positions & Points'!$A:$FJ,132,FALSE)),"",IF((VLOOKUP($B21,'Races, Positions & Points'!$A:$FJ,132,FALSE))=0,"",VLOOKUP($B21,'Races, Positions & Points'!$A:$FJ,132,FALSE))) -> 
A22: ='Races, Positions & Points'!E22 -> 20168 | B22: ='Races, Positions & Points'!A22 -> Rachel Bill | C22: ='Races, Positions & Points'!C22 -> 1990 | D22: ='Races, Positions & Points'!D22 -> SEN | E22: ='Races, Positions & Points'!G22 -> 23.81 | F22: ='Races, Positions & Points'!W22 ->  | G22: ='Races, Positions & Points'!X22 ->  | H22: ='Races, Positions & Points'!FK22 -> 0 | I22: ='Races, Positions & Points'!FL22 -> 1
A23: ='Races, Positions & Points'!E23 -> 17888 | B23: ='Races, Positions & Points'!A23 -> Lucy Deller | C23: ='Races, Positions & Points'!C23 -> 1996 | D23: ='Races, Positions & Points'!D23 -> U21 | E23: ='Races, Positions & Points'!G23 -> 25.68 | F23: ='Races, Positions & Points'!W23 ->  | G23: ='Races, Positions & Points'!X23 ->  | H23: ='Races, Positions & Points'!FK23 -> 0 | I23: ='Races, Positions & Points'!FL23 -> 0
A24: ='Races, Positions & Points'!E24 -> 20696 | B24: ='Races, Positions & Points'!A24 -> Helena Newboult | C24: ='Races, Positions & Points'!C24 -> 1998 | D24: ='Races, Positions & Points'!D24 -> U18 | E24: ='Races, Positions & Points'!G24 -> 27.39 | F24: ='Races, Positions & Points'!W24 ->  | G24: ='Races, Positions & Points'!X24 ->  | H24: ='Races, Positions & Points'!FK24 -> 0 | I24: ='Races, Positions & Points'!FL24 -> 0
A25: ='Races, Positions & Points'!E25 -> 13381 | B25: ='Races, Positions & Points'!A25 -> Rowan Vernon | C25: ='Races, Positions & Points'!C25 -> 1988 | D25: ='Races, Positions & Points'!D25 -> SEN | E25: ='Races, Positions & Points'!G25 -> 32.84 | F25: ='Races, Positions & Points'!W25 ->  | G25: ='Races, Positions & Points'!X25 ->  | H25: ='Races, Positions & Points'!FK25 -> 0 | I25: ='Races, Positions & Points'!FL25 -> 0
A26: ='Races, Positions & Points'!E26 -> 20307 | B26: ='Races, Positions & Points'!A26 -> Amy Middleton | C26: ='Races, Positions & Points'!C26 -> 1995 | D26: ='Races, Positions & Points'!D26 -> U21 | E26: ='Races, Positions & Points'!G26 -> 51.15 | F26: ='Races, Positions & Points'!W26 -> -6.18 | G26: ='Races, Positions & Points'!X26 ->  | H26: ='Races, Positions & Points'!FK26 -> 0 | I26: ='Races, Positions & Points'!FL26 -> 2
A27: ='Races, Positions & Points'!E27 -> 18033 | B27: ='Races, Positions & Points'!A27 -> Elisabeth Thomas | C27: ='Races, Positions & Points'!C27 -> 1996 | D27: ='Races, Positions & Points'!D27 -> U21 | E27: ='Races, Positions & Points'!G27 -> 72.7 | F27: ='Races, Positions & Points'!W27 -> -31.66 | G27: ='Races, Positions & Points'!X27 ->  | H27: ='Races, Positions & Points'!FK27 -> 1 | I27: ='Races, Positions & Points'!FL27 -> 3
A28: ='Races, Positions & Points'!E28 -> 18617 | B28: ='Races, Positions & Points'!A28 -> Maxine Hancock | C28: ='Races, Positions & Points'!C28 -> 1997 | D28: ='Races, Positions & Points'!D28 -> U18 | E28: ='Races, Positions & Points'!G28 -> 74.28 | F28: ='Races, Positions & Points'!W28 ->  | G28: ='Races, Positions & Points'!X28 ->  | H28: ='Races, Positions & Points'!FK28 -> 0 | I28: ='Races, Positions & Points'!FL28 -> 4
A29: ='Races, Positions & Points'!E29 -> 21014 | B29: ='Races, Positions & Points'!A29 -> Jessica Mayhew | C29: ='Races, Positions & Points'!C29 -> 2000 | D29: ='Races, Positions & Points'!D29 -> U16 | E29: ='Races, Positions & Points'!G29 -> 84.18 | F29: ='Races, Positions & Points'!W29 -> -36.41 | G29: ='Races, Positions & Points'!X29 ->  | H29: ='Races, Positions & Points'!FK29 -> 1 | I29: ='Races, Positions & Points'!FL29 -> 9
A30: ='Races, Positions & Points'!E30 -> 19833 | B30: ='Races, Positions & Points'!A30 -> Hannah Shakeshaft | C30: ='Races, Positions & Points'!C30 -> 1996 | D30: ='Races, Positions & Points'!D30 -> U21 | E30: ='Races, Positions & Points'!G30 -> 140.29 | F30: ='Races, Positions & Points'!W30 ->  | G30: ='Races, Positions & Points'!X30 ->  | H30: ='Races, Positions & Points'!FK30 -> 0 | I30: ='Races, Positions & Points'!FL30 -> 0
A31: ='Races, Positions & Points'!E31 -> 19983 | B31: ='Races, Positions & Points'!A31 -> Chloe Care | C31: ='Races, Positions & Points'!C31 -> 1998 | D31: ='Races, Positions & Points'!D31 -> U18 | E31: ='Races, Positions & Points'!G31 -> 203.01 | F31: ='Races, Positions & Points'!W31 ->  | G31: ='Races, Positions & Points'!X31 ->  | H31: ='Races, Positions & Points'!FK31 -> 0 | I31: ='Races, Positions & Points'!FL31 -> 1
A32: ='Races, Positions & Points'!E32 -> 19165 | B32: ='Races, Positions & Points'!A32 -> Geraldine Elgy | C32: ='Races, Positions & Points'!C32 -> 1954 | D32: ='Races, Positions & Points'!D32 -> MAS | E32: ='Races, Positions & Points'!G32 -> 330.25 | F32: ='Races, Positions & Points'!W32 ->  | G32: ='Races, Positions & Points'!X32 ->  | H32: ='Races, Positions & Points'!FK32 -> 0 | I32: ='Races, Positions & Points'!FL32 -> 0
A33: ='Races, Positions & Points'!E33 -> 20781 | B33: ='Races, Positions & Points'!A33 -> Laura Newboult | C33: ='Races, Positions & Points'!C33 -> 1995 | D33: ='Races, Positions & Points'!D33 -> U21 | E33: ='Races, Positions & Points'!G33 -> 428.94 | F33: ='Races, Positions & Points'!W33 ->  | G33: ='Races, Positions & Points'!X33 ->  | H33: ='Races, Positions & Points'!FK33 -> 0 | I33: ='Races, Positions & Points'!FL33 -> 0
A34: ='Races, Positions & Points'!E34 -> 19573 | B34: ='Races, Positions & Points'!A34 -> Robyn Doherty | C34: ='Races, Positions & Points'!C34 -> 1996 | D34: ='Races, Positions & Points'!D34 -> U21 | E34: ='Races, Positions & Points'!G34 -> 636.34 | F34: ='Races, Positions & Points'!W34 ->  | G34: ='Races, Positions & Points'!X34 ->  | H34: ='Races, Positions & Points'!FK34 -> 0 | I34: ='Races, Positions & Points'!FL34 -> 0
A35: ='Races, Positions & Points'!E35 -> 41577 | B35: ='Races, Positions & Points'!A35 -> Jane Lee | C35: ='Races, Positions & Points'!C35 -> 1954 | D35: ='Races, Positions & Points'!D35 -> MAS | E35: ='Races, Positions & Points'!G35 -> 640.45 | F35: ='Races, Positions & Points'!W35 ->  | G35: ='Races, Positions & Points'!X35 ->  | H35: ='Races, Positions & Points'!FK35 -> 0 | I35: ='Races, Positions & Points'!FL35 -> 0
A36: ='Races, Positions & Points'!E36 -> 14263 | B36: ='Races, Positions & Points'!A36 -> Emily Dawes | C36: ='Races, Positions & Points'!C36 -> 1991 | D36: ='Races, Positions & Points'!D36 -> SEN | E36: ='Races, Positions & Points'!G36 -> NR | F36: ='Races, Positions & Points'!W36 ->  | G36: ='Races, Positions & Points'!X36 ->  | H36: ='Races, Positions & Points'!FK36 -> 0 | I36: ='Races, Positions & Points'!FL36 -> 0
A37: ='Races, Positions & Points'!E37 -> 17839 | B37: ='Races, Positions & Points'!A37 -> Sophia Phelps | C37: ='Races, Positions & Points'!C37 -> 1994 | D37: ='Races, Positions & Points'!D37 -> U21 | E37: ='Races, Positions & Points'!G37 -> NR | F37: ='Races, Positions & Points'!W37 ->  | G37: ='Races, Positions & Points'!X37 ->  | H37: ='Races, Positions & Points'!FK37 -> 0 | I37: ='Races, Positions & Points'!FL37 -> 0
A38: ='Races, Positions & Points'!E38 -> 17516 | B38: ='Races, Positions & Points'!A38 -> Olivia Waller | C38: ='Races, Positions & Points'!C38 -> 1994 | D38: ='Races, Positions & Points'!D38 -> U21 | E38: ='Races, Positions & Points'!G38 -> NR | F38: ='Races, Positions & Points'!W38 ->  | G38: ='Races, Positions & Points'!X38 ->  | H38: ='Races, Positions & Points'!FK38 -> 0 | I38: ='Races, Positions & Points'!FL38 -> 0
A39: ='Races, Positions & Points'!E39 -> 21606 | B39: ='Races, Positions & Points'!A39 -> Agathe Vallat | C39: ='Races, Positions & Points'!C39 -> 1999 | D39: ='Races, Positions & Points'!D39 -> U16 | E39: ='Races, Positions & Points'!G39 -> 465.82 | F39: ='Races, Positions & Points'!W39 -> -245.74 | G39: ='Races, Positions & Points'!X39 ->  | H39: ='Races, Positions & Points'!FK39 -> 0 | I39: ='Races, Positions & Points'!FL39 -> 0
A40: Day | B40: Rose Tinley | C40: 1998 | D40: U18 | E40: NR | F40: ='Races, Positions & Points'!W40 ->  | G40: ='Races, Positions & Points'!X40 ->  | H40: ='Races, Positions & Points'!FK40 -> 0 | I40: ='Races, Positions & Points'!FL40 -> 0
A41: Day | B41: Rebecca Tinley | C41: 2000 | D41: U16 | E41: NR | F41: ='Races, Positions & Points'!W41 ->  | G41: ='Races, Positions & Points'!X41 ->  | H41: ='Races, Positions & Points'!FK41 -> 0 | I41: ='Races, Positions & Points'!FL41 -> 0
A42: ='Races, Positions & Points'!E42 -> Day | B42: ='Races, Positions & Points'!A42 -> Carys Phillips | C42: ='Races, Positions & Points'!C42 -> 1999 | D42: ='Races, Positions & Points'!D42 -> U16 | E42: ='Races, Positions & Points'!G42 -> NR | F42: ='Races, Positions & Points'!W42 ->  | G42: ='Races, Positions & Points'!X42 ->  | H42: ='Races, Positions & Points'!FK42 -> 0 | I42: ='Races, Positions & Points'!FL42 -> 0
B43: MALES | C43: =IF(ISERROR(VLOOKUP($B43,'Races, Positions & Points'!$A:$C,3,FALSE)),"",IF((VLOOKUP($B43,'Races, Positions & Points'!$A:$C,3,FALSE))=0,"",VLOOKUP($B43,'Races, Positions & Points'!$A:$C,3,FALSE))) ->  | D43: =IF(ISERROR(VLOOKUP($B43,'Races, Positions & Points'!$A:$D,4,FALSE)),"",IF((VLOOKUP($B43,'Races, Positions & Points'!$A:$D,4,FALSE))=0,"",VLOOKUP($B43,'Races, Positions & Points'!$A:$D,4,FALSE))) ->  | E43: =IF(ISERROR(VLOOKUP($B43,'Races, Positions & Points'!$A:$G,7,FALSE)),"",IF((VLOOKUP($B43,'Races, Positions & Points'!$A:$G,7,FALSE))=0,"",VLOOKUP($B43,'Races, Positions & Points'!$A:$G,7,FALSE))) ->  | F43: =IF(ISERROR(VLOOKUP($B43,'Races, Positions & Points'!$A:$Y,9,FALSE)),"",IF((VLOOKUP($B43,'Races, Positions & Points'!$A:$Y,9,FALSE))=0,"",VLOOKUP($B43,'Races, Positions & Points'!$A:$Y,9,FALSE))) ->  | G43: =IF(ISERROR(VLOOKUP($B43,'Races, Positions & Points'!$A:$Y,9,FALSE)),"",IF((VLOOKUP($B43,'Races, Positions & Points'!$A:$Y,9,FALSE))=0,"",VLOOKUP($B43,'Races, Positions & Points'!$A:$Y,9,FALSE))) ->  | I43: =IF(ISERROR(VLOOKUP($B43,'Races, Positions & Points'!$A:$FJ,132,FALSE)),"",IF((VLOOKUP($B43,'Races, Positions & Points'!$A:$FJ,132,FALSE))=0,"",VLOOKUP($B43,'Races, Positions & Points'!$A:$FJ,132,FALSE))) -> 
A44: ='Races, Positions & Points'!E44 -> 17356 | B44: ='Races, Positions & Points'!A44 -> Harry Hornsby | C44: ='Races, Positions & Points'!C44 -> 1991 | D44: ='Races, Positions & Points'!D44 -> SEN | E44: ='Races, Positions & Points'!G44 -> 5.41 | F44: ='Races, Positions & Points'!W44 -> -0.13 | G44: ='Races, Positions & Points'!X44 ->  | H44: ='Races, Positions & Points'!FK44 -> 6 | I44: ='Races, Positions & Points'!FL44 -> 7
A45: ='Races, Positions & Points'!E45 -> 17479 | B45: ='Races, Positions & Points'!A45 -> Jonny Powell | C45: ='Races, Positions & Points'!C45 -> 1986 | D45: ='Races, Positions & Points'!D45 -> SEN | E45: ='Races, Positions & Points'!G45 -> 18.72 | F45: ='Races, Positions & Points'!W45 ->  | G45: ='Races, Positions & Points'!X45 ->  | H45: ='Races, Positions & Points'!FK45 -> 0 | I45: ='Races, Positions & Points'!FL45 -> 2
A46: ='Races, Positions & Points'!E46 -> 12318 | B46: ='Races, Positions & Points'!A46 -> Andrew Du Plessis | C46: ='Races, Positions & Points'!C46 -> 1985 | D46: ='Races, Positions & Points'!D46 -> SEN | E46: ='Races, Positions & Points'!G46 -> 23.04 | F46: ='Races, Positions & Points'!W46 ->  | G46: ='Races, Positions & Points'!X46 ->  | H46: ='Races, Positions & Points'!FK46 -> 0 | I46: ='Races, Positions & Points'!FL46 -> 0
A47: ='Races, Positions & Points'!E47 -> 19704 | B47: ='Races, Positions & Points'!A47 -> Adam Beardmore | C47: ='Races, Positions & Points'!C47 -> 1986 | D47: ='Races, Positions & Points'!D47 -> SEN | E47: ='Races, Positions & Points'!G47 -> 35.26 | F47: ='Races, Positions & Points'!W47 ->  | G47: ='Races, Positions & Points'!X47 ->  | H47: ='Races, Positions & Points'!FK47 -> 0 | I47: ='Races, Positions & Points'!FL47 -> 0
A48: ='Races, Positions & Points'!E48 -> 41578 | B48: ='Races, Positions & Points'!A48 -> Adam. Lee | C48: ='Races, Positions & Points'!C48 -> 1994 | D48: ='Races, Positions & Points'!D48 -> U21 | E48: ='Races, Positions & Points'!G48 -> 38.93 | F48: ='Races, Positions & Points'!W48 -> -2.54 | G48: ='Races, Positions & Points'!X48 ->  | H48: ='Races, Positions & Points'!FK48 -> 2 | I48: ='Races, Positions & Points'!FL48 -> 6
A49: ='Races, Positions & Points'!E49 -> 41722 | B49: ='Races, Positions & Points'!A49 -> Jack Rigby | C49: ='Races, Positions & Points'!C49 -> 1995 | D49: ='Races, Positions & Points'!D49 -> U21 | E49: ='Races, Positions & Points'!G49 -> 50.4 | F49: ='Races, Positions & Points'!W49 ->  | G49: ='Races, Positions & Points'!X49 -> -7.91 | H49: ='Races, Positions & Points'!FK49 -> 0 | I49: ='Races, Positions & Points'!FL49 -> 1
A50: ='Races, Positions & Points'!E50 -> 21084 | B50: ='Races, Positions & Points'!A50 -> Phil Emmerson | C50: ='Races, Positions & Points'!C50 -> 1990 | D50: ='Races, Positions & Points'!D50 -> SEN | E50: ='Races, Positions & Points'!G50 -> 57.73 | F50: ='Races, Positions & Points'!W50 -> -15.71 | G50: ='Races, Positions & Points'!X50 ->  | H50: ='Races, Positions & Points'!FK50 -> 0 | I50: ='Races, Positions & Points'!FL50 -> 2
A51: ='Races, Positions & Points'!E51 -> 19163 | B51: ='Races, Positions & Points'!A51 -> Mark Hawkins | C51: ='Races, Positions & Points'!C51 -> 1979 | D51: ='Races, Positions & Points'!D51 -> MAS | E51: ='Races, Positions & Points'!G51 -> 61.45 | F51: ='Races, Positions & Points'!W51 -> -5.92 | G51: ='Races, Positions & Points'!X51 ->  | H51: ='Races, Positions & Points'!FK51 -> 0 | I51: ='Races, Positions & Points'!FL51 -> 9
A52: ='Races, Positions & Points'!E52 -> 18607 | B52: ='Races, Positions & Points'!A52 -> Nick Miller | C52: ='Races, Positions & Points'!C52 -> 1993 | D52: ='Races, Positions & Points'!D52 -> SEN | E52: ='Races, Positions & Points'!G52 -> 63.19 | F52: ='Races, Positions & Points'!W52 ->  | G52: ='Races, Positions & Points'!X52 ->  | H52: ='Races, Positions & Points'!FK52 -> 0 | I52: ='Races, Positions & Points'!FL52 -> 0
A53: ='Races, Positions & Points'!E53 -> 18586 | B53: ='Races, Positions & Points'!A53 -> Alasdair Thorley | C53: ='Races, Positions & Points'!C53 -> 1994 | D53: ='Races, Positions & Points'!D53 -> U21 | E53: ='Races, Positions & Points'!G53 -> 69.65 | F53: ='Races, Positions & Points'!W53 ->  | G53: ='Races, Positions & Points'!X53 ->  | H53: ='Races, Positions & Points'!FK53 -> 0 | I53: ='Races, Positions & Points'!FL53 -> 0
A54: ='Races, Positions & Points'!E54 -> 17840 | B54: ='Races, Positions & Points'!A54 -> Nick Phelps | C54: ='Races, Positions & Points'!C54 -> 1997 | D54: ='Races, Positions & Points'!D54 -> U18 | E54: ='Races, Positions & Points'!G54 -> 70.34 | F54: ='Races, Positions & Points'!W54 ->  | G54: ='Races, Positions & Points'!X54 ->  | H54: ='Races, Positions & Points'!FK54 -> 0 | I54: ='Races, Positions & Points'!FL54 -> 2
A55: ='Races, Positions & Points'!E55 -> 19051 | B55: ='Races, Positions & Points'!A55 -> Oliver Weeks | C55: ='Races, Positions & Points'!C55 -> 2001 | D55: ='Races, Positions & Points'!D55 -> U14 | E55: ='Races, Positions & Points'!G55 -> 70.99 | F55: ='Races, Positions & Points'!W55 -> -17.52 | G55: ='Races, Positions & Points'!X55 -> -4 | H55: ='Races, Positions & Points'!FK55 -> 1 | I55: ='Races, Positions & Points'!FL55 -> 27
A56: ='Races, Positions & Points'!E56 -> 21595 | B56: ='Races, Positions & Points'!A56 -> James Smith | C56: ='Races, Positions & Points'!C56 -> 1992 | D56: ='Races, Positions & Points'!D56 -> SEN | E56: ='Races, Positions & Points'!G56 -> 72.23 | F56: ='Races, Positions & Points'!W56 -> -8.52 | G56: ='Races, Positions & Points'!X56 ->  | H56: ='Races, Positions & Points'!FK56 -> 0 | I56: ='Races, Positions & Points'!FL56 -> 0
A57: ='Races, Positions & Points'!E57 -> 18509 | B57: ='Races, Positions & Points'!A57 -> Gareth Miller | C57: ='Races, Positions & Points'!C57 -> 1994 | D57: ='Races, Positions & Points'!D57 -> U21 | E57: ='Races, Positions & Points'!G57 -> 73.98 | F57: ='Races, Positions & Points'!W57 -> -23.1 | G57: ='Races, Positions & Points'!X57 -> -2.91 | H57: ='Races, Positions & Points'!FK57 -> 0 | I57: ='Races, Positions & Points'!FL57 -> 2
A58: ='Races, Positions & Points'!E58 -> 14213 | B58: ='Races, Positions & Points'!A58 -> Edmund Walker | C58: ='Races, Positions & Points'!C58 -> 1992 | D58: ='Races, Positions & Points'!D58 -> SEN | E58: ='Races, Positions & Points'!G58 -> 77.16 | F58: ='Races, Positions & Points'!W58 -> -26.39 | G58: ='Races, Positions & Points'!X58 ->  | H58: ='Races, Positions & Points'!FK58 -> 0 | I58: ='Races, Positions & Points'!FL58 -> 1
A59: ='Races, Positions & Points'!E59 -> 19910 | B59: ='Races, Positions & Points'!A59 -> Jordan Rigby | C59: ='Races, Positions & Points'!C59 -> 2000 | D59: ='Races, Positions & Points'!D59 -> U16 | E59: ='Races, Positions & Points'!G59 -> 111.82 | F59: ='Races, Positions & Points'!W59 ->  | G59: ='Races, Positions & Points'!X59 ->  | H59: ='Races, Positions & Points'!FK59 -> 0 | I59: ='Races, Positions & Points'!FL59 -> 0
A60: ='Races, Positions & Points'!E60 -> 20846 | B60: ='Races, Positions & Points'!A60 -> Sam Dewison | C60: ='Races, Positions & Points'!C60 -> 1998 | D60: ='Races, Positions & Points'!D60 -> U18 | E60: ='Races, Positions & Points'!G60 -> 119.86 | F60: ='Races, Positions & Points'!W60 -> -16.4 | G60: ='Races, Positions & Points'!X60 ->  | H60: ='Races, Positions & Points'!FK60 -> 0 | I60: ='Races, Positions & Points'!FL60 -> 0
A61: ='Races, Positions & Points'!E61 -> 5666 | B61: ='Races, Positions & Points'!A61 -> Roger Crombleholme | C61: ='Races, Positions & Points'!C61 -> 1957 | D61: ='Races, Positions & Points'!D61 -> MAS | E61: ='Races, Positions & Points'!G61 -> 120.35 | F61: ='Races, Positions & Points'!W61 ->  | G61: ='Races, Positions & Points'!X61 ->  | H61: ='Races, Positions & Points'!FK61 -> 0 | I61: ='Races, Positions & Points'!FL61 -> 0
A62: ='Races, Positions & Points'!E62 -> 20677 | B62: ='Races, Positions & Points'!A62 -> Joey Frost | C62: ='Races, Positions & Points'!C62 -> 1995 | D62: ='Races, Positions & Points'!D62 -> U21 | E62: ='Races, Positions & Points'!G62 -> 127.79 | F62: ='Races, Positions & Points'!W62 ->  | G62: ='Races, Positions & Points'!X62 ->  | H62: ='Races, Positions & Points'!FK62 -> 0 | I62: ='Races, Positions & Points'!FL62 -> 0
A63: ='Races, Positions & Points'!E63 -> 41662 | B63: ='Races, Positions & Points'!A63 -> Sam Lee | C63: ='Races, Positions & Points'!C63 -> 1996 | D63: ='Races, Positions & Points'!D63 -> U21 | E63: ='Races, Positions & Points'!G63 -> 128.82 | F63: ='Races, Positions & Points'!W63 ->  | G63: ='Races, Positions & Points'!X63 ->  | H63: ='Races, Positions & Points'!FK63 -> 0 | I63: ='Races, Positions & Points'!FL63 -> 1
A64: ='Races, Positions & Points'!E64 -> 18998 | B64: ='Races, Positions & Points'!A64 -> Duncan Thorley | C64: ='Races, Positions & Points'!C64 -> 1997 | D64: ='Races, Positions & Points'!D64 -> U18 | E64: ='Races, Positions & Points'!G64 -> 133.95 | F64: ='Races, Positions & Points'!W64 ->  | G64: ='Races, Positions & Points'!X64 ->  | H64: ='Races, Positions & Points'!FK64 -> 0 | I64: ='Races, Positions & Points'!FL64 -> 0
A65: ='Races, Positions & Points'!E65 -> 19941 | B65: ='Races, Positions & Points'!A65 -> Thomas Lawrence | C65: ='Races, Positions & Points'!C65 -> 1999 | D65: ='Races, Positions & Points'!D65 -> U16 | E65: ='Races, Positions & Points'!G65 -> 144.61 | F65: ='Races, Positions & Points'!W65 -> -41.55 | G65: ='Races, Positions & Points'!X65 ->  | H65: ='Races, Positions & Points'!FK65 -> 0 | I65: ='Races, Positions & Points'!FL65 -> 1
A66: ='Races, Positions & Points'!E66 -> 19829 | B66: ='Races, Positions & Points'!A66 -> Ethan Hemming | C66: ='Races, Positions & Points'!C66 -> 2001 | D66: ='Races, Positions & Points'!D66 -> U14 | E66: ='Races, Positions & Points'!G66 -> 150.21 | F66: ='Races, Positions & Points'!W66 -> -35.76 | G66: ='Races, Positions & Points'!X66 ->  | H66: ='Races, Positions & Points'!FK66 -> 0 | I66: ='Races, Positions & Points'!FL66 -> 1
A67: ='Races, Positions & Points'!E67 -> 19166 | B67: ='Races, Positions & Points'!A67 -> James Elgy | C67: ='Races, Positions & Points'!C67 -> 1993 | D67: ='Races, Positions & Points'!D67 -> SEN | E67: ='Races, Positions & Points'!G67 -> 166.36 | F67: ='Races, Positions & Points'!W67 ->  | G67: ='Races, Positions & Points'!X67 ->  | H67: ='Races, Positions & Points'!FK67 -> 0 | I67: ='Races, Positions & Points'!FL67 -> 0
A68: ='Races, Positions & Points'!E68 -> 21550 | B68: ='Races, Positions & Points'!A68 -> Toby Tarrant | C68: ='Races, Positions & Points'!C68 -> 1997 | D68: ='Races, Positions & Points'!D68 -> U18 | E68: ='Races, Positions & Points'!G68 -> 186.2 | F68: ='Races, Positions & Points'!W68 -> -50.57 | G68: ='Races, Positions & Points'!X68 ->  | H68: ='Races, Positions & Points'!FK68 -> 0 | I68: ='Races, Positions & Points'!FL68 -> 0
A69: ='Races, Positions & Points'!E69 -> 21051 | B69: ='Races, Positions & Points'!A69 -> Thomas Upton | C69: ='Races, Positions & Points'!C69 -> 2001 | D69: ='Races, Positions & Points'!D69 -> U14 | E69: ='Races, Positions & Points'!G69 -> 189.87 | F69: ='Races, Positions & Points'!W69 -> -84.92 | G69: ='Races, Positions & Points'!X69 -> -68.38 | H69: ='Races, Positions & Points'!FK69 -> 0 | I69: ='Races, Positions & Points'!FL69 -> 1
A70: ='Races, Positions & Points'!E70 -> 19379 | B70: ='Races, Positions & Points'!A70 -> Edward Guy | C70: ='Races, Positions & Points'!C70 -> 2001 | D70: ='Races, Positions & Points'!D70 -> U14 | E70: ='Races, Positions & Points'!G70 -> 238.89 | F70: ='Races, Positions & Points'!W70 -> -100.57 | G70: ='Races, Positions & Points'!X70 ->  | H70: ='Races, Positions & Points'!FK70 -> 0 | I70: ='Races, Positions & Points'!FL70 -> 0
A71: ='Races, Positions & Points'!E71 -> 19572 | B71: ='Races, Positions & Points'!A71 -> Samuel Doherty | C71: ='Races, Positions & Points'!C71 -> 1999 | D71: ='Races, Positions & Points'!D71 -> U16 | E71: ='Races, Positions & Points'!G71 -> 257.09 | F71: ='Races, Positions & Points'!W71 ->  | G71: ='Races, Positions & Points'!X71 ->  | H71: ='Races, Positions & Points'!FK71 -> 0 | I71: ='Races, Positions & Points'!FL71 -> 0
A72: ='Races, Positions & Points'!E72 -> 18616 | B72: ='Races, Positions & Points'!A72 -> Karl Hancock | C72: ='Races, Positions & Points'!C72 -> 1995 | D72: ='Races, Positions & Points'!D72 -> U21 | E72: ='Races, Positions & Points'!G72 -> 259.37 | F72: ='Races, Positions & Points'!W72 ->  | G72: ='Races, Positions & Points'!X72 -> -55.93 | H72: ='Races, Positions & Points'!FK72 -> 0 | I72: ='Races, Positions & Points'!FL72 -> 0
A73: ='Races, Positions & Points'!E73 -> 19164 | B73: ='Races, Positions & Points'!A73 -> John Elgy | C73: ='Races, Positions & Points'!C73 -> 1951 | D73: ='Races, Positions & Points'!D73 -> MAS | E73: ='Races, Positions & Points'!G73 -> 332.56 | F73: ='Races, Positions & Points'!W73 ->  | G73: ='Races, Positions & Points'!X73 ->  | H73: ='Races, Positions & Points'!FK73 -> 0 | I73: ='Races, Positions & Points'!FL73 -> 0
A74: ='Races, Positions & Points'!E74 -> 21633 | B74: ='Races, Positions & Points'!A74 -> Matthew Kirkland | C74: ='Races, Positions & Points'!C74 -> 1992 | D74: ='Races, Positions & Points'!D74 -> SEN | E74: ='Races, Positions & Points'!G74 -> 345.98 | F74: ='Races, Positions & Points'!W74 ->  | G74: ='Races, Positions & Points'!X74 ->  | H74: ='Races, Positions & Points'!FK74 -> 0 | I74: ='Races, Positions & Points'!FL74 -> 0
A75: ='Races, Positions & Points'!E75 -> 17039 | B75: ='Races, Positions & Points'!A75 -> Phil Deller | C75: ='Races, Positions & Points'!C75 -> 1959 | D75: ='Races, Positions & Points'!D75 -> MAS | E75: ='Races, Positions & Points'!G75 -> 780.34 | F75: ='Races, Positions & Points'!W75 ->  | G75: ='Races, Positions & Points'!X75 ->  | H75: ='Races, Positions & Points'!FK75 -> 0 | I75: ='Races, Positions & Points'!FL75 -> 0
A76: ='Races, Positions & Points'!E76 -> 17037 | B76: ='Races, Positions & Points'!A76 -> David Hancock | C76: ='Races, Positions & Points'!C76 -> 1964 | D76: ='Races, Positions & Points'!D76 -> MAS | E76: ='Races, Positions & Points'!G76 -> 999.99 | F76: ='Races, Positions & Points'!W76 ->  | G76: ='Races, Positions & Points'!X76 ->  | H76: ='Races, Positions & Points'!FK76 -> 0 | I76: ='Races, Positions & Points'!FL76 -> 0
A77: ='Races, Positions & Points'!E77 -> 21714 | B77: ='Races, Positions & Points'!A77 -> Joe Bird | C77: ='Races, Positions & Points'!C77 -> 1994 | D77: ='Races, Positions & Points'!D77 -> U21 | E77: ='Races, Positions & Points'!G77 -> 999.99 | F77: ='Races, Positions & Points'!W77 ->  | G77: ='Races, Positions & Points'!X77 ->  | H77: ='Races, Positions & Points'!FK77 -> 0 | I77: ='Races, Positions & Points'!FL77 -> 0
